Workbook

Sheet Start
G2: Risk Dashboard Interactive Tool
G3: =+'Reference Dates'!$C$4 -> Q32021 Data
E4: Please enable macros to ensure the correct functioning of the tool
O5: List showing in Dropdown menu | P5: RI number | Q5: RI Code | R5: Name for tables - change if needs to be different from dropdown names | T5: Tables name for dropdown
O6: Tier 1 capital ratio | P6: 1 | Q6: SVC_1 | R6: Tier 1 capital ratio | T6: Assets
B7: Choose a Risk Indicator: | E7: RI Number (*) | G7: RI Code | O7: Total capital ratio | P7: 2 | Q7: SVC_2 | R7: Total capital ratio | T7: Loans Composition
B8: Tier 1 capital ratio | E8: =IFERROR(VLOOKUP(B8,$O$6:$Q$26,2,0),"") -> 1 | G8: =IFERROR(VLOOKUP(B8,$O$6:$Q$26,3,0),"") -> SVC_1 | O8: CET1 ratio | P8: 3 | Q8: SVC_3 | R8: CET1 ratio | T8: Loans NPL and coverage ratio
O9: CET1 ratio (fully loaded) | P9: 4 | Q9: SVC_29 | R9: CET1 ratio (fully loaded) | T9: NACE composition
B10: Choose a set of Tables from the statistical Annex: | O10: Leverage ratio | P10: 5 | Q10: SVC_13 | R10: Leverage ratio (transitional definition of Tier 1) | T10: NPL ratio by NACE
B11: Assets | I11: =IFERROR((LEFT($B$11,FIND(" ",$B$11)-1)),$B$11) -> Assets | O11: Leverage ratio (fully phased-in definition of Tier 1) | P11: 6 | Q11: SVC_12 | R11: Leverage ratio (fully phased-in definition of Tier 1) | T11: RE and Construction Exposures
O12: Ratio of non-performing loans and advances (NPL ratio) | P12: 7 | Q12: AQT_3.2 | R12: Ratio of non-performing loans and advances (NPL ratio) | T12: IFRS9
O13: Coverage ratio of non-performing loans and advances | P13: 8 | Q13: AQT_41.2 | R13: Coverage ratio of non-performing loans and advances | T13: Sovereigns
O14: Forbearance ratio for loans and advances | P14: 9 | Q14: AQT_42.2 | R14: Forbearance ratio for loans and advances | T14: Liabilities
B15: (*) In order of appearance in the Risk Dashboard | O15: Ratio of non-performing exposures (NPE ratio) | P15: 10 | Q15: AQT_3.1 | R15: Ratio of non-performing exposures (NPE ratio) | T15: Own funds and RWA
O16: Return on equity | P16: 11 | Q16: PFT_21 | R16: Return on equity | T16: Profitability
O17: Return on assets | P17: 12 | Q17: PFT_24 | R17: Return on assets | T17: Moratoria
O18: Cost to income ratio | P18: 13 | Q18: PFT_23 | R18: Cost to income ratio | T18: Public guarantee schemes
O19: Net interest income to total net operating income | P19: 14 | Q19: PFT_25 | R19: Net interest income to total net operating income
O20: Net fee and commission income to total net operating income | P20: 15 | Q20: PFT_26 | R20: Net fee and commission income to total net operating income
O21: Net trading income to total net operating income | P21: 16 | Q21: PFT_29 | R21: Net trading income to total net operating income
O22: Net interest margin | P22: 17 | Q22: PFT_41 | R22: Net interest margin
O23: Cost of Risk | P23: 18 | Q23: PFT_43 | R23: Cost of Risk
O24: Loan-to-deposit ratio for households and non-financial corporations | P24: 19 | Q24: FND_32 | R24: Loan-to-deposit ratio for households and non-financial corporations
O25: Asset encumbrance ratio | P25: 20 | Q25: FND_33 | R25: Asset encumbrance ratio
O26: Liquidity coverage ratio (%) | P26: 21 | Q26: LIQ_17 | R26: Liquidity coverage ratio (%)

Sheet Charts
B2: =$AR$21 -> Solvency
B3: =AM21&" - "&$AO$20 -> 1 - Tier 1 capital ratio
B4: Due to the automation of this file, charts axis are not scaled as in the booklet version. User may need to manually adjust it.
B5: Dispersion | J5: Numerator and denominator: trends
B7: 5th and 95th pct, interquartile range and median. | J7: =IF(AK21="PFT_43","Total numerator and denominator. 2018Q1=100.","Total numerator and denominator. "& IF(NOT(ISNA($AS$25)), YEAR($AM$25), IF(NOT(ISNA($AS$26)), YEAR($AM$26), IF(NOT(ISNA($AS$27)), YEAR($AM$27), IF(NOT(ISNA($AS$28)), YEAR($AM$28), IF(NOT(ISNA(#REF!)), YEAR($AM$29),IF(NOT(ISNA($AS$30)), YEAR($AM$30),IF(NOT(ISNA($AS$31)), YEAR($AM$31),IF(NOT(ISNA($AS$32)), YEAR($AM$32),IF(NOT(ISNA($AS$33)), YEAR($AM$33),IF(NOT(ISNA($AS$34)), YEAR($AM$34),IF(NOT(ISNA($AS$35)), YEAR($AM$35),YEAR($AM$36)))))))))))) &"Q"& IF(NOT(ISNA($AS$25)),ROUNDUP(MONTH($AM$25)/3,0), IF(NOT(ISNA($AS$26)),ROUNDUP(MONTH($AM$26)/3,0), IF(NOT(ISNA($AS$27)), ROUNDUP(MONTH($AM$27)/3,0), IF(NOT(ISNA($AS$28)), ROUNDUP(MONTH($AM$28)/3,0),NOT(ISNA($AS$29)))))) &" = 100.") -> Total numerator and denominator. 2018Q4 = 100.
B9: ="Country dispersion (as of "& YEAR(MAX(AM25:AM45))&" Q"&(ROUNDUP((MONTH(MAX(AM25:AM45))/3),0))&")" -> Country dispersion (as of 2021 Q3) | J9: KRI by size class
B11: ( * ) Not reported. Weighted Averages by country. Norwegian banks have not implemented yet the reporting framework based on CRR2/CRD5. Therefore, Norwegian figures are included in the EBA Risk dashboard only until March 2021. | J11: ="Weighted average. Banks are classified in the size class according to the their average total assets between 2014Q4 and "&YEAR(MAX(AM25:AM45))&"Q"&(ROUNDUP(MONTH(MAX(AM25:AM45))/3,0))&IF(AN48="Y",". Non-FINREP banks are assigned to the bucket of small banks.",". ") -> Weighted average. Banks are classified in the size class according to the their average total assets between 2014Q4 and 2021Q3.
B14: Period | E14: Weighted average | H14: 25th percentile | K14: 50th percentile | N14: 75th percentile
C16: =AM25 -> 2018-12-01 | F16: =IF(AND(YEAR(C16)<2018,$AK$21="PFT_43"),"",IFERROR(VLOOKUP($C16,$AM$25:$BB$42,8,FALSE), "")) -> 0.1631737569 | I16: =IF(AND(YEAR(C16)<2018,$AK$21="PFT_43"),"",IFERROR(VLOOKUP($C16,$AM$25:$BB$42,5,FALSE), "")) -> 0.1440516175 | L16: =IF(AND(YEAR(C16)<2018,$AK$21="PFT_43"),"",IFERROR(VLOOKUP($C16,$AM$25:$BB$42,6,FALSE), "")) -> 0.1666461429 | O16: =IF(AND(YEAR(C16)<2018,$AK$21="PFT_43"),"",IFERROR(VLOOKUP($C16,$AM$25:$BB$42,9,FALSE), "")) -> 0.2031647335
C17: =AM26 -> 2019-03-01 | F17: =IF(AND(YEAR(C17)<2018,$AK$21="PFT_43"),"",IFERROR(VLOOKUP($C17,$AM$25:$BB$42,8,FALSE), "")) -> 0.1613771813 | I17: =IF(AND(YEAR(C17)<2018,$AK$21="PFT_43"),"",IFERROR(VLOOKUP($C17,$AM$25:$BB$42,5,FALSE), "")) -> 0.1450424878 | L17: =IF(AND(YEAR(C17)<2018,$AK$21="PFT_43"),"",IFERROR(VLOOKUP($C17,$AM$25:$BB$42,6,FALSE), "")) -> 0.1659485756 | O17: =IF(AND(YEAR(C17)<2018,$AK$21="PFT_43"),"",IFERROR(VLOOKUP($C17,$AM$25:$BB$42,9,FALSE), "")) -> 0.2001838872
C18: =AM27 -> 2019-06-01 | F18: 0.1617222784 | I18: 0.1464257216 | L18: 0.165238908 | O18: 0.1975077077
C19: =AM28 -> 2019-09-01 | F19: 0.1613677389 | I19: 0.147537046 | L19: 0.1638160644 | O19: 0.1945912543
C20: 2019-12-01 | F20: 0.1678534559 | I20: 0.152002714 | L20: 0.1717275433 | O20: 0.2041354545 | AN20: dashboard name | AO20: =VLOOKUP($AM$21*1,List!$A$3:$M$23,8,FALSE) -> Tier 1 capital ratio
C21: 2020-03-01 | F21: 0.1581940407 | I21: 0.1427134004 | L21: 0.162881694 | O21: 0.1989703886 | AK21: =VLOOKUP($AM$21*1,List!$A$3:$F$23,6,0) -> SVC_1 | AM21: =Start!E8 -> 1 | AN21: =VLOOKUP($AM$21*1,List!$A$3:$F$23,4,0) -> 1 | AO21: =VLOOKUP($AM$21*1,List!$A$3:$E$23,5,0) -> Tier 1 capital ratio | AP21: =VLOOKUP($AM$21*1,List!$A$3:$K$23,11,FALSE) -> 0 | AR21: =VLOOKUP($AM$21*1,List!$A$3:$M$23,13,FALSE) -> Solvency
C22: 2020-06-01 | F22: 0.1630563226 | I22: 0.1479937941 | L22: 0.1696146986 | O22: 0.2011049692 | AT22: WA
C23: 2020-09-01 | F23: =IF(AND(YEAR(C23)<2018,$AK$21="PFT_43"),"",IFERROR(VLOOKUP($C23,$AM$25:$BB$42,8,FALSE), "")) -> 0.1671962406 | I23: 0.1529035899 | L23: 0.172888396 | O23: 0.2052266468 | AP23: 5 | AQ23: 6 | AR23: 7 | AS23: 8 | AT23: 9 | AU23: 10 | AV23: 11 | AW23: 14 | AX23: 15 | AY23: Dispersion chart | BD23: 12 | BE23: 13 | BJ23: 16
C24: 2020-12-01 | F24: 0.171978385 | I24: 0.1583604907 | L24: 0.1803584264 | O24: 0.212919732 | AL24: =+'Reference Dates'!$C$6 -> 2021-09-30 | AP24: 5^ pct | AQ24: First quartile | AR24: Median | AS24: Average | AT24: All banks | AU24: Third quartile | AV24: 95^ pct | AW24: Small | AX24: Medium | AY24: Q1 | AZ24: Q1 Neg | BA24: Q2 | BB24: Q3 | BC24: 5pct | BD24: 95 pct | BE24: Numeratir | BF24: Denominator | BG24: =VLOOKUP($AN$21,List!$D:$L,6,0) -> Tier 1 capital | BH24: =VLOOKUP($AN$21,List!$D:$L,7,0) -> Total risk exposure amount | BI24: Quarter | BJ24: Large
C25: 2021-03-01 | F25: 0.1705052161 | I25: 0.1574664782 | L25: 0.180153556 | O25: 0.2109595522 | AK25: 1 | AL25: =(+AN25)*1 -> 201812 | AM25: =+'Reference Dates'!$C$7 -> 2018-12-01 | AN25: =+IF(MONTH(AM25)=12,YEAR(AM25)&MONTH(AM25),YEAR(AM25)&0&MONTH(AM25)) -> 201812 | AO25: =CONCATENATE($AO$21,AN25) -> Tier 1 capital ratio201812 | AP25: =VLOOKUP($AO25,Data!$A$1:$P$688,Charts!AP$23,FALSE) -> 0.1217731642 | AQ25: =VLOOKUP($AO25,Data!$A$1:$P$688,Charts!AQ$23,FALSE) -> 0.1440516175 | AR25: =VLOOKUP($AO25,Data!$A$1:$P$688,Charts!AR$23,FALSE) -> 0.1666461429 | AS25: =VLOOKUP($AO25,Data!$A$1:$P$688,Charts!AS$23,FALSE) -> 0.2199849837 | AT25: =VLOOKUP($AO25,Data!$A$1:$P$688,Charts!AT$23,FALSE) -> 0.1631737569 | AU25: =VLOOKUP($AO25,Data!$A$1:$P$688,Charts!AU$23,FALSE) -> 0.2031647335 | AV25: =VLOOKUP($AO25,Data!$A$1:$P$688,Charts!AV$23,FALSE) -> 0.4912670896 | AW25: =VLOOKUP($AO25,Data!$A$1:$P$688,Charts!AW$23,FALSE) -> 0.1853924008 | AX25: =VLOOKUP($AO25,Data!$A$1:$P$688,Charts!AX$23,FALSE) -> 0.1779050528 | AY25: =IF(AQ25<0,0,AQ25) -> 0.1440516175 | AZ25: =IF(AQ25<0,AQ25,0) -> 0 | BA25: =AR25-AY25 -> 0.02259452544 | BB25: =AU25-AR25 -> 0.03651859059 | BC25: =AQ25-AP25 -> 0.02227845322 | BD25: =AV25-AU25 -> 0.2881023561 | BE25: =VLOOKUP($AO25,Data!$A$1:$P$688,BD$23,FALSE) -> 1.238337524e+12 | BF25: =VLOOKUP($AO25,Data!$A$1:$P$688,BE$23,FALSE) -> 7.973156092e+12 | BG25: =IFERROR(IF($AP$21=0,BE25/BE$25*100,(100*(BE25*12/$BI25)/BE$25)),IFERROR(IF($AP$21=0, BE25/BE$26*100, 100*(BE25*12/$BI25)/BE$26), IFERROR(IF($AP$21=0, BE25/BE$27*100, 100*(BE25*12/$BI25)/BE$27),IFERROR(IF($AP$21=0, BE25/BE$28*100, 100*(BE25*12/$BI25)/BE$28), IFERROR(IF($AP$21=0, BE25/BE$29*100, 100*(BE25*12/$BI25)/BE$29),IFERROR(IF($AP$21=0, BE25/BE$30*100, 100*(BE25*12/$BI25)/#REF!),IFERROR(IF($AP$21=0, BE25/BE$31*100, 100*(BE25*12/$BI25)/BE$31),IFERROR(IF($AP$21=0, BE25/BE$31*100, 100*(BE25*12/$BI25)/BE$31),IFERROR(IF($AP$21=0, BE25/BE$32*100, 100*(BE25*12/$BI25)/BE$32),IFERROR(IF($AP$21=0, BE25/BE$33*100, 100*(BE25*12/$BI25)/BE$33),IF($AP$21=0, BE25/BE$34*100, 100*(BE25*12/$BI25)/BE$34))))))))))) -> 100 | BH25: =IFERROR(IF($AP$21=0,BF25/BF$25*100,(100*(BF25*12/$BI25)/BF$25)),IFERROR(IF($AP$21=0, BF25/BF$26*100, 100*(BF25*12/$BI25)/BF$26), IFERROR(IF($AP$21=0, BF25/BF$27*100, 100*(BF25*12/$BI25)/BF$27),IFERROR(IF($AP$21=0, BF25/BF$28*100, 100*(BF25*12/$BI25)/BF$28), IFERROR(IF($AP$21=0, BF25/BF$29*100, 100*(BF25*12/$BI25)/BF$29),IFERROR(IF($AP$21=0, BF25/BF$30*100, 100*(BF25*12/$BI25)/#REF!),IFERROR(IF($AP$21=0, BF25/BF$31*100, 100*(BF25*12/$BI25)/BF$31),IFERROR(IF($AP$21=0, BF25/BF$31*100, 100*(BF25*12/$BI25)/BF$31),IFERROR(IF($AP$21=0, BF25/BF$32*100, 100*(BF25*12/$BI25)/BF$32),IFERROR(IF($AP$21=0, BF25/BF$33*100, 100*(BF25*12/$BI25)/BF$33),IF($AP$21=0, BF25/BF$34*100, 100*(BF25*12/$BI25)/BF$34))))))))))) -> 100 | BI25: =MONTH(AM25) -> 12 | BJ25: =VLOOKUP($AO25,Data!$A$1:$P$688,Charts!BJ$23,FALSE) -> 0.1580009201
C26: =AM35 -> 2021-06-01 | F26: 0.1708573555 | I26: 0.1558141617 | L26: 0.1760963965 | O26: 0.2128377614 | AL26: 201903 | AM26: =IF(AM25<$AL$24,+DATE(YEAR(AM25),MONTH(AM25)+3,DAY(AM25)),"") -> 2019-03-01 | AN26: =+IF(MONTH(AM26)=12,YEAR(AM26)&MONTH(AM26),YEAR(AM26)&0&MONTH(AM26)) -> 201903 | AO26: =CONCATENATE($AO$21,AN26) -> Tier 1 capital ratio201903 | AP26: =VLOOKUP($AO26,Data!$A$1:$P$688,Charts!AP$23,FALSE) -> 0.1258831946 | AQ26: =VLOOKUP($AO26,Data!$A$1:$P$688,Charts!AQ$23,FALSE) -> 0.1450424878 | AR26: =VLOOKUP($AO26,Data!$A$1:$P$688,Charts!AR$23,FALSE) -> 0.1659485756 | AS26: =VLOOKUP($AO26,Data!$A$1:$P$688,Charts!AS$23,FALSE) -> 0.2025804793 | AT26: =VLOOKUP($AO26,Data!$A$1:$P$688,Charts!AT$23,FALSE) -> 0.1613771813 | AU26: =VLOOKUP($AO26,Data!$A$1:$P$688,Charts!AU$23,FALSE) -> 0.2001838872 | AV26: =VLOOKUP($AO26,Data!$A$1:$P$688,Charts!AV$23,FALSE) -> 0.3818776056 | AW26: =VLOOKUP($AO26,Data!$A$1:$P$688,Charts!AW$23,FALSE) -> 0.1808655688 | AX26: =VLOOKUP($AO26,Data!$A$1:$P$688,Charts!AX$23,FALSE) -> 0.1691249705 | AY26: =IF(AQ26<0,0,AQ26) -> 0.1450424878 | AZ26: =IF(AQ26<0,AQ26,0) -> 0 | BA26: =AR26-AY26 -> 0.02090608783 | BB26: =AU26-AR26 -> 0.03423531163 | BC26: =AQ26-AP26 -> 0.01915929313 | BD26: =AV26-AU26 -> 0.1816937184 | BE26: =VLOOKUP($AO26,Data!$A$1:$P$688,BD$23,FALSE) -> 1.262415904e+12 | BF26: =VLOOKUP($AO26,Data!$A$1:$P$688,BE$23,FALSE) -> 8.163470252e+12 | BG26: =IFERROR(IF($AP$21=0,BE26/BE$25*100,(100*(BE26*12/$BI26)/BE$25)),IFERROR(IF($AP$21=0, BE26/BE$26*100, 100*(BE26*12/$BI26)/BE$26), IFERROR(IF($AP$21=0, BE26/BE$27*100, 100*(BE26*12/$BI26)/BE$27),IFERROR(IF($AP$21=0, BE26/BE$28*100, 100*(BE26*12/$BI26)/BE$28), IFERROR(IF($AP$21=0, BE26/BE$29*100, 100*(BE26*12/$BI26)/BE$29),IFERROR(IF($AP$21=0, BE26/BE$30*100, 100*(BE26*12/$BI26)/#REF!),IFERROR(IF($AP$21=0, BE26/BE$31*100, 100*(BE26*12/$BI26)/BE$31),IFERROR(IF($AP$21=0, BE26/BE$31*100, 100*(BE26*12/$BI26)/BE$31),IFERROR(IF($AP$21=0, BE26/BE$32*100, 100*(BE26*12/$BI26)/BE$32),IFERROR(IF($AP$21=0, BE26/BE$33*100, 100*(BE26*12/$BI26)/BE$33),IF($AP$21=0, BE26/BE$34*100, 100*(BE26*12/$BI26)/BE$34))))))))))) -> 101.9444118 | BH26: =IFERROR(IF($AP$21=0,BF26/BF$25*100,(100*(BF26*12/$BI26)/BF$25)),IFERROR(IF($AP$21=0, BF26/BF$26*100, 100*(BF26*12/$BI26)/BF$26), IFERROR(IF($AP$21=0, BF26/BF$27*100, 100*(BF26*12/$BI26)/BF$27),IFERROR(IF($AP$21=0, BF26/BF$28*100, 100*(BF26*12/$BI26)/BF$28), IFERROR(IF($AP$21=0, BF26/BF$29*100, 100*(BF26*12/$BI26)/BF$29),IFERROR(IF($AP$21=0, BF26/BF$30*100, 100*(BF26*12/$BI26)/#REF!),IFERROR(IF($AP$21=0, BF26/BF$31*100, 100*(BF26*12/$BI26)/BF$31),IFERROR(IF($AP$21=0, BF26/BF$31*100, 100*(BF26*12/$BI26)/BF$31),IFERROR(IF($AP$21=0, BF26/BF$32*100, 100*(BF26*12/$BI26)/BF$32),IFERROR(IF($AP$21=0, BF26/BF$33*100, 100*(BF26*12/$BI26)/BF$33),IF($AP$21=0, BF26/BF$34*100, 100*(BF26*12/$BI26)/BF$34))))))))))) -> 102.3869363 | BI26: 3 | BJ26: =VLOOKUP($AO26,Data!$A$1:$P$688,Charts!BJ$23,FALSE) -> 0.1575302388
C27: =AM36 -> 2021-09-01 | F27: 0.1698792871 | I27: 0.1551111545 | L27: 0.1752111456 | O27: 0.2127836775 | AL27: 201906 | AM27: =IF(AM26<$AL$24,+DATE(YEAR(AM26),MONTH(AM26)+3,DAY(AM26)),"") -> 2019-06-01 | AN27: 201906 | AO27: Tier 1 capital ratio201906 | AP27: =VLOOKUP($AO27,Data!$A$1:$P$688,Charts!AP$23,FALSE) -> 0.1286853066 | AQ27: =VLOOKUP($AO27,Data!$A$1:$P$688,Charts!AQ$23,FALSE) -> 0.1464257216 | AR27: =VLOOKUP($AO27,Data!$A$1:$P$688,Charts!AR$23,FALSE) -> 0.165238908 | AS27: =VLOOKUP($AO27,Data!$A$1:$P$688,Charts!AS$23,FALSE) -> 0.2029240713 | AT27: =VLOOKUP($AO27,Data!$A$1:$P$688,Charts!AT$23,FALSE) -> 0.1617222784 | AU27: =VLOOKUP($AO27,Data!$A$1:$P$688,Charts!AU$23,FALSE) -> 0.1975077077 | AV27: =VLOOKUP($AO27,Data!$A$1:$P$688,Charts!AV$23,FALSE) -> 0.4361673222 | AW27: =VLOOKUP($AO27,Data!$A$1:$P$688,Charts!AW$23,FALSE) -> 0.1821048056 | AX27: =VLOOKUP($AO27,Data!$A$1:$P$688,Charts!AX$23,FALSE) -> 0.1701416522 | AY27: 0.1464257216 | AZ27: 0 | BA27: 0.01881318643 | BB27: 0.03226879974 | BC27: 0.01774041494 | BD27: 0.2386596144 | BE27: =VLOOKUP($AO27,Data!$A$1:$P$688,BD$23,FALSE) -> 1.276438175e+12 | BF27: =VLOOKUP($AO27,Data!$A$1:$P$688,BE$23,FALSE) -> 8.204172759e+12 | BG27: =IFERROR(IF($AP$21=0,BE27/BE$25*100,(100*(BE27*12/$BI27)/BE$25)),IFERROR(IF($AP$21=0, BE27/BE$26*100, 100*(BE27*12/$BI27)/BE$26), IFERROR(IF($AP$21=0, BE27/BE$27*100, 100*(BE27*12/$BI27)/BE$27),IFERROR(IF($AP$21=0, BE27/BE$28*100, 100*(BE27*12/$BI27)/BE$28), IFERROR(IF($AP$21=0, BE27/BE$29*100, 100*(BE27*12/$BI27)/BE$29),IFERROR(IF($AP$21=0, BE27/BE$30*100, 100*(BE27*12/$BI27)/#REF!),IFERROR(IF($AP$21=0, BE27/BE$31*100, 100*(BE27*12/$BI27)/BE$31),IFERROR(IF($AP$21=0, BE27/BE$31*100, 100*(BE27*12/$BI27)/BE$31),IFERROR(IF($AP$21=0, BE27/BE$32*100, 100*(BE27*12/$BI27)/BE$32),IFERROR(IF($AP$21=0, BE27/BE$33*100, 100*(BE27*12/$BI27)/BE$33),IF($AP$21=0, BE27/BE$34*100, 100*(BE27*12/$BI27)/BE$34))))))))))) -> 103.0767582 | BH27: =IFERROR(IF($AP$21=0,BF27/BF$25*100,(100*(BF27*12/$BI27)/BF$25)),IFERROR(IF($AP$21=0, BF27/BF$26*100, 100*(BF27*12/$BI27)/BF$26), IFERROR(IF($AP$21=0, BF27/BF$27*100, 100*(BF27*12/$BI27)/BF$27),IFERROR(IF($AP$21=0, BF27/BF$28*100, 100*(BF27*12/$BI27)/BF$28), IFERROR(IF($AP$21=0, BF27/BF$29*100, 100*(BF27*12/$BI27)/BF$29),IFERROR(IF($AP$21=0, BF27/BF$30*100, 100*(BF27*12/$BI27)/#REF!),IFERROR(IF($AP$21=0, BF27/BF$31*100, 100*(BF27*12/$BI27)/BF$31),IFERROR(IF($AP$21=0, BF27/BF$31*100, 100*(BF27*12/$BI27)/BF$31),IFERROR(IF($AP$21=0, BF27/BF$32*100, 100*(BF27*12/$BI27)/BF$32),IFERROR(IF($AP$21=0, BF27/BF$33*100, 100*(BF27*12/$BI27)/BF$33),IF($AP$21=0, BF27/BF$34*100, 100*(BF27*12/$BI27)/BF$34))))))))))) -> 102.8974306 | BI27: 6 | BJ27: =VLOOKUP($AO27,Data!$A$1:$P$688,Charts!BJ$23,FALSE) -> 0.1577054917
B28: =IF($AK$21="PFT_43","Data for Cost of Risk are shown here as a positive value, even though they are commonly expenses.","") ->  | AL28: 201909 | AM28: 2019-09-01 | AN28: 201909 | AO28: Tier 1 capital ratio201909 | AP28: =VLOOKUP($AO28,Data!$A$1:$P$688,Charts!AP$23,FALSE) -> 0.1301158391 | AQ28: =VLOOKUP($AO28,Data!$A$1:$P$688,Charts!AQ$23,FALSE) -> 0.147537046 | AR28: =VLOOKUP($AO28,Data!$A$1:$P$688,Charts!AR$23,FALSE) -> 0.1638160644 | AS28: =VLOOKUP($AO28,Data!$A$1:$P$688,Charts!AS$23,FALSE) -> 0.2011495804 | AT28: =VLOOKUP($AO28,Data!$A$1:$P$688,Charts!AT$23,FALSE) -> 0.1613677389 | AU28: =VLOOKUP($AO28,Data!$A$1:$P$688,Charts!AU$23,FALSE) -> 0.1945912543 | AV28: =VLOOKUP($AO28,Data!$A$1:$P$688,Charts!AV$23,FALSE) -> 0.4122195248 | AW28: =VLOOKUP($AO28,Data!$A$1:$P$688,Charts!AW$23,FALSE) -> 0.1790053384 | AX28: =VLOOKUP($AO28,Data!$A$1:$P$688,Charts!AX$23,FALSE) -> 0.1694406973 | AY28: 0.147537046 | AZ28: 0 | BA28: 0.0162790184 | BB28: 0.03077518984 | BC28: 0.01742120696 | BD28: 0.2176282706 | BE28: =VLOOKUP($AO28,Data!$A$1:$P$688,BD$23,FALSE) -> 1.290753098e+12 | BF28: =VLOOKUP($AO28,Data!$A$1:$P$688,BE$23,FALSE) -> 8.292815369e+12 | BG28: =IFERROR(IF($AP$21=0,BE28/BE$25*100,(100*(BE28*12/$BI28)/BE$25)),IFERROR(IF($AP$21=0, BE28/BE$26*100, 100*(BE28*12/$BI28)/BE$26), IFERROR(IF($AP$21=0, BE28/BE$27*100, 100*(BE28*12/$BI28)/BE$27),IFERROR(IF($AP$21=0, BE28/BE$28*100, 100*(BE28*12/$BI28)/BE$28), IFERROR(IF($AP$21=0, BE28/BE$29*100, 100*(BE28*12/$BI28)/BE$29),IFERROR(IF($AP$21=0, BE28/BE$30*100, 100*(BE28*12/$BI28)/#REF!),IFERROR(IF($AP$21=0, BE28/BE$31*100, 100*(BE28*12/$BI28)/BE$31),IFERROR(IF($AP$21=0, BE28/BE$31*100, 100*(BE28*12/$BI28)/BE$31),IFERROR(IF($AP$21=0, BE28/BE$32*100, 100*(BE28*12/$BI28)/BE$32),IFERROR(IF($AP$21=0, BE28/BE$33*100, 100*(BE28*12/$BI28)/BE$33),IF($AP$21=0, BE28/BE$34*100, 100*(BE28*12/$BI28)/BE$34))))))))))) -> 104.2327373 | BH28: =IFERROR(IF($AP$21=0,BF28/BF$25*100,(100*(BF28*12/$BI28)/BF$25)),IFERROR(IF($AP$21=0, BF28/BF$26*100, 100*(BF28*12/$BI28)/BF$26), IFERROR(IF($AP$21=0, BF28/BF$27*100, 100*(BF28*12/$BI28)/BF$27),IFERROR(IF($AP$21=0, BF28/BF$28*100, 100*(BF28*12/$BI28)/BF$28), IFERROR(IF($AP$21=0, BF28/BF$29*100, 100*(BF28*12/$BI28)/BF$29),IFERROR(IF($AP$21=0, BF28/BF$30*100, 100*(BF28*12/$BI28)/#REF!),IFERROR(IF($AP$21=0, BF28/BF$31*100, 100*(BF28*12/$BI28)/BF$31),IFERROR(IF($AP$21=0, BF28/BF$31*100, 100*(BF28*12/$BI28)/BF$31),IFERROR(IF($AP$21=0, BF28/BF$32*100, 100*(BF28*12/$BI28)/BF$32),IFERROR(IF($AP$21=0, BF28/BF$33*100, 100*(BF28*12/$BI28)/BF$33),IF($AP$21=0, BF28/BF$34*100, 100*(BF28*12/$BI28)/BF$34))))))))))) -> 104.0091938 | BI28: 9 | BJ28: =VLOOKUP($AO28,Data!$A$1:$P$688,Charts!BJ$23,FALSE) -> 0.1576366462
AL29: 201912 | AM29: 2019-12-01 | AN29: 201912 | AO29: Tier 1 capital ratio201912 | AP29: =VLOOKUP($AO29,Data!$A$1:$P$688,Charts!AP$23,FALSE) -> 0.132043229 | AQ29: =VLOOKUP($AO29,Data!$A$1:$P$688,Charts!AQ$23,FALSE) -> 0.152002714 | AR29: =VLOOKUP($AO29,Data!$A$1:$P$688,Charts!AR$23,FALSE) -> 0.1717275433 | AS29: =VLOOKUP($AO29,Data!$A$1:$P$688,Charts!AS$23,FALSE) -> 0.2063098402 | AT29: =VLOOKUP($AO29,Data!$A$1:$P$688,Charts!AT$23,FALSE) -> 0.1678534559 | AU29: =VLOOKUP($AO29,Data!$A$1:$P$688,Charts!AU$23,FALSE) -> 0.2041354545 | AV29: =VLOOKUP($AO29,Data!$A$1:$P$688,Charts!AV$23,FALSE) -> 0.388349476 | AW29: =VLOOKUP($AO29,Data!$A$1:$P$688,Charts!AW$23,FALSE) -> 0.1938528918 | AX29: =VLOOKUP($AO29,Data!$A$1:$P$688,Charts!AX$23,FALSE) -> 0.1749168562 | AY29: =IF(AQ29<0,0,AQ29) -> 0.152002714 | AZ29: =IF(AQ29<0,AQ29,0) -> 0 | BA29: =AR29-AY29 -> 0.01972482922 | BB29: =AU29-AR29 -> 0.0324079112 | BC29: =AQ29-AP29 -> 0.01995948503 | BD29: =AV29-AU29 -> 0.1842140215 | BE29: =VLOOKUP($AO29,Data!$A$1:$P$688,BD$23,FALSE) -> 1.325840692e+12 | BF29: =VLOOKUP($AO29,Data!$A$1:$P$688,BE$23,FALSE) -> 8.218961253e+12 | BG29: =IFERROR(IF($AP$21=0,BE29/BE$25*100,(100*(BE29*12/$BI29)/BE$25)),IFERROR(IF($AP$21=0, BE29/BE$26*100, 100*(BE29*12/$BI29)/BE$26), IFERROR(IF($AP$21=0, BE29/BE$27*100, 100*(BE29*12/$BI29)/BE$27),IFERROR(IF($AP$21=0, BE29/BE$28*100, 100*(BE29*12/$BI29)/BE$28), IFERROR(IF($AP$21=0, BE29/BE$29*100, 100*(BE29*12/$BI29)/BE$29),IFERROR(IF($AP$21=0, BE29/BE$30*100, 100*(BE29*12/$BI29)/#REF!),IFERROR(IF($AP$21=0, BE29/BE$31*100, 100*(BE29*12/$BI29)/BE$31),IFERROR(IF($AP$21=0, BE29/BE$31*100, 100*(BE29*12/$BI29)/BE$31),IFERROR(IF($AP$21=0, BE29/BE$32*100, 100*(BE29*12/$BI29)/BE$32),IFERROR(IF($AP$21=0, BE29/BE$33*100, 100*(BE29*12/$BI29)/BE$33),IF($AP$21=0, BE29/BE$34*100, 100*(BE29*12/$BI29)/BE$34))))))))))) -> 107.0661808 | BH29: =IFERROR(IF($AP$21=0,BF29/BF$25*100,(100*(BF29*12/$BI29)/BF$25)),IFERROR(IF($AP$21=0, BF29/BF$26*100, 100*(BF29*12/$BI29)/BF$26), IFERROR(IF($AP$21=0, BF29/BF$27*100, 100*(BF29*12/$BI29)/BF$27),IFERROR(IF($AP$21=0, BF29/BF$28*100, 100*(BF29*12/$BI29)/BF$28), IFERROR(IF($AP$21=0, BF29/BF$29*100, 100*(BF29*12/$BI29)/BF$29),IFERROR(IF($AP$21=0, BF29/BF$30*100, 100*(BF29*12/$BI29)/#REF!),IFERROR(IF($AP$21=0, BF29/BF$31*100, 100*(BF29*12/$BI29)/BF$31),IFERROR(IF($AP$21=0, BF29/BF$31*100, 100*(BF29*12/$BI29)/BF$31),IFERROR(IF($AP$21=0, BF29/BF$32*100, 100*(BF29*12/$BI29)/BF$32),IFERROR(IF($AP$21=0, BF29/BF$33*100, 100*(BF29*12/$BI29)/BF$33),IF($AP$21=0, BF29/BF$34*100, 100*(BF29*12/$BI29)/BF$34))))))))))) -> 103.0829092 | BI29: 12 | BJ29: =VLOOKUP($AO29,Data!$A$1:$P$688,Charts!BJ$23,FALSE) -> 0.1634109893
AL30: 202003 | AM30: 2020-03-01 | AN30: 202003 | AO30: Tier 1 capital ratio202003 | AP30: =VLOOKUP($AO30,Data!$A$1:$P$688,Charts!AP$23,FALSE) -> 0.1310134759 | AQ30: =VLOOKUP($AO30,Data!$A$1:$P$688,Charts!AQ$23,FALSE) -> 0.1427134004 | AR30: =VLOOKUP($AO30,Data!$A$1:$P$688,Charts!AR$23,FALSE) -> 0.162881694 | AS30: =VLOOKUP($AO30,Data!$A$1:$P$688,Charts!AS$23,FALSE) -> 0.1985415454 | AT30: =VLOOKUP($AO30,Data!$A$1:$P$688,Charts!AT$23,FALSE) -> 0.1581940407 | AU30: =VLOOKUP($AO30,Data!$A$1:$P$688,Charts!AU$23,FALSE) -> 0.1989703886 | AV30: =VLOOKUP($AO30,Data!$A$1:$P$688,Charts!AV$23,FALSE) -> 0.3691135761 | AW30: =VLOOKUP($AO30,Data!$A$1:$P$688,Charts!AW$23,FALSE) -> 0.2011248002 | AX30: =VLOOKUP($AO30,Data!$A$1:$P$688,Charts!AX$23,FALSE) -> 0.1684993154 | AY30: 0.1427134004 | AZ30: 0 | BA30: 0.02016829364 | BB30: 0.03608869459 | BC30: 0.01169992444 | BD30: 0.1701431875 | BE30: =VLOOKUP($AO30,Data!$A$1:$P$688,BD$23,FALSE) -> 1.308950213e+12 | BF30: =VLOOKUP($AO30,Data!$A$1:$P$688,BE$23,FALSE) -> 8.37902469e+12 | BG30: =IFERROR(IF($AP$21=0,BE30/BE$25*100,(100*(BE30*12/$BI30)/BE$25)),IFERROR(IF($AP$21=0, BE30/BE$26*100, 100*(BE30*12/$BI30)/BE$26), IFERROR(IF($AP$21=0, BE30/BE$27*100, 100*(BE30*12/$BI30)/BE$27),IFERROR(IF($AP$21=0, BE30/BE$28*100, 100*(BE30*12/$BI30)/BE$28), IFERROR(IF($AP$21=0, BE30/BE$29*100, 100*(BE30*12/$BI30)/BE$29),IFERROR(IF($AP$21=0, BE30/BE$30*100, 100*(BE30*12/$BI30)/#REF!),IFERROR(IF($AP$21=0, BE30/BE$31*100, 100*(BE30*12/$BI30)/BE$31),IFERROR(IF($AP$21=0, BE30/BE$31*100, 100*(BE30*12/$BI30)/BE$31),IFERROR(IF($AP$21=0, BE30/BE$32*100, 100*(BE30*12/$BI30)/BE$32),IFERROR(IF($AP$21=0, BE30/BE$33*100, 100*(BE30*12/$BI30)/BE$33),IF($AP$21=0, BE30/BE$34*100, 100*(BE30*12/$BI30)/BE$34))))))))))) -> 105.7022167 | BH30: =IFERROR(IF($AP$21=0,BF30/BF$25*100,(100*(BF30*12/$BI30)/BF$25)),IFERROR(IF($AP$21=0, BF30/BF$26*100, 100*(BF30*12/$BI30)/BF$26), IFERROR(IF($AP$21=0, BF30/BF$27*100, 100*(BF30*12/$BI30)/BF$27),IFERROR(IF($AP$21=0, BF30/BF$28*100, 100*(BF30*12/$BI30)/BF$28), IFERROR(IF($AP$21=0, BF30/BF$29*100, 100*(BF30*12/$BI30)/BF$29),IFERROR(IF($AP$21=0, BF30/BF$30*100, 100*(BF30*12/$BI30)/#REF!),IFERROR(IF($AP$21=0, BF30/BF$31*100, 100*(BF30*12/$BI30)/BF$31),IFERROR(IF($AP$21=0, BF30/BF$31*100, 100*(BF30*12/$BI30)/BF$31),IFERROR(IF($AP$21=0, BF30/BF$32*100, 100*(BF30*12/$BI30)/BF$32),IFERROR(IF($AP$21=0, BF30/BF$33*100, 100*(BF30*12/$BI30)/BF$33),IF($AP$21=0, BF30/BF$34*100, 100*(BF30*12/$BI30)/BF$34))))))))))) -> 105.0904384 | BI30: 3 | BJ30: =VLOOKUP($AO30,Data!$A$1:$P$688,Charts!BJ$23,FALSE) -> 0.1540963595
AL31: 202006 | AM31: 2020-06-01 | AN31: 202006 | AO31: =CONCATENATE($AO$21,AN31) -> Tier 1 capital ratio202006 | AP31: =VLOOKUP($AO31,Data!$A$1:$P$688,Charts!AP$23,FALSE) -> 0.1330936645 | AQ31: =VLOOKUP($AO31,Data!$A$1:$P$688,Charts!AQ$23,FALSE) -> 0.1479937941 | AR31: =VLOOKUP($AO31,Data!$A$1:$P$688,Charts!AR$23,FALSE) -> 0.1696146986 | AS31: =VLOOKUP($AO31,Data!$A$1:$P$688,Charts!AS$23,FALSE) -> 0.2065639391 | AT31: =VLOOKUP($AO31,Data!$A$1:$P$688,Charts!AT$23,FALSE) -> 0.1630563226 | AU31: =VLOOKUP($AO31,Data!$A$1:$P$688,Charts!AU$23,FALSE) -> 0.2011049692 | AV31: =VLOOKUP($AO31,Data!$A$1:$P$688,Charts!AV$23,FALSE) -> 0.3597325392 | AW31: =VLOOKUP($AO31,Data!$A$1:$P$688,Charts!AW$23,FALSE) -> 0.2077145219 | AX31: =VLOOKUP($AO31,Data!$A$1:$P$688,Charts!AX$23,FALSE) -> 0.1730901202 | AY31: =IF(AQ31<0,0,AQ31) -> 0.1479937941 | AZ31: =IF(AQ31<0,AQ31,0) -> 0 | BA31: =AR31-AY31 -> 0.02162090451 | BB31: =AU31-AR31 -> 0.0314902706 | BC31: =AQ31-AP31 -> 0.01490012965 | BD31: =AV31-AU31 -> 0.1586275699 | BE31: =VLOOKUP($AO31,Data!$A$1:$P$688,BD$23,FALSE) -> 1.340623699e+12 | BF31: =VLOOKUP($AO31,Data!$A$1:$P$688,BE$23,FALSE) -> 8.326274168e+12 | BG31: =IFERROR(IF($AP$21=0,BE31/BE$25*100,(100*(BE31*12/$BI31)/BE$25)),IFERROR(IF($AP$21=0, BE31/BE$26*100, 100*(BE31*12/$BI31)/BE$26), IFERROR(IF($AP$21=0, BE31/BE$27*100, 100*(BE31*12/$BI31)/BE$27),IFERROR(IF($AP$21=0, BE31/BE$28*100, 100*(BE31*12/$BI31)/BE$28), IFERROR(IF($AP$21=0, BE31/BE$29*100, 100*(BE31*12/$BI31)/BE$29),IFERROR(IF($AP$21=0, BE31/BE$30*100, 100*(BE31*12/$BI31)/#REF!),IFERROR(IF($AP$21=0, BE31/BE$31*100, 100*(BE31*12/$BI31)/BE$31),IFERROR(IF($AP$21=0, BE31/BE$31*100, 100*(BE31*12/$BI31)/BE$31),IFERROR(IF($AP$21=0, BE31/BE$32*100, 100*(BE31*12/$BI31)/BE$32),IFERROR(IF($AP$21=0, BE31/BE$33*100, 100*(BE31*12/$BI31)/BE$33),IF($AP$21=0, BE31/BE$34*100, 100*(BE31*12/$BI31)/BE$34))))))))))) -> 108.2599593 | BH31: =IFERROR(IF($AP$21=0,BF31/BF$25*100,(100*(BF31*12/$BI31)/BF$25)),IFERROR(IF($AP$21=0, BF31/BF$26*100, 100*(BF31*12/$BI31)/BF$26), IFERROR(IF($AP$21=0, BF31/BF$27*100, 100*(BF31*12/$BI31)/BF$27),IFERROR(IF($AP$21=0, BF31/BF$28*100, 100*(BF31*12/$BI31)/BF$28), IFERROR(IF($AP$21=0, BF31/BF$29*100, 100*(BF31*12/$BI31)/BF$29),IFERROR(IF($AP$21=0, BF31/BF$30*100, 100*(BF31*12/$BI31)/#REF!),IFERROR(IF($AP$21=0, BF31/BF$31*100, 100*(BF31*12/$BI31)/BF$31),IFERROR(IF($AP$21=0, BF31/BF$31*100, 100*(BF31*12/$BI31)/BF$31),IFERROR(IF($AP$21=0, BF31/BF$32*100, 100*(BF31*12/$BI31)/BF$32),IFERROR(IF($AP$21=0, BF31/BF$33*100, 100*(BF31*12/$BI31)/BF$33),IF($AP$21=0, BF31/BF$34*100, 100*(BF31*12/$BI31)/BF$34))))))))))) -> 104.4288369 | BI31: =MONTH(AM31) -> 6 | BJ31: =VLOOKUP($AO31,Data!$A$1:$P$688,Charts!BJ$23,FALSE) -> 0.1589869672
AL32: 202009 | AM32: =IF(AM31<$AL$24,+DATE(YEAR(AM31),MONTH(AM31)+3,DAY(AM31)),"") -> 2020-09-01 | AN32: 202009 | AO32: Tier 1 capital ratio202009 | AP32: =VLOOKUP($AO32,Data!$A$1:$P$688,Charts!AP$23,FALSE) -> 0.1338801773 | AQ32: =VLOOKUP($AO32,Data!$A$1:$P$688,Charts!AQ$23,FALSE) -> 0.1529035899 | AR32: =VLOOKUP($AO32,Data!$A$1:$P$688,Charts!AR$23,FALSE) -> 0.172888396 | AS32: =VLOOKUP($AO32,Data!$A$1:$P$688,Charts!AS$23,FALSE) -> 0.2147456218 | AT32: =VLOOKUP($AO32,Data!$A$1:$P$688,Charts!AT$23,FALSE) -> 0.1671962406 | AU32: =VLOOKUP($AO32,Data!$A$1:$P$688,Charts!AU$23,FALSE) -> 0.2052266468 | AV32: =VLOOKUP($AO32,Data!$A$1:$P$688,Charts!AV$23,FALSE) -> 0.4015620238 | AW32: =VLOOKUP($AO32,Data!$A$1:$P$688,Charts!AW$23,FALSE) -> 0.2221660828 | AX32: =VLOOKUP($AO32,Data!$A$1:$P$688,Charts!AX$23,FALSE) -> 0.1773664726 | AY32: 0.1529035899 | AZ32: 0 | BA32: 0.01998480614 | BB32: 0.0323382508 | BC32: 0.01902341254 | BD32: 0.196335377 | BE32: =VLOOKUP($AO32,Data!$A$1:$P$688,BD$23,FALSE) -> 1.350937723e+12 | BF32: =VLOOKUP($AO32,Data!$A$1:$P$688,BE$23,FALSE) -> 8.208935361e+12 | BG32: =IFERROR(IF($AP$21=0,BE32/BE$25*100,(100*(BE32*12/$BI32)/BE$25)),IFERROR(IF($AP$21=0, BE32/BE$26*100, 100*(BE32*12/$BI32)/BE$26), IFERROR(IF($AP$21=0, BE32/BE$27*100, 100*(BE32*12/$BI32)/BE$27),IFERROR(IF($AP$21=0, BE32/BE$28*100, 100*(BE32*12/$BI32)/BE$28), IFERROR(IF($AP$21=0, BE32/BE$29*100, 100*(BE32*12/$BI32)/BE$29),IFERROR(IF($AP$21=0, BE32/BE$30*100, 100*(BE32*12/$BI32)/#REF!),IFERROR(IF($AP$21=0, BE32/BE$31*100, 100*(BE32*12/$BI32)/BE$31),IFERROR(IF($AP$21=0, BE32/BE$31*100, 100*(BE32*12/$BI32)/BE$31),IFERROR(IF($AP$21=0, BE32/BE$32*100, 100*(BE32*12/$BI32)/BE$32),IFERROR(IF($AP$21=0, BE32/BE$33*100, 100*(BE32*12/$BI32)/BE$33),IF($AP$21=0, BE32/BE$34*100, 100*(BE32*12/$BI32)/BE$34))))))))))) -> 109.0928521 | BH32: =IFERROR(IF($AP$21=0,BF32/BF$25*100,(100*(BF32*12/$BI32)/BF$25)),IFERROR(IF($AP$21=0, BF32/BF$26*100, 100*(BF32*12/$BI32)/BF$26), IFERROR(IF($AP$21=0, BF32/BF$27*100, 100*(BF32*12/$BI32)/BF$27),IFERROR(IF($AP$21=0, BF32/BF$28*100, 100*(BF32*12/$BI32)/BF$28), IFERROR(IF($AP$21=0, BF32/BF$29*100, 100*(BF32*12/$BI32)/BF$29),IFERROR(IF($AP$21=0, BF32/BF$30*100, 100*(BF32*12/$BI32)/#REF!),IFERROR(IF($AP$21=0, BF32/BF$31*100, 100*(BF32*12/$BI32)/BF$31),IFERROR(IF($AP$21=0, BF32/BF$31*100, 100*(BF32*12/$BI32)/BF$31),IFERROR(IF($AP$21=0, BF32/BF$32*100, 100*(BF32*12/$BI32)/BF$32),IFERROR(IF($AP$21=0, BF32/BF$33*100, 100*(BF32*12/$BI32)/BF$33),IF($AP$21=0, BF32/BF$34*100, 100*(BF32*12/$BI32)/BF$34))))))))))) -> 102.9571636 | BI32: 9 | BJ32: =VLOOKUP($AO32,Data!$A$1:$P$688,Charts!BJ$23,FALSE) -> 0.1627480842
AL33: 202012 | AM33: =IF(AM32<$AL$24,+DATE(YEAR(AM32),MONTH(AM32)+3,DAY(AM32)),"") -> 2020-12-01 | AN33: 202012 | AO33: Tier 1 capital ratio202012 | AP33: =VLOOKUP($AO33,Data!$A$1:$P$688,Charts!AP$23,FALSE) -> 0.1378822295 | AQ33: =VLOOKUP($AO33,Data!$A$1:$P$688,Charts!AQ$23,FALSE) -> 0.1583604907 | AR33: =VLOOKUP($AO33,Data!$A$1:$P$688,Charts!AR$23,FALSE) -> 0.1803584264 | AS33: =VLOOKUP($AO33,Data!$A$1:$P$688,Charts!AS$23,FALSE) -> 0.2341069909 | AT33: =VLOOKUP($AO33,Data!$A$1:$P$688,Charts!AT$23,FALSE) -> 0.171978385 | AU33: =VLOOKUP($AO33,Data!$A$1:$P$688,Charts!AU$23,FALSE) -> 0.212919732 | AV33: =VLOOKUP($AO33,Data!$A$1:$P$688,Charts!AV$23,FALSE) -> 0.3869305403 | AW33: =VLOOKUP($AO33,Data!$A$1:$P$688,Charts!AW$23,FALSE) -> 0.2205130943 | AX33: =VLOOKUP($AO33,Data!$A$1:$P$688,Charts!AX$23,FALSE) -> 0.182970957 | AY33: 0.1583604907 | AZ33: 0 | BA33: 0.02199793567 | BB33: 0.03256130555 | BC33: 0.0204782612 | BD33: 0.1740108083 | BE33: =VLOOKUP($AO33,Data!$A$1:$P$688,BD$23,FALSE) -> 1.400551897e+12 | BF33: =VLOOKUP($AO33,Data!$A$1:$P$688,BE$23,FALSE) -> 8.27377873e+12 | BG33: =IFERROR(IF($AP$21=0,BE33/BE$25*100,(100*(BE33*12/$BI33)/BE$25)),IFERROR(IF($AP$21=0, BE33/BE$26*100, 100*(BE33*12/$BI33)/BE$26), IFERROR(IF($AP$21=0, BE33/BE$27*100, 100*(BE33*12/$BI33)/BE$27),IFERROR(IF($AP$21=0, BE33/BE$28*100, 100*(BE33*12/$BI33)/BE$28), IFERROR(IF($AP$21=0, BE33/BE$29*100, 100*(BE33*12/$BI33)/BE$29),IFERROR(IF($AP$21=0, BE33/BE$30*100, 100*(BE33*12/$BI33)/#REF!),IFERROR(IF($AP$21=0, BE33/BE$31*100, 100*(BE33*12/$BI33)/BE$31),IFERROR(IF($AP$21=0, BE33/BE$31*100, 100*(BE33*12/$BI33)/BE$31),IFERROR(IF($AP$21=0, BE33/BE$32*100, 100*(BE33*12/$BI33)/BE$32),IFERROR(IF($AP$21=0, BE33/BE$33*100, 100*(BE33*12/$BI33)/BE$33),IF($AP$21=0, BE33/BE$34*100, 100*(BE33*12/$BI33)/BE$34))))))))))) -> 113.0993667 | BH33: =IFERROR(IF($AP$21=0,BF33/BF$25*100,(100*(BF33*12/$BI33)/BF$25)),IFERROR(IF($AP$21=0, BF33/BF$26*100, 100*(BF33*12/$BI33)/BF$26), IFERROR(IF($AP$21=0, BF33/BF$27*100, 100*(BF33*12/$BI33)/BF$27),IFERROR(IF($AP$21=0, BF33/BF$28*100, 100*(BF33*12/$BI33)/BF$28), IFERROR(IF($AP$21=0, BF33/BF$29*100, 100*(BF33*12/$BI33)/BF$29),IFERROR(IF($AP$21=0, BF33/BF$30*100, 100*(BF33*12/$BI33)/#REF!),IFERROR(IF($AP$21=0, BF33/BF$31*100, 100*(BF33*12/$BI33)/BF$31),IFERROR(IF($AP$21=0, BF33/BF$31*100, 100*(BF33*12/$BI33)/BF$31),IFERROR(IF($AP$21=0, BF33/BF$32*100, 100*(BF33*12/$BI33)/BF$32),IFERROR(IF($AP$21=0, BF33/BF$33*100, 100*(BF33*12/$BI33)/BF$33),IF($AP$21=0, BF33/BF$34*100, 100*(BF33*12/$BI33)/BF$34))))))))))) -> 103.7704346 | BI33: 12 | BJ33: =VLOOKUP($AO33,Data!$A$1:$P$688,Charts!BJ$23,FALSE) -> 0.1674317402
AL34: 202103 | AM34: 2021-03-01 | AN34: 202103 | AO34: Tier 1 capital ratio202103 | AP34: =VLOOKUP($AO34,Data!$A$1:$P$688,Charts!AP$23,FALSE) -> 0.1374039246 | AQ34: =VLOOKUP($AO34,Data!$A$1:$P$688,Charts!AQ$23,FALSE) -> 0.1574664782 | AR34: =VLOOKUP($AO34,Data!$A$1:$P$688,Charts!AR$23,FALSE) -> 0.180153556 | AS34: =VLOOKUP($AO34,Data!$A$1:$P$688,Charts!AS$23,FALSE) -> 0.2300153954 | AT34: =VLOOKUP($AO34,Data!$A$1:$P$688,Charts!AT$23,FALSE) -> 0.1705052161 | AU34: =VLOOKUP($AO34,Data!$A$1:$P$688,Charts!AU$23,FALSE) -> 0.2109595522 | AV34: =VLOOKUP($AO34,Data!$A$1:$P$688,Charts!AV$23,FALSE) -> 0.3839600054 | AW34: =VLOOKUP($AO34,Data!$A$1:$P$688,Charts!AW$23,FALSE) -> 0.208626849 | AX34: =VLOOKUP($AO34,Data!$A$1:$P$688,Charts!AX$23,FALSE) -> 0.1809098639 | AY34: 0.1574664782 | AZ34: 0 | BA34: 0.02268707781 | BB34: 0.03080599612 | BC34: 0.02006255361 | BD34: 0.1730004533 | BE34: =VLOOKUP($AO34,Data!$A$1:$P$688,BD$23,FALSE) -> 1.408276941e+12 | BF34: =VLOOKUP($AO34,Data!$A$1:$P$688,BE$23,FALSE) -> 8.393944861e+12 | BG34: =IFERROR(IF($AP$21=0,BE34/BE$25*100,(100*(BE34*12/$BI34)/BE$25)),IFERROR(IF($AP$21=0, BE34/BE$26*100, 100*(BE34*12/$BI34)/BE$26), IFERROR(IF($AP$21=0, BE34/BE$27*100, 100*(BE34*12/$BI34)/BE$27),IFERROR(IF($AP$21=0, BE34/BE$28*100, 100*(BE34*12/$BI34)/BE$28), IFERROR(IF($AP$21=0, BE34/BE$29*100, 100*(BE34*12/$BI34)/BE$29),IFERROR(IF($AP$21=0, BE34/BE$30*100, 100*(BE34*12/$BI34)/#REF!),IFERROR(IF($AP$21=0, BE34/BE$31*100, 100*(BE34*12/$BI34)/BE$31),IFERROR(IF($AP$21=0, BE34/BE$31*100, 100*(BE34*12/$BI34)/BE$31),IFERROR(IF($AP$21=0, BE34/BE$32*100, 100*(BE34*12/$BI34)/BE$32),IFERROR(IF($AP$21=0, BE34/BE$33*100, 100*(BE34*12/$BI34)/BE$33),IF($AP$21=0, BE34/BE$34*100, 100*(BE34*12/$BI34)/BE$34))))))))))) -> 113.7231905 | BH34: =IFERROR(IF($AP$21=0,BF34/BF$25*100,(100*(BF34*12/$BI34)/BF$25)),IFERROR(IF($AP$21=0, BF34/BF$26*100, 100*(BF34*12/$BI34)/BF$26), IFERROR(IF($AP$21=0, BF34/BF$27*100, 100*(BF34*12/$BI34)/BF$27),IFERROR(IF($AP$21=0, BF34/BF$28*100, 100*(BF34*12/$BI34)/BF$28), IFERROR(IF($AP$21=0, BF34/BF$29*100, 100*(BF34*12/$BI34)/BF$29),IFERROR(IF($AP$21=0, BF34/BF$30*100, 100*(BF34*12/$BI34)/#REF!),IFERROR(IF($AP$21=0, BF34/BF$31*100, 100*(BF34*12/$BI34)/BF$31),IFERROR(IF($AP$21=0, BF34/BF$31*100, 100*(BF34*12/$BI34)/BF$31),IFERROR(IF($AP$21=0, BF34/BF$32*100, 100*(BF34*12/$BI34)/BF$32),IFERROR(IF($AP$21=0, BF34/BF$33*100, 100*(BF34*12/$BI34)/BF$33),IF($AP$21=0, BF34/BF$34*100, 100*(BF34*12/$BI34)/BF$34))))))))))) -> 105.2775684 | BI34: 3 | BJ34: =VLOOKUP($AO34,Data!$A$1:$P$688,Charts!BJ$23,FALSE) -> 0.1663735236
AL35: 202106 | AM35: 2021-06-01 | AN35: 202106 | AO35: Tier 1 capital ratio202106 | AP35: =VLOOKUP($AO35,Data!$A$1:$P$688,Charts!AP$23,FALSE) -> 0.1321016093 | AQ35: =VLOOKUP($AO35,Data!$A$1:$P$688,Charts!AQ$23,FALSE) -> 0.1558141617 | AR35: =VLOOKUP($AO35,Data!$A$1:$P$688,Charts!AR$23,FALSE) -> 0.1760963965 | AS35: =VLOOKUP($AO35,Data!$A$1:$P$688,Charts!AS$23,FALSE) -> 0.2273844883 | AT35: =VLOOKUP($AO35,Data!$A$1:$P$688,Charts!AT$23,FALSE) -> 0.1708573555 | AU35: =VLOOKUP($AO35,Data!$A$1:$P$688,Charts!AU$23,FALSE) -> 0.2128377614 | AV35: =VLOOKUP($AO35,Data!$A$1:$P$688,Charts!AV$23,FALSE) -> 0.3374986853 | AW35: =VLOOKUP($AO35,Data!$A$1:$P$688,Charts!AW$23,FALSE) -> 0.2162497349 | AX35: =VLOOKUP($AO35,Data!$A$1:$P$688,Charts!AX$23,FALSE) -> 0.1811252577 | AY35: 0.1558141617 | AZ35: 0 | BA35: 0.02028223483 | BB35: 0.03674136486 | BC35: 0.02371255244 | BD35: 0.1246609238 | BE35: =VLOOKUP($AO35,Data!$A$1:$P$688,BD$23,FALSE) -> 1.421854328e+12 | BF35: =VLOOKUP($AO35,Data!$A$1:$P$688,BE$23,FALSE) -> 8.430144565e+12 | BG35: =IFERROR(IF($AP$21=0,BE35/BE$25*100,(100*(BE35*12/$BI35)/BE$25)),IFERROR(IF($AP$21=0, BE35/BE$26*100, 100*(BE35*12/$BI35)/BE$26), IFERROR(IF($AP$21=0, BE35/BE$27*100, 100*(BE35*12/$BI35)/BE$27),IFERROR(IF($AP$21=0, BE35/BE$28*100, 100*(BE35*12/$BI35)/BE$28), IFERROR(IF($AP$21=0, BE35/BE$29*100, 100*(BE35*12/$BI35)/BE$29),IFERROR(IF($AP$21=0, BE35/BE$30*100, 100*(BE35*12/$BI35)/#REF!),IFERROR(IF($AP$21=0, BE35/BE$31*100, 100*(BE35*12/$BI35)/BE$31),IFERROR(IF($AP$21=0, BE35/BE$31*100, 100*(BE35*12/$BI35)/BE$31),IFERROR(IF($AP$21=0, BE35/BE$32*100, 100*(BE35*12/$BI35)/BE$32),IFERROR(IF($AP$21=0, BE35/BE$33*100, 100*(BE35*12/$BI35)/BE$33),IF($AP$21=0, BE35/BE$34*100, 100*(BE35*12/$BI35)/BE$34))))))))))) -> 114.819611 | BH35: =IFERROR(IF($AP$21=0,BF35/BF$25*100,(100*(BF35*12/$BI35)/BF$25)),IFERROR(IF($AP$21=0, BF35/BF$26*100, 100*(BF35*12/$BI35)/BF$26), IFERROR(IF($AP$21=0, BF35/BF$27*100, 100*(BF35*12/$BI35)/BF$27),IFERROR(IF($AP$21=0, BF35/BF$28*100, 100*(BF35*12/$BI35)/BF$28), IFERROR(IF($AP$21=0, BF35/BF$29*100, 100*(BF35*12/$BI35)/BF$29),IFERROR(IF($AP$21=0, BF35/BF$30*100, 100*(BF35*12/$BI35)/#REF!),IFERROR(IF($AP$21=0, BF35/BF$31*100, 100*(BF35*12/$BI35)/BF$31),IFERROR(IF($AP$21=0, BF35/BF$31*100, 100*(BF35*12/$BI35)/BF$31),IFERROR(IF($AP$21=0, BF35/BF$32*100, 100*(BF35*12/$BI35)/BF$32),IFERROR(IF($AP$21=0, BF35/BF$33*100, 100*(BF35*12/$BI35)/BF$33),IF($AP$21=0, BF35/BF$34*100, 100*(BF35*12/$BI35)/BF$34))))))))))) -> 105.7315882 | BI35: 6 | BJ35: =VLOOKUP($AO35,Data!$A$1:$P$688,Charts!BJ$23,FALSE) -> 0.1665426548
AL36: 202109 | AM36: =IF(AM35<$AL$24,+DATE(YEAR(AM35),MONTH(AM35)+3,DAY(AM35)),"") -> 2021-09-01 | AN36: =+IF(MONTH(AM36)=12,YEAR(AM36)&MONTH(AM36),YEAR(AM36)&0&MONTH(AM36)) -> 202109 | AO36: Tier 1 capital ratio202109 | AP36: =VLOOKUP($AO36,Data!$A$1:$P$688,Charts!AP$23,FALSE) -> 0.1313591355 | AQ36: =VLOOKUP($AO36,Data!$A$1:$P$688,Charts!AQ$23,FALSE) -> 0.1551111545 | AR36: =VLOOKUP($AO36,Data!$A$1:$P$688,Charts!AR$23,FALSE) -> 0.1752111456 | AS36: =VLOOKUP($AO36,Data!$A$1:$P$688,Charts!AS$23,FALSE) -> 0.2172897576 | AT36: =VLOOKUP($AO36,Data!$A$1:$P$688,Charts!AT$23,FALSE) -> 0.1698792871 | AU36: =VLOOKUP($AO36,Data!$A$1:$P$688,Charts!AU$23,FALSE) -> 0.2127836775 | AV36: =VLOOKUP($AO36,Data!$A$1:$P$688,Charts!AV$23,FALSE) -> 0.3205737364 | AW36: =VLOOKUP($AO36,Data!$A$1:$P$688,Charts!AW$23,FALSE) -> 0.2094382063 | AX36: =VLOOKUP($AO36,Data!$A$1:$P$688,Charts!AX$23,FALSE) -> 0.1781823228 | AY36: 0.1551111545 | AZ36: 0 | BA36: 0.02009999111 | BB36: 0.03757253185 | BC36: 0.02375201898 | BD36: 0.1077900589 | BE36: =VLOOKUP($AO36,Data!$A$1:$P$688,BD$23,FALSE) -> 1.419335015e+12 | BF36: =VLOOKUP($AO36,Data!$A$1:$P$688,BE$23,FALSE) -> 8.452043249e+12 | BG36: =IFERROR(IF($AP$21=0,BE36/BE$25*100,(100*(BE36*12/$BI36)/BE$25)),IFERROR(IF($AP$21=0, BE36/BE$26*100, 100*(BE36*12/$BI36)/BE$26), IFERROR(IF($AP$21=0, BE36/BE$27*100, 100*(BE36*12/$BI36)/BE$27),IFERROR(IF($AP$21=0, BE36/BE$28*100, 100*(BE36*12/$BI36)/BE$28), IFERROR(IF($AP$21=0, BE36/BE$29*100, 100*(BE36*12/$BI36)/BE$29),IFERROR(IF($AP$21=0, BE36/BE$30*100, 100*(BE36*12/$BI36)/#REF!),IFERROR(IF($AP$21=0, BE36/BE$31*100, 100*(BE36*12/$BI36)/BE$31),IFERROR(IF($AP$21=0, BE36/BE$31*100, 100*(BE36*12/$BI36)/BE$31),IFERROR(IF($AP$21=0, BE36/BE$32*100, 100*(BE36*12/$BI36)/BE$32),IFERROR(IF($AP$21=0, BE36/BE$33*100, 100*(BE36*12/$BI36)/BE$33),IF($AP$21=0, BE36/BE$34*100, 100*(BE36*12/$BI36)/BE$34))))))))))) -> 114.6161679 | BH36: =IFERROR(IF($AP$21=0,BF36/BF$25*100,(100*(BF36*12/$BI36)/BF$25)),IFERROR(IF($AP$21=0, BF36/BF$26*100, 100*(BF36*12/$BI36)/BF$26), IFERROR(IF($AP$21=0, BF36/BF$27*100, 100*(BF36*12/$BI36)/BF$27),IFERROR(IF($AP$21=0, BF36/BF$28*100, 100*(BF36*12/$BI36)/BF$28), IFERROR(IF($AP$21=0, BF36/BF$29*100, 100*(BF36*12/$BI36)/BF$29),IFERROR(IF($AP$21=0, BF36/BF$30*100, 100*(BF36*12/$BI36)/#REF!),IFERROR(IF($AP$21=0, BF36/BF$31*100, 100*(BF36*12/$BI36)/BF$31),IFERROR(IF($AP$21=0, BF36/BF$31*100, 100*(BF36*12/$BI36)/BF$31),IFERROR(IF($AP$21=0, BF36/BF$32*100, 100*(BF36*12/$BI36)/BF$32),IFERROR(IF($AP$21=0, BF36/BF$33*100, 100*(BF36*12/$BI36)/BF$33),IF($AP$21=0, BF36/BF$34*100, 100*(BF36*12/$BI36)/BF$34))))))))))) -> 106.0062433 | BI36: 9 | BJ36: =VLOOKUP($AO36,Data!$A$1:$P$688,Charts!BJ$23,FALSE) -> 0.1661657149
AN48: =VLOOKUP(AM21*1,List!$A$1:$I$100,9,FALSE) -> 9 | AO48: Indicator | AP48: Country | AQ48: Country name | AR48: Value | AS48: EU value
AO49: 2 | AQ49: 5 | AR49: 8
AN50: =MAX($AL$25:$AL$45) -> 202109 | AO50: =CONCATENATE(VLOOKUP($AN$21*1,Data!$W$1:$AB$688,AO$49,FALSE),AP50) -> Tier 1 Capital Ratio1 | AP50: 1 | AQ50: =VLOOKUP($AO50,Data!$U$1:$AC$688,AQ$49,FALSE)&IF(AR50="","*","") -> EE | AR50: =VLOOKUP($AO50,Data!$U$1:$AC$688,AR$49,FALSE) -> 0.2855051778 | AS50: =VLOOKUP($AO$79,Data!$U$1:$AC$688,$AR$49,FALSE) -> 0.1698792871
AN51: =MAX($AL$25:$AL$45) -> 202109 | AO51: =CONCATENATE(VLOOKUP($AN$21*1,Data!$W$1:$AB$688,AO$49,FALSE),AP51) -> Tier 1 Capital Ratio2 | AP51: 2 | AQ51: =VLOOKUP($AO51,Data!$U$1:$AC$688,AQ$49,FALSE)&IF(AR51="","*","") -> HR | AR51: =VLOOKUP($AO51,Data!$U$1:$AC$688,AR$49,FALSE) -> 0.2475616809 | AS51: =VLOOKUP($AO$79,Data!$U$1:$AC$688,$AR$49,FALSE) -> 0.1698792871
AN52: 202109 | AO52: =CONCATENATE(VLOOKUP($AN$21*1,Data!$W$1:$AB$688,AO$49,FALSE),AP52) -> Tier 1 Capital Ratio3 | AP52: 3 | AQ52: =VLOOKUP($AO52,Data!$U$1:$AC$688,AQ$49,FALSE)&IF(AR52="","*","") -> LV | AR52: =VLOOKUP($AO52,Data!$U$1:$AC$688,AR$49,FALSE) -> 0.2452849158 | AS52: =VLOOKUP($AO$79,Data!$U$1:$AC$688,$AR$49,FALSE) -> 0.1698792871
AN53: 202109 | AO53: =CONCATENATE(VLOOKUP($AN$21*1,Data!$W$1:$AB$688,AO$49,FALSE),AP53) -> Tier 1 Capital Ratio4 | AP53: 4 | AQ53: =VLOOKUP($AO53,Data!$U$1:$AC$688,AQ$49,FALSE)&IF(AR53="","*","") -> BG | AR53: =VLOOKUP($AO53,Data!$U$1:$AC$688,AR$49,FALSE) -> 0.23479091 | AS53: =VLOOKUP($AO$79,Data!$U$1:$AC$688,$AR$49,FALSE) -> 0.1698792871
AN54: 202109 | AO54: =CONCATENATE(VLOOKUP($AN$21*1,Data!$W$1:$AB$688,AO$49,FALSE),AP54) -> Tier 1 Capital Ratio5 | AP54: 5 | AQ54: =VLOOKUP($AO54,Data!$U$1:$AC$688,AQ$49,FALSE)&IF(AR54="","*","") -> CZ | AR54: =VLOOKUP($AO54,Data!$U$1:$AC$688,AR$49,FALSE) -> 0.2283229992 | AS54: =VLOOKUP($AO$79,Data!$U$1:$AC$688,$AR$49,FALSE) -> 0.1698792871
AN55: 202109 | AO55: =CONCATENATE(VLOOKUP($AN$21*1,Data!$W$1:$AB$688,AO$49,FALSE),AP55) -> Tier 1 Capital Ratio6 | AP55: 6 | AQ55: =VLOOKUP($AO55,Data!$U$1:$AC$688,AQ$49,FALSE)&IF(AR55="","*","") -> IS | AR55: =VLOOKUP($AO55,Data!$U$1:$AC$688,AR$49,FALSE) -> 0.2230914781 | AS55: =VLOOKUP($AO$79,Data!$U$1:$AC$688,$AR$49,FALSE) -> 0.1698792871
AN56: 202109 | AO56: =CONCATENATE(VLOOKUP($AN$21*1,Data!$W$1:$AB$688,AO$49,FALSE),AP56) -> Tier 1 Capital Ratio7 | AP56: 7 | AQ56: =VLOOKUP($AO56,Data!$U$1:$AC$688,AQ$49,FALSE)&IF(AR56="","*","") -> LT | AR56: =VLOOKUP($AO56,Data!$U$1:$AC$688,AR$49,FALSE) -> 0.2207845576 | AS56: =VLOOKUP($AO$79,Data!$U$1:$AC$688,$AR$49,FALSE) -> 0.1698792871
AN57: 202109 | AO57: =CONCATENATE(VLOOKUP($AN$21*1,Data!$W$1:$AB$688,AO$49,FALSE),AP57) -> Tier 1 Capital Ratio8 | AP57: 8 | AQ57: =VLOOKUP($AO57,Data!$U$1:$AC$688,AQ$49,FALSE)&IF(AR57="","*","") -> SE | AR57: =VLOOKUP($AO57,Data!$U$1:$AC$688,AR$49,FALSE) -> 0.2107052037 | AS57: =VLOOKUP($AO$79,Data!$U$1:$AC$688,$AR$49,FALSE) -> 0.1698792871
AN58: 202109 | AO58: =CONCATENATE(VLOOKUP($AN$21*1,Data!$W$1:$AB$688,AO$49,FALSE),AP58) -> Tier 1 Capital Ratio9 | AP58: 9 | AQ58: =VLOOKUP($AO58,Data!$U$1:$AC$688,AQ$49,FALSE)&IF(AR58="","*","") -> RO | AR58: =VLOOKUP($AO58,Data!$U$1:$AC$688,AR$49,FALSE) -> 0.2072272529 | AS58: =VLOOKUP($AO$79,Data!$U$1:$AC$688,$AR$49,FALSE) -> 0.1698792871
AN59: 202109 | AO59: =CONCATENATE(VLOOKUP($AN$21*1,Data!$W$1:$AB$688,AO$49,FALSE),AP59) -> Tier 1 Capital Ratio10 | AP59: 10 | AQ59: =VLOOKUP($AO59,Data!$U$1:$AC$688,AQ$49,FALSE)&IF(AR59="","*","") -> DK | AR59: =VLOOKUP($AO59,Data!$U$1:$AC$688,AR$49,FALSE) -> 0.2061672894 | AS59: =VLOOKUP($AO$79,Data!$U$1:$AC$688,$AR$49,FALSE) -> 0.1698792871
AN60: 202109 | AO60: =CONCATENATE(VLOOKUP($AN$21*1,Data!$W$1:$AB$688,AO$49,FALSE),AP60) -> Tier 1 Capital Ratio11 | AP60: 11 | AQ60: =VLOOKUP($AO60,Data!$U$1:$AC$688,AQ$49,FALSE)&IF(AR60="","*","") -> LU | AR60: =VLOOKUP($AO60,Data!$U$1:$AC$688,AR$49,FALSE) -> 0.2027010877 | AS60: =VLOOKUP($AO$79,Data!$U$1:$AC$688,$AR$49,FALSE) -> 0.1698792871
AN61: 202109 | AO61: =CONCATENATE(VLOOKUP($AN$21*1,Data!$W$1:$AB$688,AO$49,FALSE),AP61) -> Tier 1 Capital Ratio12 | AP61: 12 | AQ61: =VLOOKUP($AO61,Data!$U$1:$AC$688,AQ$49,FALSE)&IF(AR61="","*","") -> IE | AR61: =VLOOKUP($AO61,Data!$U$1:$AC$688,AR$49,FALSE) -> 0.2018708654 | AS61: =VLOOKUP($AO$79,Data!$U$1:$AC$688,$AR$49,FALSE) -> 0.1698792871
AN62: 202109 | AO62: =CONCATENATE(VLOOKUP($AN$21*1,Data!$W$1:$AB$688,AO$49,FALSE),AP62) -> Tier 1 Capital Ratio13 | AP62: 13 | AQ62: =VLOOKUP($AO62,Data!$U$1:$AC$688,AQ$49,FALSE)&IF(AR62="","*","") -> BE | AR62: =VLOOKUP($AO62,Data!$U$1:$AC$688,AR$49,FALSE) -> 0.1968944903 | AS62: =VLOOKUP($AO$79,Data!$U$1:$AC$688,$AR$49,FALSE) -> 0.1698792871
AN63: 202109 | AO63: =CONCATENATE(VLOOKUP($AN$21*1,Data!$W$1:$AB$688,AO$49,FALSE),AP63) -> Tier 1 Capital Ratio14 | AP63: 14 | AQ63: =VLOOKUP($AO63,Data!$U$1:$AC$688,AQ$49,FALSE)&IF(AR63="","*","") -> NL | AR63: =VLOOKUP($AO63,Data!$U$1:$AC$688,AR$49,FALSE) -> 0.1906542017 | AS63: =VLOOKUP($AO$79,Data!$U$1:$AC$688,$AR$49,FALSE) -> 0.1698792871
AN64: 202109 | AO64: =CONCATENATE(VLOOKUP($AN$21*1,Data!$W$1:$AB$688,AO$49,FALSE),AP64) -> Tier 1 Capital Ratio15 | AP64: 15 | AQ64: =VLOOKUP($AO64,Data!$U$1:$AC$688,AQ$49,FALSE)&IF(AR64="","*","") -> MT | AR64: =VLOOKUP($AO64,Data!$U$1:$AC$688,AR$49,FALSE) -> 0.1895555789 | AS64: =VLOOKUP($AO$79,Data!$U$1:$AC$688,$AR$49,FALSE) -> 0.1698792871
AN65: 202109 | AO65: =CONCATENATE(VLOOKUP($AN$21*1,Data!$W$1:$AB$688,AO$49,FALSE),AP65) -> Tier 1 Capital Ratio16 | AP65: 16 | AQ65: =VLOOKUP($AO65,Data!$U$1:$AC$688,AQ$49,FALSE)&IF(AR65="","*","") -> FI | AR65: =VLOOKUP($AO65,Data!$U$1:$AC$688,AR$49,FALSE) -> 0.1892558798 | AS65: =VLOOKUP($AO$79,Data!$U$1:$AC$688,$AR$49,FALSE) -> 0.1698792871
AN66: 202109 | AO66: =CONCATENATE(VLOOKUP($AN$21*1,Data!$W$1:$AB$688,AO$49,FALSE),AP66) -> Tier 1 Capital Ratio17 | AP66: 17 | AQ66: =VLOOKUP($AO66,Data!$U$1:$AC$688,AQ$49,FALSE)&IF(AR66="","*","") -> CY | AR66: =VLOOKUP($AO66,Data!$U$1:$AC$688,AR$49,FALSE) -> 0.1837264105 | AS66: =VLOOKUP($AO$79,Data!$U$1:$AC$688,$AR$49,FALSE) -> 0.1698792871
AN67: 202109 | AO67: =CONCATENATE(VLOOKUP($AN$21*1,Data!$W$1:$AB$688,AO$49,FALSE),AP67) -> Tier 1 Capital Ratio18 | AP67: 18 | AQ67: =VLOOKUP($AO67,Data!$U$1:$AC$688,AQ$49,FALSE)&IF(AR67="","*","") -> SK | AR67: =VLOOKUP($AO67,Data!$U$1:$AC$688,AR$49,FALSE) -> 0.1830720611 | AS67: =VLOOKUP($AO$79,Data!$U$1:$AC$688,$AR$49,FALSE) -> 0.1698792871
AN68: 202109 | AO68: =CONCATENATE(VLOOKUP($AN$21*1,Data!$W$1:$AB$688,AO$49,FALSE),AP68) -> Tier 1 Capital Ratio19 | AP68: 19 | AQ68: =VLOOKUP($AO68,Data!$U$1:$AC$688,AQ$49,FALSE)&IF(AR68="","*","") -> PL | AR68: =VLOOKUP($AO68,Data!$U$1:$AC$688,AR$49,FALSE) -> 0.1732419477 | AS68: =VLOOKUP($AO$79,Data!$U$1:$AC$688,$AR$49,FALSE) -> 0.1698792871
AN69: 202109 | AO69: =CONCATENATE(VLOOKUP($AN$21*1,Data!$W$1:$AB$688,AO$49,FALSE),AP69) -> Tier 1 Capital Ratio20 | AP69: 20 | AQ69: =VLOOKUP($AO69,Data!$U$1:$AC$688,AQ$49,FALSE)&IF(AR69="","*","") -> IT | AR69: =VLOOKUP($AO69,Data!$U$1:$AC$688,AR$49,FALSE) -> 0.168950041 | AS69: =VLOOKUP($AO$79,Data!$U$1:$AC$688,$AR$49,FALSE) -> 0.1698792871
AN70: 202109 | AO70: =CONCATENATE(VLOOKUP($AN$21*1,Data!$W$1:$AB$688,AO$49,FALSE),AP70) -> Tier 1 Capital Ratio21 | AP70: 21 | AQ70: =VLOOKUP($AO70,Data!$U$1:$AC$688,AQ$49,FALSE)&IF(AR70="","*","") -> DE | AR70: =VLOOKUP($AO70,Data!$U$1:$AC$688,AR$49,FALSE) -> 0.168652926 | AS70: =VLOOKUP($AO$79,Data!$U$1:$AC$688,$AR$49,FALSE) -> 0.1698792871
AN71: 202109 | AO71: =CONCATENATE(VLOOKUP($AN$21*1,Data!$W$1:$AB$688,AO$49,FALSE),AP71) -> Tier 1 Capital Ratio22 | AP71: 22 | AQ71: =VLOOKUP($AO71,Data!$U$1:$AC$688,AQ$49,FALSE)&IF(AR71="","*","") -> FR | AR71: =VLOOKUP($AO71,Data!$U$1:$AC$688,AR$49,FALSE) -> 0.1669105147 | AS71: =VLOOKUP($AO$79,Data!$U$1:$AC$688,$AR$49,FALSE) -> 0.1698792871
AN72: 202109 | AO72: =CONCATENATE(VLOOKUP($AN$21*1,Data!$W$1:$AB$688,AO$49,FALSE),AP72) -> Tier 1 Capital Ratio23 | AP72: 23 | AQ72: =VLOOKUP($AO72,Data!$U$1:$AC$688,AQ$49,FALSE)&IF(AR72="","*","") -> HU | AR72: =VLOOKUP($AO72,Data!$U$1:$AC$688,AR$49,FALSE) -> 0.1600257266 | AS72: =VLOOKUP($AO$79,Data!$U$1:$AC$688,$AR$49,FALSE) -> 0.1698792871
AN73: 202109 | AO73: =CONCATENATE(VLOOKUP($AN$21*1,Data!$W$1:$AB$688,AO$49,FALSE),AP73) -> Tier 1 Capital Ratio24 | AP73: 24 | AQ73: =VLOOKUP($AO73,Data!$U$1:$AC$688,AQ$49,FALSE)&IF(AR73="","*","") -> PT | AR73: =VLOOKUP($AO73,Data!$U$1:$AC$688,AR$49,FALSE) -> 0.1579419526 | AS73: =VLOOKUP($AO$79,Data!$U$1:$AC$688,$AR$49,FALSE) -> 0.1698792871
AN74: 202109 | AO74: =CONCATENATE(VLOOKUP($AN$21*1,Data!$W$1:$AB$688,AO$49,FALSE),AP74) -> Tier 1 Capital Ratio25 | AP74: 25 | AQ74: =VLOOKUP($AO74,Data!$U$1:$AC$688,AQ$49,FALSE)&IF(AR74="","*","") -> AT | AR74: =VLOOKUP($AO74,Data!$U$1:$AC$688,AR$49,FALSE) -> 0.157500807 | AS74: =VLOOKUP($AO$79,Data!$U$1:$AC$688,$AR$49,FALSE) -> 0.1698792871
AN75: 202109 | AO75: =CONCATENATE(VLOOKUP($AN$21*1,Data!$W$1:$AB$688,AO$49,FALSE),AP75) -> Tier 1 Capital Ratio26 | AP75: 26 | AQ75: =VLOOKUP($AO75,Data!$U$1:$AC$688,AQ$49,FALSE)&IF(AR75="","*","") -> SI | AR75: =VLOOKUP($AO75,Data!$U$1:$AC$688,AR$49,FALSE) -> 0.1569776976 | AS75: =VLOOKUP($AO$79,Data!$U$1:$AC$688,$AR$49,FALSE) -> 0.1698792871
AN76: 202109 | AO76: =CONCATENATE(VLOOKUP($AN$21*1,Data!$W$1:$AB$688,AO$49,FALSE),AP76) -> Tier 1 Capital Ratio27 | AP76: 27 | AQ76: =VLOOKUP($AO76,Data!$U$1:$AC$688,AQ$49,FALSE)&IF(AR76="","*","") -> ES | AR76: =VLOOKUP($AO76,Data!$U$1:$AC$688,AR$49,FALSE) -> 0.1482431561 | AS76: =VLOOKUP($AO$79,Data!$U$1:$AC$688,$AR$49,FALSE) -> 0.1698792871
AN77: 202109 | AO77: =CONCATENATE(VLOOKUP($AN$21*1,Data!$W$1:$AB$688,AO$49,FALSE),AP77) -> Tier 1 Capital Ratio28 | AP77: 28 | AQ77: =VLOOKUP($AO77,Data!$U$1:$AC$688,AQ$49,FALSE)&IF(AR77="","*","") -> GR | AR77: =VLOOKUP($AO77,Data!$U$1:$AC$688,AR$49,FALSE) -> 0.1303312637 | AS77: =VLOOKUP($AO$79,Data!$U$1:$AC$688,$AR$49,FALSE) -> 0.1698792871
AN78: 202109 | AO78: =CONCATENATE(VLOOKUP($AN$21*1,Data!$W$1:$AB$688,AO$49,FALSE),AP78) -> Tier 1 Capital Ratio29 | AP78: 29 | AQ78: =VLOOKUP($AO78,Data!$U$1:$AC$688,AQ$49,FALSE)&IF(AR78="","*","") -> NO | AR78: =VLOOKUP($AO78,Data!$U$1:$AC$688,AR$49,FALSE) -> 0 | AS78: =VLOOKUP($AO$79,Data!$U$1:$AC$688,$AR$49,FALSE) -> 0.1698792871
AN79: =MAX($AL$25:$AL$45) -> 202109 | AO79: =CONCATENATE(VLOOKUP($AN$21*1,Data!$W$1:$AB$688,AO$49,FALSE),AP79) -> Tier 1 Capital Ratio99 | AP79: 99 | AQ79: =VLOOKUP($AO79,Data!$U$1:$AC$688,AQ$49,FALSE)&IF(AR79="","*","") -> EU | AR79: =VLOOKUP($AO79,Data!$U$1:$AC$688,AR$49,FALSE) -> 0.1698792871 | AS79: =VLOOKUP($AO$79,Data!$U$1:$AC$688,$AR$49,FALSE) -> 0.1698792871

Sheet Assets
D1: =("'"&MID(CELL("filename",$A$1),FIND("]",CELL("filename",$A$1))+1,32)&"'") -> 'Assets' | E1: T01_1 | F1: T01_1 | G1: T01_1 | H1: T01_1 | I1: T01_2 | J1: T01_2 | K1: T01_2 | L1: T01_2 | M1: T01_3 | N1: T01_3 | O1: T01_3 | P1: T01_3 | Q1: T01_4 | R1: T01_4 | S1: T01_4 | T1: T01_4 | U1: T01_5 | V1: T01_5 | W1: T01_5 | X1: T01_5 | Y1: T01_6 | Z1: T01_6 | AA1: T01_6 | AB1: T01_6
A2: ='Reference Dates'!$C$8 -> 202109 | E2: =TEXT(E12,"YYYYMM")+0 -> 202012 | F2: =TEXT(F12,"YYYYMM")+0 -> 202103 | G2: 202106 | H2: 202109 | I2: 202012 | J2: 202103 | K2: 202106 | L2: 202109 | M2: 202012 | N2: 202103 | O2: 202106 | P2: 202109 | Q2: 202012 | R2: 202103 | S2: 202106 | T2: 202109 | U2: 202012 | V2: 202103 | W2: 202106 | X2: 202109 | Y2: 202012 | Z2: 202103 | AA2: 202106 | AB2: 202109
A3: =DATE(LEFT(A2,4),RIGHT(A2,2),1) -> 2021-09-01
D4: Statistical Annex
D5: Asset composition and volumes
B8: CH_1 | D8: Asset composition
D10: % of total assets
E11: Cash balances | I11: Equity instruments | M11: Debt securities | Q11: Loans and advances | U11: Derivatives | Y11: Other Assets
E12: =EOMONTH($A$3,-9) -> 2020-12-31 | F12: =EOMONTH($A$3,-6) -> 2021-03-31 | G12: =EOMONTH($A$3,-3) -> 2021-06-30 | H12: =$A$3 -> 2021-09-01 | I12: =EOMONTH($A$3,-9) -> 2020-12-31 | J12: =EOMONTH($A$3,-6) -> 2021-03-31 | K12: =EOMONTH($A$3,-3) -> 2021-06-30 | L12: =$A$3 -> 2021-09-01 | M12: =EOMONTH($A$3,-9) -> 2020-12-31 | N12: =EOMONTH($A$3,-6) -> 2021-03-31 | O12: =EOMONTH($A$3,-3) -> 2021-06-30 | P12: =$A$3 -> 2021-09-01 | Q12: =EOMONTH($A$3,-9) -> 2020-12-31 | R12: =EOMONTH($A$3,-6) -> 2021-03-31 | S12: =EOMONTH($A$3,-3) -> 2021-06-30 | T12: =$A$3 -> 2021-09-01 | U12: =EOMONTH($A$3,-9) -> 2020-12-31 | V12: =EOMONTH($A$3,-6) -> 2021-03-31 | W12: =EOMONTH($A$3,-3) -> 2021-06-30 | X12: =$A$3 -> 2021-09-01 | Y12: =EOMONTH($A$3,-9) -> 2020-12-31 | Z12: =EOMONTH($A$3,-6) -> 2021-03-31 | AA12: =EOMONTH($A$3,-3) -> 2021-06-30 | AB12: =$A$3 -> 2021-09-01
B13: AT | D13: =IF(OR(E13="n.a.",F13="n.a.",G13="n.a.",H13="n.a.",I13="n.a.",J13="n.a.",K13="n.a.",L13="n.a.",M13="n.a.",N13="n.a.",O13="n.a.",P13="n.a.",Q13="n.a.",R13="n.a.",S13="n.a.",T13="n.a.",U13="n.a.",V13="n.a.",W13="n.a.",X13="n.a.",Y13="n.a.",Z13="n.a.",AA13="n.a.",AB13="n.a."),$B13&"*",$B13) -> AT | E13: =IFERROR(INDEX('Data Annex'!$K$1:$AU$7000,MATCH(Assets!E$1&"|"&Assets!$B13,'Data Annex'!$K$1:$K$7000,0),MATCH(Assets!E$2,'Data Annex'!$K$1:$AU$1,0)),"") -> 0.1766316048 | F13: =IFERROR(INDEX('Data Annex'!$K$1:$AU$7000,MATCH(Assets!F$1&"|"&Assets!$B13,'Data Annex'!$K$1:$K$7000,0),MATCH(Assets!F$2,'Data Annex'!$K$1:$AU$1,0)),"") -> 0.1982215083 | G13: =IFERROR(INDEX('Data Annex'!$K$1:$AU$7000,MATCH(Assets!G$1&"|"&Assets!$B13,'Data Annex'!$K$1:$K$7000,0),MATCH(Assets!G$2,'Data Annex'!$K$1:$AU$1,0)),"") -> 0.2003578771 | H13: =IFERROR(INDEX('Data Annex'!$K$1:$AU$7000,MATCH(Assets!H$1&"|"&Assets!$B13,'Data Annex'!$K$1:$K$7000,0),MATCH(Assets!H$2,'Data Annex'!$K$1:$AU$1,0)),"") -> 0.196141202 | I13: =IFERROR(INDEX('Data Annex'!$K$1:$AU$7000,MATCH(Assets!I$1&"|"&Assets!$B13,'Data Annex'!$K$1:$K$7000,0),MATCH(Assets!I$2,'Data Annex'!$K$1:$AU$1,0)),"") -> 0.005257756147 | J13: =IFERROR(INDEX('Data Annex'!$K$1:$AU$7000,MATCH(Assets!J$1&"|"&Assets!$B13,'Data Annex'!$K$1:$K$7000,0),MATCH(Assets!J$2,'Data Annex'!$K$1:$AU$1,0)),"") -> 0.005232137542 | K13: =IFERROR(INDEX('Data Annex'!$K$1:$AU$7000,MATCH(Assets!K$1&"|"&Assets!$B13,'Data Annex'!$K$1:$K$7000,0),MATCH(Assets!K$2,'Data Annex'!$K$1:$AU$1,0)),"") -> 0.004989800723 | L13: =IFERROR(INDEX('Data Annex'!$K$1:$AU$7000,MATCH(Assets!L$1&"|"&Assets!$B13,'Data Annex'!$K$1:$K$7000,0),MATCH(Assets!L$2,'Data Annex'!$K$1:$AU$1,0)),"") -> 0.004943932384 | M13: =IFERROR(INDEX('Data Annex'!$K$1:$AU$7000,MATCH(Assets!M$1&"|"&Assets!$B13,'Data Annex'!$K$1:$K$7000,0),MATCH(Assets!M$2,'Data Annex'!$K$1:$AU$1,0)),"") -> 0.1343164484 | N13: =IFERROR(INDEX('Data Annex'!$K$1:$AU$7000,MATCH(Assets!N$1&"|"&Assets!$B13,'Data Annex'!$K$1:$K$7000,0),MATCH(Assets!N$2,'Data Annex'!$K$1:$AU$1,0)),"") -> 0.1298500698 | O13: =IFERROR(INDEX('Data Annex'!$K$1:$AU$7000,MATCH(Assets!O$1&"|"&Assets!$B13,'Data Annex'!$K$1:$K$7000,0),MATCH(Assets!O$2,'Data Annex'!$K$1:$AU$1,0)),"") -> 0.1334589312 | P13: =IFERROR(INDEX('Data Annex'!$K$1:$AU$7000,MATCH(Assets!P$1&"|"&Assets!$B13,'Data Annex'!$K$1:$K$7000,0),MATCH(Assets!P$2,'Data Annex'!$K$1:$AU$1,0)),"") -> 0.1289731306 | Q13: =IFERROR(INDEX('Data Annex'!$K$1:$AU$7000,MATCH(Assets!Q$1&"|"&Assets!$B13,'Data Annex'!$K$1:$K$7000,0),MATCH(Assets!Q$2,'Data Annex'!$K$1:$AU$1,0)),"") -> 0.6341933531 | R13: =IFERROR(INDEX('Data Annex'!$K$1:$AU$7000,MATCH(Assets!R$1&"|"&Assets!$B13,'Data Annex'!$K$1:$K$7000,0),MATCH(Assets!R$2,'Data Annex'!$K$1:$AU$1,0)),"") -> 0.6227294583 | S13: =IFERROR(INDEX('Data Annex'!$K$1:$AU$7000,MATCH(Assets!S$1&"|"&Assets!$B13,'Data Annex'!$K$1:$K$7000,0),MATCH(Assets!S$2,'Data Annex'!$K$1:$AU$1,0)),"") -> 0.618779086 | T13: =IFERROR(INDEX('Data Annex'!$K$1:$AU$7000,MATCH(Assets!T$1&"|"&Assets!$B13,'Data Annex'!$K$1:$K$7000,0),MATCH(Assets!T$2,'Data Annex'!$K$1:$AU$1,0)),"") -> 0.628567038 | U13: =IFERROR(INDEX('Data Annex'!$K$1:$AU$7000,MATCH(Assets!U$1&"|"&Assets!$B13,'Data Annex'!$K$1:$K$7000,0),MATCH(Assets!U$2,'Data Annex'!$K$1:$AU$1,0)),"") -> 0.0174393731 | V13: =IFERROR(INDEX('Data Annex'!$K$1:$AU$7000,MATCH(Assets!V$1&"|"&Assets!$B13,'Data Annex'!$K$1:$K$7000,0),MATCH(Assets!V$2,'Data Annex'!$K$1:$AU$1,0)),"") -> 0.0143008773 | W13: =IFERROR(INDEX('Data Annex'!$K$1:$AU$7000,MATCH(Assets!W$1&"|"&Assets!$B13,'Data Annex'!$K$1:$K$7000,0),MATCH(Assets!W$2,'Data Annex'!$K$1:$AU$1,0)),"") -> 0.01274916026 | X13: =IFERROR(INDEX('Data Annex'!$K$1:$AU$7000,MATCH(Assets!X$1&"|"&Assets!$B13,'Data Annex'!$K$1:$K$7000,0),MATCH(Assets!X$2,'Data Annex'!$K$1:$AU$1,0)),"") -> 0.0126053095 | Y13: =IFERROR(INDEX('Data Annex'!$K$1:$AU$7000,MATCH(Assets!Y$1&"|"&Assets!$B13,'Data Annex'!$K$1:$K$7000,0),MATCH(Assets!Y$2,'Data Annex'!$K$1:$AU$1,0)),"") -> 0.03216146453 | Z13: =IFERROR(INDEX('Data Annex'!$K$1:$AU$7000,MATCH(Assets!Z$1&"|"&Assets!$B13,'Data Annex'!$K$1:$K$7000,0),MATCH(Assets!Z$2,'Data Annex'!$K$1:$AU$1,0)),"") -> 0.02966594874 | AA13: =IFERROR(INDEX('Data Annex'!$K$1:$AU$7000,MATCH(Assets!AA$1&"|"&Assets!$B13,'Data Annex'!$K$1:$K$7000,0),MATCH(Assets!AA$2,'Data Annex'!$K$1:$AU$1,0)),"") -> 0.02966514471 | AB13: =IFERROR(INDEX('Data Annex'!$K$1:$AU$7000,MATCH(Assets!AB$1&"|"&Assets!$B13,'Data Annex'!$K$1:$K$7000,0),MATCH(Assets!AB$2,'Data Annex'!$K$1:$AU$1,0)),"") -> 0.02876938751 | AC13: =IFERROR(INDEX('Data Annex'!$K$1:$AH$6000,MATCH(Assets!AC$1&"|"&Assets!$B13,'Data Annex'!$K$1:$K$6000,0),MATCH(Assets!AC$2,'Data Annex'!$K$1:$AH$1,0)),"") -> 
B14: BE | D14: =IF(OR(E14="n.a.",F14="n.a.",G14="n.a.",H14="n.a.",I14="n.a.",J14="n.a.",K14="n.a.",L14="n.a.",M14="n.a.",N14="n.a.",O14="n.a.",P14="n.a.",Q14="n.a.",R14="n.a.",S14="n.a.",T14="n.a.",U14="n.a.",V14="n.a.",W14="n.a.",X14="n.a.",Y14="n.a.",Z14="n.a.",AA14="n.a.",AB14="n.a."),$B14&"*",$B14) -> BE | E14: =IFERROR(INDEX('Data Annex'!$K$1:$AU$7000,MATCH(Assets!E$1&"|"&Assets!$B14,'Data Annex'!$K$1:$K$7000,0),MATCH(Assets!E$2,'Data Annex'!$K$1:$AU$1,0)),"") -> 0.1548956813 | F14: =IFERROR(INDEX('Data Annex'!$K$1:$AU$7000,MATCH(Assets!F$1&"|"&Assets!$B14,'Data Annex'!$K$1:$K$7000,0),MATCH(Assets!F$2,'Data Annex'!$K$1:$AU$1,0)),"") -> 0.1960771158 | G14: =IFERROR(INDEX('Data Annex'!$K$1:$AU$7000,MATCH(Assets!G$1&"|"&Assets!$B14,'Data Annex'!$K$1:$K$7000,0),MATCH(Assets!G$2,'Data Annex'!$K$1:$AU$1,0)),"") -> 0.2061012765 | H14: =IFERROR(INDEX('Data Annex'!$K$1:$AU$7000,MATCH(Assets!H$1&"|"&Assets!$B14,'Data Annex'!$K$1:$K$7000,0),MATCH(Assets!H$2,'Data Annex'!$K$1:$AU$1,0)),"") -> 0.2033236334 | I14: =IFERROR(INDEX('Data Annex'!$K$1:$AU$7000,MATCH(Assets!I$1&"|"&Assets!$B14,'Data Annex'!$K$1:$K$7000,0),MATCH(Assets!I$2,'Data Annex'!$K$1:$AU$1,0)),"") -> 0.00211277428 | J14: =IFERROR(INDEX('Data Annex'!$K$1:$AU$7000,MATCH(Assets!J$1&"|"&Assets!$B14,'Data Annex'!$K$1:$K$7000,0),MATCH(Assets!J$2,'Data Annex'!$K$1:$AU$1,0)),"") -> 0.002134311111 | K14: =IFERROR(INDEX('Data Annex'!$K$1:$AU$7000,MATCH(Assets!K$1&"|"&Assets!$B14,'Data Annex'!$K$1:$K$7000,0),MATCH(Assets!K$2,'Data Annex'!$K$1:$AU$1,0)),"") -> 0.002268905847 | L14: =IFERROR(INDEX('Data Annex'!$K$1:$AU$7000,MATCH(Assets!L$1&"|"&Assets!$B14,'Data Annex'!$K$1:$K$7000,0),MATCH(Assets!L$2,'Data Annex'!$K$1:$AU$1,0)),"") -> 0.00216844245 | M14: =IFERROR(INDEX('Data Annex'!$K$1:$AU$7000,MATCH(Assets!M$1&"|"&Assets!$B14,'Data Annex'!$K$1:$K$7000,0),MATCH(Assets!M$2,'Data Annex'!$K$1:$AU$1,0)),"") -> 0.1414386836 | N14: =IFERROR(INDEX('Data Annex'!$K$1:$AU$7000,MATCH(Assets!N$1&"|"&Assets!$B14,'Data Annex'!$K$1:$K$7000,0),MATCH(Assets!N$2,'Data Annex'!$K$1:$AU$1,0)),"") -> 0.1340745148 | O14: =IFERROR(INDEX('Data Annex'!$K$1:$AU$7000,MATCH(Assets!O$1&"|"&Assets!$B14,'Data Annex'!$K$1:$K$7000,0),MATCH(Assets!O$2,'Data Annex'!$K$1:$AU$1,0)),"") -> 0.132321741 | P14: =IFERROR(INDEX('Data Annex'!$K$1:$AU$7000,MATCH(Assets!P$1&"|"&Assets!$B14,'Data Annex'!$K$1:$K$7000,0),MATCH(Assets!P$2,'Data Annex'!$K$1:$AU$1,0)),"") -> 0.1268820297 | Q14: =IFERROR(INDEX('Data Annex'!$K$1:$AU$7000,MATCH(Assets!Q$1&"|"&Assets!$B14,'Data Annex'!$K$1:$K$7000,0),MATCH(Assets!Q$2,'Data Annex'!$K$1:$AU$1,0)),"") -> 0.5983262243 | R14: =IFERROR(INDEX('Data Annex'!$K$1:$AU$7000,MATCH(Assets!R$1&"|"&Assets!$B14,'Data Annex'!$K$1:$K$7000,0),MATCH(Assets!R$2,'Data Annex'!$K$1:$AU$1,0)),"") -> 0.5769543019 | S14: =IFERROR(INDEX('Data Annex'!$K$1:$AU$7000,MATCH(Assets!S$1&"|"&Assets!$B14,'Data Annex'!$K$1:$K$7000,0),MATCH(Assets!S$2,'Data Annex'!$K$1:$AU$1,0)),"") -> 0.5905739261 | T14: =IFERROR(INDEX('Data Annex'!$K$1:$AU$7000,MATCH(Assets!T$1&"|"&Assets!$B14,'Data Annex'!$K$1:$K$7000,0),MATCH(Assets!T$2,'Data Annex'!$K$1:$AU$1,0)),"") -> 0.5921305589 | U14: =IFERROR(INDEX('Data Annex'!$K$1:$AU$7000,MATCH(Assets!U$1&"|"&Assets!$B14,'Data Annex'!$K$1:$K$7000,0),MATCH(Assets!U$2,'Data Annex'!$K$1:$AU$1,0)),"") -> 0.04478212909 | V14: =IFERROR(INDEX('Data Annex'!$K$1:$AU$7000,MATCH(Assets!V$1&"|"&Assets!$B14,'Data Annex'!$K$1:$K$7000,0),MATCH(Assets!V$2,'Data Annex'!$K$1:$AU$1,0)),"") -> 0.03561978734 | W14: =IFERROR(INDEX('Data Annex'!$K$1:$AU$7000,MATCH(Assets!W$1&"|"&Assets!$B14,'Data Annex'!$K$1:$K$7000,0),MATCH(Assets!W$2,'Data Annex'!$K$1:$AU$1,0)),"") -> 0.03272515414 | X14: =IFERROR(INDEX('Data Annex'!$K$1:$AU$7000,MATCH(Assets!X$1&"|"&Assets!$B14,'Data Annex'!$K$1:$K$7000,0),MATCH(Assets!X$2,'Data Annex'!$K$1:$AU$1,0)),"") -> 0.03214597113 | Y14: =IFERROR(INDEX('Data Annex'!$K$1:$AU$7000,MATCH(Assets!Y$1&"|"&Assets!$B14,'Data Annex'!$K$1:$K$7000,0),MATCH(Assets!Y$2,'Data Annex'!$K$1:$AU$1,0)),"") -> 0.05844450746 | Z14: =IFERROR(INDEX('Data Annex'!$K$1:$AU$7000,MATCH(Assets!Z$1&"|"&Assets!$B14,'Data Annex'!$K$1:$K$7000,0),MATCH(Assets!Z$2,'Data Annex'!$K$1:$AU$1,0)),"") -> 0.05513996919 | AA14: =IFERROR(INDEX('Data Annex'!$K$1:$AU$7000,MATCH(Assets!AA$1&"|"&Assets!$B14,'Data Annex'!$K$1:$K$7000,0),MATCH(Assets!AA$2,'Data Annex'!$K$1:$AU$1,0)),"") -> 0.0360089966 | AB14: =IFERROR(INDEX('Data Annex'!$K$1:$AU$7000,MATCH(Assets!AB$1&"|"&Assets!$B14,'Data Annex'!$K$1:$K$7000,0),MATCH(Assets!AB$2,'Data Annex'!$K$1:$AU$1,0)),"") -> 0.04334936453 | AC14: =IFERROR(INDEX('Data Annex'!$K$1:$AH$6000,MATCH(Assets!AC$1&"|"&Assets!$B14,'Data Annex'!$K$1:$K$6000,0),MATCH(Assets!AC$2,'Data Annex'!$K$1:$AH$1,0)),"") -> 
B15: BG | D15: BG | E15: =IFERROR(INDEX('Data Annex'!$K$1:$AU$7000,MATCH(Assets!E$1&"|"&Assets!$B15,'Data Annex'!$K$1:$K$7000,0),MATCH(Assets!E$2,'Data Annex'!$K$1:$AU$1,0)),"") -> 0.2047075446 | F15: =IFERROR(INDEX('Data Annex'!$K$1:$AU$7000,MATCH(Assets!F$1&"|"&Assets!$B15,'Data Annex'!$K$1:$K$7000,0),MATCH(Assets!F$2,'Data Annex'!$K$1:$AU$1,0)),"") -> 0.176516006 | G15: =IFERROR(INDEX('Data Annex'!$K$1:$AU$7000,MATCH(Assets!G$1&"|"&Assets!$B15,'Data Annex'!$K$1:$K$7000,0),MATCH(Assets!G$2,'Data Annex'!$K$1:$AU$1,0)),"") -> 0.1593604143 | H15: =IFERROR(INDEX('Data Annex'!$K$1:$AU$7000,MATCH(Assets!H$1&"|"&Assets!$B15,'Data Annex'!$K$1:$K$7000,0),MATCH(Assets!H$2,'Data Annex'!$K$1:$AU$1,0)),"") -> 0.1659085855 | I15: =IFERROR(INDEX('Data Annex'!$K$1:$AU$7000,MATCH(Assets!I$1&"|"&Assets!$B15,'Data Annex'!$K$1:$K$7000,0),MATCH(Assets!I$2,'Data Annex'!$K$1:$AU$1,0)),"") -> 0.001390008073 | J15: =IFERROR(INDEX('Data Annex'!$K$1:$AU$7000,MATCH(Assets!J$1&"|"&Assets!$B15,'Data Annex'!$K$1:$K$7000,0),MATCH(Assets!J$2,'Data Annex'!$K$1:$AU$1,0)),"") -> 0.001381343548 | K15: =IFERROR(INDEX('Data Annex'!$K$1:$AU$7000,MATCH(Assets!K$1&"|"&Assets!$B15,'Data Annex'!$K$1:$K$7000,0),MATCH(Assets!K$2,'Data Annex'!$K$1:$AU$1,0)),"") -> 0.001406383475 | L15: =IFERROR(INDEX('Data Annex'!$K$1:$AU$7000,MATCH(Assets!L$1&"|"&Assets!$B15,'Data Annex'!$K$1:$K$7000,0),MATCH(Assets!L$2,'Data Annex'!$K$1:$AU$1,0)),"") -> 0.001373645277 | M15: =IFERROR(INDEX('Data Annex'!$K$1:$AU$7000,MATCH(Assets!M$1&"|"&Assets!$B15,'Data Annex'!$K$1:$K$7000,0),MATCH(Assets!M$2,'Data Annex'!$K$1:$AU$1,0)),"") -> 0.1517566938 | N15: =IFERROR(INDEX('Data Annex'!$K$1:$AU$7000,MATCH(Assets!N$1&"|"&Assets!$B15,'Data Annex'!$K$1:$K$7000,0),MATCH(Assets!N$2,'Data Annex'!$K$1:$AU$1,0)),"") -> 0.1597491215 | O15: =IFERROR(INDEX('Data Annex'!$K$1:$AU$7000,MATCH(Assets!O$1&"|"&Assets!$B15,'Data Annex'!$K$1:$K$7000,0),MATCH(Assets!O$2,'Data Annex'!$K$1:$AU$1,0)),"") -> 0.1610273443 | P15: =IFERROR(INDEX('Data Annex'!$K$1:$AU$7000,MATCH(Assets!P$1&"|"&Assets!$B15,'Data Annex'!$K$1:$K$7000,0),MATCH(Assets!P$2,'Data Annex'!$K$1:$AU$1,0)),"") -> 0.1583429673 | Q15: =IFERROR(INDEX('Data Annex'!$K$1:$AU$7000,MATCH(Assets!Q$1&"|"&Assets!$B15,'Data Annex'!$K$1:$K$7000,0),MATCH(Assets!Q$2,'Data Annex'!$K$1:$AU$1,0)),"") -> 0.5975292267 | R15: =IFERROR(INDEX('Data Annex'!$K$1:$AU$7000,MATCH(Assets!R$1&"|"&Assets!$B15,'Data Annex'!$K$1:$K$7000,0),MATCH(Assets!R$2,'Data Annex'!$K$1:$AU$1,0)),"") -> 0.6180913118 | S15: =IFERROR(INDEX('Data Annex'!$K$1:$AU$7000,MATCH(Assets!S$1&"|"&Assets!$B15,'Data Annex'!$K$1:$K$7000,0),MATCH(Assets!S$2,'Data Annex'!$K$1:$AU$1,0)),"") -> 0.6338695017 | T15: =IFERROR(INDEX('Data Annex'!$K$1:$AU$7000,MATCH(Assets!T$1&"|"&Assets!$B15,'Data Annex'!$K$1:$K$7000,0),MATCH(Assets!T$2,'Data Annex'!$K$1:$AU$1,0)),"") -> 0.6314941173 | U15: =IFERROR(INDEX('Data Annex'!$K$1:$AU$7000,MATCH(Assets!U$1&"|"&Assets!$B15,'Data Annex'!$K$1:$K$7000,0),MATCH(Assets!U$2,'Data Annex'!$K$1:$AU$1,0)),"") -> 0.002060683444 | V15: =IFERROR(INDEX('Data Annex'!$K$1:$AU$7000,MATCH(Assets!V$1&"|"&Assets!$B15,'Data Annex'!$K$1:$K$7000,0),MATCH(Assets!V$2,'Data Annex'!$K$1:$AU$1,0)),"") -> 0.002907616553 | W15: =IFERROR(INDEX('Data Annex'!$K$1:$AU$7000,MATCH(Assets!W$1&"|"&Assets!$B15,'Data Annex'!$K$1:$K$7000,0),MATCH(Assets!W$2,'Data Annex'!$K$1:$AU$1,0)),"") -> 0.002085376376 | X15: =IFERROR(INDEX('Data Annex'!$K$1:$AU$7000,MATCH(Assets!X$1&"|"&Assets!$B15,'Data Annex'!$K$1:$K$7000,0),MATCH(Assets!X$2,'Data Annex'!$K$1:$AU$1,0)),"") -> 0.001922170077 | Y15: =IFERROR(INDEX('Data Annex'!$K$1:$AU$7000,MATCH(Assets!Y$1&"|"&Assets!$B15,'Data Annex'!$K$1:$K$7000,0),MATCH(Assets!Y$2,'Data Annex'!$K$1:$AU$1,0)),"") -> 0.04255584337 | Z15: =IFERROR(INDEX('Data Annex'!$K$1:$AU$7000,MATCH(Assets!Z$1&"|"&Assets!$B15,'Data Annex'!$K$1:$K$7000,0),MATCH(Assets!Z$2,'Data Annex'!$K$1:$AU$1,0)),"") -> 0.0413546006 | AA15: =IFERROR(INDEX('Data Annex'!$K$1:$AU$7000,MATCH(Assets!AA$1&"|"&Assets!$B15,'Data Annex'!$K$1:$K$7000,0),MATCH(Assets!AA$2,'Data Annex'!$K$1:$AU$1,0)),"") -> 0.04225097978 | AB15: =IFERROR(INDEX('Data Annex'!$K$1:$AU$7000,MATCH(Assets!AB$1&"|"&Assets!$B15,'Data Annex'!$K$1:$K$7000,0),MATCH(Assets!AB$2,'Data Annex'!$K$1:$AU$1,0)),"") -> 0.0409585146 | AC15: =IFERROR(INDEX('Data Annex'!$K$1:$AH$6000,MATCH(Assets!AC$1&"|"&Assets!$B15,'Data Annex'!$K$1:$K$6000,0),MATCH(Assets!AC$2,'Data Annex'!$K$1:$AH$1,0)),"") -> 
B16: CY | D16: CY | E16: =IFERROR(INDEX('Data Annex'!$K$1:$AU$7000,MATCH(Assets!E$1&"|"&Assets!$B16,'Data Annex'!$K$1:$K$7000,0),MATCH(Assets!E$2,'Data Annex'!$K$1:$AU$1,0)),"") -> 0.2640720927 | F16: =IFERROR(INDEX('Data Annex'!$K$1:$AU$7000,MATCH(Assets!F$1&"|"&Assets!$B16,'Data Annex'!$K$1:$K$7000,0),MATCH(Assets!F$2,'Data Annex'!$K$1:$AU$1,0)),"") -> 0.2911333221 | G16: =IFERROR(INDEX('Data Annex'!$K$1:$AU$7000,MATCH(Assets!G$1&"|"&Assets!$B16,'Data Annex'!$K$1:$K$7000,0),MATCH(Assets!G$2,'Data Annex'!$K$1:$AU$1,0)),"") -> 0.366871694 | H16: =IFERROR(INDEX('Data Annex'!$K$1:$AU$7000,MATCH(Assets!H$1&"|"&Assets!$B16,'Data Annex'!$K$1:$K$7000,0),MATCH(Assets!H$2,'Data Annex'!$K$1:$AU$1,0)),"") -> 0.3685858214 | I16: =IFERROR(INDEX('Data Annex'!$K$1:$AU$7000,MATCH(Assets!I$1&"|"&Assets!$B16,'Data Annex'!$K$1:$K$7000,0),MATCH(Assets!I$2,'Data Annex'!$K$1:$AU$1,0)),"") -> 0.00108118864 | J16: =IFERROR(INDEX('Data Annex'!$K$1:$AU$7000,MATCH(Assets!J$1&"|"&Assets!$B16,'Data Annex'!$K$1:$K$7000,0),MATCH(Assets!J$2,'Data Annex'!$K$1:$AU$1,0)),"") -> 0.001212901066 | K16: =IFERROR(INDEX('Data Annex'!$K$1:$AU$7000,MATCH(Assets!K$1&"|"&Assets!$B16,'Data Annex'!$K$1:$K$7000,0),MATCH(Assets!K$2,'Data Annex'!$K$1:$AU$1,0)),"") -> 0.00114509237 | L16: =IFERROR(INDEX('Data Annex'!$K$1:$AU$7000,MATCH(Assets!L$1&"|"&Assets!$B16,'Data Annex'!$K$1:$K$7000,0),MATCH(Assets!L$2,'Data Annex'!$K$1:$AU$1,0)),"") -> 0.001128148775 | M16: =IFERROR(INDEX('Data Annex'!$K$1:$AU$7000,MATCH(Assets!M$1&"|"&Assets!$B16,'Data Annex'!$K$1:$K$7000,0),MATCH(Assets!M$2,'Data Annex'!$K$1:$AU$1,0)),"") -> 0.1848345807 | N16: =IFERROR(INDEX('Data Annex'!$K$1:$AU$7000,MATCH(Assets!N$1&"|"&Assets!$B16,'Data Annex'!$K$1:$K$7000,0),MATCH(Assets!N$2,'Data Annex'!$K$1:$AU$1,0)),"") -> 0.182059432 | O16: =IFERROR(INDEX('Data Annex'!$K$1:$AU$7000,MATCH(Assets!O$1&"|"&Assets!$B16,'Data Annex'!$K$1:$K$7000,0),MATCH(Assets!O$2,'Data Annex'!$K$1:$AU$1,0)),"") -> 0.1619734217 | P16: =IFERROR(INDEX('Data Annex'!$K$1:$AU$7000,MATCH(Assets!P$1&"|"&Assets!$B16,'Data Annex'!$K$1:$K$7000,0),MATCH(Assets!P$2,'Data Annex'!$K$1:$AU$1,0)),"") -> 0.1630599812 | Q16: =IFERROR(INDEX('Data Annex'!$K$1:$AU$7000,MATCH(Assets!Q$1&"|"&Assets!$B16,'Data Annex'!$K$1:$K$7000,0),MATCH(Assets!Q$2,'Data Annex'!$K$1:$AU$1,0)),"") -> 0.4529601059 | R16: =IFERROR(INDEX('Data Annex'!$K$1:$AU$7000,MATCH(Assets!R$1&"|"&Assets!$B16,'Data Annex'!$K$1:$K$7000,0),MATCH(Assets!R$2,'Data Annex'!$K$1:$AU$1,0)),"") -> 0.4344948564 | S16: =IFERROR(INDEX('Data Annex'!$K$1:$AU$7000,MATCH(Assets!S$1&"|"&Assets!$B16,'Data Annex'!$K$1:$K$7000,0),MATCH(Assets!S$2,'Data Annex'!$K$1:$AU$1,0)),"") -> 0.3937856908 | T16: =IFERROR(INDEX('Data Annex'!$K$1:$AU$7000,MATCH(Assets!T$1&"|"&Assets!$B16,'Data Annex'!$K$1:$K$7000,0),MATCH(Assets!T$2,'Data Annex'!$K$1:$AU$1,0)),"") -> 0.3877030089 | U16: =IFERROR(INDEX('Data Annex'!$K$1:$AU$7000,MATCH(Assets!U$1&"|"&Assets!$B16,'Data Annex'!$K$1:$K$7000,0),MATCH(Assets!U$2,'Data Annex'!$K$1:$AU$1,0)),"") -> 0.0006886014128 | V16: =IFERROR(INDEX('Data Annex'!$K$1:$AU$7000,MATCH(Assets!V$1&"|"&Assets!$B16,'Data Annex'!$K$1:$K$7000,0),MATCH(Assets!V$2,'Data Annex'!$K$1:$AU$1,0)),"") -> 0.0003871843669 | W16: =IFERROR(INDEX('Data Annex'!$K$1:$AU$7000,MATCH(Assets!W$1&"|"&Assets!$B16,'Data Annex'!$K$1:$K$7000,0),MATCH(Assets!W$2,'Data Annex'!$K$1:$AU$1,0)),"") -> 0.0002361941644 | X16: =IFERROR(INDEX('Data Annex'!$K$1:$AU$7000,MATCH(Assets!X$1&"|"&Assets!$B16,'Data Annex'!$K$1:$K$7000,0),MATCH(Assets!X$2,'Data Annex'!$K$1:$AU$1,0)),"") -> 0.0004482040142 | Y16: =IFERROR(INDEX('Data Annex'!$K$1:$AU$7000,MATCH(Assets!Y$1&"|"&Assets!$B16,'Data Annex'!$K$1:$K$7000,0),MATCH(Assets!Y$2,'Data Annex'!$K$1:$AU$1,0)),"") -> 0.09636343067 | Z16: =IFERROR(INDEX('Data Annex'!$K$1:$AU$7000,MATCH(Assets!Z$1&"|"&Assets!$B16,'Data Annex'!$K$1:$K$7000,0),MATCH(Assets!Z$2,'Data Annex'!$K$1:$AU$1,0)),"") -> 0.09071230402 | AA16: =IFERROR(INDEX('Data Annex'!$K$1:$AU$7000,MATCH(Assets!AA$1&"|"&Assets!$B16,'Data Annex'!$K$1:$K$7000,0),MATCH(Assets!AA$2,'Data Annex'!$K$1:$AU$1,0)),"") -> 0.07598790696 | AB16: =IFERROR(INDEX('Data Annex'!$K$1:$AU$7000,MATCH(Assets!AB$1&"|"&Assets!$B16,'Data Annex'!$K$1:$K$7000,0),MATCH(Assets!AB$2,'Data Annex'!$K$1:$AU$1,0)),"") -> 0.07907483578 | AC16: =IFERROR(INDEX('Data Annex'!$K$1:$AH$6000,MATCH(Assets!AC$1&"|"&Assets!$B16,'Data Annex'!$K$1:$K$6000,0),MATCH(Assets!AC$2,'Data Annex'!$K$1:$AH$1,0)),"") -> 
B17: CZ | D17: CZ | E17: =IFERROR(INDEX('Data Annex'!$K$1:$AU$7000,MATCH(Assets!E$1&"|"&Assets!$B17,'Data Annex'!$K$1:$K$7000,0),MATCH(Assets!E$2,'Data Annex'!$K$1:$AU$1,0)),"") -> 0.02206896936 | F17: =IFERROR(INDEX('Data Annex'!$K$1:$AU$7000,MATCH(Assets!F$1&"|"&Assets!$B17,'Data Annex'!$K$1:$K$7000,0),MATCH(Assets!F$2,'Data Annex'!$K$1:$AU$1,0)),"") -> 0.02378218908 | G17: =IFERROR(INDEX('Data Annex'!$K$1:$AU$7000,MATCH(Assets!G$1&"|"&Assets!$B17,'Data Annex'!$K$1:$K$7000,0),MATCH(Assets!G$2,'Data Annex'!$K$1:$AU$1,0)),"") -> 0.02196381111 | H17: =IFERROR(INDEX('Data Annex'!$K$1:$AU$7000,MATCH(Assets!H$1&"|"&Assets!$B17,'Data Annex'!$K$1:$K$7000,0),MATCH(Assets!H$2,'Data Annex'!$K$1:$AU$1,0)),"") -> 0.04207988008 | I17: =IFERROR(INDEX('Data Annex'!$K$1:$AU$7000,MATCH(Assets!I$1&"|"&Assets!$B17,'Data Annex'!$K$1:$K$7000,0),MATCH(Assets!I$2,'Data Annex'!$K$1:$AU$1,0)),"") -> 0.0006523252345 | J17: =IFERROR(INDEX('Data Annex'!$K$1:$AU$7000,MATCH(Assets!J$1&"|"&Assets!$B17,'Data Annex'!$K$1:$K$7000,0),MATCH(Assets!J$2,'Data Annex'!$K$1:$AU$1,0)),"") -> 0.0006296302411 | K17: =IFERROR(INDEX('Data Annex'!$K$1:$AU$7000,MATCH(Assets!K$1&"|"&Assets!$B17,'Data Annex'!$K$1:$K$7000,0),MATCH(Assets!K$2,'Data Annex'!$K$1:$AU$1,0)),"") -> 0.0004396817361 | L17: =IFERROR(INDEX('Data Annex'!$K$1:$AU$7000,MATCH(Assets!L$1&"|"&Assets!$B17,'Data Annex'!$K$1:$K$7000,0),MATCH(Assets!L$2,'Data Annex'!$K$1:$AU$1,0)),"") -> 0.0003590828403 | M17: =IFERROR(INDEX('Data Annex'!$K$1:$AU$7000,MATCH(Assets!M$1&"|"&Assets!$B17,'Data Annex'!$K$1:$K$7000,0),MATCH(Assets!M$2,'Data Annex'!$K$1:$AU$1,0)),"") -> 0.1446508339 | N17: =IFERROR(INDEX('Data Annex'!$K$1:$AU$7000,MATCH(Assets!N$1&"|"&Assets!$B17,'Data Annex'!$K$1:$K$7000,0),MATCH(Assets!N$2,'Data Annex'!$K$1:$AU$1,0)),"") -> 0.1443243548 | O17: =IFERROR(INDEX('Data Annex'!$K$1:$AU$7000,MATCH(Assets!O$1&"|"&Assets!$B17,'Data Annex'!$K$1:$K$7000,0),MATCH(Assets!O$2,'Data Annex'!$K$1:$AU$1,0)),"") -> 0.1535372126 | P17: =IFERROR(INDEX('Data Annex'!$K$1:$AU$7000,MATCH(Assets!P$1&"|"&Assets!$B17,'Data Annex'!$K$1:$K$7000,0),MATCH(Assets!P$2,'Data Annex'!$K$1:$AU$1,0)),"") -> 0.1461164193 | Q17: =IFERROR(INDEX('Data Annex'!$K$1:$AU$7000,MATCH(Assets!Q$1&"|"&Assets!$B17,'Data Annex'!$K$1:$K$7000,0),MATCH(Assets!Q$2,'Data Annex'!$K$1:$AU$1,0)),"") -> 0.7914045158 | R17: =IFERROR(INDEX('Data Annex'!$K$1:$AU$7000,MATCH(Assets!R$1&"|"&Assets!$B17,'Data Annex'!$K$1:$K$7000,0),MATCH(Assets!R$2,'Data Annex'!$K$1:$AU$1,0)),"") -> 0.7970819237 | S17: =IFERROR(INDEX('Data Annex'!$K$1:$AU$7000,MATCH(Assets!S$1&"|"&Assets!$B17,'Data Annex'!$K$1:$K$7000,0),MATCH(Assets!S$2,'Data Annex'!$K$1:$AU$1,0)),"") -> 0.7925218493 | T17: =IFERROR(INDEX('Data Annex'!$K$1:$AU$7000,MATCH(Assets!T$1&"|"&Assets!$B17,'Data Annex'!$K$1:$K$7000,0),MATCH(Assets!T$2,'Data Annex'!$K$1:$AU$1,0)),"") -> 0.7801344414 | U17: =IFERROR(INDEX('Data Annex'!$K$1:$AU$7000,MATCH(Assets!U$1&"|"&Assets!$B17,'Data Annex'!$K$1:$K$7000,0),MATCH(Assets!U$2,'Data Annex'!$K$1:$AU$1,0)),"") -> 0.02140821962 | V17: =IFERROR(INDEX('Data Annex'!$K$1:$AU$7000,MATCH(Assets!V$1&"|"&Assets!$B17,'Data Annex'!$K$1:$K$7000,0),MATCH(Assets!V$2,'Data Annex'!$K$1:$AU$1,0)),"") -> 0.01597501936 | W17: =IFERROR(INDEX('Data Annex'!$K$1:$AU$7000,MATCH(Assets!W$1&"|"&Assets!$B17,'Data Annex'!$K$1:$K$7000,0),MATCH(Assets!W$2,'Data Annex'!$K$1:$AU$1,0)),"") -> 0.01468440191 | X17: =IFERROR(INDEX('Data Annex'!$K$1:$AU$7000,MATCH(Assets!X$1&"|"&Assets!$B17,'Data Annex'!$K$1:$K$7000,0),MATCH(Assets!X$2,'Data Annex'!$K$1:$AU$1,0)),"") -> 0.01667204989 | Y17: =IFERROR(INDEX('Data Annex'!$K$1:$AU$7000,MATCH(Assets!Y$1&"|"&Assets!$B17,'Data Annex'!$K$1:$K$7000,0),MATCH(Assets!Y$2,'Data Annex'!$K$1:$AU$1,0)),"") -> 0.01981513614 | Z17: =IFERROR(INDEX('Data Annex'!$K$1:$AU$7000,MATCH(Assets!Z$1&"|"&Assets!$B17,'Data Annex'!$K$1:$K$7000,0),MATCH(Assets!Z$2,'Data Annex'!$K$1:$AU$1,0)),"") -> 0.01820688283 | AA17: =IFERROR(INDEX('Data Annex'!$K$1:$AU$7000,MATCH(Assets!AA$1&"|"&Assets!$B17,'Data Annex'!$K$1:$K$7000,0),MATCH(Assets!AA$2,'Data Annex'!$K$1:$AU$1,0)),"") -> 0.0168530434 | AB17: =IFERROR(INDEX('Data Annex'!$K$1:$AU$7000,MATCH(Assets!AB$1&"|"&Assets!$B17,'Data Annex'!$K$1:$K$7000,0),MATCH(Assets!AB$2,'Data Annex'!$K$1:$AU$1,0)),"") -> 0.01463812653 | AC17: =IFERROR(INDEX('Data Annex'!$K$1:$AH$6000,MATCH(Assets!AC$1&"|"&Assets!$B17,'Data Annex'!$K$1:$K$6000,0),MATCH(Assets!AC$2,'Data Annex'!$K$1:$AH$1,0)),"") -> 
B18: DE | D18: DE | E18: =IFERROR(INDEX('Data Annex'!$K$1:$AU$7000,MATCH(Assets!E$1&"|"&Assets!$B18,'Data Annex'!$K$1:$K$7000,0),MATCH(Assets!E$2,'Data Annex'!$K$1:$AU$1,0)),"") -> 0.1379373533 | F18: =IFERROR(INDEX('Data Annex'!$K$1:$AU$7000,MATCH(Assets!F$1&"|"&Assets!$B18,'Data Annex'!$K$1:$K$7000,0),MATCH(Assets!F$2,'Data Annex'!$K$1:$AU$1,0)),"") -> 0.1718696934 | G18: =IFERROR(INDEX('Data Annex'!$K$1:$AU$7000,MATCH(Assets!G$1&"|"&Assets!$B18,'Data Annex'!$K$1:$K$7000,0),MATCH(Assets!G$2,'Data Annex'!$K$1:$AU$1,0)),"") -> 0.1838742257 | H18: =IFERROR(INDEX('Data Annex'!$K$1:$AU$7000,MATCH(Assets!H$1&"|"&Assets!$B18,'Data Annex'!$K$1:$K$7000,0),MATCH(Assets!H$2,'Data Annex'!$K$1:$AU$1,0)),"") -> 0.1864622571 | I18: =IFERROR(INDEX('Data Annex'!$K$1:$AU$7000,MATCH(Assets!I$1&"|"&Assets!$B18,'Data Annex'!$K$1:$K$7000,0),MATCH(Assets!I$2,'Data Annex'!$K$1:$AU$1,0)),"") -> 0.007590390833 | J18: =IFERROR(INDEX('Data Annex'!$K$1:$AU$7000,MATCH(Assets!J$1&"|"&Assets!$B18,'Data Annex'!$K$1:$K$7000,0),MATCH(Assets!J$2,'Data Annex'!$K$1:$AU$1,0)),"") -> 0.008280143332 | K18: =IFERROR(INDEX('Data Annex'!$K$1:$AU$7000,MATCH(Assets!K$1&"|"&Assets!$B18,'Data Annex'!$K$1:$K$7000,0),MATCH(Assets!K$2,'Data Annex'!$K$1:$AU$1,0)),"") -> 0.008743830294 | L18: =IFERROR(INDEX('Data Annex'!$K$1:$AU$7000,MATCH(Assets!L$1&"|"&Assets!$B18,'Data Annex'!$K$1:$K$7000,0),MATCH(Assets!L$2,'Data Annex'!$K$1:$AU$1,0)),"") -> 0.008243707153 | M18: =IFERROR(INDEX('Data Annex'!$K$1:$AU$7000,MATCH(Assets!M$1&"|"&Assets!$B18,'Data Annex'!$K$1:$K$7000,0),MATCH(Assets!M$2,'Data Annex'!$K$1:$AU$1,0)),"") -> 0.1380723139 | N18: =IFERROR(INDEX('Data Annex'!$K$1:$AU$7000,MATCH(Assets!N$1&"|"&Assets!$B18,'Data Annex'!$K$1:$K$7000,0),MATCH(Assets!N$2,'Data Annex'!$K$1:$AU$1,0)),"") -> 0.1291531433 | O18: =IFERROR(INDEX('Data Annex'!$K$1:$AU$7000,MATCH(Assets!O$1&"|"&Assets!$B18,'Data Annex'!$K$1:$K$7000,0),MATCH(Assets!O$2,'Data Annex'!$K$1:$AU$1,0)),"") -> 0.125812745 | P18: =IFERROR(INDEX('Data Annex'!$K$1:$AU$7000,MATCH(Assets!P$1&"|"&Assets!$B18,'Data Annex'!$K$1:$K$7000,0),MATCH(Assets!P$2,'Data Annex'!$K$1:$AU$1,0)),"") -> 0.124385108 | Q18: =IFERROR(INDEX('Data Annex'!$K$1:$AU$7000,MATCH(Assets!Q$1&"|"&Assets!$B18,'Data Annex'!$K$1:$K$7000,0),MATCH(Assets!Q$2,'Data Annex'!$K$1:$AU$1,0)),"") -> 0.5539725329 | R18: =IFERROR(INDEX('Data Annex'!$K$1:$AU$7000,MATCH(Assets!R$1&"|"&Assets!$B18,'Data Annex'!$K$1:$K$7000,0),MATCH(Assets!R$2,'Data Annex'!$K$1:$AU$1,0)),"") -> 0.5533771995 | S18: =IFERROR(INDEX('Data Annex'!$K$1:$AU$7000,MATCH(Assets!S$1&"|"&Assets!$B18,'Data Annex'!$K$1:$K$7000,0),MATCH(Assets!S$2,'Data Annex'!$K$1:$AU$1,0)),"") -> 0.5514409879 | T18: =IFERROR(INDEX('Data Annex'!$K$1:$AU$7000,MATCH(Assets!T$1&"|"&Assets!$B18,'Data Annex'!$K$1:$K$7000,0),MATCH(Assets!T$2,'Data Annex'!$K$1:$AU$1,0)),"") -> 0.5522631161 | U18: =IFERROR(INDEX('Data Annex'!$K$1:$AU$7000,MATCH(Assets!U$1&"|"&Assets!$B18,'Data Annex'!$K$1:$K$7000,0),MATCH(Assets!U$2,'Data Annex'!$K$1:$AU$1,0)),"") -> 0.1357797099 | V18: =IFERROR(INDEX('Data Annex'!$K$1:$AU$7000,MATCH(Assets!V$1&"|"&Assets!$B18,'Data Annex'!$K$1:$K$7000,0),MATCH(Assets!V$2,'Data Annex'!$K$1:$AU$1,0)),"") -> 0.1116763175 | W18: =IFERROR(INDEX('Data Annex'!$K$1:$AU$7000,MATCH(Assets!W$1&"|"&Assets!$B18,'Data Annex'!$K$1:$K$7000,0),MATCH(Assets!W$2,'Data Annex'!$K$1:$AU$1,0)),"") -> 0.104317943 | X18: =IFERROR(INDEX('Data Annex'!$K$1:$AU$7000,MATCH(Assets!X$1&"|"&Assets!$B18,'Data Annex'!$K$1:$K$7000,0),MATCH(Assets!X$2,'Data Annex'!$K$1:$AU$1,0)),"") -> 0.1033503365 | Y18: =IFERROR(INDEX('Data Annex'!$K$1:$AU$7000,MATCH(Assets!Y$1&"|"&Assets!$B18,'Data Annex'!$K$1:$K$7000,0),MATCH(Assets!Y$2,'Data Annex'!$K$1:$AU$1,0)),"") -> 0.02664769888 | Z18: =IFERROR(INDEX('Data Annex'!$K$1:$AU$7000,MATCH(Assets!Z$1&"|"&Assets!$B18,'Data Annex'!$K$1:$K$7000,0),MATCH(Assets!Z$2,'Data Annex'!$K$1:$AU$1,0)),"") -> 0.02564350294 | AA18: =IFERROR(INDEX('Data Annex'!$K$1:$AU$7000,MATCH(Assets!AA$1&"|"&Assets!$B18,'Data Annex'!$K$1:$K$7000,0),MATCH(Assets!AA$2,'Data Annex'!$K$1:$AU$1,0)),"") -> 0.0258102681 | AB18: =IFERROR(INDEX('Data Annex'!$K$1:$AU$7000,MATCH(Assets!AB$1&"|"&Assets!$B18,'Data Annex'!$K$1:$K$7000,0),MATCH(Assets!AB$2,'Data Annex'!$K$1:$AU$1,0)),"") -> 0.02529547515 | AC18: =IFERROR(INDEX('Data Annex'!$K$1:$AH$6000,MATCH(Assets!AC$1&"|"&Assets!$B18,'Data Annex'!$K$1:$K$6000,0),MATCH(Assets!AC$2,'Data Annex'!$K$1:$AH$1,0)),"") -> 
B19: DK | D19: DK | E19: =IFERROR(INDEX('Data Annex'!$K$1:$AU$7000,MATCH(Assets!E$1&"|"&Assets!$B19,'Data Annex'!$K$1:$K$7000,0),MATCH(Assets!E$2,'Data Annex'!$K$1:$AU$1,0)),"") -> 0.07076507191 | F19: =IFERROR(INDEX('Data Annex'!$K$1:$AU$7000,MATCH(Assets!F$1&"|"&Assets!$B19,'Data Annex'!$K$1:$K$7000,0),MATCH(Assets!F$2,'Data Annex'!$K$1:$AU$1,0)),"") -> 0.07015259811 | G19: =IFERROR(INDEX('Data Annex'!$K$1:$AU$7000,MATCH(Assets!G$1&"|"&Assets!$B19,'Data Annex'!$K$1:$K$7000,0),MATCH(Assets!G$2,'Data Annex'!$K$1:$AU$1,0)),"") -> 0.07238507618 | H19: =IFERROR(INDEX('Data Annex'!$K$1:$AU$7000,MATCH(Assets!H$1&"|"&Assets!$B19,'Data Annex'!$K$1:$K$7000,0),MATCH(Assets!H$2,'Data Annex'!$K$1:$AU$1,0)),"") -> 0.06531799097 | I19: =IFERROR(INDEX('Data Annex'!$K$1:$AU$7000,MATCH(Assets!I$1&"|"&Assets!$B19,'Data Annex'!$K$1:$K$7000,0),MATCH(Assets!I$2,'Data Annex'!$K$1:$AU$1,0)),"") -> 0.006139951872 | J19: =IFERROR(INDEX('Data Annex'!$K$1:$AU$7000,MATCH(Assets!J$1&"|"&Assets!$B19,'Data Annex'!$K$1:$K$7000,0),MATCH(Assets!J$2,'Data Annex'!$K$1:$AU$1,0)),"") -> 0.006693228257 | K19: =IFERROR(INDEX('Data Annex'!$K$1:$AU$7000,MATCH(Assets!K$1&"|"&Assets!$B19,'Data Annex'!$K$1:$K$7000,0),MATCH(Assets!K$2,'Data Annex'!$K$1:$AU$1,0)),"") -> 0.00735508992 | L19: =IFERROR(INDEX('Data Annex'!$K$1:$AU$7000,MATCH(Assets!L$1&"|"&Assets!$B19,'Data Annex'!$K$1:$K$7000,0),MATCH(Assets!L$2,'Data Annex'!$K$1:$AU$1,0)),"") -> 0.007843437441 | M19: =IFERROR(INDEX('Data Annex'!$K$1:$AU$7000,MATCH(Assets!M$1&"|"&Assets!$B19,'Data Annex'!$K$1:$K$7000,0),MATCH(Assets!M$2,'Data Annex'!$K$1:$AU$1,0)),"") -> 0.1345382641 | N19: =IFERROR(INDEX('Data Annex'!$K$1:$AU$7000,MATCH(Assets!N$1&"|"&Assets!$B19,'Data Annex'!$K$1:$K$7000,0),MATCH(Assets!N$2,'Data Annex'!$K$1:$AU$1,0)),"") -> 0.1417907207 | O19: =IFERROR(INDEX('Data Annex'!$K$1:$AU$7000,MATCH(Assets!O$1&"|"&Assets!$B19,'Data Annex'!$K$1:$K$7000,0),MATCH(Assets!O$2,'Data Annex'!$K$1:$AU$1,0)),"") -> 0.1413479508 | P19: =IFERROR(INDEX('Data Annex'!$K$1:$AU$7000,MATCH(Assets!P$1&"|"&Assets!$B19,'Data Annex'!$K$1:$K$7000,0),MATCH(Assets!P$2,'Data Annex'!$K$1:$AU$1,0)),"") -> 0.1388923189 | Q19: =IFERROR(INDEX('Data Annex'!$K$1:$AU$7000,MATCH(Assets!Q$1&"|"&Assets!$B19,'Data Annex'!$K$1:$K$7000,0),MATCH(Assets!Q$2,'Data Annex'!$K$1:$AU$1,0)),"") -> 0.6901385892 | R19: =IFERROR(INDEX('Data Annex'!$K$1:$AU$7000,MATCH(Assets!R$1&"|"&Assets!$B19,'Data Annex'!$K$1:$K$7000,0),MATCH(Assets!R$2,'Data Annex'!$K$1:$AU$1,0)),"") -> 0.6945602134 | S19: =IFERROR(INDEX('Data Annex'!$K$1:$AU$7000,MATCH(Assets!S$1&"|"&Assets!$B19,'Data Annex'!$K$1:$K$7000,0),MATCH(Assets!S$2,'Data Annex'!$K$1:$AU$1,0)),"") -> 0.6992059145 | T19: =IFERROR(INDEX('Data Annex'!$K$1:$AU$7000,MATCH(Assets!T$1&"|"&Assets!$B19,'Data Annex'!$K$1:$K$7000,0),MATCH(Assets!T$2,'Data Annex'!$K$1:$AU$1,0)),"") -> 0.7058565876 | U19: =IFERROR(INDEX('Data Annex'!$K$1:$AU$7000,MATCH(Assets!U$1&"|"&Assets!$B19,'Data Annex'!$K$1:$K$7000,0),MATCH(Assets!U$2,'Data Annex'!$K$1:$AU$1,0)),"") -> 0.07482435007 | V19: =IFERROR(INDEX('Data Annex'!$K$1:$AU$7000,MATCH(Assets!V$1&"|"&Assets!$B19,'Data Annex'!$K$1:$K$7000,0),MATCH(Assets!V$2,'Data Annex'!$K$1:$AU$1,0)),"") -> 0.06269513987 | W19: =IFERROR(INDEX('Data Annex'!$K$1:$AU$7000,MATCH(Assets!W$1&"|"&Assets!$B19,'Data Annex'!$K$1:$K$7000,0),MATCH(Assets!W$2,'Data Annex'!$K$1:$AU$1,0)),"") -> 0.05538698035 | X19: =IFERROR(INDEX('Data Annex'!$K$1:$AU$7000,MATCH(Assets!X$1&"|"&Assets!$B19,'Data Annex'!$K$1:$K$7000,0),MATCH(Assets!X$2,'Data Annex'!$K$1:$AU$1,0)),"") -> 0.05699953175 | Y19: =IFERROR(INDEX('Data Annex'!$K$1:$AU$7000,MATCH(Assets!Y$1&"|"&Assets!$B19,'Data Annex'!$K$1:$K$7000,0),MATCH(Assets!Y$2,'Data Annex'!$K$1:$AU$1,0)),"") -> 0.02359377286 | Z19: =IFERROR(INDEX('Data Annex'!$K$1:$AU$7000,MATCH(Assets!Z$1&"|"&Assets!$B19,'Data Annex'!$K$1:$K$7000,0),MATCH(Assets!Z$2,'Data Annex'!$K$1:$AU$1,0)),"") -> 0.0241080996 | AA19: =IFERROR(INDEX('Data Annex'!$K$1:$AU$7000,MATCH(Assets!AA$1&"|"&Assets!$B19,'Data Annex'!$K$1:$K$7000,0),MATCH(Assets!AA$2,'Data Annex'!$K$1:$AU$1,0)),"") -> 0.02431898829 | AB19: =IFERROR(INDEX('Data Annex'!$K$1:$AU$7000,MATCH(Assets!AB$1&"|"&Assets!$B19,'Data Annex'!$K$1:$K$7000,0),MATCH(Assets!AB$2,'Data Annex'!$K$1:$AU$1,0)),"") -> 0.02509013329 | AC19: =IFERROR(INDEX('Data Annex'!$K$1:$AH$6000,MATCH(Assets!AC$1&"|"&Assets!$B19,'Data Annex'!$K$1:$K$6000,0),MATCH(Assets!AC$2,'Data Annex'!$K$1:$AH$1,0)),"") -> 
B20: EE | D20: EE | E20: =IFERROR(INDEX('Data Annex'!$K$1:$AU$7000,MATCH(Assets!E$1&"|"&Assets!$B20,'Data Annex'!$K$1:$K$7000,0),MATCH(Assets!E$2,'Data Annex'!$K$1:$AU$1,0)),"") -> 0.2812879921 | F20: =IFERROR(INDEX('Data Annex'!$K$1:$AU$7000,MATCH(Assets!F$1&"|"&Assets!$B20,'Data Annex'!$K$1:$K$7000,0),MATCH(Assets!F$2,'Data Annex'!$K$1:$AU$1,0)),"") -> 0.2590042973 | G20: =IFERROR(INDEX('Data Annex'!$K$1:$AU$7000,MATCH(Assets!G$1&"|"&Assets!$B20,'Data Annex'!$K$1:$K$7000,0),MATCH(Assets!G$2,'Data Annex'!$K$1:$AU$1,0)),"") -> 0.2268602884 | H20: =IFERROR(INDEX('Data Annex'!$K$1:$AU$7000,MATCH(Assets!H$1&"|"&Assets!$B20,'Data Annex'!$K$1:$K$7000,0),MATCH(Assets!H$2,'Data Annex'!$K$1:$AU$1,0)),"") -> 0.2356055477 | I20: =IFERROR(INDEX('Data Annex'!$K$1:$AU$7000,MATCH(Assets!I$1&"|"&Assets!$B20,'Data Annex'!$K$1:$K$7000,0),MATCH(Assets!I$2,'Data Annex'!$K$1:$AU$1,0)),"") -> 0.0003537126681 | J20: =IFERROR(INDEX('Data Annex'!$K$1:$AU$7000,MATCH(Assets!J$1&"|"&Assets!$B20,'Data Annex'!$K$1:$K$7000,0),MATCH(Assets!J$2,'Data Annex'!$K$1:$AU$1,0)),"") -> 0.0004128950188 | K20: =IFERROR(INDEX('Data Annex'!$K$1:$AU$7000,MATCH(Assets!K$1&"|"&Assets!$B20,'Data Annex'!$K$1:$K$7000,0),MATCH(Assets!K$2,'Data Annex'!$K$1:$AU$1,0)),"") -> 0.0004474908808 | L20: =IFERROR(INDEX('Data Annex'!$K$1:$AU$7000,MATCH(Assets!L$1&"|"&Assets!$B20,'Data Annex'!$K$1:$K$7000,0),MATCH(Assets!L$2,'Data Annex'!$K$1:$AU$1,0)),"") -> 0.0002738553919 | M20: =IFERROR(INDEX('Data Annex'!$K$1:$AU$7000,MATCH(Assets!M$1&"|"&Assets!$B20,'Data Annex'!$K$1:$K$7000,0),MATCH(Assets!M$2,'Data Annex'!$K$1:$AU$1,0)),"") -> 0.0699538309 | N20: =IFERROR(INDEX('Data Annex'!$K$1:$AU$7000,MATCH(Assets!N$1&"|"&Assets!$B20,'Data Annex'!$K$1:$K$7000,0),MATCH(Assets!N$2,'Data Annex'!$K$1:$AU$1,0)),"") -> 0.0761885394 | O20: =IFERROR(INDEX('Data Annex'!$K$1:$AU$7000,MATCH(Assets!O$1&"|"&Assets!$B20,'Data Annex'!$K$1:$K$7000,0),MATCH(Assets!O$2,'Data Annex'!$K$1:$AU$1,0)),"") -> 0.07803305772 | P20: =IFERROR(INDEX('Data Annex'!$K$1:$AU$7000,MATCH(Assets!P$1&"|"&Assets!$B20,'Data Annex'!$K$1:$K$7000,0),MATCH(Assets!P$2,'Data Annex'!$K$1:$AU$1,0)),"") -> 0.07844534813 | Q20: =IFERROR(INDEX('Data Annex'!$K$1:$AU$7000,MATCH(Assets!Q$1&"|"&Assets!$B20,'Data Annex'!$K$1:$K$7000,0),MATCH(Assets!Q$2,'Data Annex'!$K$1:$AU$1,0)),"") -> 0.6351108931 | R20: =IFERROR(INDEX('Data Annex'!$K$1:$AU$7000,MATCH(Assets!R$1&"|"&Assets!$B20,'Data Annex'!$K$1:$K$7000,0),MATCH(Assets!R$2,'Data Annex'!$K$1:$AU$1,0)),"") -> 0.6539179899 | S20: =IFERROR(INDEX('Data Annex'!$K$1:$AU$7000,MATCH(Assets!S$1&"|"&Assets!$B20,'Data Annex'!$K$1:$K$7000,0),MATCH(Assets!S$2,'Data Annex'!$K$1:$AU$1,0)),"") -> 0.6835564636 | T20: =IFERROR(INDEX('Data Annex'!$K$1:$AU$7000,MATCH(Assets!T$1&"|"&Assets!$B20,'Data Annex'!$K$1:$K$7000,0),MATCH(Assets!T$2,'Data Annex'!$K$1:$AU$1,0)),"") -> 0.6748880078 | U20: =IFERROR(INDEX('Data Annex'!$K$1:$AU$7000,MATCH(Assets!U$1&"|"&Assets!$B20,'Data Annex'!$K$1:$K$7000,0),MATCH(Assets!U$2,'Data Annex'!$K$1:$AU$1,0)),"") -> 0.001484057067 | V20: =IFERROR(INDEX('Data Annex'!$K$1:$AU$7000,MATCH(Assets!V$1&"|"&Assets!$B20,'Data Annex'!$K$1:$K$7000,0),MATCH(Assets!V$2,'Data Annex'!$K$1:$AU$1,0)),"") -> 0.001971874904 | W20: =IFERROR(INDEX('Data Annex'!$K$1:$AU$7000,MATCH(Assets!W$1&"|"&Assets!$B20,'Data Annex'!$K$1:$K$7000,0),MATCH(Assets!W$2,'Data Annex'!$K$1:$AU$1,0)),"") -> 0.001824106595 | X20: =IFERROR(INDEX('Data Annex'!$K$1:$AU$7000,MATCH(Assets!X$1&"|"&Assets!$B20,'Data Annex'!$K$1:$K$7000,0),MATCH(Assets!X$2,'Data Annex'!$K$1:$AU$1,0)),"") -> 0.002766009441 | Y20: =IFERROR(INDEX('Data Annex'!$K$1:$AU$7000,MATCH(Assets!Y$1&"|"&Assets!$B20,'Data Annex'!$K$1:$K$7000,0),MATCH(Assets!Y$2,'Data Annex'!$K$1:$AU$1,0)),"") -> 0.01180951415 | Z20: =IFERROR(INDEX('Data Annex'!$K$1:$AU$7000,MATCH(Assets!Z$1&"|"&Assets!$B20,'Data Annex'!$K$1:$K$7000,0),MATCH(Assets!Z$2,'Data Annex'!$K$1:$AU$1,0)),"") -> 0.008504403488 | AA20: =IFERROR(INDEX('Data Annex'!$K$1:$AU$7000,MATCH(Assets!AA$1&"|"&Assets!$B20,'Data Annex'!$K$1:$K$7000,0),MATCH(Assets!AA$2,'Data Annex'!$K$1:$AU$1,0)),"") -> 0.009278592822 | AB20: =IFERROR(INDEX('Data Annex'!$K$1:$AU$7000,MATCH(Assets!AB$1&"|"&Assets!$B20,'Data Annex'!$K$1:$K$7000,0),MATCH(Assets!AB$2,'Data Annex'!$K$1:$AU$1,0)),"") -> 0.008021231505 | AC20: =IFERROR(INDEX('Data Annex'!$K$1:$AH$6000,MATCH(Assets!AC$1&"|"&Assets!$B20,'Data Annex'!$K$1:$K$6000,0),MATCH(Assets!AC$2,'Data Annex'!$K$1:$AH$1,0)),"") -> 
B21: ES | D21: ES | E21: =IFERROR(INDEX('Data Annex'!$K$1:$AU$7000,MATCH(Assets!E$1&"|"&Assets!$B21,'Data Annex'!$K$1:$K$7000,0),MATCH(Assets!E$2,'Data Annex'!$K$1:$AU$1,0)),"") -> 0.1020603686 | F21: =IFERROR(INDEX('Data Annex'!$K$1:$AU$7000,MATCH(Assets!F$1&"|"&Assets!$B21,'Data Annex'!$K$1:$K$7000,0),MATCH(Assets!F$2,'Data Annex'!$K$1:$AU$1,0)),"") -> 0.1187764128 | G21: =IFERROR(INDEX('Data Annex'!$K$1:$AU$7000,MATCH(Assets!G$1&"|"&Assets!$B21,'Data Annex'!$K$1:$K$7000,0),MATCH(Assets!G$2,'Data Annex'!$K$1:$AU$1,0)),"") -> 0.1247031695 | H21: =IFERROR(INDEX('Data Annex'!$K$1:$AU$7000,MATCH(Assets!H$1&"|"&Assets!$B21,'Data Annex'!$K$1:$K$7000,0),MATCH(Assets!H$2,'Data Annex'!$K$1:$AU$1,0)),"") -> 0.1364071406 | I21: =IFERROR(INDEX('Data Annex'!$K$1:$AU$7000,MATCH(Assets!I$1&"|"&Assets!$B21,'Data Annex'!$K$1:$K$7000,0),MATCH(Assets!I$2,'Data Annex'!$K$1:$AU$1,0)),"") -> 0.009266908298 | J21: =IFERROR(INDEX('Data Annex'!$K$1:$AU$7000,MATCH(Assets!J$1&"|"&Assets!$B21,'Data Annex'!$K$1:$K$7000,0),MATCH(Assets!J$2,'Data Annex'!$K$1:$AU$1,0)),"") -> 0.009854511404 | K21: =IFERROR(INDEX('Data Annex'!$K$1:$AU$7000,MATCH(Assets!K$1&"|"&Assets!$B21,'Data Annex'!$K$1:$K$7000,0),MATCH(Assets!K$2,'Data Annex'!$K$1:$AU$1,0)),"") -> 0.01145597784 | L21: =IFERROR(INDEX('Data Annex'!$K$1:$AU$7000,MATCH(Assets!L$1&"|"&Assets!$B21,'Data Annex'!$K$1:$K$7000,0),MATCH(Assets!L$2,'Data Annex'!$K$1:$AU$1,0)),"") -> 0.01163364955 | M21: =IFERROR(INDEX('Data Annex'!$K$1:$AU$7000,MATCH(Assets!M$1&"|"&Assets!$B21,'Data Annex'!$K$1:$K$7000,0),MATCH(Assets!M$2,'Data Annex'!$K$1:$AU$1,0)),"") -> 0.1213331267 | N21: =IFERROR(INDEX('Data Annex'!$K$1:$AU$7000,MATCH(Assets!N$1&"|"&Assets!$B21,'Data Annex'!$K$1:$K$7000,0),MATCH(Assets!N$2,'Data Annex'!$K$1:$AU$1,0)),"") -> 0.1313252426 | O21: =IFERROR(INDEX('Data Annex'!$K$1:$AU$7000,MATCH(Assets!O$1&"|"&Assets!$B21,'Data Annex'!$K$1:$K$7000,0),MATCH(Assets!O$2,'Data Annex'!$K$1:$AU$1,0)),"") -> 0.1313132369 | P21: =IFERROR(INDEX('Data Annex'!$K$1:$AU$7000,MATCH(Assets!P$1&"|"&Assets!$B21,'Data Annex'!$K$1:$K$7000,0),MATCH(Assets!P$2,'Data Annex'!$K$1:$AU$1,0)),"") -> 0.1247770596 | Q21: =IFERROR(INDEX('Data Annex'!$K$1:$AU$7000,MATCH(Assets!Q$1&"|"&Assets!$B21,'Data Annex'!$K$1:$K$7000,0),MATCH(Assets!Q$2,'Data Annex'!$K$1:$AU$1,0)),"") -> 0.5839975982 | R21: =IFERROR(INDEX('Data Annex'!$K$1:$AU$7000,MATCH(Assets!R$1&"|"&Assets!$B21,'Data Annex'!$K$1:$K$7000,0),MATCH(Assets!R$2,'Data Annex'!$K$1:$AU$1,0)),"") -> 0.6175335655 | S21: =IFERROR(INDEX('Data Annex'!$K$1:$AU$7000,MATCH(Assets!S$1&"|"&Assets!$B21,'Data Annex'!$K$1:$K$7000,0),MATCH(Assets!S$2,'Data Annex'!$K$1:$AU$1,0)),"") -> 0.6352173024 | T21: =IFERROR(INDEX('Data Annex'!$K$1:$AU$7000,MATCH(Assets!T$1&"|"&Assets!$B21,'Data Annex'!$K$1:$K$7000,0),MATCH(Assets!T$2,'Data Annex'!$K$1:$AU$1,0)),"") -> 0.6301345091 | U21: =IFERROR(INDEX('Data Annex'!$K$1:$AU$7000,MATCH(Assets!U$1&"|"&Assets!$B21,'Data Annex'!$K$1:$K$7000,0),MATCH(Assets!U$2,'Data Annex'!$K$1:$AU$1,0)),"") -> 0.03951999664 | V21: =IFERROR(INDEX('Data Annex'!$K$1:$AU$7000,MATCH(Assets!V$1&"|"&Assets!$B21,'Data Annex'!$K$1:$K$7000,0),MATCH(Assets!V$2,'Data Annex'!$K$1:$AU$1,0)),"") -> 0.03497955927 | W21: =IFERROR(INDEX('Data Annex'!$K$1:$AU$7000,MATCH(Assets!W$1&"|"&Assets!$B21,'Data Annex'!$K$1:$K$7000,0),MATCH(Assets!W$2,'Data Annex'!$K$1:$AU$1,0)),"") -> 0.03292281718 | X21: =IFERROR(INDEX('Data Annex'!$K$1:$AU$7000,MATCH(Assets!X$1&"|"&Assets!$B21,'Data Annex'!$K$1:$K$7000,0),MATCH(Assets!X$2,'Data Annex'!$K$1:$AU$1,0)),"") -> 0.03386406486 | Y21: =IFERROR(INDEX('Data Annex'!$K$1:$AU$7000,MATCH(Assets!Y$1&"|"&Assets!$B21,'Data Annex'!$K$1:$K$7000,0),MATCH(Assets!Y$2,'Data Annex'!$K$1:$AU$1,0)),"") -> 0.1438220012 | Z21: =IFERROR(INDEX('Data Annex'!$K$1:$AU$7000,MATCH(Assets!Z$1&"|"&Assets!$B21,'Data Annex'!$K$1:$K$7000,0),MATCH(Assets!Z$2,'Data Annex'!$K$1:$AU$1,0)),"") -> 0.08753070833 | AA21: =IFERROR(INDEX('Data Annex'!$K$1:$AU$7000,MATCH(Assets!AA$1&"|"&Assets!$B21,'Data Annex'!$K$1:$K$7000,0),MATCH(Assets!AA$2,'Data Annex'!$K$1:$AU$1,0)),"") -> 0.06438749624 | AB21: =IFERROR(INDEX('Data Annex'!$K$1:$AU$7000,MATCH(Assets!AB$1&"|"&Assets!$B21,'Data Annex'!$K$1:$K$7000,0),MATCH(Assets!AB$2,'Data Annex'!$K$1:$AU$1,0)),"") -> 0.06318357594 | AC21: =IFERROR(INDEX('Data Annex'!$K$1:$AH$6000,MATCH(Assets!AC$1&"|"&Assets!$B21,'Data Annex'!$K$1:$K$6000,0),MATCH(Assets!AC$2,'Data Annex'!$K$1:$AH$1,0)),"") -> 
B22: FI | D22: FI | E22: =IFERROR(INDEX('Data Annex'!$K$1:$AU$7000,MATCH(Assets!E$1&"|"&Assets!$B22,'Data Annex'!$K$1:$K$7000,0),MATCH(Assets!E$2,'Data Annex'!$K$1:$AU$1,0)),"") -> 0.09312341666 | F22: =IFERROR(INDEX('Data Annex'!$K$1:$AU$7000,MATCH(Assets!F$1&"|"&Assets!$B22,'Data Annex'!$K$1:$K$7000,0),MATCH(Assets!F$2,'Data Annex'!$K$1:$AU$1,0)),"") -> 0.1295339877 | G22: =IFERROR(INDEX('Data Annex'!$K$1:$AU$7000,MATCH(Assets!G$1&"|"&Assets!$B22,'Data Annex'!$K$1:$K$7000,0),MATCH(Assets!G$2,'Data Annex'!$K$1:$AU$1,0)),"") -> 0.1281334204 | H22: =IFERROR(INDEX('Data Annex'!$K$1:$AU$7000,MATCH(Assets!H$1&"|"&Assets!$B22,'Data Annex'!$K$1:$K$7000,0),MATCH(Assets!H$2,'Data Annex'!$K$1:$AU$1,0)),"") -> 0.1590869854 | I22: =IFERROR(INDEX('Data Annex'!$K$1:$AU$7000,MATCH(Assets!I$1&"|"&Assets!$B22,'Data Annex'!$K$1:$K$7000,0),MATCH(Assets!I$2,'Data Annex'!$K$1:$AU$1,0)),"") -> 0.007292582117 | J22: =IFERROR(INDEX('Data Annex'!$K$1:$AU$7000,MATCH(Assets!J$1&"|"&Assets!$B22,'Data Annex'!$K$1:$K$7000,0),MATCH(Assets!J$2,'Data Annex'!$K$1:$AU$1,0)),"") -> 0.015556164 | K22: =IFERROR(INDEX('Data Annex'!$K$1:$AU$7000,MATCH(Assets!K$1&"|"&Assets!$B22,'Data Annex'!$K$1:$K$7000,0),MATCH(Assets!K$2,'Data Annex'!$K$1:$AU$1,0)),"") -> 0.02122383156 | L22: =IFERROR(INDEX('Data Annex'!$K$1:$AU$7000,MATCH(Assets!L$1&"|"&Assets!$B22,'Data Annex'!$K$1:$K$7000,0),MATCH(Assets!L$2,'Data Annex'!$K$1:$AU$1,0)),"") -> 0.01788094527 | M22: =IFERROR(INDEX('Data Annex'!$K$1:$AU$7000,MATCH(Assets!M$1&"|"&Assets!$B22,'Data Annex'!$K$1:$K$7000,0),MATCH(Assets!M$2,'Data Annex'!$K$1:$AU$1,0)),"") -> 0.1161399781 | N22: =IFERROR(INDEX('Data Annex'!$K$1:$AU$7000,MATCH(Assets!N$1&"|"&Assets!$B22,'Data Annex'!$K$1:$K$7000,0),MATCH(Assets!N$2,'Data Annex'!$K$1:$AU$1,0)),"") -> 0.1146882631 | O22: =IFERROR(INDEX('Data Annex'!$K$1:$AU$7000,MATCH(Assets!O$1&"|"&Assets!$B22,'Data Annex'!$K$1:$K$7000,0),MATCH(Assets!O$2,'Data Annex'!$K$1:$AU$1,0)),"") -> 0.1111501366 | P22: =IFERROR(INDEX('Data Annex'!$K$1:$AU$7000,MATCH(Assets!P$1&"|"&Assets!$B22,'Data Annex'!$K$1:$K$7000,0),MATCH(Assets!P$2,'Data Annex'!$K$1:$AU$1,0)),"") -> 0.1055481443 | Q22: =IFERROR(INDEX('Data Annex'!$K$1:$AU$7000,MATCH(Assets!Q$1&"|"&Assets!$B22,'Data Annex'!$K$1:$K$7000,0),MATCH(Assets!Q$2,'Data Annex'!$K$1:$AU$1,0)),"") -> 0.684293847 | R22: =IFERROR(INDEX('Data Annex'!$K$1:$AU$7000,MATCH(Assets!R$1&"|"&Assets!$B22,'Data Annex'!$K$1:$K$7000,0),MATCH(Assets!R$2,'Data Annex'!$K$1:$AU$1,0)),"") -> 0.6562750048 | S22: =IFERROR(INDEX('Data Annex'!$K$1:$AU$7000,MATCH(Assets!S$1&"|"&Assets!$B22,'Data Annex'!$K$1:$K$7000,0),MATCH(Assets!S$2,'Data Annex'!$K$1:$AU$1,0)),"") -> 0.6624156616 | T22: =IFERROR(INDEX('Data Annex'!$K$1:$AU$7000,MATCH(Assets!T$1&"|"&Assets!$B22,'Data Annex'!$K$1:$K$7000,0),MATCH(Assets!T$2,'Data Annex'!$K$1:$AU$1,0)),"") -> 0.6454949214 | U22: =IFERROR(INDEX('Data Annex'!$K$1:$AU$7000,MATCH(Assets!U$1&"|"&Assets!$B22,'Data Annex'!$K$1:$K$7000,0),MATCH(Assets!U$2,'Data Annex'!$K$1:$AU$1,0)),"") -> 0.07489203649 | V22: =IFERROR(INDEX('Data Annex'!$K$1:$AU$7000,MATCH(Assets!V$1&"|"&Assets!$B22,'Data Annex'!$K$1:$K$7000,0),MATCH(Assets!V$2,'Data Annex'!$K$1:$AU$1,0)),"") -> 0.05855607226 | W22: =IFERROR(INDEX('Data Annex'!$K$1:$AU$7000,MATCH(Assets!W$1&"|"&Assets!$B22,'Data Annex'!$K$1:$K$7000,0),MATCH(Assets!W$2,'Data Annex'!$K$1:$AU$1,0)),"") -> 0.05260985665 | X22: =IFERROR(INDEX('Data Annex'!$K$1:$AU$7000,MATCH(Assets!X$1&"|"&Assets!$B22,'Data Annex'!$K$1:$K$7000,0),MATCH(Assets!X$2,'Data Annex'!$K$1:$AU$1,0)),"") -> 0.0476018755 | Y22: =IFERROR(INDEX('Data Annex'!$K$1:$AU$7000,MATCH(Assets!Y$1&"|"&Assets!$B22,'Data Annex'!$K$1:$K$7000,0),MATCH(Assets!Y$2,'Data Annex'!$K$1:$AU$1,0)),"") -> 0.02425813965 | Z22: =IFERROR(INDEX('Data Annex'!$K$1:$AU$7000,MATCH(Assets!Z$1&"|"&Assets!$B22,'Data Annex'!$K$1:$K$7000,0),MATCH(Assets!Z$2,'Data Annex'!$K$1:$AU$1,0)),"") -> 0.02539050812 | AA22: =IFERROR(INDEX('Data Annex'!$K$1:$AU$7000,MATCH(Assets!AA$1&"|"&Assets!$B22,'Data Annex'!$K$1:$K$7000,0),MATCH(Assets!AA$2,'Data Annex'!$K$1:$AU$1,0)),"") -> 0.0244670932 | AB22: =IFERROR(INDEX('Data Annex'!$K$1:$AU$7000,MATCH(Assets!AB$1&"|"&Assets!$B22,'Data Annex'!$K$1:$K$7000,0),MATCH(Assets!AB$2,'Data Annex'!$K$1:$AU$1,0)),"") -> 0.02438712809 | AC22: =IFERROR(INDEX('Data Annex'!$K$1:$AH$6000,MATCH(Assets!AC$1&"|"&Assets!$B22,'Data Annex'!$K$1:$K$6000,0),MATCH(Assets!AC$2,'Data Annex'!$K$1:$AH$1,0)),"") -> 
B23: FR | D23: FR | E23: =IFERROR(INDEX('Data Annex'!$K$1:$AU$7000,MATCH(Assets!E$1&"|"&Assets!$B23,'Data Annex'!$K$1:$K$7000,0),MATCH(Assets!E$2,'Data Annex'!$K$1:$AU$1,0)),"") -> 0.1278050147 | F23: =IFERROR(INDEX('Data Annex'!$K$1:$AU$7000,MATCH(Assets!F$1&"|"&Assets!$B23,'Data Annex'!$K$1:$K$7000,0),MATCH(Assets!F$2,'Data Annex'!$K$1:$AU$1,0)),"") -> 0.1419534444 | G23: =IFERROR(INDEX('Data Annex'!$K$1:$AU$7000,MATCH(Assets!G$1&"|"&Assets!$B23,'Data Annex'!$K$1:$K$7000,0),MATCH(Assets!G$2,'Data Annex'!$K$1:$AU$1,0)),"") -> 0.1475332672 | H23: =IFERROR(INDEX('Data Annex'!$K$1:$AU$7000,MATCH(Assets!H$1&"|"&Assets!$B23,'Data Annex'!$K$1:$K$7000,0),MATCH(Assets!H$2,'Data Annex'!$K$1:$AU$1,0)),"") -> 0.153680048 | I23: =IFERROR(INDEX('Data Annex'!$K$1:$AU$7000,MATCH(Assets!I$1&"|"&Assets!$B23,'Data Annex'!$K$1:$K$7000,0),MATCH(Assets!I$2,'Data Annex'!$K$1:$AU$1,0)),"") -> 0.02670197681 | J23: =IFERROR(INDEX('Data Annex'!$K$1:$AU$7000,MATCH(Assets!J$1&"|"&Assets!$B23,'Data Annex'!$K$1:$K$7000,0),MATCH(Assets!J$2,'Data Annex'!$K$1:$AU$1,0)),"") -> 0.03464742374 | K23: =IFERROR(INDEX('Data Annex'!$K$1:$AU$7000,MATCH(Assets!K$1&"|"&Assets!$B23,'Data Annex'!$K$1:$K$7000,0),MATCH(Assets!K$2,'Data Annex'!$K$1:$AU$1,0)),"") -> 0.03737379693 | L23: =IFERROR(INDEX('Data Annex'!$K$1:$AU$7000,MATCH(Assets!L$1&"|"&Assets!$B23,'Data Annex'!$K$1:$K$7000,0),MATCH(Assets!L$2,'Data Annex'!$K$1:$AU$1,0)),"") -> 0.03727266917 | M23: =IFERROR(INDEX('Data Annex'!$K$1:$AU$7000,MATCH(Assets!M$1&"|"&Assets!$B23,'Data Annex'!$K$1:$K$7000,0),MATCH(Assets!M$2,'Data Annex'!$K$1:$AU$1,0)),"") -> 0.1003063415 | N23: =IFERROR(INDEX('Data Annex'!$K$1:$AU$7000,MATCH(Assets!N$1&"|"&Assets!$B23,'Data Annex'!$K$1:$K$7000,0),MATCH(Assets!N$2,'Data Annex'!$K$1:$AU$1,0)),"") -> 0.1055550223 | O23: =IFERROR(INDEX('Data Annex'!$K$1:$AU$7000,MATCH(Assets!O$1&"|"&Assets!$B23,'Data Annex'!$K$1:$K$7000,0),MATCH(Assets!O$2,'Data Annex'!$K$1:$AU$1,0)),"") -> 0.1022384929 | P23: =IFERROR(INDEX('Data Annex'!$K$1:$AU$7000,MATCH(Assets!P$1&"|"&Assets!$B23,'Data Annex'!$K$1:$K$7000,0),MATCH(Assets!P$2,'Data Annex'!$K$1:$AU$1,0)),"") -> 0.1001567804 | Q23: =IFERROR(INDEX('Data Annex'!$K$1:$AU$7000,MATCH(Assets!Q$1&"|"&Assets!$B23,'Data Annex'!$K$1:$K$7000,0),MATCH(Assets!Q$2,'Data Annex'!$K$1:$AU$1,0)),"") -> 0.5917221236 | R23: =IFERROR(INDEX('Data Annex'!$K$1:$AU$7000,MATCH(Assets!R$1&"|"&Assets!$B23,'Data Annex'!$K$1:$K$7000,0),MATCH(Assets!R$2,'Data Annex'!$K$1:$AU$1,0)),"") -> 0.5829245379 | S23: =IFERROR(INDEX('Data Annex'!$K$1:$AU$7000,MATCH(Assets!S$1&"|"&Assets!$B23,'Data Annex'!$K$1:$K$7000,0),MATCH(Assets!S$2,'Data Annex'!$K$1:$AU$1,0)),"") -> 0.5823131804 | T23: =IFERROR(INDEX('Data Annex'!$K$1:$AU$7000,MATCH(Assets!T$1&"|"&Assets!$B23,'Data Annex'!$K$1:$K$7000,0),MATCH(Assets!T$2,'Data Annex'!$K$1:$AU$1,0)),"") -> 0.5784612171 | U23: =IFERROR(INDEX('Data Annex'!$K$1:$AU$7000,MATCH(Assets!U$1&"|"&Assets!$B23,'Data Annex'!$K$1:$K$7000,0),MATCH(Assets!U$2,'Data Annex'!$K$1:$AU$1,0)),"") -> 0.08694089785 | V23: =IFERROR(INDEX('Data Annex'!$K$1:$AU$7000,MATCH(Assets!V$1&"|"&Assets!$B23,'Data Annex'!$K$1:$K$7000,0),MATCH(Assets!V$2,'Data Annex'!$K$1:$AU$1,0)),"") -> 0.07470019301 | W23: =IFERROR(INDEX('Data Annex'!$K$1:$AU$7000,MATCH(Assets!W$1&"|"&Assets!$B23,'Data Annex'!$K$1:$K$7000,0),MATCH(Assets!W$2,'Data Annex'!$K$1:$AU$1,0)),"") -> 0.07022733376 | X23: =IFERROR(INDEX('Data Annex'!$K$1:$AU$7000,MATCH(Assets!X$1&"|"&Assets!$B23,'Data Annex'!$K$1:$K$7000,0),MATCH(Assets!X$2,'Data Annex'!$K$1:$AU$1,0)),"") -> 0.06814216661 | Y23: =IFERROR(INDEX('Data Annex'!$K$1:$AU$7000,MATCH(Assets!Y$1&"|"&Assets!$B23,'Data Annex'!$K$1:$K$7000,0),MATCH(Assets!Y$2,'Data Annex'!$K$1:$AU$1,0)),"") -> 0.06652364575 | Z23: =IFERROR(INDEX('Data Annex'!$K$1:$AU$7000,MATCH(Assets!Z$1&"|"&Assets!$B23,'Data Annex'!$K$1:$K$7000,0),MATCH(Assets!Z$2,'Data Annex'!$K$1:$AU$1,0)),"") -> 0.06021937863 | AA23: =IFERROR(INDEX('Data Annex'!$K$1:$AU$7000,MATCH(Assets!AA$1&"|"&Assets!$B23,'Data Annex'!$K$1:$K$7000,0),MATCH(Assets!AA$2,'Data Annex'!$K$1:$AU$1,0)),"") -> 0.06031392869 | AB23: =IFERROR(INDEX('Data Annex'!$K$1:$AU$7000,MATCH(Assets!AB$1&"|"&Assets!$B23,'Data Annex'!$K$1:$K$7000,0),MATCH(Assets!AB$2,'Data Annex'!$K$1:$AU$1,0)),"") -> 0.06228711893 | AC23: =IFERROR(INDEX('Data Annex'!$K$1:$AH$6000,MATCH(Assets!AC$1&"|"&Assets!$B23,'Data Annex'!$K$1:$K$6000,0),MATCH(Assets!AC$2,'Data Annex'!$K$1:$AH$1,0)),"") -> 
B24: GR | D24: GR | E24: =IFERROR(INDEX('Data Annex'!$K$1:$AU$7000,MATCH(Assets!E$1&"|"&Assets!$B24,'Data Annex'!$K$1:$K$7000,0),MATCH(Assets!E$2,'Data Annex'!$K$1:$AU$1,0)),"") -> 0.126226016 | F24: =IFERROR(INDEX('Data Annex'!$K$1:$AU$7000,MATCH(Assets!F$1&"|"&Assets!$B24,'Data Annex'!$K$1:$K$7000,0),MATCH(Assets!F$2,'Data Annex'!$K$1:$AU$1,0)),"") -> 0.1420757959 | G24: =IFERROR(INDEX('Data Annex'!$K$1:$AU$7000,MATCH(Assets!G$1&"|"&Assets!$B24,'Data Annex'!$K$1:$K$7000,0),MATCH(Assets!G$2,'Data Annex'!$K$1:$AU$1,0)),"") -> 0.1589544234 | H24: =IFERROR(INDEX('Data Annex'!$K$1:$AU$7000,MATCH(Assets!H$1&"|"&Assets!$B24,'Data Annex'!$K$1:$K$7000,0),MATCH(Assets!H$2,'Data Annex'!$K$1:$AU$1,0)),"") -> 0.1713516189 | I24: =IFERROR(INDEX('Data Annex'!$K$1:$AU$7000,MATCH(Assets!I$1&"|"&Assets!$B24,'Data Annex'!$K$1:$K$7000,0),MATCH(Assets!I$2,'Data Annex'!$K$1:$AU$1,0)),"") -> 0.002746783491 | J24: =IFERROR(INDEX('Data Annex'!$K$1:$AU$7000,MATCH(Assets!J$1&"|"&Assets!$B24,'Data Annex'!$K$1:$K$7000,0),MATCH(Assets!J$2,'Data Annex'!$K$1:$AU$1,0)),"") -> 0.002654090686 | K24: =IFERROR(INDEX('Data Annex'!$K$1:$AU$7000,MATCH(Assets!K$1&"|"&Assets!$B24,'Data Annex'!$K$1:$K$7000,0),MATCH(Assets!K$2,'Data Annex'!$K$1:$AU$1,0)),"") -> 0.002336704518 | L24: =IFERROR(INDEX('Data Annex'!$K$1:$AU$7000,MATCH(Assets!L$1&"|"&Assets!$B24,'Data Annex'!$K$1:$K$7000,0),MATCH(Assets!L$2,'Data Annex'!$K$1:$AU$1,0)),"") -> 0.002456335028 | M24: =IFERROR(INDEX('Data Annex'!$K$1:$AU$7000,MATCH(Assets!M$1&"|"&Assets!$B24,'Data Annex'!$K$1:$K$7000,0),MATCH(Assets!M$2,'Data Annex'!$K$1:$AU$1,0)),"") -> 0.1452105755 | N24: =IFERROR(INDEX('Data Annex'!$K$1:$AU$7000,MATCH(Assets!N$1&"|"&Assets!$B24,'Data Annex'!$K$1:$K$7000,0),MATCH(Assets!N$2,'Data Annex'!$K$1:$AU$1,0)),"") -> 0.1553484674 | O24: =IFERROR(INDEX('Data Annex'!$K$1:$AU$7000,MATCH(Assets!O$1&"|"&Assets!$B24,'Data Annex'!$K$1:$K$7000,0),MATCH(Assets!O$2,'Data Annex'!$K$1:$AU$1,0)),"") -> 0.1591913004 | P24: =IFERROR(INDEX('Data Annex'!$K$1:$AU$7000,MATCH(Assets!P$1&"|"&Assets!$B24,'Data Annex'!$K$1:$K$7000,0),MATCH(Assets!P$2,'Data Annex'!$K$1:$AU$1,0)),"") -> 0.1608469831 | Q24: =IFERROR(INDEX('Data Annex'!$K$1:$AU$7000,MATCH(Assets!Q$1&"|"&Assets!$B24,'Data Annex'!$K$1:$K$7000,0),MATCH(Assets!Q$2,'Data Annex'!$K$1:$AU$1,0)),"") -> 0.5321919358 | R24: =IFERROR(INDEX('Data Annex'!$K$1:$AU$7000,MATCH(Assets!R$1&"|"&Assets!$B24,'Data Annex'!$K$1:$K$7000,0),MATCH(Assets!R$2,'Data Annex'!$K$1:$AU$1,0)),"") -> 0.515233033 | S24: =IFERROR(INDEX('Data Annex'!$K$1:$AU$7000,MATCH(Assets!S$1&"|"&Assets!$B24,'Data Annex'!$K$1:$K$7000,0),MATCH(Assets!S$2,'Data Annex'!$K$1:$AU$1,0)),"") -> 0.4912208876 | T24: =IFERROR(INDEX('Data Annex'!$K$1:$AU$7000,MATCH(Assets!T$1&"|"&Assets!$B24,'Data Annex'!$K$1:$K$7000,0),MATCH(Assets!T$2,'Data Annex'!$K$1:$AU$1,0)),"") -> 0.4740780398 | U24: =IFERROR(INDEX('Data Annex'!$K$1:$AU$7000,MATCH(Assets!U$1&"|"&Assets!$B24,'Data Annex'!$K$1:$K$7000,0),MATCH(Assets!U$2,'Data Annex'!$K$1:$AU$1,0)),"") -> 0.03503151538 | V24: =IFERROR(INDEX('Data Annex'!$K$1:$AU$7000,MATCH(Assets!V$1&"|"&Assets!$B24,'Data Annex'!$K$1:$K$7000,0),MATCH(Assets!V$2,'Data Annex'!$K$1:$AU$1,0)),"") -> 0.03010805591 | W24: =IFERROR(INDEX('Data Annex'!$K$1:$AU$7000,MATCH(Assets!W$1&"|"&Assets!$B24,'Data Annex'!$K$1:$K$7000,0),MATCH(Assets!W$2,'Data Annex'!$K$1:$AU$1,0)),"") -> 0.02844722397 | X24: =IFERROR(INDEX('Data Annex'!$K$1:$AU$7000,MATCH(Assets!X$1&"|"&Assets!$B24,'Data Annex'!$K$1:$K$7000,0),MATCH(Assets!X$2,'Data Annex'!$K$1:$AU$1,0)),"") -> 0.02715852673 | Y24: =IFERROR(INDEX('Data Annex'!$K$1:$AU$7000,MATCH(Assets!Y$1&"|"&Assets!$B24,'Data Annex'!$K$1:$K$7000,0),MATCH(Assets!Y$2,'Data Annex'!$K$1:$AU$1,0)),"") -> 0.1585931738 | Z24: =IFERROR(INDEX('Data Annex'!$K$1:$AU$7000,MATCH(Assets!Z$1&"|"&Assets!$B24,'Data Annex'!$K$1:$K$7000,0),MATCH(Assets!Z$2,'Data Annex'!$K$1:$AU$1,0)),"") -> 0.154580557 | AA24: =IFERROR(INDEX('Data Annex'!$K$1:$AU$7000,MATCH(Assets!AA$1&"|"&Assets!$B24,'Data Annex'!$K$1:$K$7000,0),MATCH(Assets!AA$2,'Data Annex'!$K$1:$AU$1,0)),"") -> 0.1598494601 | AB24: =IFERROR(INDEX('Data Annex'!$K$1:$AU$7000,MATCH(Assets!AB$1&"|"&Assets!$B24,'Data Annex'!$K$1:$K$7000,0),MATCH(Assets!AB$2,'Data Annex'!$K$1:$AU$1,0)),"") -> 0.1641084965 | AC24: =IFERROR(INDEX('Data Annex'!$K$1:$AH$6000,MATCH(Assets!AC$1&"|"&Assets!$B24,'Data Annex'!$K$1:$K$6000,0),MATCH(Assets!AC$2,'Data Annex'!$K$1:$AH$1,0)),"") -> 
B25: HR | D25: HR | E25: =IFERROR(INDEX('Data Annex'!$K$1:$AU$7000,MATCH(Assets!E$1&"|"&Assets!$B25,'Data Annex'!$K$1:$K$7000,0),MATCH(Assets!E$2,'Data Annex'!$K$1:$AU$1,0)),"") -> 0.1821350417 | F25: =IFERROR(INDEX('Data Annex'!$K$1:$AU$7000,MATCH(Assets!F$1&"|"&Assets!$B25,'Data Annex'!$K$1:$K$7000,0),MATCH(Assets!F$2,'Data Annex'!$K$1:$AU$1,0)),"") -> 0.1963689733 | G25: =IFERROR(INDEX('Data Annex'!$K$1:$AU$7000,MATCH(Assets!G$1&"|"&Assets!$B25,'Data Annex'!$K$1:$K$7000,0),MATCH(Assets!G$2,'Data Annex'!$K$1:$AU$1,0)),"") -> 0.199339399 | H25: =IFERROR(INDEX('Data Annex'!$K$1:$AU$7000,MATCH(Assets!H$1&"|"&Assets!$B25,'Data Annex'!$K$1:$K$7000,0),MATCH(Assets!H$2,'Data Annex'!$K$1:$AU$1,0)),"") -> 0.181880284 | I25: =IFERROR(INDEX('Data Annex'!$K$1:$AU$7000,MATCH(Assets!I$1&"|"&Assets!$B25,'Data Annex'!$K$1:$K$7000,0),MATCH(Assets!I$2,'Data Annex'!$K$1:$AU$1,0)),"") -> 0.002137598203 | J25: =IFERROR(INDEX('Data Annex'!$K$1:$AU$7000,MATCH(Assets!J$1&"|"&Assets!$B25,'Data Annex'!$K$1:$K$7000,0),MATCH(Assets!J$2,'Data Annex'!$K$1:$AU$1,0)),"") -> 0.002033662688 | K25: =IFERROR(INDEX('Data Annex'!$K$1:$AU$7000,MATCH(Assets!K$1&"|"&Assets!$B25,'Data Annex'!$K$1:$K$7000,0),MATCH(Assets!K$2,'Data Annex'!$K$1:$AU$1,0)),"") -> 0.00142323961 | L25: =IFERROR(INDEX('Data Annex'!$K$1:$AU$7000,MATCH(Assets!L$1&"|"&Assets!$B25,'Data Annex'!$K$1:$K$7000,0),MATCH(Assets!L$2,'Data Annex'!$K$1:$AU$1,0)),"") -> 0.001327981214 | M25: =IFERROR(INDEX('Data Annex'!$K$1:$AU$7000,MATCH(Assets!M$1&"|"&Assets!$B25,'Data Annex'!$K$1:$K$7000,0),MATCH(Assets!M$2,'Data Annex'!$K$1:$AU$1,0)),"") -> 0.111510949 | N25: =IFERROR(INDEX('Data Annex'!$K$1:$AU$7000,MATCH(Assets!N$1&"|"&Assets!$B25,'Data Annex'!$K$1:$K$7000,0),MATCH(Assets!N$2,'Data Annex'!$K$1:$AU$1,0)),"") -> 0.1077921308 | O25: =IFERROR(INDEX('Data Annex'!$K$1:$AU$7000,MATCH(Assets!O$1&"|"&Assets!$B25,'Data Annex'!$K$1:$K$7000,0),MATCH(Assets!O$2,'Data Annex'!$K$1:$AU$1,0)),"") -> 0.1096253771 | P25: =IFERROR(INDEX('Data Annex'!$K$1:$AU$7000,MATCH(Assets!P$1&"|"&Assets!$B25,'Data Annex'!$K$1:$K$7000,0),MATCH(Assets!P$2,'Data Annex'!$K$1:$AU$1,0)),"") -> 0.1134770112 | Q25: =IFERROR(INDEX('Data Annex'!$K$1:$AU$7000,MATCH(Assets!Q$1&"|"&Assets!$B25,'Data Annex'!$K$1:$K$7000,0),MATCH(Assets!Q$2,'Data Annex'!$K$1:$AU$1,0)),"") -> 0.677264788 | R25: =IFERROR(INDEX('Data Annex'!$K$1:$AU$7000,MATCH(Assets!R$1&"|"&Assets!$B25,'Data Annex'!$K$1:$K$7000,0),MATCH(Assets!R$2,'Data Annex'!$K$1:$AU$1,0)),"") -> 0.6664110873 | S25: =IFERROR(INDEX('Data Annex'!$K$1:$AU$7000,MATCH(Assets!S$1&"|"&Assets!$B25,'Data Annex'!$K$1:$K$7000,0),MATCH(Assets!S$2,'Data Annex'!$K$1:$AU$1,0)),"") -> 0.6639698663 | T25: =IFERROR(INDEX('Data Annex'!$K$1:$AU$7000,MATCH(Assets!T$1&"|"&Assets!$B25,'Data Annex'!$K$1:$K$7000,0),MATCH(Assets!T$2,'Data Annex'!$K$1:$AU$1,0)),"") -> 0.6788250384 | U25: =IFERROR(INDEX('Data Annex'!$K$1:$AU$7000,MATCH(Assets!U$1&"|"&Assets!$B25,'Data Annex'!$K$1:$K$7000,0),MATCH(Assets!U$2,'Data Annex'!$K$1:$AU$1,0)),"") -> 0.002265928921 | V25: =IFERROR(INDEX('Data Annex'!$K$1:$AU$7000,MATCH(Assets!V$1&"|"&Assets!$B25,'Data Annex'!$K$1:$K$7000,0),MATCH(Assets!V$2,'Data Annex'!$K$1:$AU$1,0)),"") -> 0.002798526767 | W25: =IFERROR(INDEX('Data Annex'!$K$1:$AU$7000,MATCH(Assets!W$1&"|"&Assets!$B25,'Data Annex'!$K$1:$K$7000,0),MATCH(Assets!W$2,'Data Annex'!$K$1:$AU$1,0)),"") -> 0.002402762553 | X25: =IFERROR(INDEX('Data Annex'!$K$1:$AU$7000,MATCH(Assets!X$1&"|"&Assets!$B25,'Data Annex'!$K$1:$K$7000,0),MATCH(Assets!X$2,'Data Annex'!$K$1:$AU$1,0)),"") -> 0.002579713778 | Y25: =IFERROR(INDEX('Data Annex'!$K$1:$AU$7000,MATCH(Assets!Y$1&"|"&Assets!$B25,'Data Annex'!$K$1:$K$7000,0),MATCH(Assets!Y$2,'Data Annex'!$K$1:$AU$1,0)),"") -> 0.02468569413 | Z25: =IFERROR(INDEX('Data Annex'!$K$1:$AU$7000,MATCH(Assets!Z$1&"|"&Assets!$B25,'Data Annex'!$K$1:$K$7000,0),MATCH(Assets!Z$2,'Data Annex'!$K$1:$AU$1,0)),"") -> 0.02459561918 | AA25: =IFERROR(INDEX('Data Annex'!$K$1:$AU$7000,MATCH(Assets!AA$1&"|"&Assets!$B25,'Data Annex'!$K$1:$K$7000,0),MATCH(Assets!AA$2,'Data Annex'!$K$1:$AU$1,0)),"") -> 0.02323935541 | AB25: =IFERROR(INDEX('Data Annex'!$K$1:$AU$7000,MATCH(Assets!AB$1&"|"&Assets!$B25,'Data Annex'!$K$1:$K$7000,0),MATCH(Assets!AB$2,'Data Annex'!$K$1:$AU$1,0)),"") -> 0.02190997141 | AC25: =IFERROR(INDEX('Data Annex'!$K$1:$AH$6000,MATCH(Assets!AC$1&"|"&Assets!$B25,'Data Annex'!$K$1:$K$6000,0),MATCH(Assets!AC$2,'Data Annex'!$K$1:$AH$1,0)),"") -> 
B26: HU | D26: HU | E26: =IFERROR(INDEX('Data Annex'!$K$1:$AU$7000,MATCH(Assets!E$1&"|"&Assets!$B26,'Data Annex'!$K$1:$K$7000,0),MATCH(Assets!E$2,'Data Annex'!$K$1:$AU$1,0)),"") -> 0.09836168056 | F26: =IFERROR(INDEX('Data Annex'!$K$1:$AU$7000,MATCH(Assets!F$1&"|"&Assets!$B26,'Data Annex'!$K$1:$K$7000,0),MATCH(Assets!F$2,'Data Annex'!$K$1:$AU$1,0)),"") -> 0.09550007653 | G26: =IFERROR(INDEX('Data Annex'!$K$1:$AU$7000,MATCH(Assets!G$1&"|"&Assets!$B26,'Data Annex'!$K$1:$K$7000,0),MATCH(Assets!G$2,'Data Annex'!$K$1:$AU$1,0)),"") -> 0.09323542052 | H26: =IFERROR(INDEX('Data Annex'!$K$1:$AU$7000,MATCH(Assets!H$1&"|"&Assets!$B26,'Data Annex'!$K$1:$K$7000,0),MATCH(Assets!H$2,'Data Annex'!$K$1:$AU$1,0)),"") -> 0.09455078744 | I26: =IFERROR(INDEX('Data Annex'!$K$1:$AU$7000,MATCH(Assets!I$1&"|"&Assets!$B26,'Data Annex'!$K$1:$K$7000,0),MATCH(Assets!I$2,'Data Annex'!$K$1:$AU$1,0)),"") -> 0.003277128813 | J26: =IFERROR(INDEX('Data Annex'!$K$1:$AU$7000,MATCH(Assets!J$1&"|"&Assets!$B26,'Data Annex'!$K$1:$K$7000,0),MATCH(Assets!J$2,'Data Annex'!$K$1:$AU$1,0)),"") -> 0.003356615085 | K26: =IFERROR(INDEX('Data Annex'!$K$1:$AU$7000,MATCH(Assets!K$1&"|"&Assets!$B26,'Data Annex'!$K$1:$K$7000,0),MATCH(Assets!K$2,'Data Annex'!$K$1:$AU$1,0)),"") -> 0.003138102703 | L26: =IFERROR(INDEX('Data Annex'!$K$1:$AU$7000,MATCH(Assets!L$1&"|"&Assets!$B26,'Data Annex'!$K$1:$K$7000,0),MATCH(Assets!L$2,'Data Annex'!$K$1:$AU$1,0)),"") -> 0.003126419213 | M26: =IFERROR(INDEX('Data Annex'!$K$1:$AU$7000,MATCH(Assets!M$1&"|"&Assets!$B26,'Data Annex'!$K$1:$K$7000,0),MATCH(Assets!M$2,'Data Annex'!$K$1:$AU$1,0)),"") -> 0.2150084946 | N26: =IFERROR(INDEX('Data Annex'!$K$1:$AU$7000,MATCH(Assets!N$1&"|"&Assets!$B26,'Data Annex'!$K$1:$K$7000,0),MATCH(Assets!N$2,'Data Annex'!$K$1:$AU$1,0)),"") -> 0.2461602359 | O26: =IFERROR(INDEX('Data Annex'!$K$1:$AU$7000,MATCH(Assets!O$1&"|"&Assets!$B26,'Data Annex'!$K$1:$K$7000,0),MATCH(Assets!O$2,'Data Annex'!$K$1:$AU$1,0)),"") -> 0.2462955549 | P26: =IFERROR(INDEX('Data Annex'!$K$1:$AU$7000,MATCH(Assets!P$1&"|"&Assets!$B26,'Data Annex'!$K$1:$K$7000,0),MATCH(Assets!P$2,'Data Annex'!$K$1:$AU$1,0)),"") -> 0.2403014869 | Q26: =IFERROR(INDEX('Data Annex'!$K$1:$AU$7000,MATCH(Assets!Q$1&"|"&Assets!$B26,'Data Annex'!$K$1:$K$7000,0),MATCH(Assets!Q$2,'Data Annex'!$K$1:$AU$1,0)),"") -> 0.6316132733 | R26: =IFERROR(INDEX('Data Annex'!$K$1:$AU$7000,MATCH(Assets!R$1&"|"&Assets!$B26,'Data Annex'!$K$1:$K$7000,0),MATCH(Assets!R$2,'Data Annex'!$K$1:$AU$1,0)),"") -> 0.6053550428 | S26: =IFERROR(INDEX('Data Annex'!$K$1:$AU$7000,MATCH(Assets!S$1&"|"&Assets!$B26,'Data Annex'!$K$1:$K$7000,0),MATCH(Assets!S$2,'Data Annex'!$K$1:$AU$1,0)),"") -> 0.6075843266 | T26: =IFERROR(INDEX('Data Annex'!$K$1:$AU$7000,MATCH(Assets!T$1&"|"&Assets!$B26,'Data Annex'!$K$1:$K$7000,0),MATCH(Assets!T$2,'Data Annex'!$K$1:$AU$1,0)),"") -> 0.6123603803 | U26: =IFERROR(INDEX('Data Annex'!$K$1:$AU$7000,MATCH(Assets!U$1&"|"&Assets!$B26,'Data Annex'!$K$1:$K$7000,0),MATCH(Assets!U$2,'Data Annex'!$K$1:$AU$1,0)),"") -> 0.01057583468 | V26: =IFERROR(INDEX('Data Annex'!$K$1:$AU$7000,MATCH(Assets!V$1&"|"&Assets!$B26,'Data Annex'!$K$1:$K$7000,0),MATCH(Assets!V$2,'Data Annex'!$K$1:$AU$1,0)),"") -> 0.00901975392 | W26: =IFERROR(INDEX('Data Annex'!$K$1:$AU$7000,MATCH(Assets!W$1&"|"&Assets!$B26,'Data Annex'!$K$1:$K$7000,0),MATCH(Assets!W$2,'Data Annex'!$K$1:$AU$1,0)),"") -> 0.009299728374 | X26: =IFERROR(INDEX('Data Annex'!$K$1:$AU$7000,MATCH(Assets!X$1&"|"&Assets!$B26,'Data Annex'!$K$1:$K$7000,0),MATCH(Assets!X$2,'Data Annex'!$K$1:$AU$1,0)),"") -> 0.01413070318 | Y26: =IFERROR(INDEX('Data Annex'!$K$1:$AU$7000,MATCH(Assets!Y$1&"|"&Assets!$B26,'Data Annex'!$K$1:$K$7000,0),MATCH(Assets!Y$2,'Data Annex'!$K$1:$AU$1,0)),"") -> 0.04116358806 | Z26: =IFERROR(INDEX('Data Annex'!$K$1:$AU$7000,MATCH(Assets!Z$1&"|"&Assets!$B26,'Data Annex'!$K$1:$K$7000,0),MATCH(Assets!Z$2,'Data Annex'!$K$1:$AU$1,0)),"") -> 0.04060827577 | AA26: =IFERROR(INDEX('Data Annex'!$K$1:$AU$7000,MATCH(Assets!AA$1&"|"&Assets!$B26,'Data Annex'!$K$1:$K$7000,0),MATCH(Assets!AA$2,'Data Annex'!$K$1:$AU$1,0)),"") -> 0.04044686686 | AB26: =IFERROR(INDEX('Data Annex'!$K$1:$AU$7000,MATCH(Assets!AB$1&"|"&Assets!$B26,'Data Annex'!$K$1:$K$7000,0),MATCH(Assets!AB$2,'Data Annex'!$K$1:$AU$1,0)),"") -> 0.03553022296 | AC26: =IFERROR(INDEX('Data Annex'!$K$1:$AH$6000,MATCH(Assets!AC$1&"|"&Assets!$B26,'Data Annex'!$K$1:$K$6000,0),MATCH(Assets!AC$2,'Data Annex'!$K$1:$AH$1,0)),"") -> 
B27: IE | D27: IE | E27: =IFERROR(INDEX('Data Annex'!$K$1:$AU$7000,MATCH(Assets!E$1&"|"&Assets!$B27,'Data Annex'!$K$1:$K$7000,0),MATCH(Assets!E$2,'Data Annex'!$K$1:$AU$1,0)),"") -> 0.1876902209 | F27: =IFERROR(INDEX('Data Annex'!$K$1:$AU$7000,MATCH(Assets!F$1&"|"&Assets!$B27,'Data Annex'!$K$1:$K$7000,0),MATCH(Assets!F$2,'Data Annex'!$K$1:$AU$1,0)),"") -> 0.2234631953 | G27: =IFERROR(INDEX('Data Annex'!$K$1:$AU$7000,MATCH(Assets!G$1&"|"&Assets!$B27,'Data Annex'!$K$1:$K$7000,0),MATCH(Assets!G$2,'Data Annex'!$K$1:$AU$1,0)),"") -> 0.2687202508 | H27: =IFERROR(INDEX('Data Annex'!$K$1:$AU$7000,MATCH(Assets!H$1&"|"&Assets!$B27,'Data Annex'!$K$1:$K$7000,0),MATCH(Assets!H$2,'Data Annex'!$K$1:$AU$1,0)),"") -> 0.2775560397 | I27: =IFERROR(INDEX('Data Annex'!$K$1:$AU$7000,MATCH(Assets!I$1&"|"&Assets!$B27,'Data Annex'!$K$1:$K$7000,0),MATCH(Assets!I$2,'Data Annex'!$K$1:$AU$1,0)),"") -> 0.001567421833 | J27: =IFERROR(INDEX('Data Annex'!$K$1:$AU$7000,MATCH(Assets!J$1&"|"&Assets!$B27,'Data Annex'!$K$1:$K$7000,0),MATCH(Assets!J$2,'Data Annex'!$K$1:$AU$1,0)),"") -> 0.001573207015 | K27: =IFERROR(INDEX('Data Annex'!$K$1:$AU$7000,MATCH(Assets!K$1&"|"&Assets!$B27,'Data Annex'!$K$1:$K$7000,0),MATCH(Assets!K$2,'Data Annex'!$K$1:$AU$1,0)),"") -> 0.001308392242 | L27: =IFERROR(INDEX('Data Annex'!$K$1:$AU$7000,MATCH(Assets!L$1&"|"&Assets!$B27,'Data Annex'!$K$1:$K$7000,0),MATCH(Assets!L$2,'Data Annex'!$K$1:$AU$1,0)),"") -> 0.001368652044 | M27: =IFERROR(INDEX('Data Annex'!$K$1:$AU$7000,MATCH(Assets!M$1&"|"&Assets!$B27,'Data Annex'!$K$1:$K$7000,0),MATCH(Assets!M$2,'Data Annex'!$K$1:$AU$1,0)),"") -> 0.1402755121 | N27: =IFERROR(INDEX('Data Annex'!$K$1:$AU$7000,MATCH(Assets!N$1&"|"&Assets!$B27,'Data Annex'!$K$1:$K$7000,0),MATCH(Assets!N$2,'Data Annex'!$K$1:$AU$1,0)),"") -> 0.1331192439 | O27: =IFERROR(INDEX('Data Annex'!$K$1:$AU$7000,MATCH(Assets!O$1&"|"&Assets!$B27,'Data Annex'!$K$1:$K$7000,0),MATCH(Assets!O$2,'Data Annex'!$K$1:$AU$1,0)),"") -> 0.1239019264 | P27: =IFERROR(INDEX('Data Annex'!$K$1:$AU$7000,MATCH(Assets!P$1&"|"&Assets!$B27,'Data Annex'!$K$1:$K$7000,0),MATCH(Assets!P$2,'Data Annex'!$K$1:$AU$1,0)),"") -> 0.1188135506 | Q27: =IFERROR(INDEX('Data Annex'!$K$1:$AU$7000,MATCH(Assets!Q$1&"|"&Assets!$B27,'Data Annex'!$K$1:$K$7000,0),MATCH(Assets!Q$2,'Data Annex'!$K$1:$AU$1,0)),"") -> 0.5797161342 | R27: =IFERROR(INDEX('Data Annex'!$K$1:$AU$7000,MATCH(Assets!R$1&"|"&Assets!$B27,'Data Annex'!$K$1:$K$7000,0),MATCH(Assets!R$2,'Data Annex'!$K$1:$AU$1,0)),"") -> 0.549412993 | S27: =IFERROR(INDEX('Data Annex'!$K$1:$AU$7000,MATCH(Assets!S$1&"|"&Assets!$B27,'Data Annex'!$K$1:$K$7000,0),MATCH(Assets!S$2,'Data Annex'!$K$1:$AU$1,0)),"") -> 0.5187960061 | T27: =IFERROR(INDEX('Data Annex'!$K$1:$AU$7000,MATCH(Assets!T$1&"|"&Assets!$B27,'Data Annex'!$K$1:$K$7000,0),MATCH(Assets!T$2,'Data Annex'!$K$1:$AU$1,0)),"") -> 0.5086253141 | U27: =IFERROR(INDEX('Data Annex'!$K$1:$AU$7000,MATCH(Assets!U$1&"|"&Assets!$B27,'Data Annex'!$K$1:$K$7000,0),MATCH(Assets!U$2,'Data Annex'!$K$1:$AU$1,0)),"") -> 0.04482761312 | V27: =IFERROR(INDEX('Data Annex'!$K$1:$AU$7000,MATCH(Assets!V$1&"|"&Assets!$B27,'Data Annex'!$K$1:$K$7000,0),MATCH(Assets!V$2,'Data Annex'!$K$1:$AU$1,0)),"") -> 0.04491785681 | W27: =IFERROR(INDEX('Data Annex'!$K$1:$AU$7000,MATCH(Assets!W$1&"|"&Assets!$B27,'Data Annex'!$K$1:$K$7000,0),MATCH(Assets!W$2,'Data Annex'!$K$1:$AU$1,0)),"") -> 0.03820070562 | X27: =IFERROR(INDEX('Data Annex'!$K$1:$AU$7000,MATCH(Assets!X$1&"|"&Assets!$B27,'Data Annex'!$K$1:$K$7000,0),MATCH(Assets!X$2,'Data Annex'!$K$1:$AU$1,0)),"") -> 0.04393862143 | Y27: =IFERROR(INDEX('Data Annex'!$K$1:$AU$7000,MATCH(Assets!Y$1&"|"&Assets!$B27,'Data Annex'!$K$1:$K$7000,0),MATCH(Assets!Y$2,'Data Annex'!$K$1:$AU$1,0)),"") -> 0.04592309778 | Z27: =IFERROR(INDEX('Data Annex'!$K$1:$AU$7000,MATCH(Assets!Z$1&"|"&Assets!$B27,'Data Annex'!$K$1:$K$7000,0),MATCH(Assets!Z$2,'Data Annex'!$K$1:$AU$1,0)),"") -> 0.04751350401 | AA27: =IFERROR(INDEX('Data Annex'!$K$1:$AU$7000,MATCH(Assets!AA$1&"|"&Assets!$B27,'Data Annex'!$K$1:$K$7000,0),MATCH(Assets!AA$2,'Data Annex'!$K$1:$AU$1,0)),"") -> 0.04907271887 | AB27: =IFERROR(INDEX('Data Annex'!$K$1:$AU$7000,MATCH(Assets!AB$1&"|"&Assets!$B27,'Data Annex'!$K$1:$K$7000,0),MATCH(Assets!AB$2,'Data Annex'!$K$1:$AU$1,0)),"") -> 0.04969782218 | AC27: =IFERROR(INDEX('Data Annex'!$K$1:$AH$6000,MATCH(Assets!AC$1&"|"&Assets!$B27,'Data Annex'!$K$1:$K$6000,0),MATCH(Assets!AC$2,'Data Annex'!$K$1:$AH$1,0)),"") -> 
B28: IS | D28: IS | E28: =IFERROR(INDEX('Data Annex'!$K$1:$AU$7000,MATCH(Assets!E$1&"|"&Assets!$B28,'Data Annex'!$K$1:$K$7000,0),MATCH(Assets!E$2,'Data Annex'!$K$1:$AU$1,0)),"") -> 0.07465035684 | F28: =IFERROR(INDEX('Data Annex'!$K$1:$AU$7000,MATCH(Assets!F$1&"|"&Assets!$B28,'Data Annex'!$K$1:$K$7000,0),MATCH(Assets!F$2,'Data Annex'!$K$1:$AU$1,0)),"") -> 0.08058548646 | G28: =IFERROR(INDEX('Data Annex'!$K$1:$AU$7000,MATCH(Assets!G$1&"|"&Assets!$B28,'Data Annex'!$K$1:$K$7000,0),MATCH(Assets!G$2,'Data Annex'!$K$1:$AU$1,0)),"") -> 0.09334496719 | H28: =IFERROR(INDEX('Data Annex'!$K$1:$AU$7000,MATCH(Assets!H$1&"|"&Assets!$B28,'Data Annex'!$K$1:$K$7000,0),MATCH(Assets!H$2,'Data Annex'!$K$1:$AU$1,0)),"") -> 0.08555910825 | I28: =IFERROR(INDEX('Data Annex'!$K$1:$AU$7000,MATCH(Assets!I$1&"|"&Assets!$B28,'Data Annex'!$K$1:$K$7000,0),MATCH(Assets!I$2,'Data Annex'!$K$1:$AU$1,0)),"") -> 0.01878561448 | J28: =IFERROR(INDEX('Data Annex'!$K$1:$AU$7000,MATCH(Assets!J$1&"|"&Assets!$B28,'Data Annex'!$K$1:$K$7000,0),MATCH(Assets!J$2,'Data Annex'!$K$1:$AU$1,0)),"") -> 0.02410401124 | K28: =IFERROR(INDEX('Data Annex'!$K$1:$AU$7000,MATCH(Assets!K$1&"|"&Assets!$B28,'Data Annex'!$K$1:$K$7000,0),MATCH(Assets!K$2,'Data Annex'!$K$1:$AU$1,0)),"") -> 0.0260681204 | L28: =IFERROR(INDEX('Data Annex'!$K$1:$AU$7000,MATCH(Assets!L$1&"|"&Assets!$B28,'Data Annex'!$K$1:$K$7000,0),MATCH(Assets!L$2,'Data Annex'!$K$1:$AU$1,0)),"") -> 0.02586930498 | M28: =IFERROR(INDEX('Data Annex'!$K$1:$AU$7000,MATCH(Assets!M$1&"|"&Assets!$B28,'Data Annex'!$K$1:$K$7000,0),MATCH(Assets!M$2,'Data Annex'!$K$1:$AU$1,0)),"") -> 0.1059762704 | N28: =IFERROR(INDEX('Data Annex'!$K$1:$AU$7000,MATCH(Assets!N$1&"|"&Assets!$B28,'Data Annex'!$K$1:$K$7000,0),MATCH(Assets!N$2,'Data Annex'!$K$1:$AU$1,0)),"") -> 0.09300745939 | O28: =IFERROR(INDEX('Data Annex'!$K$1:$AU$7000,MATCH(Assets!O$1&"|"&Assets!$B28,'Data Annex'!$K$1:$K$7000,0),MATCH(Assets!O$2,'Data Annex'!$K$1:$AU$1,0)),"") -> 0.09254049992 | P28: =IFERROR(INDEX('Data Annex'!$K$1:$AU$7000,MATCH(Assets!P$1&"|"&Assets!$B28,'Data Annex'!$K$1:$K$7000,0),MATCH(Assets!P$2,'Data Annex'!$K$1:$AU$1,0)),"") -> 0.09804865578 | Q28: =IFERROR(INDEX('Data Annex'!$K$1:$AU$7000,MATCH(Assets!Q$1&"|"&Assets!$B28,'Data Annex'!$K$1:$K$7000,0),MATCH(Assets!Q$2,'Data Annex'!$K$1:$AU$1,0)),"") -> 0.7726785027 | R28: =IFERROR(INDEX('Data Annex'!$K$1:$AU$7000,MATCH(Assets!R$1&"|"&Assets!$B28,'Data Annex'!$K$1:$K$7000,0),MATCH(Assets!R$2,'Data Annex'!$K$1:$AU$1,0)),"") -> 0.7715283431 | S28: =IFERROR(INDEX('Data Annex'!$K$1:$AU$7000,MATCH(Assets!S$1&"|"&Assets!$B28,'Data Annex'!$K$1:$K$7000,0),MATCH(Assets!S$2,'Data Annex'!$K$1:$AU$1,0)),"") -> 0.7609303659 | T28: =IFERROR(INDEX('Data Annex'!$K$1:$AU$7000,MATCH(Assets!T$1&"|"&Assets!$B28,'Data Annex'!$K$1:$K$7000,0),MATCH(Assets!T$2,'Data Annex'!$K$1:$AU$1,0)),"") -> 0.7543663976 | U28: =IFERROR(INDEX('Data Annex'!$K$1:$AU$7000,MATCH(Assets!U$1&"|"&Assets!$B28,'Data Annex'!$K$1:$K$7000,0),MATCH(Assets!U$2,'Data Annex'!$K$1:$AU$1,0)),"") -> 0.004222874438 | V28: =IFERROR(INDEX('Data Annex'!$K$1:$AU$7000,MATCH(Assets!V$1&"|"&Assets!$B28,'Data Annex'!$K$1:$K$7000,0),MATCH(Assets!V$2,'Data Annex'!$K$1:$AU$1,0)),"") -> 0.002073068472 | W28: =IFERROR(INDEX('Data Annex'!$K$1:$AU$7000,MATCH(Assets!W$1&"|"&Assets!$B28,'Data Annex'!$K$1:$K$7000,0),MATCH(Assets!W$2,'Data Annex'!$K$1:$AU$1,0)),"") -> 0.001944938655 | X28: =IFERROR(INDEX('Data Annex'!$K$1:$AU$7000,MATCH(Assets!X$1&"|"&Assets!$B28,'Data Annex'!$K$1:$K$7000,0),MATCH(Assets!X$2,'Data Annex'!$K$1:$AU$1,0)),"") -> 0.001957175674 | Y28: =IFERROR(INDEX('Data Annex'!$K$1:$AU$7000,MATCH(Assets!Y$1&"|"&Assets!$B28,'Data Annex'!$K$1:$K$7000,0),MATCH(Assets!Y$2,'Data Annex'!$K$1:$AU$1,0)),"") -> 0.02368638123 | Z28: =IFERROR(INDEX('Data Annex'!$K$1:$AU$7000,MATCH(Assets!Z$1&"|"&Assets!$B28,'Data Annex'!$K$1:$K$7000,0),MATCH(Assets!Z$2,'Data Annex'!$K$1:$AU$1,0)),"") -> 0.02870163137 | AA28: =IFERROR(INDEX('Data Annex'!$K$1:$AU$7000,MATCH(Assets!AA$1&"|"&Assets!$B28,'Data Annex'!$K$1:$K$7000,0),MATCH(Assets!AA$2,'Data Annex'!$K$1:$AU$1,0)),"") -> 0.02517110792 | AB28: =IFERROR(INDEX('Data Annex'!$K$1:$AU$7000,MATCH(Assets!AB$1&"|"&Assets!$B28,'Data Annex'!$K$1:$K$7000,0),MATCH(Assets!AB$2,'Data Annex'!$K$1:$AU$1,0)),"") -> 0.03419935768 | AC28: =IFERROR(INDEX('Data Annex'!$K$1:$AH$6000,MATCH(Assets!AC$1&"|"&Assets!$B28,'Data Annex'!$K$1:$K$6000,0),MATCH(Assets!AC$2,'Data Annex'!$K$1:$AH$1,0)),"") -> 
B29: IT | D29: IT | E29: =IFERROR(INDEX('Data Annex'!$K$1:$AU$7000,MATCH(Assets!E$1&"|"&Assets!$B29,'Data Annex'!$K$1:$K$7000,0),MATCH(Assets!E$2,'Data Annex'!$K$1:$AU$1,0)),"") -> 0.1369538901 | F29: =IFERROR(INDEX('Data Annex'!$K$1:$AU$7000,MATCH(Assets!F$1&"|"&Assets!$B29,'Data Annex'!$K$1:$K$7000,0),MATCH(Assets!F$2,'Data Annex'!$K$1:$AU$1,0)),"") -> 0.1479255836 | G29: =IFERROR(INDEX('Data Annex'!$K$1:$AU$7000,MATCH(Assets!G$1&"|"&Assets!$B29,'Data Annex'!$K$1:$K$7000,0),MATCH(Assets!G$2,'Data Annex'!$K$1:$AU$1,0)),"") -> 0.1589496126 | H29: =IFERROR(INDEX('Data Annex'!$K$1:$AU$7000,MATCH(Assets!H$1&"|"&Assets!$B29,'Data Annex'!$K$1:$K$7000,0),MATCH(Assets!H$2,'Data Annex'!$K$1:$AU$1,0)),"") -> 0.164834358 | I29: =IFERROR(INDEX('Data Annex'!$K$1:$AU$7000,MATCH(Assets!I$1&"|"&Assets!$B29,'Data Annex'!$K$1:$K$7000,0),MATCH(Assets!I$2,'Data Annex'!$K$1:$AU$1,0)),"") -> 0.01160930162 | J29: =IFERROR(INDEX('Data Annex'!$K$1:$AU$7000,MATCH(Assets!J$1&"|"&Assets!$B29,'Data Annex'!$K$1:$K$7000,0),MATCH(Assets!J$2,'Data Annex'!$K$1:$AU$1,0)),"") -> 0.01137329779 | K29: =IFERROR(INDEX('Data Annex'!$K$1:$AU$7000,MATCH(Assets!K$1&"|"&Assets!$B29,'Data Annex'!$K$1:$K$7000,0),MATCH(Assets!K$2,'Data Annex'!$K$1:$AU$1,0)),"") -> 0.01206376596 | L29: =IFERROR(INDEX('Data Annex'!$K$1:$AU$7000,MATCH(Assets!L$1&"|"&Assets!$B29,'Data Annex'!$K$1:$K$7000,0),MATCH(Assets!L$2,'Data Annex'!$K$1:$AU$1,0)),"") -> 0.01220464903 | M29: =IFERROR(INDEX('Data Annex'!$K$1:$AU$7000,MATCH(Assets!M$1&"|"&Assets!$B29,'Data Annex'!$K$1:$K$7000,0),MATCH(Assets!M$2,'Data Annex'!$K$1:$AU$1,0)),"") -> 0.1906370272 | N29: =IFERROR(INDEX('Data Annex'!$K$1:$AU$7000,MATCH(Assets!N$1&"|"&Assets!$B29,'Data Annex'!$K$1:$K$7000,0),MATCH(Assets!N$2,'Data Annex'!$K$1:$AU$1,0)),"") -> 0.2039471815 | O29: =IFERROR(INDEX('Data Annex'!$K$1:$AU$7000,MATCH(Assets!O$1&"|"&Assets!$B29,'Data Annex'!$K$1:$K$7000,0),MATCH(Assets!O$2,'Data Annex'!$K$1:$AU$1,0)),"") -> 0.2064348772 | P29: =IFERROR(INDEX('Data Annex'!$K$1:$AU$7000,MATCH(Assets!P$1&"|"&Assets!$B29,'Data Annex'!$K$1:$K$7000,0),MATCH(Assets!P$2,'Data Annex'!$K$1:$AU$1,0)),"") -> 0.2035659614 | Q29: =IFERROR(INDEX('Data Annex'!$K$1:$AU$7000,MATCH(Assets!Q$1&"|"&Assets!$B29,'Data Annex'!$K$1:$K$7000,0),MATCH(Assets!Q$2,'Data Annex'!$K$1:$AU$1,0)),"") -> 0.560832168 | R29: =IFERROR(INDEX('Data Annex'!$K$1:$AU$7000,MATCH(Assets!R$1&"|"&Assets!$B29,'Data Annex'!$K$1:$K$7000,0),MATCH(Assets!R$2,'Data Annex'!$K$1:$AU$1,0)),"") -> 0.5542638912 | S29: =IFERROR(INDEX('Data Annex'!$K$1:$AU$7000,MATCH(Assets!S$1&"|"&Assets!$B29,'Data Annex'!$K$1:$K$7000,0),MATCH(Assets!S$2,'Data Annex'!$K$1:$AU$1,0)),"") -> 0.5428687257 | T29: =IFERROR(INDEX('Data Annex'!$K$1:$AU$7000,MATCH(Assets!T$1&"|"&Assets!$B29,'Data Annex'!$K$1:$K$7000,0),MATCH(Assets!T$2,'Data Annex'!$K$1:$AU$1,0)),"") -> 0.5393110581 | U29: =IFERROR(INDEX('Data Annex'!$K$1:$AU$7000,MATCH(Assets!U$1&"|"&Assets!$B29,'Data Annex'!$K$1:$K$7000,0),MATCH(Assets!U$2,'Data Annex'!$K$1:$AU$1,0)),"") -> 0.03458301999 | V29: =IFERROR(INDEX('Data Annex'!$K$1:$AU$7000,MATCH(Assets!V$1&"|"&Assets!$B29,'Data Annex'!$K$1:$K$7000,0),MATCH(Assets!V$2,'Data Annex'!$K$1:$AU$1,0)),"") -> 0.02963723262 | W29: =IFERROR(INDEX('Data Annex'!$K$1:$AU$7000,MATCH(Assets!W$1&"|"&Assets!$B29,'Data Annex'!$K$1:$K$7000,0),MATCH(Assets!W$2,'Data Annex'!$K$1:$AU$1,0)),"") -> 0.02746445233 | X29: =IFERROR(INDEX('Data Annex'!$K$1:$AU$7000,MATCH(Assets!X$1&"|"&Assets!$B29,'Data Annex'!$K$1:$K$7000,0),MATCH(Assets!X$2,'Data Annex'!$K$1:$AU$1,0)),"") -> 0.02827478557 | Y29: =IFERROR(INDEX('Data Annex'!$K$1:$AU$7000,MATCH(Assets!Y$1&"|"&Assets!$B29,'Data Annex'!$K$1:$K$7000,0),MATCH(Assets!Y$2,'Data Annex'!$K$1:$AU$1,0)),"") -> 0.0653845931 | Z29: =IFERROR(INDEX('Data Annex'!$K$1:$AU$7000,MATCH(Assets!Z$1&"|"&Assets!$B29,'Data Annex'!$K$1:$K$7000,0),MATCH(Assets!Z$2,'Data Annex'!$K$1:$AU$1,0)),"") -> 0.05285281333 | AA29: =IFERROR(INDEX('Data Annex'!$K$1:$AU$7000,MATCH(Assets!AA$1&"|"&Assets!$B29,'Data Annex'!$K$1:$K$7000,0),MATCH(Assets!AA$2,'Data Annex'!$K$1:$AU$1,0)),"") -> 0.05221856631 | AB29: =IFERROR(INDEX('Data Annex'!$K$1:$AU$7000,MATCH(Assets!AB$1&"|"&Assets!$B29,'Data Annex'!$K$1:$K$7000,0),MATCH(Assets!AB$2,'Data Annex'!$K$1:$AU$1,0)),"") -> 0.05180918787 | AC29: =IFERROR(INDEX('Data Annex'!$K$1:$AH$6000,MATCH(Assets!AC$1&"|"&Assets!$B29,'Data Annex'!$K$1:$K$6000,0),MATCH(Assets!AC$2,'Data Annex'!$K$1:$AH$1,0)),"") -> 
B30: LT | D30: LT | E30: =IFERROR(INDEX('Data Annex'!$K$1:$AU$7000,MATCH(Assets!E$1&"|"&Assets!$B30,'Data Annex'!$K$1:$K$7000,0),MATCH(Assets!E$2,'Data Annex'!$K$1:$AU$1,0)),"") -> 0.3682813835 | F30: =IFERROR(INDEX('Data Annex'!$K$1:$AU$7000,MATCH(Assets!F$1&"|"&Assets!$B30,'Data Annex'!$K$1:$K$7000,0),MATCH(Assets!F$2,'Data Annex'!$K$1:$AU$1,0)),"") -> 0.4394624799 | G30: =IFERROR(INDEX('Data Annex'!$K$1:$AU$7000,MATCH(Assets!G$1&"|"&Assets!$B30,'Data Annex'!$K$1:$K$7000,0),MATCH(Assets!G$2,'Data Annex'!$K$1:$AU$1,0)),"") -> 0.4101868838 | H30: =IFERROR(INDEX('Data Annex'!$K$1:$AU$7000,MATCH(Assets!H$1&"|"&Assets!$B30,'Data Annex'!$K$1:$K$7000,0),MATCH(Assets!H$2,'Data Annex'!$K$1:$AU$1,0)),"") -> 0.4059216991 | I30: =IFERROR(INDEX('Data Annex'!$K$1:$AU$7000,MATCH(Assets!I$1&"|"&Assets!$B30,'Data Annex'!$K$1:$K$7000,0),MATCH(Assets!I$2,'Data Annex'!$K$1:$AU$1,0)),"") -> 0.0003748175467 | J30: =IFERROR(INDEX('Data Annex'!$K$1:$AU$7000,MATCH(Assets!J$1&"|"&Assets!$B30,'Data Annex'!$K$1:$K$7000,0),MATCH(Assets!J$2,'Data Annex'!$K$1:$AU$1,0)),"") -> 0.0004041620193 | K30: =IFERROR(INDEX('Data Annex'!$K$1:$AU$7000,MATCH(Assets!K$1&"|"&Assets!$B30,'Data Annex'!$K$1:$K$7000,0),MATCH(Assets!K$2,'Data Annex'!$K$1:$AU$1,0)),"") -> 0.0004199939183 | L30: =IFERROR(INDEX('Data Annex'!$K$1:$AU$7000,MATCH(Assets!L$1&"|"&Assets!$B30,'Data Annex'!$K$1:$K$7000,0),MATCH(Assets!L$2,'Data Annex'!$K$1:$AU$1,0)),"") -> 0.0002077850234 | M30: =IFERROR(INDEX('Data Annex'!$K$1:$AU$7000,MATCH(Assets!M$1&"|"&Assets!$B30,'Data Annex'!$K$1:$K$7000,0),MATCH(Assets!M$2,'Data Annex'!$K$1:$AU$1,0)),"") -> 0.05430897388 | N30: =IFERROR(INDEX('Data Annex'!$K$1:$AU$7000,MATCH(Assets!N$1&"|"&Assets!$B30,'Data Annex'!$K$1:$K$7000,0),MATCH(Assets!N$2,'Data Annex'!$K$1:$AU$1,0)),"") -> 0.05314302195 | O30: =IFERROR(INDEX('Data Annex'!$K$1:$AU$7000,MATCH(Assets!O$1&"|"&Assets!$B30,'Data Annex'!$K$1:$K$7000,0),MATCH(Assets!O$2,'Data Annex'!$K$1:$AU$1,0)),"") -> 0.08501906274 | P30: =IFERROR(INDEX('Data Annex'!$K$1:$AU$7000,MATCH(Assets!P$1&"|"&Assets!$B30,'Data Annex'!$K$1:$K$7000,0),MATCH(Assets!P$2,'Data Annex'!$K$1:$AU$1,0)),"") -> 0.08349667787 | Q30: =IFERROR(INDEX('Data Annex'!$K$1:$AU$7000,MATCH(Assets!Q$1&"|"&Assets!$B30,'Data Annex'!$K$1:$K$7000,0),MATCH(Assets!Q$2,'Data Annex'!$K$1:$AU$1,0)),"") -> 0.5680204832 | R30: =IFERROR(INDEX('Data Annex'!$K$1:$AU$7000,MATCH(Assets!R$1&"|"&Assets!$B30,'Data Annex'!$K$1:$K$7000,0),MATCH(Assets!R$2,'Data Annex'!$K$1:$AU$1,0)),"") -> 0.4978533351 | S30: =IFERROR(INDEX('Data Annex'!$K$1:$AU$7000,MATCH(Assets!S$1&"|"&Assets!$B30,'Data Annex'!$K$1:$K$7000,0),MATCH(Assets!S$2,'Data Annex'!$K$1:$AU$1,0)),"") -> 0.4958141852 | T30: =IFERROR(INDEX('Data Annex'!$K$1:$AU$7000,MATCH(Assets!T$1&"|"&Assets!$B30,'Data Annex'!$K$1:$K$7000,0),MATCH(Assets!T$2,'Data Annex'!$K$1:$AU$1,0)),"") -> 0.5016913159 | U30: =IFERROR(INDEX('Data Annex'!$K$1:$AU$7000,MATCH(Assets!U$1&"|"&Assets!$B30,'Data Annex'!$K$1:$K$7000,0),MATCH(Assets!U$2,'Data Annex'!$K$1:$AU$1,0)),"") -> 0.00116317877 | V30: =IFERROR(INDEX('Data Annex'!$K$1:$AU$7000,MATCH(Assets!V$1&"|"&Assets!$B30,'Data Annex'!$K$1:$K$7000,0),MATCH(Assets!V$2,'Data Annex'!$K$1:$AU$1,0)),"") -> 0.001216249873 | W30: =IFERROR(INDEX('Data Annex'!$K$1:$AU$7000,MATCH(Assets!W$1&"|"&Assets!$B30,'Data Annex'!$K$1:$K$7000,0),MATCH(Assets!W$2,'Data Annex'!$K$1:$AU$1,0)),"") -> 0.001040677119 | X30: =IFERROR(INDEX('Data Annex'!$K$1:$AU$7000,MATCH(Assets!X$1&"|"&Assets!$B30,'Data Annex'!$K$1:$K$7000,0),MATCH(Assets!X$2,'Data Annex'!$K$1:$AU$1,0)),"") -> 0.001641863166 | Y30: =IFERROR(INDEX('Data Annex'!$K$1:$AU$7000,MATCH(Assets!Y$1&"|"&Assets!$B30,'Data Annex'!$K$1:$K$7000,0),MATCH(Assets!Y$2,'Data Annex'!$K$1:$AU$1,0)),"") -> 0.007851163039 | Z30: =IFERROR(INDEX('Data Annex'!$K$1:$AU$7000,MATCH(Assets!Z$1&"|"&Assets!$B30,'Data Annex'!$K$1:$K$7000,0),MATCH(Assets!Z$2,'Data Annex'!$K$1:$AU$1,0)),"") -> 0.007920751123 | AA30: =IFERROR(INDEX('Data Annex'!$K$1:$AU$7000,MATCH(Assets!AA$1&"|"&Assets!$B30,'Data Annex'!$K$1:$K$7000,0),MATCH(Assets!AA$2,'Data Annex'!$K$1:$AU$1,0)),"") -> 0.007519197298 | AB30: =IFERROR(INDEX('Data Annex'!$K$1:$AU$7000,MATCH(Assets!AB$1&"|"&Assets!$B30,'Data Annex'!$K$1:$K$7000,0),MATCH(Assets!AB$2,'Data Annex'!$K$1:$AU$1,0)),"") -> 0.007040658957 | AC30: =IFERROR(INDEX('Data Annex'!$K$1:$AH$6000,MATCH(Assets!AC$1&"|"&Assets!$B30,'Data Annex'!$K$1:$K$6000,0),MATCH(Assets!AC$2,'Data Annex'!$K$1:$AH$1,0)),"") -> 
B31: LU | D31: LU | E31: =IFERROR(INDEX('Data Annex'!$K$1:$AU$7000,MATCH(Assets!E$1&"|"&Assets!$B31,'Data Annex'!$K$1:$K$7000,0),MATCH(Assets!E$2,'Data Annex'!$K$1:$AU$1,0)),"") -> 0.2111590309 | F31: =IFERROR(INDEX('Data Annex'!$K$1:$AU$7000,MATCH(Assets!F$1&"|"&Assets!$B31,'Data Annex'!$K$1:$K$7000,0),MATCH(Assets!F$2,'Data Annex'!$K$1:$AU$1,0)),"") -> 0.2121603097 | G31: =IFERROR(INDEX('Data Annex'!$K$1:$AU$7000,MATCH(Assets!G$1&"|"&Assets!$B31,'Data Annex'!$K$1:$K$7000,0),MATCH(Assets!G$2,'Data Annex'!$K$1:$AU$1,0)),"") -> 0.224849564 | H31: =IFERROR(INDEX('Data Annex'!$K$1:$AU$7000,MATCH(Assets!H$1&"|"&Assets!$B31,'Data Annex'!$K$1:$K$7000,0),MATCH(Assets!H$2,'Data Annex'!$K$1:$AU$1,0)),"") -> 0.2381227551 | I31: =IFERROR(INDEX('Data Annex'!$K$1:$AU$7000,MATCH(Assets!I$1&"|"&Assets!$B31,'Data Annex'!$K$1:$K$7000,0),MATCH(Assets!I$2,'Data Annex'!$K$1:$AU$1,0)),"") -> 0.003826836449 | J31: =IFERROR(INDEX('Data Annex'!$K$1:$AU$7000,MATCH(Assets!J$1&"|"&Assets!$B31,'Data Annex'!$K$1:$K$7000,0),MATCH(Assets!J$2,'Data Annex'!$K$1:$AU$1,0)),"") -> 0.004168424678 | K31: =IFERROR(INDEX('Data Annex'!$K$1:$AU$7000,MATCH(Assets!K$1&"|"&Assets!$B31,'Data Annex'!$K$1:$K$7000,0),MATCH(Assets!K$2,'Data Annex'!$K$1:$AU$1,0)),"") -> 0.005133271175 | L31: =IFERROR(INDEX('Data Annex'!$K$1:$AU$7000,MATCH(Assets!L$1&"|"&Assets!$B31,'Data Annex'!$K$1:$K$7000,0),MATCH(Assets!L$2,'Data Annex'!$K$1:$AU$1,0)),"") -> 0.005507028619 | M31: =IFERROR(INDEX('Data Annex'!$K$1:$AU$7000,MATCH(Assets!M$1&"|"&Assets!$B31,'Data Annex'!$K$1:$K$7000,0),MATCH(Assets!M$2,'Data Annex'!$K$1:$AU$1,0)),"") -> 0.1587672366 | N31: =IFERROR(INDEX('Data Annex'!$K$1:$AU$7000,MATCH(Assets!N$1&"|"&Assets!$B31,'Data Annex'!$K$1:$K$7000,0),MATCH(Assets!N$2,'Data Annex'!$K$1:$AU$1,0)),"") -> 0.1493939062 | O31: =IFERROR(INDEX('Data Annex'!$K$1:$AU$7000,MATCH(Assets!O$1&"|"&Assets!$B31,'Data Annex'!$K$1:$K$7000,0),MATCH(Assets!O$2,'Data Annex'!$K$1:$AU$1,0)),"") -> 0.1469609257 | P31: =IFERROR(INDEX('Data Annex'!$K$1:$AU$7000,MATCH(Assets!P$1&"|"&Assets!$B31,'Data Annex'!$K$1:$K$7000,0),MATCH(Assets!P$2,'Data Annex'!$K$1:$AU$1,0)),"") -> 0.1386159075 | Q31: =IFERROR(INDEX('Data Annex'!$K$1:$AU$7000,MATCH(Assets!Q$1&"|"&Assets!$B31,'Data Annex'!$K$1:$K$7000,0),MATCH(Assets!Q$2,'Data Annex'!$K$1:$AU$1,0)),"") -> 0.5868307092 | R31: =IFERROR(INDEX('Data Annex'!$K$1:$AU$7000,MATCH(Assets!R$1&"|"&Assets!$B31,'Data Annex'!$K$1:$K$7000,0),MATCH(Assets!R$2,'Data Annex'!$K$1:$AU$1,0)),"") -> 0.5961134893 | S31: =IFERROR(INDEX('Data Annex'!$K$1:$AU$7000,MATCH(Assets!S$1&"|"&Assets!$B31,'Data Annex'!$K$1:$K$7000,0),MATCH(Assets!S$2,'Data Annex'!$K$1:$AU$1,0)),"") -> 0.5866691347 | T31: =IFERROR(INDEX('Data Annex'!$K$1:$AU$7000,MATCH(Assets!T$1&"|"&Assets!$B31,'Data Annex'!$K$1:$K$7000,0),MATCH(Assets!T$2,'Data Annex'!$K$1:$AU$1,0)),"") -> 0.5827487368 | U31: =IFERROR(INDEX('Data Annex'!$K$1:$AU$7000,MATCH(Assets!U$1&"|"&Assets!$B31,'Data Annex'!$K$1:$K$7000,0),MATCH(Assets!U$2,'Data Annex'!$K$1:$AU$1,0)),"") -> 0.01101275759 | V31: =IFERROR(INDEX('Data Annex'!$K$1:$AU$7000,MATCH(Assets!V$1&"|"&Assets!$B31,'Data Annex'!$K$1:$K$7000,0),MATCH(Assets!V$2,'Data Annex'!$K$1:$AU$1,0)),"") -> 0.01001920247 | W31: =IFERROR(INDEX('Data Annex'!$K$1:$AU$7000,MATCH(Assets!W$1&"|"&Assets!$B31,'Data Annex'!$K$1:$K$7000,0),MATCH(Assets!W$2,'Data Annex'!$K$1:$AU$1,0)),"") -> 0.008460889902 | X31: =IFERROR(INDEX('Data Annex'!$K$1:$AU$7000,MATCH(Assets!X$1&"|"&Assets!$B31,'Data Annex'!$K$1:$K$7000,0),MATCH(Assets!X$2,'Data Annex'!$K$1:$AU$1,0)),"") -> 0.008932919198 | Y31: =IFERROR(INDEX('Data Annex'!$K$1:$AU$7000,MATCH(Assets!Y$1&"|"&Assets!$B31,'Data Annex'!$K$1:$K$7000,0),MATCH(Assets!Y$2,'Data Annex'!$K$1:$AU$1,0)),"") -> 0.02840342927 | Z31: =IFERROR(INDEX('Data Annex'!$K$1:$AU$7000,MATCH(Assets!Z$1&"|"&Assets!$B31,'Data Annex'!$K$1:$K$7000,0),MATCH(Assets!Z$2,'Data Annex'!$K$1:$AU$1,0)),"") -> 0.02814466767 | AA31: =IFERROR(INDEX('Data Annex'!$K$1:$AU$7000,MATCH(Assets!AA$1&"|"&Assets!$B31,'Data Annex'!$K$1:$K$7000,0),MATCH(Assets!AA$2,'Data Annex'!$K$1:$AU$1,0)),"") -> 0.02792621456 | AB31: =IFERROR(INDEX('Data Annex'!$K$1:$AU$7000,MATCH(Assets!AB$1&"|"&Assets!$B31,'Data Annex'!$K$1:$K$7000,0),MATCH(Assets!AB$2,'Data Annex'!$K$1:$AU$1,0)),"") -> 0.02607265284 | AC31: =IFERROR(INDEX('Data Annex'!$K$1:$AH$6000,MATCH(Assets!AC$1&"|"&Assets!$B31,'Data Annex'!$K$1:$K$6000,0),MATCH(Assets!AC$2,'Data Annex'!$K$1:$AH$1,0)),"") -> 
B32: LV | D32: LV | E32: =IFERROR(INDEX('Data Annex'!$K$1:$AU$7000,MATCH(Assets!E$1&"|"&Assets!$B32,'Data Annex'!$K$1:$K$7000,0),MATCH(Assets!E$2,'Data Annex'!$K$1:$AU$1,0)),"") -> 0.3013727612 | F32: =IFERROR(INDEX('Data Annex'!$K$1:$AU$7000,MATCH(Assets!F$1&"|"&Assets!$B32,'Data Annex'!$K$1:$K$7000,0),MATCH(Assets!F$2,'Data Annex'!$K$1:$AU$1,0)),"") -> 0.2639648943 | G32: =IFERROR(INDEX('Data Annex'!$K$1:$AU$7000,MATCH(Assets!G$1&"|"&Assets!$B32,'Data Annex'!$K$1:$K$7000,0),MATCH(Assets!G$2,'Data Annex'!$K$1:$AU$1,0)),"") -> 0.2910191348 | H32: =IFERROR(INDEX('Data Annex'!$K$1:$AU$7000,MATCH(Assets!H$1&"|"&Assets!$B32,'Data Annex'!$K$1:$K$7000,0),MATCH(Assets!H$2,'Data Annex'!$K$1:$AU$1,0)),"") -> 0.2667410322 | I32: =IFERROR(INDEX('Data Annex'!$K$1:$AU$7000,MATCH(Assets!I$1&"|"&Assets!$B32,'Data Annex'!$K$1:$K$7000,0),MATCH(Assets!I$2,'Data Annex'!$K$1:$AU$1,0)),"") -> 0.001410674973 | J32: =IFERROR(INDEX('Data Annex'!$K$1:$AU$7000,MATCH(Assets!J$1&"|"&Assets!$B32,'Data Annex'!$K$1:$K$7000,0),MATCH(Assets!J$2,'Data Annex'!$K$1:$AU$1,0)),"") -> 0.001094504053 | K32: =IFERROR(INDEX('Data Annex'!$K$1:$AU$7000,MATCH(Assets!K$1&"|"&Assets!$B32,'Data Annex'!$K$1:$K$7000,0),MATCH(Assets!K$2,'Data Annex'!$K$1:$AU$1,0)),"") -> 0.0008174494906 | L32: =IFERROR(INDEX('Data Annex'!$K$1:$AU$7000,MATCH(Assets!L$1&"|"&Assets!$B32,'Data Annex'!$K$1:$K$7000,0),MATCH(Assets!L$2,'Data Annex'!$K$1:$AU$1,0)),"") -> 0.0005345867797 | M32: =IFERROR(INDEX('Data Annex'!$K$1:$AU$7000,MATCH(Assets!M$1&"|"&Assets!$B32,'Data Annex'!$K$1:$K$7000,0),MATCH(Assets!M$2,'Data Annex'!$K$1:$AU$1,0)),"") -> 0.1788497566 | N32: =IFERROR(INDEX('Data Annex'!$K$1:$AU$7000,MATCH(Assets!N$1&"|"&Assets!$B32,'Data Annex'!$K$1:$K$7000,0),MATCH(Assets!N$2,'Data Annex'!$K$1:$AU$1,0)),"") -> 0.1717969032 | O32: =IFERROR(INDEX('Data Annex'!$K$1:$AU$7000,MATCH(Assets!O$1&"|"&Assets!$B32,'Data Annex'!$K$1:$K$7000,0),MATCH(Assets!O$2,'Data Annex'!$K$1:$AU$1,0)),"") -> 0.1713711502 | P32: =IFERROR(INDEX('Data Annex'!$K$1:$AU$7000,MATCH(Assets!P$1&"|"&Assets!$B32,'Data Annex'!$K$1:$K$7000,0),MATCH(Assets!P$2,'Data Annex'!$K$1:$AU$1,0)),"") -> 0.1750316976 | Q32: =IFERROR(INDEX('Data Annex'!$K$1:$AU$7000,MATCH(Assets!Q$1&"|"&Assets!$B32,'Data Annex'!$K$1:$K$7000,0),MATCH(Assets!Q$2,'Data Annex'!$K$1:$AU$1,0)),"") -> 0.5081720121 | R32: =IFERROR(INDEX('Data Annex'!$K$1:$AU$7000,MATCH(Assets!R$1&"|"&Assets!$B32,'Data Annex'!$K$1:$K$7000,0),MATCH(Assets!R$2,'Data Annex'!$K$1:$AU$1,0)),"") -> 0.5501880625 | S32: =IFERROR(INDEX('Data Annex'!$K$1:$AU$7000,MATCH(Assets!S$1&"|"&Assets!$B32,'Data Annex'!$K$1:$K$7000,0),MATCH(Assets!S$2,'Data Annex'!$K$1:$AU$1,0)),"") -> 0.5263471635 | T32: =IFERROR(INDEX('Data Annex'!$K$1:$AU$7000,MATCH(Assets!T$1&"|"&Assets!$B32,'Data Annex'!$K$1:$K$7000,0),MATCH(Assets!T$2,'Data Annex'!$K$1:$AU$1,0)),"") -> 0.5467518732 | U32: =IFERROR(INDEX('Data Annex'!$K$1:$AU$7000,MATCH(Assets!U$1&"|"&Assets!$B32,'Data Annex'!$K$1:$K$7000,0),MATCH(Assets!U$2,'Data Annex'!$K$1:$AU$1,0)),"") -> 0.002232658825 | V32: =IFERROR(INDEX('Data Annex'!$K$1:$AU$7000,MATCH(Assets!V$1&"|"&Assets!$B32,'Data Annex'!$K$1:$K$7000,0),MATCH(Assets!V$2,'Data Annex'!$K$1:$AU$1,0)),"") -> 0.003427440025 | W32: =IFERROR(INDEX('Data Annex'!$K$1:$AU$7000,MATCH(Assets!W$1&"|"&Assets!$B32,'Data Annex'!$K$1:$K$7000,0),MATCH(Assets!W$2,'Data Annex'!$K$1:$AU$1,0)),"") -> 0.001299750793 | X32: =IFERROR(INDEX('Data Annex'!$K$1:$AU$7000,MATCH(Assets!X$1&"|"&Assets!$B32,'Data Annex'!$K$1:$K$7000,0),MATCH(Assets!X$2,'Data Annex'!$K$1:$AU$1,0)),"") -> 0.001325334877 | Y32: =IFERROR(INDEX('Data Annex'!$K$1:$AU$7000,MATCH(Assets!Y$1&"|"&Assets!$B32,'Data Annex'!$K$1:$K$7000,0),MATCH(Assets!Y$2,'Data Annex'!$K$1:$AU$1,0)),"") -> 0.007962136341 | Z32: =IFERROR(INDEX('Data Annex'!$K$1:$AU$7000,MATCH(Assets!Z$1&"|"&Assets!$B32,'Data Annex'!$K$1:$K$7000,0),MATCH(Assets!Z$2,'Data Annex'!$K$1:$AU$1,0)),"") -> 0.009528195926 | AA32: =IFERROR(INDEX('Data Annex'!$K$1:$AU$7000,MATCH(Assets!AA$1&"|"&Assets!$B32,'Data Annex'!$K$1:$K$7000,0),MATCH(Assets!AA$2,'Data Annex'!$K$1:$AU$1,0)),"") -> 0.00914535117 | AB32: =IFERROR(INDEX('Data Annex'!$K$1:$AU$7000,MATCH(Assets!AB$1&"|"&Assets!$B32,'Data Annex'!$K$1:$K$7000,0),MATCH(Assets!AB$2,'Data Annex'!$K$1:$AU$1,0)),"") -> 0.009615475426 | AC32: =IFERROR(INDEX('Data Annex'!$K$1:$AH$6000,MATCH(Assets!AC$1&"|"&Assets!$B32,'Data Annex'!$K$1:$K$6000,0),MATCH(Assets!AC$2,'Data Annex'!$K$1:$AH$1,0)),"") -> 
B33: MT | D33: MT | E33: =IFERROR(INDEX('Data Annex'!$K$1:$AU$7000,MATCH(Assets!E$1&"|"&Assets!$B33,'Data Annex'!$K$1:$K$7000,0),MATCH(Assets!E$2,'Data Annex'!$K$1:$AU$1,0)),"") -> 0.2386673696 | F33: =IFERROR(INDEX('Data Annex'!$K$1:$AU$7000,MATCH(Assets!F$1&"|"&Assets!$B33,'Data Annex'!$K$1:$K$7000,0),MATCH(Assets!F$2,'Data Annex'!$K$1:$AU$1,0)),"") -> 0.2333378011 | G33: =IFERROR(INDEX('Data Annex'!$K$1:$AU$7000,MATCH(Assets!G$1&"|"&Assets!$B33,'Data Annex'!$K$1:$K$7000,0),MATCH(Assets!G$2,'Data Annex'!$K$1:$AU$1,0)),"") -> 0.2317809532 | H33: =IFERROR(INDEX('Data Annex'!$K$1:$AU$7000,MATCH(Assets!H$1&"|"&Assets!$B33,'Data Annex'!$K$1:$K$7000,0),MATCH(Assets!H$2,'Data Annex'!$K$1:$AU$1,0)),"") -> 0.2518097436 | I33: =IFERROR(INDEX('Data Annex'!$K$1:$AU$7000,MATCH(Assets!I$1&"|"&Assets!$B33,'Data Annex'!$K$1:$K$7000,0),MATCH(Assets!I$2,'Data Annex'!$K$1:$AU$1,0)),"") -> 0.00262188847 | J33: =IFERROR(INDEX('Data Annex'!$K$1:$AU$7000,MATCH(Assets!J$1&"|"&Assets!$B33,'Data Annex'!$K$1:$K$7000,0),MATCH(Assets!J$2,'Data Annex'!$K$1:$AU$1,0)),"") -> 0.002139367014 | K33: =IFERROR(INDEX('Data Annex'!$K$1:$AU$7000,MATCH(Assets!K$1&"|"&Assets!$B33,'Data Annex'!$K$1:$K$7000,0),MATCH(Assets!K$2,'Data Annex'!$K$1:$AU$1,0)),"") -> 0.002252200977 | L33: =IFERROR(INDEX('Data Annex'!$K$1:$AU$7000,MATCH(Assets!L$1&"|"&Assets!$B33,'Data Annex'!$K$1:$K$7000,0),MATCH(Assets!L$2,'Data Annex'!$K$1:$AU$1,0)),"") -> 0.002246247761 | M33: =IFERROR(INDEX('Data Annex'!$K$1:$AU$7000,MATCH(Assets!M$1&"|"&Assets!$B33,'Data Annex'!$K$1:$K$7000,0),MATCH(Assets!M$2,'Data Annex'!$K$1:$AU$1,0)),"") -> 0.2498229781 | N33: =IFERROR(INDEX('Data Annex'!$K$1:$AU$7000,MATCH(Assets!N$1&"|"&Assets!$B33,'Data Annex'!$K$1:$K$7000,0),MATCH(Assets!N$2,'Data Annex'!$K$1:$AU$1,0)),"") -> 0.2464896668 | O33: =IFERROR(INDEX('Data Annex'!$K$1:$AU$7000,MATCH(Assets!O$1&"|"&Assets!$B33,'Data Annex'!$K$1:$K$7000,0),MATCH(Assets!O$2,'Data Annex'!$K$1:$AU$1,0)),"") -> 0.2591223373 | P33: =IFERROR(INDEX('Data Annex'!$K$1:$AU$7000,MATCH(Assets!P$1&"|"&Assets!$B33,'Data Annex'!$K$1:$K$7000,0),MATCH(Assets!P$2,'Data Annex'!$K$1:$AU$1,0)),"") -> 0.2485085586 | Q33: =IFERROR(INDEX('Data Annex'!$K$1:$AU$7000,MATCH(Assets!Q$1&"|"&Assets!$B33,'Data Annex'!$K$1:$K$7000,0),MATCH(Assets!Q$2,'Data Annex'!$K$1:$AU$1,0)),"") -> 0.4772420322 | R33: =IFERROR(INDEX('Data Annex'!$K$1:$AU$7000,MATCH(Assets!R$1&"|"&Assets!$B33,'Data Annex'!$K$1:$K$7000,0),MATCH(Assets!R$2,'Data Annex'!$K$1:$AU$1,0)),"") -> 0.4881088817 | S33: =IFERROR(INDEX('Data Annex'!$K$1:$AU$7000,MATCH(Assets!S$1&"|"&Assets!$B33,'Data Annex'!$K$1:$K$7000,0),MATCH(Assets!S$2,'Data Annex'!$K$1:$AU$1,0)),"") -> 0.4775227913 | T33: =IFERROR(INDEX('Data Annex'!$K$1:$AU$7000,MATCH(Assets!T$1&"|"&Assets!$B33,'Data Annex'!$K$1:$K$7000,0),MATCH(Assets!T$2,'Data Annex'!$K$1:$AU$1,0)),"") -> 0.4685381111 | U33: =IFERROR(INDEX('Data Annex'!$K$1:$AU$7000,MATCH(Assets!U$1&"|"&Assets!$B33,'Data Annex'!$K$1:$K$7000,0),MATCH(Assets!U$2,'Data Annex'!$K$1:$AU$1,0)),"") -> 0.000456625698 | V33: =IFERROR(INDEX('Data Annex'!$K$1:$AU$7000,MATCH(Assets!V$1&"|"&Assets!$B33,'Data Annex'!$K$1:$K$7000,0),MATCH(Assets!V$2,'Data Annex'!$K$1:$AU$1,0)),"") -> 0.001055145854 | W33: =IFERROR(INDEX('Data Annex'!$K$1:$AU$7000,MATCH(Assets!W$1&"|"&Assets!$B33,'Data Annex'!$K$1:$K$7000,0),MATCH(Assets!W$2,'Data Annex'!$K$1:$AU$1,0)),"") -> 0.001176603336 | X33: =IFERROR(INDEX('Data Annex'!$K$1:$AU$7000,MATCH(Assets!X$1&"|"&Assets!$B33,'Data Annex'!$K$1:$K$7000,0),MATCH(Assets!X$2,'Data Annex'!$K$1:$AU$1,0)),"") -> 0.001296981515 | Y33: =IFERROR(INDEX('Data Annex'!$K$1:$AU$7000,MATCH(Assets!Y$1&"|"&Assets!$B33,'Data Annex'!$K$1:$K$7000,0),MATCH(Assets!Y$2,'Data Annex'!$K$1:$AU$1,0)),"") -> 0.03118910591 | Z33: =IFERROR(INDEX('Data Annex'!$K$1:$AU$7000,MATCH(Assets!Z$1&"|"&Assets!$B33,'Data Annex'!$K$1:$K$7000,0),MATCH(Assets!Z$2,'Data Annex'!$K$1:$AU$1,0)),"") -> 0.0288691375 | AA33: =IFERROR(INDEX('Data Annex'!$K$1:$AU$7000,MATCH(Assets!AA$1&"|"&Assets!$B33,'Data Annex'!$K$1:$K$7000,0),MATCH(Assets!AA$2,'Data Annex'!$K$1:$AU$1,0)),"") -> 0.02814511387 | AB33: =IFERROR(INDEX('Data Annex'!$K$1:$AU$7000,MATCH(Assets!AB$1&"|"&Assets!$B33,'Data Annex'!$K$1:$K$7000,0),MATCH(Assets!AB$2,'Data Annex'!$K$1:$AU$1,0)),"") -> 0.02760035746 | AC33: =IFERROR(INDEX('Data Annex'!$K$1:$AH$6000,MATCH(Assets!AC$1&"|"&Assets!$B33,'Data Annex'!$K$1:$K$6000,0),MATCH(Assets!AC$2,'Data Annex'!$K$1:$AH$1,0)),"") -> 
B34: NL | D34: NL | E34: =IFERROR(INDEX('Data Annex'!$K$1:$AU$7000,MATCH(Assets!E$1&"|"&Assets!$B34,'Data Annex'!$K$1:$K$7000,0),MATCH(Assets!E$2,'Data Annex'!$K$1:$AU$1,0)),"") -> 0.1327904368 | F34: =IFERROR(INDEX('Data Annex'!$K$1:$AU$7000,MATCH(Assets!F$1&"|"&Assets!$B34,'Data Annex'!$K$1:$K$7000,0),MATCH(Assets!F$2,'Data Annex'!$K$1:$AU$1,0)),"") -> 0.1563694785 | G34: =IFERROR(INDEX('Data Annex'!$K$1:$AU$7000,MATCH(Assets!G$1&"|"&Assets!$B34,'Data Annex'!$K$1:$K$7000,0),MATCH(Assets!G$2,'Data Annex'!$K$1:$AU$1,0)),"") -> 0.1526266359 | H34: =IFERROR(INDEX('Data Annex'!$K$1:$AU$7000,MATCH(Assets!H$1&"|"&Assets!$B34,'Data Annex'!$K$1:$K$7000,0),MATCH(Assets!H$2,'Data Annex'!$K$1:$AU$1,0)),"") -> 0.1671112245 | I34: =IFERROR(INDEX('Data Annex'!$K$1:$AU$7000,MATCH(Assets!I$1&"|"&Assets!$B34,'Data Annex'!$K$1:$K$7000,0),MATCH(Assets!I$2,'Data Annex'!$K$1:$AU$1,0)),"") -> 0.005538226262 | J34: =IFERROR(INDEX('Data Annex'!$K$1:$AU$7000,MATCH(Assets!J$1&"|"&Assets!$B34,'Data Annex'!$K$1:$K$7000,0),MATCH(Assets!J$2,'Data Annex'!$K$1:$AU$1,0)),"") -> 0.00641740305 | K34: =IFERROR(INDEX('Data Annex'!$K$1:$AU$7000,MATCH(Assets!K$1&"|"&Assets!$B34,'Data Annex'!$K$1:$K$7000,0),MATCH(Assets!K$2,'Data Annex'!$K$1:$AU$1,0)),"") -> 0.008185704216 | L34: =IFERROR(INDEX('Data Annex'!$K$1:$AU$7000,MATCH(Assets!L$1&"|"&Assets!$B34,'Data Annex'!$K$1:$K$7000,0),MATCH(Assets!L$2,'Data Annex'!$K$1:$AU$1,0)),"") -> 0.008960756774 | M34: =IFERROR(INDEX('Data Annex'!$K$1:$AU$7000,MATCH(Assets!M$1&"|"&Assets!$B34,'Data Annex'!$K$1:$K$7000,0),MATCH(Assets!M$2,'Data Annex'!$K$1:$AU$1,0)),"") -> 0.08277757355 | N34: =IFERROR(INDEX('Data Annex'!$K$1:$AU$7000,MATCH(Assets!N$1&"|"&Assets!$B34,'Data Annex'!$K$1:$K$7000,0),MATCH(Assets!N$2,'Data Annex'!$K$1:$AU$1,0)),"") -> 0.07615525702 | O34: =IFERROR(INDEX('Data Annex'!$K$1:$AU$7000,MATCH(Assets!O$1&"|"&Assets!$B34,'Data Annex'!$K$1:$K$7000,0),MATCH(Assets!O$2,'Data Annex'!$K$1:$AU$1,0)),"") -> 0.07616488169 | P34: =IFERROR(INDEX('Data Annex'!$K$1:$AU$7000,MATCH(Assets!P$1&"|"&Assets!$B34,'Data Annex'!$K$1:$K$7000,0),MATCH(Assets!P$2,'Data Annex'!$K$1:$AU$1,0)),"") -> 0.07287634258 | Q34: =IFERROR(INDEX('Data Annex'!$K$1:$AU$7000,MATCH(Assets!Q$1&"|"&Assets!$B34,'Data Annex'!$K$1:$K$7000,0),MATCH(Assets!Q$2,'Data Annex'!$K$1:$AU$1,0)),"") -> 0.7116159258 | R34: =IFERROR(INDEX('Data Annex'!$K$1:$AU$7000,MATCH(Assets!R$1&"|"&Assets!$B34,'Data Annex'!$K$1:$K$7000,0),MATCH(Assets!R$2,'Data Annex'!$K$1:$AU$1,0)),"") -> 0.6936567368 | S34: =IFERROR(INDEX('Data Annex'!$K$1:$AU$7000,MATCH(Assets!S$1&"|"&Assets!$B34,'Data Annex'!$K$1:$K$7000,0),MATCH(Assets!S$2,'Data Annex'!$K$1:$AU$1,0)),"") -> 0.6981410801 | T34: =IFERROR(INDEX('Data Annex'!$K$1:$AU$7000,MATCH(Assets!T$1&"|"&Assets!$B34,'Data Annex'!$K$1:$K$7000,0),MATCH(Assets!T$2,'Data Annex'!$K$1:$AU$1,0)),"") -> 0.6889899875 | U34: =IFERROR(INDEX('Data Annex'!$K$1:$AU$7000,MATCH(Assets!U$1&"|"&Assets!$B34,'Data Annex'!$K$1:$K$7000,0),MATCH(Assets!U$2,'Data Annex'!$K$1:$AU$1,0)),"") -> 0.03476268367 | V34: =IFERROR(INDEX('Data Annex'!$K$1:$AU$7000,MATCH(Assets!V$1&"|"&Assets!$B34,'Data Annex'!$K$1:$K$7000,0),MATCH(Assets!V$2,'Data Annex'!$K$1:$AU$1,0)),"") -> 0.02827271165 | W34: =IFERROR(INDEX('Data Annex'!$K$1:$AU$7000,MATCH(Assets!W$1&"|"&Assets!$B34,'Data Annex'!$K$1:$K$7000,0),MATCH(Assets!W$2,'Data Annex'!$K$1:$AU$1,0)),"") -> 0.02525462901 | X34: =IFERROR(INDEX('Data Annex'!$K$1:$AU$7000,MATCH(Assets!X$1&"|"&Assets!$B34,'Data Annex'!$K$1:$K$7000,0),MATCH(Assets!X$2,'Data Annex'!$K$1:$AU$1,0)),"") -> 0.02456960802 | Y34: =IFERROR(INDEX('Data Annex'!$K$1:$AU$7000,MATCH(Assets!Y$1&"|"&Assets!$B34,'Data Annex'!$K$1:$K$7000,0),MATCH(Assets!Y$2,'Data Annex'!$K$1:$AU$1,0)),"") -> 0.03251515394 | Z34: =IFERROR(INDEX('Data Annex'!$K$1:$AU$7000,MATCH(Assets!Z$1&"|"&Assets!$B34,'Data Annex'!$K$1:$K$7000,0),MATCH(Assets!Z$2,'Data Annex'!$K$1:$AU$1,0)),"") -> 0.03912841296 | AA34: =IFERROR(INDEX('Data Annex'!$K$1:$AU$7000,MATCH(Assets!AA$1&"|"&Assets!$B34,'Data Annex'!$K$1:$K$7000,0),MATCH(Assets!AA$2,'Data Annex'!$K$1:$AU$1,0)),"") -> 0.03962706901 | AB34: =IFERROR(INDEX('Data Annex'!$K$1:$AU$7000,MATCH(Assets!AB$1&"|"&Assets!$B34,'Data Annex'!$K$1:$K$7000,0),MATCH(Assets!AB$2,'Data Annex'!$K$1:$AU$1,0)),"") -> 0.03749208064 | AC34: =IFERROR(INDEX('Data Annex'!$K$1:$AH$6000,MATCH(Assets!AC$1&"|"&Assets!$B34,'Data Annex'!$K$1:$K$6000,0),MATCH(Assets!AC$2,'Data Annex'!$K$1:$AH$1,0)),"") -> 
B35: NO | D35: NO* | E35: =IFERROR(INDEX('Data Annex'!$K$1:$AU$7000,MATCH(Assets!E$1&"|"&Assets!$B35,'Data Annex'!$K$1:$K$7000,0),MATCH(Assets!E$2,'Data Annex'!$K$1:$AU$1,0)),"") -> 0.09319553486 | F35: =IFERROR(INDEX('Data Annex'!$K$1:$AU$7000,MATCH(Assets!F$1&"|"&Assets!$B35,'Data Annex'!$K$1:$K$7000,0),MATCH(Assets!F$2,'Data Annex'!$K$1:$AU$1,0)),"") -> 0.1305642215 | G35: =IFERROR(INDEX('Data Annex'!$K$1:$AU$7000,MATCH(Assets!G$1&"|"&Assets!$B35,'Data Annex'!$K$1:$K$7000,0),MATCH(Assets!G$2,'Data Annex'!$K$1:$AU$1,0)),"") -> 0 | H35: =IFERROR(INDEX('Data Annex'!$K$1:$AU$7000,MATCH(Assets!H$1&"|"&Assets!$B35,'Data Annex'!$K$1:$K$7000,0),MATCH(Assets!H$2,'Data Annex'!$K$1:$AU$1,0)),"") -> 0 | I35: =IFERROR(INDEX('Data Annex'!$K$1:$AU$7000,MATCH(Assets!I$1&"|"&Assets!$B35,'Data Annex'!$K$1:$K$7000,0),MATCH(Assets!I$2,'Data Annex'!$K$1:$AU$1,0)),"") -> 0.003445012016 | J35: =IFERROR(INDEX('Data Annex'!$K$1:$AU$7000,MATCH(Assets!J$1&"|"&Assets!$B35,'Data Annex'!$K$1:$K$7000,0),MATCH(Assets!J$2,'Data Annex'!$K$1:$AU$1,0)),"") -> 0.003195699662 | K35: =IFERROR(INDEX('Data Annex'!$K$1:$AU$7000,MATCH(Assets!K$1&"|"&Assets!$B35,'Data Annex'!$K$1:$K$7000,0),MATCH(Assets!K$2,'Data Annex'!$K$1:$AU$1,0)),"") -> 0 | L35: =IFERROR(INDEX('Data Annex'!$K$1:$AU$7000,MATCH(Assets!L$1&"|"&Assets!$B35,'Data Annex'!$K$1:$K$7000,0),MATCH(Assets!L$2,'Data Annex'!$K$1:$AU$1,0)),"") -> 0 | M35: =IFERROR(INDEX('Data Annex'!$K$1:$AU$7000,MATCH(Assets!M$1&"|"&Assets!$B35,'Data Annex'!$K$1:$K$7000,0),MATCH(Assets!M$2,'Data Annex'!$K$1:$AU$1,0)),"") -> 0.1141561477 | N35: =IFERROR(INDEX('Data Annex'!$K$1:$AU$7000,MATCH(Assets!N$1&"|"&Assets!$B35,'Data Annex'!$K$1:$K$7000,0),MATCH(Assets!N$2,'Data Annex'!$K$1:$AU$1,0)),"") -> 0.1121162949 | O35: =IFERROR(INDEX('Data Annex'!$K$1:$AU$7000,MATCH(Assets!O$1&"|"&Assets!$B35,'Data Annex'!$K$1:$K$7000,0),MATCH(Assets!O$2,'Data Annex'!$K$1:$AU$1,0)),"") -> 0 | P35: =IFERROR(INDEX('Data Annex'!$K$1:$AU$7000,MATCH(Assets!P$1&"|"&Assets!$B35,'Data Annex'!$K$1:$K$7000,0),MATCH(Assets!P$2,'Data Annex'!$K$1:$AU$1,0)),"") -> 0 | Q35: =IFERROR(INDEX('Data Annex'!$K$1:$AU$7000,MATCH(Assets!Q$1&"|"&Assets!$B35,'Data Annex'!$K$1:$K$7000,0),MATCH(Assets!Q$2,'Data Annex'!$K$1:$AU$1,0)),"") -> 0.7082852795 | R35: =IFERROR(INDEX('Data Annex'!$K$1:$AU$7000,MATCH(Assets!R$1&"|"&Assets!$B35,'Data Annex'!$K$1:$K$7000,0),MATCH(Assets!R$2,'Data Annex'!$K$1:$AU$1,0)),"") -> 0.6894405424 | S35: =IFERROR(INDEX('Data Annex'!$K$1:$AU$7000,MATCH(Assets!S$1&"|"&Assets!$B35,'Data Annex'!$K$1:$K$7000,0),MATCH(Assets!S$2,'Data Annex'!$K$1:$AU$1,0)),"") -> 0 | T35: =IFERROR(INDEX('Data Annex'!$K$1:$AU$7000,MATCH(Assets!T$1&"|"&Assets!$B35,'Data Annex'!$K$1:$K$7000,0),MATCH(Assets!T$2,'Data Annex'!$K$1:$AU$1,0)),"") -> 0 | U35: =IFERROR(INDEX('Data Annex'!$K$1:$AU$7000,MATCH(Assets!U$1&"|"&Assets!$B35,'Data Annex'!$K$1:$K$7000,0),MATCH(Assets!U$2,'Data Annex'!$K$1:$AU$1,0)),"") -> 0.06594215708 | V35: =IFERROR(INDEX('Data Annex'!$K$1:$AU$7000,MATCH(Assets!V$1&"|"&Assets!$B35,'Data Annex'!$K$1:$K$7000,0),MATCH(Assets!V$2,'Data Annex'!$K$1:$AU$1,0)),"") -> 0.04646411501 | W35: =IFERROR(INDEX('Data Annex'!$K$1:$AU$7000,MATCH(Assets!W$1&"|"&Assets!$B35,'Data Annex'!$K$1:$K$7000,0),MATCH(Assets!W$2,'Data Annex'!$K$1:$AU$1,0)),"") -> 0 | X35: =IFERROR(INDEX('Data Annex'!$K$1:$AU$7000,MATCH(Assets!X$1&"|"&Assets!$B35,'Data Annex'!$K$1:$K$7000,0),MATCH(Assets!X$2,'Data Annex'!$K$1:$AU$1,0)),"") -> 0 | Y35: =IFERROR(INDEX('Data Annex'!$K$1:$AU$7000,MATCH(Assets!Y$1&"|"&Assets!$B35,'Data Annex'!$K$1:$K$7000,0),MATCH(Assets!Y$2,'Data Annex'!$K$1:$AU$1,0)),"") -> 0.01497586888 | Z35: =IFERROR(INDEX('Data Annex'!$K$1:$AU$7000,MATCH(Assets!Z$1&"|"&Assets!$B35,'Data Annex'!$K$1:$K$7000,0),MATCH(Assets!Z$2,'Data Annex'!$K$1:$AU$1,0)),"") -> 0.0182191265 | AA35: =IFERROR(INDEX('Data Annex'!$K$1:$AU$7000,MATCH(Assets!AA$1&"|"&Assets!$B35,'Data Annex'!$K$1:$K$7000,0),MATCH(Assets!AA$2,'Data Annex'!$K$1:$AU$1,0)),"") -> 0 | AB35: =IFERROR(INDEX('Data Annex'!$K$1:$AU$7000,MATCH(Assets!AB$1&"|"&Assets!$B35,'Data Annex'!$K$1:$K$7000,0),MATCH(Assets!AB$2,'Data Annex'!$K$1:$AU$1,0)),"") -> 0 | AC35: =IFERROR(INDEX('Data Annex'!$K$1:$AH$6000,MATCH(Assets!AC$1&"|"&Assets!$B35,'Data Annex'!$K$1:$K$6000,0),MATCH(Assets!AC$2,'Data Annex'!$K$1:$AH$1,0)),"") -> 
B36: PL | D36: PL | E36: =IFERROR(INDEX('Data Annex'!$K$1:$AU$7000,MATCH(Assets!E$1&"|"&Assets!$B36,'Data Annex'!$K$1:$K$7000,0),MATCH(Assets!E$2,'Data Annex'!$K$1:$AU$1,0)),"") -> 0.02298600367 | F36: =IFERROR(INDEX('Data Annex'!$K$1:$AU$7000,MATCH(Assets!F$1&"|"&Assets!$B36,'Data Annex'!$K$1:$K$7000,0),MATCH(Assets!F$2,'Data Annex'!$K$1:$AU$1,0)),"") -> 0.03053689984 | G36: =IFERROR(INDEX('Data Annex'!$K$1:$AU$7000,MATCH(Assets!G$1&"|"&Assets!$B36,'Data Annex'!$K$1:$K$7000,0),MATCH(Assets!G$2,'Data Annex'!$K$1:$AU$1,0)),"") -> 0.02122939127 | H36: =IFERROR(INDEX('Data Annex'!$K$1:$AU$7000,MATCH(Assets!H$1&"|"&Assets!$B36,'Data Annex'!$K$1:$K$7000,0),MATCH(Assets!H$2,'Data Annex'!$K$1:$AU$1,0)),"") -> 0.0225519107 | I36: =IFERROR(INDEX('Data Annex'!$K$1:$AU$7000,MATCH(Assets!I$1&"|"&Assets!$B36,'Data Annex'!$K$1:$K$7000,0),MATCH(Assets!I$2,'Data Annex'!$K$1:$AU$1,0)),"") -> 0.002380444012 | J36: =IFERROR(INDEX('Data Annex'!$K$1:$AU$7000,MATCH(Assets!J$1&"|"&Assets!$B36,'Data Annex'!$K$1:$K$7000,0),MATCH(Assets!J$2,'Data Annex'!$K$1:$AU$1,0)),"") -> 0.002863320654 | K36: =IFERROR(INDEX('Data Annex'!$K$1:$AU$7000,MATCH(Assets!K$1&"|"&Assets!$B36,'Data Annex'!$K$1:$K$7000,0),MATCH(Assets!K$2,'Data Annex'!$K$1:$AU$1,0)),"") -> 0.00278426323 | L36: =IFERROR(INDEX('Data Annex'!$K$1:$AU$7000,MATCH(Assets!L$1&"|"&Assets!$B36,'Data Annex'!$K$1:$K$7000,0),MATCH(Assets!L$2,'Data Annex'!$K$1:$AU$1,0)),"") -> 0.002727392207 | M36: =IFERROR(INDEX('Data Annex'!$K$1:$AU$7000,MATCH(Assets!M$1&"|"&Assets!$B36,'Data Annex'!$K$1:$K$7000,0),MATCH(Assets!M$2,'Data Annex'!$K$1:$AU$1,0)),"") -> 0.309605 | N36: =IFERROR(INDEX('Data Annex'!$K$1:$AU$7000,MATCH(Assets!N$1&"|"&Assets!$B36,'Data Annex'!$K$1:$K$7000,0),MATCH(Assets!N$2,'Data Annex'!$K$1:$AU$1,0)),"") -> 0.3101774622 | O36: =IFERROR(INDEX('Data Annex'!$K$1:$AU$7000,MATCH(Assets!O$1&"|"&Assets!$B36,'Data Annex'!$K$1:$K$7000,0),MATCH(Assets!O$2,'Data Annex'!$K$1:$AU$1,0)),"") -> 0.3184480055 | P36: =IFERROR(INDEX('Data Annex'!$K$1:$AU$7000,MATCH(Assets!P$1&"|"&Assets!$B36,'Data Annex'!$K$1:$K$7000,0),MATCH(Assets!P$2,'Data Annex'!$K$1:$AU$1,0)),"") -> 0.3092051983 | Q36: =IFERROR(INDEX('Data Annex'!$K$1:$AU$7000,MATCH(Assets!Q$1&"|"&Assets!$B36,'Data Annex'!$K$1:$K$7000,0),MATCH(Assets!Q$2,'Data Annex'!$K$1:$AU$1,0)),"") -> 0.613184366 | R36: =IFERROR(INDEX('Data Annex'!$K$1:$AU$7000,MATCH(Assets!R$1&"|"&Assets!$B36,'Data Annex'!$K$1:$K$7000,0),MATCH(Assets!R$2,'Data Annex'!$K$1:$AU$1,0)),"") -> 0.6065866119 | S36: =IFERROR(INDEX('Data Annex'!$K$1:$AU$7000,MATCH(Assets!S$1&"|"&Assets!$B36,'Data Annex'!$K$1:$K$7000,0),MATCH(Assets!S$2,'Data Annex'!$K$1:$AU$1,0)),"") -> 0.6082336275 | T36: =IFERROR(INDEX('Data Annex'!$K$1:$AU$7000,MATCH(Assets!T$1&"|"&Assets!$B36,'Data Annex'!$K$1:$K$7000,0),MATCH(Assets!T$2,'Data Annex'!$K$1:$AU$1,0)),"") -> 0.6115369835 | U36: =IFERROR(INDEX('Data Annex'!$K$1:$AU$7000,MATCH(Assets!U$1&"|"&Assets!$B36,'Data Annex'!$K$1:$K$7000,0),MATCH(Assets!U$2,'Data Annex'!$K$1:$AU$1,0)),"") -> 0.01792566536 | V36: =IFERROR(INDEX('Data Annex'!$K$1:$AU$7000,MATCH(Assets!V$1&"|"&Assets!$B36,'Data Annex'!$K$1:$K$7000,0),MATCH(Assets!V$2,'Data Annex'!$K$1:$AU$1,0)),"") -> 0.0163303806 | W36: =IFERROR(INDEX('Data Annex'!$K$1:$AU$7000,MATCH(Assets!W$1&"|"&Assets!$B36,'Data Annex'!$K$1:$K$7000,0),MATCH(Assets!W$2,'Data Annex'!$K$1:$AU$1,0)),"") -> 0.01511707052 | X36: =IFERROR(INDEX('Data Annex'!$K$1:$AU$7000,MATCH(Assets!X$1&"|"&Assets!$B36,'Data Annex'!$K$1:$K$7000,0),MATCH(Assets!X$2,'Data Annex'!$K$1:$AU$1,0)),"") -> 0.02041932499 | Y36: =IFERROR(INDEX('Data Annex'!$K$1:$AU$7000,MATCH(Assets!Y$1&"|"&Assets!$B36,'Data Annex'!$K$1:$K$7000,0),MATCH(Assets!Y$2,'Data Annex'!$K$1:$AU$1,0)),"") -> 0.03391852098 | Z36: =IFERROR(INDEX('Data Annex'!$K$1:$AU$7000,MATCH(Assets!Z$1&"|"&Assets!$B36,'Data Annex'!$K$1:$K$7000,0),MATCH(Assets!Z$2,'Data Annex'!$K$1:$AU$1,0)),"") -> 0.03350532478 | AA36: =IFERROR(INDEX('Data Annex'!$K$1:$AU$7000,MATCH(Assets!AA$1&"|"&Assets!$B36,'Data Annex'!$K$1:$K$7000,0),MATCH(Assets!AA$2,'Data Annex'!$K$1:$AU$1,0)),"") -> 0.03418764199 | AB36: =IFERROR(INDEX('Data Annex'!$K$1:$AU$7000,MATCH(Assets!AB$1&"|"&Assets!$B36,'Data Annex'!$K$1:$K$7000,0),MATCH(Assets!AB$2,'Data Annex'!$K$1:$AU$1,0)),"") -> 0.03355919024 | AC36: =IFERROR(INDEX('Data Annex'!$K$1:$AH$6000,MATCH(Assets!AC$1&"|"&Assets!$B36,'Data Annex'!$K$1:$K$6000,0),MATCH(Assets!AC$2,'Data Annex'!$K$1:$AH$1,0)),"") -> 
B37: PT | D37: PT | E37: =IFERROR(INDEX('Data Annex'!$K$1:$AU$7000,MATCH(Assets!E$1&"|"&Assets!$B37,'Data Annex'!$K$1:$K$7000,0),MATCH(Assets!E$2,'Data Annex'!$K$1:$AU$1,0)),"") -> 0.09463629836 | F37: =IFERROR(INDEX('Data Annex'!$K$1:$AU$7000,MATCH(Assets!F$1&"|"&Assets!$B37,'Data Annex'!$K$1:$K$7000,0),MATCH(Assets!F$2,'Data Annex'!$K$1:$AU$1,0)),"") -> 0.112388748 | G37: =IFERROR(INDEX('Data Annex'!$K$1:$AU$7000,MATCH(Assets!G$1&"|"&Assets!$B37,'Data Annex'!$K$1:$K$7000,0),MATCH(Assets!G$2,'Data Annex'!$K$1:$AU$1,0)),"") -> 0.124579034 | H37: =IFERROR(INDEX('Data Annex'!$K$1:$AU$7000,MATCH(Assets!H$1&"|"&Assets!$B37,'Data Annex'!$K$1:$K$7000,0),MATCH(Assets!H$2,'Data Annex'!$K$1:$AU$1,0)),"") -> 0.1419869508 | I37: =IFERROR(INDEX('Data Annex'!$K$1:$AU$7000,MATCH(Assets!I$1&"|"&Assets!$B37,'Data Annex'!$K$1:$K$7000,0),MATCH(Assets!I$2,'Data Annex'!$K$1:$AU$1,0)),"") -> 0.01298163945 | J37: =IFERROR(INDEX('Data Annex'!$K$1:$AU$7000,MATCH(Assets!J$1&"|"&Assets!$B37,'Data Annex'!$K$1:$K$7000,0),MATCH(Assets!J$2,'Data Annex'!$K$1:$AU$1,0)),"") -> 0.01177688649 | K37: =IFERROR(INDEX('Data Annex'!$K$1:$AU$7000,MATCH(Assets!K$1&"|"&Assets!$B37,'Data Annex'!$K$1:$K$7000,0),MATCH(Assets!K$2,'Data Annex'!$K$1:$AU$1,0)),"") -> 0.0115217447 | L37: =IFERROR(INDEX('Data Annex'!$K$1:$AU$7000,MATCH(Assets!L$1&"|"&Assets!$B37,'Data Annex'!$K$1:$K$7000,0),MATCH(Assets!L$2,'Data Annex'!$K$1:$AU$1,0)),"") -> 0.01112260845 | M37: =IFERROR(INDEX('Data Annex'!$K$1:$AU$7000,MATCH(Assets!M$1&"|"&Assets!$B37,'Data Annex'!$K$1:$K$7000,0),MATCH(Assets!M$2,'Data Annex'!$K$1:$AU$1,0)),"") -> 0.2315986315 | N37: =IFERROR(INDEX('Data Annex'!$K$1:$AU$7000,MATCH(Assets!N$1&"|"&Assets!$B37,'Data Annex'!$K$1:$K$7000,0),MATCH(Assets!N$2,'Data Annex'!$K$1:$AU$1,0)),"") -> 0.2262370563 | O37: =IFERROR(INDEX('Data Annex'!$K$1:$AU$7000,MATCH(Assets!O$1&"|"&Assets!$B37,'Data Annex'!$K$1:$K$7000,0),MATCH(Assets!O$2,'Data Annex'!$K$1:$AU$1,0)),"") -> 0.2277410151 | P37: =IFERROR(INDEX('Data Annex'!$K$1:$AU$7000,MATCH(Assets!P$1&"|"&Assets!$B37,'Data Annex'!$K$1:$K$7000,0),MATCH(Assets!P$2,'Data Annex'!$K$1:$AU$1,0)),"") -> 0.2124429354 | Q37: =IFERROR(INDEX('Data Annex'!$K$1:$AU$7000,MATCH(Assets!Q$1&"|"&Assets!$B37,'Data Annex'!$K$1:$K$7000,0),MATCH(Assets!Q$2,'Data Annex'!$K$1:$AU$1,0)),"") -> 0.5896066008 | R37: =IFERROR(INDEX('Data Annex'!$K$1:$AU$7000,MATCH(Assets!R$1&"|"&Assets!$B37,'Data Annex'!$K$1:$K$7000,0),MATCH(Assets!R$2,'Data Annex'!$K$1:$AU$1,0)),"") -> 0.5759032136 | S37: =IFERROR(INDEX('Data Annex'!$K$1:$AU$7000,MATCH(Assets!S$1&"|"&Assets!$B37,'Data Annex'!$K$1:$K$7000,0),MATCH(Assets!S$2,'Data Annex'!$K$1:$AU$1,0)),"") -> 0.566319058 | T37: =IFERROR(INDEX('Data Annex'!$K$1:$AU$7000,MATCH(Assets!T$1&"|"&Assets!$B37,'Data Annex'!$K$1:$K$7000,0),MATCH(Assets!T$2,'Data Annex'!$K$1:$AU$1,0)),"") -> 0.5671065308 | U37: =IFERROR(INDEX('Data Annex'!$K$1:$AU$7000,MATCH(Assets!U$1&"|"&Assets!$B37,'Data Annex'!$K$1:$K$7000,0),MATCH(Assets!U$2,'Data Annex'!$K$1:$AU$1,0)),"") -> 0.009164001294 | V37: =IFERROR(INDEX('Data Annex'!$K$1:$AU$7000,MATCH(Assets!V$1&"|"&Assets!$B37,'Data Annex'!$K$1:$K$7000,0),MATCH(Assets!V$2,'Data Annex'!$K$1:$AU$1,0)),"") -> 0.009242769734 | W37: =IFERROR(INDEX('Data Annex'!$K$1:$AU$7000,MATCH(Assets!W$1&"|"&Assets!$B37,'Data Annex'!$K$1:$K$7000,0),MATCH(Assets!W$2,'Data Annex'!$K$1:$AU$1,0)),"") -> 0.007810560893 | X37: =IFERROR(INDEX('Data Annex'!$K$1:$AU$7000,MATCH(Assets!X$1&"|"&Assets!$B37,'Data Annex'!$K$1:$K$7000,0),MATCH(Assets!X$2,'Data Annex'!$K$1:$AU$1,0)),"") -> 0.006969842037 | Y37: =IFERROR(INDEX('Data Annex'!$K$1:$AU$7000,MATCH(Assets!Y$1&"|"&Assets!$B37,'Data Annex'!$K$1:$K$7000,0),MATCH(Assets!Y$2,'Data Annex'!$K$1:$AU$1,0)),"") -> 0.06201282856 | Z37: =IFERROR(INDEX('Data Annex'!$K$1:$AU$7000,MATCH(Assets!Z$1&"|"&Assets!$B37,'Data Annex'!$K$1:$K$7000,0),MATCH(Assets!Z$2,'Data Annex'!$K$1:$AU$1,0)),"") -> 0.06445132589 | AA37: =IFERROR(INDEX('Data Annex'!$K$1:$AU$7000,MATCH(Assets!AA$1&"|"&Assets!$B37,'Data Annex'!$K$1:$K$7000,0),MATCH(Assets!AA$2,'Data Annex'!$K$1:$AU$1,0)),"") -> 0.06202858734 | AB37: =IFERROR(INDEX('Data Annex'!$K$1:$AU$7000,MATCH(Assets!AB$1&"|"&Assets!$B37,'Data Annex'!$K$1:$K$7000,0),MATCH(Assets!AB$2,'Data Annex'!$K$1:$AU$1,0)),"") -> 0.06037113249 | AC37: =IFERROR(INDEX('Data Annex'!$K$1:$AH$6000,MATCH(Assets!AC$1&"|"&Assets!$B37,'Data Annex'!$K$1:$K$6000,0),MATCH(Assets!AC$2,'Data Annex'!$K$1:$AH$1,0)),"") -> 
B38: RO | D38: RO | E38: =IFERROR(INDEX('Data Annex'!$K$1:$AU$7000,MATCH(Assets!E$1&"|"&Assets!$B38,'Data Annex'!$K$1:$K$7000,0),MATCH(Assets!E$2,'Data Annex'!$K$1:$AU$1,0)),"") -> 0.1659597997 | F38: =IFERROR(INDEX('Data Annex'!$K$1:$AU$7000,MATCH(Assets!F$1&"|"&Assets!$B38,'Data Annex'!$K$1:$K$7000,0),MATCH(Assets!F$2,'Data Annex'!$K$1:$AU$1,0)),"") -> 0.1387467111 | G38: =IFERROR(INDEX('Data Annex'!$K$1:$AU$7000,MATCH(Assets!G$1&"|"&Assets!$B38,'Data Annex'!$K$1:$K$7000,0),MATCH(Assets!G$2,'Data Annex'!$K$1:$AU$1,0)),"") -> 0.1439059364 | H38: =IFERROR(INDEX('Data Annex'!$K$1:$AU$7000,MATCH(Assets!H$1&"|"&Assets!$B38,'Data Annex'!$K$1:$K$7000,0),MATCH(Assets!H$2,'Data Annex'!$K$1:$AU$1,0)),"") -> 0.1411917603 | I38: =IFERROR(INDEX('Data Annex'!$K$1:$AU$7000,MATCH(Assets!I$1&"|"&Assets!$B38,'Data Annex'!$K$1:$K$7000,0),MATCH(Assets!I$2,'Data Annex'!$K$1:$AU$1,0)),"") -> 0.001590577593 | J38: =IFERROR(INDEX('Data Annex'!$K$1:$AU$7000,MATCH(Assets!J$1&"|"&Assets!$B38,'Data Annex'!$K$1:$K$7000,0),MATCH(Assets!J$2,'Data Annex'!$K$1:$AU$1,0)),"") -> 0.001466274927 | K38: =IFERROR(INDEX('Data Annex'!$K$1:$AU$7000,MATCH(Assets!K$1&"|"&Assets!$B38,'Data Annex'!$K$1:$K$7000,0),MATCH(Assets!K$2,'Data Annex'!$K$1:$AU$1,0)),"") -> 0.00129209796 | L38: =IFERROR(INDEX('Data Annex'!$K$1:$AU$7000,MATCH(Assets!L$1&"|"&Assets!$B38,'Data Annex'!$K$1:$K$7000,0),MATCH(Assets!L$2,'Data Annex'!$K$1:$AU$1,0)),"") -> 0.001282410837 | M38: =IFERROR(INDEX('Data Annex'!$K$1:$AU$7000,MATCH(Assets!M$1&"|"&Assets!$B38,'Data Annex'!$K$1:$K$7000,0),MATCH(Assets!M$2,'Data Annex'!$K$1:$AU$1,0)),"") -> 0.2934949597 | N38: =IFERROR(INDEX('Data Annex'!$K$1:$AU$7000,MATCH(Assets!N$1&"|"&Assets!$B38,'Data Annex'!$K$1:$K$7000,0),MATCH(Assets!N$2,'Data Annex'!$K$1:$AU$1,0)),"") -> 0.3180667251 | O38: =IFERROR(INDEX('Data Annex'!$K$1:$AU$7000,MATCH(Assets!O$1&"|"&Assets!$B38,'Data Annex'!$K$1:$K$7000,0),MATCH(Assets!O$2,'Data Annex'!$K$1:$AU$1,0)),"") -> 0.3195584518 | P38: =IFERROR(INDEX('Data Annex'!$K$1:$AU$7000,MATCH(Assets!P$1&"|"&Assets!$B38,'Data Annex'!$K$1:$K$7000,0),MATCH(Assets!P$2,'Data Annex'!$K$1:$AU$1,0)),"") -> 0.3249247501 | Q38: =IFERROR(INDEX('Data Annex'!$K$1:$AU$7000,MATCH(Assets!Q$1&"|"&Assets!$B38,'Data Annex'!$K$1:$K$7000,0),MATCH(Assets!Q$2,'Data Annex'!$K$1:$AU$1,0)),"") -> 0.5151142522 | R38: =IFERROR(INDEX('Data Annex'!$K$1:$AU$7000,MATCH(Assets!R$1&"|"&Assets!$B38,'Data Annex'!$K$1:$K$7000,0),MATCH(Assets!R$2,'Data Annex'!$K$1:$AU$1,0)),"") -> 0.5193698681 | S38: =IFERROR(INDEX('Data Annex'!$K$1:$AU$7000,MATCH(Assets!S$1&"|"&Assets!$B38,'Data Annex'!$K$1:$K$7000,0),MATCH(Assets!S$2,'Data Annex'!$K$1:$AU$1,0)),"") -> 0.5133705174 | T38: =IFERROR(INDEX('Data Annex'!$K$1:$AU$7000,MATCH(Assets!T$1&"|"&Assets!$B38,'Data Annex'!$K$1:$K$7000,0),MATCH(Assets!T$2,'Data Annex'!$K$1:$AU$1,0)),"") -> 0.5106786009 | U38: =IFERROR(INDEX('Data Annex'!$K$1:$AU$7000,MATCH(Assets!U$1&"|"&Assets!$B38,'Data Annex'!$K$1:$K$7000,0),MATCH(Assets!U$2,'Data Annex'!$K$1:$AU$1,0)),"") -> 0.0007602199278 | V38: =IFERROR(INDEX('Data Annex'!$K$1:$AU$7000,MATCH(Assets!V$1&"|"&Assets!$B38,'Data Annex'!$K$1:$K$7000,0),MATCH(Assets!V$2,'Data Annex'!$K$1:$AU$1,0)),"") -> 0.0006231655663 | W38: =IFERROR(INDEX('Data Annex'!$K$1:$AU$7000,MATCH(Assets!W$1&"|"&Assets!$B38,'Data Annex'!$K$1:$K$7000,0),MATCH(Assets!W$2,'Data Annex'!$K$1:$AU$1,0)),"") -> 0.0005279953456 | X38: =IFERROR(INDEX('Data Annex'!$K$1:$AU$7000,MATCH(Assets!X$1&"|"&Assets!$B38,'Data Annex'!$K$1:$K$7000,0),MATCH(Assets!X$2,'Data Annex'!$K$1:$AU$1,0)),"") -> 0.0005144237901 | Y38: =IFERROR(INDEX('Data Annex'!$K$1:$AU$7000,MATCH(Assets!Y$1&"|"&Assets!$B38,'Data Annex'!$K$1:$K$7000,0),MATCH(Assets!Y$2,'Data Annex'!$K$1:$AU$1,0)),"") -> 0.02308019091 | Z38: =IFERROR(INDEX('Data Annex'!$K$1:$AU$7000,MATCH(Assets!Z$1&"|"&Assets!$B38,'Data Annex'!$K$1:$K$7000,0),MATCH(Assets!Z$2,'Data Annex'!$K$1:$AU$1,0)),"") -> 0.02172725526 | AA38: =IFERROR(INDEX('Data Annex'!$K$1:$AU$7000,MATCH(Assets!AA$1&"|"&Assets!$B38,'Data Annex'!$K$1:$K$7000,0),MATCH(Assets!AA$2,'Data Annex'!$K$1:$AU$1,0)),"") -> 0.02134500108 | AB38: =IFERROR(INDEX('Data Annex'!$K$1:$AU$7000,MATCH(Assets!AB$1&"|"&Assets!$B38,'Data Annex'!$K$1:$K$7000,0),MATCH(Assets!AB$2,'Data Annex'!$K$1:$AU$1,0)),"") -> 0.02140805409
B39: SE | D39: SE | E39: =IFERROR(INDEX('Data Annex'!$K$1:$AU$7000,MATCH(Assets!E$1&"|"&Assets!$B39,'Data Annex'!$K$1:$K$7000,0),MATCH(Assets!E$2,'Data Annex'!$K$1:$AU$1,0)),"") -> 0.1101895082 | F39: =IFERROR(INDEX('Data Annex'!$K$1:$AU$7000,MATCH(Assets!F$1&"|"&Assets!$B39,'Data Annex'!$K$1:$K$7000,0),MATCH(Assets!F$2,'Data Annex'!$K$1:$AU$1,0)),"") -> 0.1643870661 | G39: =IFERROR(INDEX('Data Annex'!$K$1:$AU$7000,MATCH(Assets!G$1&"|"&Assets!$B39,'Data Annex'!$K$1:$K$7000,0),MATCH(Assets!G$2,'Data Annex'!$K$1:$AU$1,0)),"") -> 0.1619285814 | H39: =IFERROR(INDEX('Data Annex'!$K$1:$AU$7000,MATCH(Assets!H$1&"|"&Assets!$B39,'Data Annex'!$K$1:$K$7000,0),MATCH(Assets!H$2,'Data Annex'!$K$1:$AU$1,0)),"") -> 0.1769948769 | I39: =IFERROR(INDEX('Data Annex'!$K$1:$AU$7000,MATCH(Assets!I$1&"|"&Assets!$B39,'Data Annex'!$K$1:$K$7000,0),MATCH(Assets!I$2,'Data Annex'!$K$1:$AU$1,0)),"") -> 0.01091270644 | J39: =IFERROR(INDEX('Data Annex'!$K$1:$AU$7000,MATCH(Assets!J$1&"|"&Assets!$B39,'Data Annex'!$K$1:$K$7000,0),MATCH(Assets!J$2,'Data Annex'!$K$1:$AU$1,0)),"") -> 0.01180735526 | K39: =IFERROR(INDEX('Data Annex'!$K$1:$AU$7000,MATCH(Assets!K$1&"|"&Assets!$B39,'Data Annex'!$K$1:$K$7000,0),MATCH(Assets!K$2,'Data Annex'!$K$1:$AU$1,0)),"") -> 0.01230496239 | L39: =IFERROR(INDEX('Data Annex'!$K$1:$AU$7000,MATCH(Assets!L$1&"|"&Assets!$B39,'Data Annex'!$K$1:$K$7000,0),MATCH(Assets!L$2,'Data Annex'!$K$1:$AU$1,0)),"") -> 0.0151570379 | M39: =IFERROR(INDEX('Data Annex'!$K$1:$AU$7000,MATCH(Assets!M$1&"|"&Assets!$B39,'Data Annex'!$K$1:$K$7000,0),MATCH(Assets!M$2,'Data Annex'!$K$1:$AU$1,0)),"") -> 0.08123006452 | N39: =IFERROR(INDEX('Data Annex'!$K$1:$AU$7000,MATCH(Assets!N$1&"|"&Assets!$B39,'Data Annex'!$K$1:$K$7000,0),MATCH(Assets!N$2,'Data Annex'!$K$1:$AU$1,0)),"") -> 0.08444328609 | O39: =IFERROR(INDEX('Data Annex'!$K$1:$AU$7000,MATCH(Assets!O$1&"|"&Assets!$B39,'Data Annex'!$K$1:$K$7000,0),MATCH(Assets!O$2,'Data Annex'!$K$1:$AU$1,0)),"") -> 0.08964348509 | P39: =IFERROR(INDEX('Data Annex'!$K$1:$AU$7000,MATCH(Assets!P$1&"|"&Assets!$B39,'Data Annex'!$K$1:$K$7000,0),MATCH(Assets!P$2,'Data Annex'!$K$1:$AU$1,0)),"") -> 0.08257495316 | Q39: =IFERROR(INDEX('Data Annex'!$K$1:$AU$7000,MATCH(Assets!Q$1&"|"&Assets!$B39,'Data Annex'!$K$1:$K$7000,0),MATCH(Assets!Q$2,'Data Annex'!$K$1:$AU$1,0)),"") -> 0.7545198456 | R39: =IFERROR(INDEX('Data Annex'!$K$1:$AU$7000,MATCH(Assets!R$1&"|"&Assets!$B39,'Data Annex'!$K$1:$K$7000,0),MATCH(Assets!R$2,'Data Annex'!$K$1:$AU$1,0)),"") -> 0.7009014526 | S39: =IFERROR(INDEX('Data Annex'!$K$1:$AU$7000,MATCH(Assets!S$1&"|"&Assets!$B39,'Data Annex'!$K$1:$K$7000,0),MATCH(Assets!S$2,'Data Annex'!$K$1:$AU$1,0)),"") -> 0.7028884337 | T39: =IFERROR(INDEX('Data Annex'!$K$1:$AU$7000,MATCH(Assets!T$1&"|"&Assets!$B39,'Data Annex'!$K$1:$K$7000,0),MATCH(Assets!T$2,'Data Annex'!$K$1:$AU$1,0)),"") -> 0.6921791447 | U39: =IFERROR(INDEX('Data Annex'!$K$1:$AU$7000,MATCH(Assets!U$1&"|"&Assets!$B39,'Data Annex'!$K$1:$K$7000,0),MATCH(Assets!U$2,'Data Annex'!$K$1:$AU$1,0)),"") -> 0.02765538017 | V39: =IFERROR(INDEX('Data Annex'!$K$1:$AU$7000,MATCH(Assets!V$1&"|"&Assets!$B39,'Data Annex'!$K$1:$K$7000,0),MATCH(Assets!V$2,'Data Annex'!$K$1:$AU$1,0)),"") -> 0.02319057298 | W39: =IFERROR(INDEX('Data Annex'!$K$1:$AU$7000,MATCH(Assets!W$1&"|"&Assets!$B39,'Data Annex'!$K$1:$K$7000,0),MATCH(Assets!W$2,'Data Annex'!$K$1:$AU$1,0)),"") -> 0.01901800647 | X39: =IFERROR(INDEX('Data Annex'!$K$1:$AU$7000,MATCH(Assets!X$1&"|"&Assets!$B39,'Data Annex'!$K$1:$K$7000,0),MATCH(Assets!X$2,'Data Annex'!$K$1:$AU$1,0)),"") -> 0.01965899978 | Y39: =IFERROR(INDEX('Data Annex'!$K$1:$AU$7000,MATCH(Assets!Y$1&"|"&Assets!$B39,'Data Annex'!$K$1:$K$7000,0),MATCH(Assets!Y$2,'Data Annex'!$K$1:$AU$1,0)),"") -> 0.01549249511 | Z39: =IFERROR(INDEX('Data Annex'!$K$1:$AU$7000,MATCH(Assets!Z$1&"|"&Assets!$B39,'Data Annex'!$K$1:$K$7000,0),MATCH(Assets!Z$2,'Data Annex'!$K$1:$AU$1,0)),"") -> 0.01527026693 | AA39: =IFERROR(INDEX('Data Annex'!$K$1:$AU$7000,MATCH(Assets!AA$1&"|"&Assets!$B39,'Data Annex'!$K$1:$K$7000,0),MATCH(Assets!AA$2,'Data Annex'!$K$1:$AU$1,0)),"") -> 0.01421653089 | AB39: =IFERROR(INDEX('Data Annex'!$K$1:$AU$7000,MATCH(Assets!AB$1&"|"&Assets!$B39,'Data Annex'!$K$1:$K$7000,0),MATCH(Assets!AB$2,'Data Annex'!$K$1:$AU$1,0)),"") -> 0.01343498759
B40: SI | D40: SI | E40: =IFERROR(INDEX('Data Annex'!$K$1:$AU$7000,MATCH(Assets!E$1&"|"&Assets!$B40,'Data Annex'!$K$1:$K$7000,0),MATCH(Assets!E$2,'Data Annex'!$K$1:$AU$1,0)),"") -> 0.203725226 | F40: =IFERROR(INDEX('Data Annex'!$K$1:$AU$7000,MATCH(Assets!F$1&"|"&Assets!$B40,'Data Annex'!$K$1:$K$7000,0),MATCH(Assets!F$2,'Data Annex'!$K$1:$AU$1,0)),"") -> 0.2123513694 | G40: =IFERROR(INDEX('Data Annex'!$K$1:$AU$7000,MATCH(Assets!G$1&"|"&Assets!$B40,'Data Annex'!$K$1:$K$7000,0),MATCH(Assets!G$2,'Data Annex'!$K$1:$AU$1,0)),"") -> 0.2292174337 | H40: =IFERROR(INDEX('Data Annex'!$K$1:$AU$7000,MATCH(Assets!H$1&"|"&Assets!$B40,'Data Annex'!$K$1:$K$7000,0),MATCH(Assets!H$2,'Data Annex'!$K$1:$AU$1,0)),"") -> 0.2327196356 | I40: =IFERROR(INDEX('Data Annex'!$K$1:$AU$7000,MATCH(Assets!I$1&"|"&Assets!$B40,'Data Annex'!$K$1:$K$7000,0),MATCH(Assets!I$2,'Data Annex'!$K$1:$AU$1,0)),"") -> 0.005422165868 | J40: =IFERROR(INDEX('Data Annex'!$K$1:$AU$7000,MATCH(Assets!J$1&"|"&Assets!$B40,'Data Annex'!$K$1:$K$7000,0),MATCH(Assets!J$2,'Data Annex'!$K$1:$AU$1,0)),"") -> 0.005196816504 | K40: =IFERROR(INDEX('Data Annex'!$K$1:$AU$7000,MATCH(Assets!K$1&"|"&Assets!$B40,'Data Annex'!$K$1:$K$7000,0),MATCH(Assets!K$2,'Data Annex'!$K$1:$AU$1,0)),"") -> 0.005016833313 | L40: =IFERROR(INDEX('Data Annex'!$K$1:$AU$7000,MATCH(Assets!L$1&"|"&Assets!$B40,'Data Annex'!$K$1:$K$7000,0),MATCH(Assets!L$2,'Data Annex'!$K$1:$AU$1,0)),"") -> 0.004983309547 | M40: =IFERROR(INDEX('Data Annex'!$K$1:$AU$7000,MATCH(Assets!M$1&"|"&Assets!$B40,'Data Annex'!$K$1:$K$7000,0),MATCH(Assets!M$2,'Data Annex'!$K$1:$AU$1,0)),"") -> 0.2370919889 | N40: =IFERROR(INDEX('Data Annex'!$K$1:$AU$7000,MATCH(Assets!N$1&"|"&Assets!$B40,'Data Annex'!$K$1:$K$7000,0),MATCH(Assets!N$2,'Data Annex'!$K$1:$AU$1,0)),"") -> 0.233491836 | O40: =IFERROR(INDEX('Data Annex'!$K$1:$AU$7000,MATCH(Assets!O$1&"|"&Assets!$B40,'Data Annex'!$K$1:$K$7000,0),MATCH(Assets!O$2,'Data Annex'!$K$1:$AU$1,0)),"") -> 0.2286220957 | P40: =IFERROR(INDEX('Data Annex'!$K$1:$AU$7000,MATCH(Assets!P$1&"|"&Assets!$B40,'Data Annex'!$K$1:$K$7000,0),MATCH(Assets!P$2,'Data Annex'!$K$1:$AU$1,0)),"") -> 0.2206796251 | Q40: =IFERROR(INDEX('Data Annex'!$K$1:$AU$7000,MATCH(Assets!Q$1&"|"&Assets!$B40,'Data Annex'!$K$1:$K$7000,0),MATCH(Assets!Q$2,'Data Annex'!$K$1:$AU$1,0)),"") -> 0.5285457943 | R40: =IFERROR(INDEX('Data Annex'!$K$1:$AU$7000,MATCH(Assets!R$1&"|"&Assets!$B40,'Data Annex'!$K$1:$K$7000,0),MATCH(Assets!R$2,'Data Annex'!$K$1:$AU$1,0)),"") -> 0.5244225386 | S40: =IFERROR(INDEX('Data Annex'!$K$1:$AU$7000,MATCH(Assets!S$1&"|"&Assets!$B40,'Data Annex'!$K$1:$K$7000,0),MATCH(Assets!S$2,'Data Annex'!$K$1:$AU$1,0)),"") -> 0.5140190037 | T40: =IFERROR(INDEX('Data Annex'!$K$1:$AU$7000,MATCH(Assets!T$1&"|"&Assets!$B40,'Data Annex'!$K$1:$K$7000,0),MATCH(Assets!T$2,'Data Annex'!$K$1:$AU$1,0)),"") -> 0.5195650586 | U40: =IFERROR(INDEX('Data Annex'!$K$1:$AU$7000,MATCH(Assets!U$1&"|"&Assets!$B40,'Data Annex'!$K$1:$K$7000,0),MATCH(Assets!U$2,'Data Annex'!$K$1:$AU$1,0)),"") -> 0.001002482985 | V40: =IFERROR(INDEX('Data Annex'!$K$1:$AU$7000,MATCH(Assets!V$1&"|"&Assets!$B40,'Data Annex'!$K$1:$K$7000,0),MATCH(Assets!V$2,'Data Annex'!$K$1:$AU$1,0)),"") -> 0.0008929426239 | W40: =IFERROR(INDEX('Data Annex'!$K$1:$AU$7000,MATCH(Assets!W$1&"|"&Assets!$B40,'Data Annex'!$K$1:$K$7000,0),MATCH(Assets!W$2,'Data Annex'!$K$1:$AU$1,0)),"") -> 0.0007637968548 | X40: =IFERROR(INDEX('Data Annex'!$K$1:$AU$7000,MATCH(Assets!X$1&"|"&Assets!$B40,'Data Annex'!$K$1:$K$7000,0),MATCH(Assets!X$2,'Data Annex'!$K$1:$AU$1,0)),"") -> 0.0006484236044 | Y40: =IFERROR(INDEX('Data Annex'!$K$1:$AU$7000,MATCH(Assets!Y$1&"|"&Assets!$B40,'Data Annex'!$K$1:$K$7000,0),MATCH(Assets!Y$2,'Data Annex'!$K$1:$AU$1,0)),"") -> 0.0242123419 | Z40: =IFERROR(INDEX('Data Annex'!$K$1:$AU$7000,MATCH(Assets!Z$1&"|"&Assets!$B40,'Data Annex'!$K$1:$K$7000,0),MATCH(Assets!Z$2,'Data Annex'!$K$1:$AU$1,0)),"") -> 0.02364452704 | AA40: =IFERROR(INDEX('Data Annex'!$K$1:$AU$7000,MATCH(Assets!AA$1&"|"&Assets!$B40,'Data Annex'!$K$1:$K$7000,0),MATCH(Assets!AA$2,'Data Annex'!$K$1:$AU$1,0)),"") -> 0.02236083674 | AB40: =IFERROR(INDEX('Data Annex'!$K$1:$AU$7000,MATCH(Assets!AB$1&"|"&Assets!$B40,'Data Annex'!$K$1:$K$7000,0),MATCH(Assets!AB$2,'Data Annex'!$K$1:$AU$1,0)),"") -> 0.02140391879
B41: SK | D41: =IF(OR(E41="n.a.",F41="n.a.",G41="n.a.",H41="n.a.",I41="n.a.",J41="n.a.",K41="n.a.",L41="n.a.",M41="n.a.",N41="n.a.",O41="n.a.",P41="n.a.",Q41="n.a.",R41="n.a.",S41="n.a.",T41="n.a.",U41="n.a.",V41="n.a.",W41="n.a.",X41="n.a.",Y41="n.a.",Z41="n.a.",AA41="n.a.",AB41="n.a."),$B41&"*",$B41) -> SK | E41: =IFERROR(INDEX('Data Annex'!$K$1:$AU$7000,MATCH(Assets!E$1&"|"&Assets!$B41,'Data Annex'!$K$1:$K$7000,0),MATCH(Assets!E$2,'Data Annex'!$K$1:$AU$1,0)),"") -> 0.07898247723 | F41: =IFERROR(INDEX('Data Annex'!$K$1:$AU$7000,MATCH(Assets!F$1&"|"&Assets!$B41,'Data Annex'!$K$1:$K$7000,0),MATCH(Assets!F$2,'Data Annex'!$K$1:$AU$1,0)),"") -> 0.1601895567 | G41: =IFERROR(INDEX('Data Annex'!$K$1:$AU$7000,MATCH(Assets!G$1&"|"&Assets!$B41,'Data Annex'!$K$1:$K$7000,0),MATCH(Assets!G$2,'Data Annex'!$K$1:$AU$1,0)),"") -> 0.1726191333 | H41: =IFERROR(INDEX('Data Annex'!$K$1:$AU$7000,MATCH(Assets!H$1&"|"&Assets!$B41,'Data Annex'!$K$1:$K$7000,0),MATCH(Assets!H$2,'Data Annex'!$K$1:$AU$1,0)),"") -> 0.1492943482 | I41: =IFERROR(INDEX('Data Annex'!$K$1:$AU$7000,MATCH(Assets!I$1&"|"&Assets!$B41,'Data Annex'!$K$1:$K$7000,0),MATCH(Assets!I$2,'Data Annex'!$K$1:$AU$1,0)),"") -> 0.0003932405483 | J41: =IFERROR(INDEX('Data Annex'!$K$1:$AU$7000,MATCH(Assets!J$1&"|"&Assets!$B41,'Data Annex'!$K$1:$K$7000,0),MATCH(Assets!J$2,'Data Annex'!$K$1:$AU$1,0)),"") -> 0.000370030514 | K41: =IFERROR(INDEX('Data Annex'!$K$1:$AU$7000,MATCH(Assets!K$1&"|"&Assets!$B41,'Data Annex'!$K$1:$K$7000,0),MATCH(Assets!K$2,'Data Annex'!$K$1:$AU$1,0)),"") -> 0.0003664966174 | L41: =IFERROR(INDEX('Data Annex'!$K$1:$AU$7000,MATCH(Assets!L$1&"|"&Assets!$B41,'Data Annex'!$K$1:$K$7000,0),MATCH(Assets!L$2,'Data Annex'!$K$1:$AU$1,0)),"") -> 0.0003513766555 | M41: =IFERROR(INDEX('Data Annex'!$K$1:$AU$7000,MATCH(Assets!M$1&"|"&Assets!$B41,'Data Annex'!$K$1:$K$7000,0),MATCH(Assets!M$2,'Data Annex'!$K$1:$AU$1,0)),"") -> 0.1378912315 | N41: =IFERROR(INDEX('Data Annex'!$K$1:$AU$7000,MATCH(Assets!N$1&"|"&Assets!$B41,'Data Annex'!$K$1:$K$7000,0),MATCH(Assets!N$2,'Data Annex'!$K$1:$AU$1,0)),"") -> 0.1206303187 | O41: =IFERROR(INDEX('Data Annex'!$K$1:$AU$7000,MATCH(Assets!O$1&"|"&Assets!$B41,'Data Annex'!$K$1:$K$7000,0),MATCH(Assets!O$2,'Data Annex'!$K$1:$AU$1,0)),"") -> 0.1225118168 | P41: =IFERROR(INDEX('Data Annex'!$K$1:$AU$7000,MATCH(Assets!P$1&"|"&Assets!$B41,'Data Annex'!$K$1:$K$7000,0),MATCH(Assets!P$2,'Data Annex'!$K$1:$AU$1,0)),"") -> 0.1195260656 | Q41: =IFERROR(INDEX('Data Annex'!$K$1:$AU$7000,MATCH(Assets!Q$1&"|"&Assets!$B41,'Data Annex'!$K$1:$K$7000,0),MATCH(Assets!Q$2,'Data Annex'!$K$1:$AU$1,0)),"") -> 0.7589152518 | R41: =IFERROR(INDEX('Data Annex'!$K$1:$AU$7000,MATCH(Assets!R$1&"|"&Assets!$B41,'Data Annex'!$K$1:$K$7000,0),MATCH(Assets!R$2,'Data Annex'!$K$1:$AU$1,0)),"") -> 0.6973432662 | S41: =IFERROR(INDEX('Data Annex'!$K$1:$AU$7000,MATCH(Assets!S$1&"|"&Assets!$B41,'Data Annex'!$K$1:$K$7000,0),MATCH(Assets!S$2,'Data Annex'!$K$1:$AU$1,0)),"") -> 0.6846064295 | T41: =IFERROR(INDEX('Data Annex'!$K$1:$AU$7000,MATCH(Assets!T$1&"|"&Assets!$B41,'Data Annex'!$K$1:$K$7000,0),MATCH(Assets!T$2,'Data Annex'!$K$1:$AU$1,0)),"") -> 0.7119010625 | U41: =IFERROR(INDEX('Data Annex'!$K$1:$AU$7000,MATCH(Assets!U$1&"|"&Assets!$B41,'Data Annex'!$K$1:$K$7000,0),MATCH(Assets!U$2,'Data Annex'!$K$1:$AU$1,0)),"") -> 0.005529288483 | V41: =IFERROR(INDEX('Data Annex'!$K$1:$AU$7000,MATCH(Assets!V$1&"|"&Assets!$B41,'Data Annex'!$K$1:$K$7000,0),MATCH(Assets!V$2,'Data Annex'!$K$1:$AU$1,0)),"") -> 0.004371619738 | W41: =IFERROR(INDEX('Data Annex'!$K$1:$AU$7000,MATCH(Assets!W$1&"|"&Assets!$B41,'Data Annex'!$K$1:$K$7000,0),MATCH(Assets!W$2,'Data Annex'!$K$1:$AU$1,0)),"") -> 0.003951014222 | X41: =IFERROR(INDEX('Data Annex'!$K$1:$AU$7000,MATCH(Assets!X$1&"|"&Assets!$B41,'Data Annex'!$K$1:$K$7000,0),MATCH(Assets!X$2,'Data Annex'!$K$1:$AU$1,0)),"") -> 0.003859070147 | Y41: =IFERROR(INDEX('Data Annex'!$K$1:$AU$7000,MATCH(Assets!Y$1&"|"&Assets!$B41,'Data Annex'!$K$1:$K$7000,0),MATCH(Assets!Y$2,'Data Annex'!$K$1:$AU$1,0)),"") -> 0.01828851037 | Z41: =IFERROR(INDEX('Data Annex'!$K$1:$AU$7000,MATCH(Assets!Z$1&"|"&Assets!$B41,'Data Annex'!$K$1:$K$7000,0),MATCH(Assets!Z$2,'Data Annex'!$K$1:$AU$1,0)),"") -> 0.01709520818 | AA41: =IFERROR(INDEX('Data Annex'!$K$1:$AU$7000,MATCH(Assets!AA$1&"|"&Assets!$B41,'Data Annex'!$K$1:$K$7000,0),MATCH(Assets!AA$2,'Data Annex'!$K$1:$AU$1,0)),"") -> 0.01594510953 | AB41: =IFERROR(INDEX('Data Annex'!$K$1:$AU$7000,MATCH(Assets!AB$1&"|"&Assets!$B41,'Data Annex'!$K$1:$K$7000,0),MATCH(Assets!AB$2,'Data Annex'!$K$1:$AU$1,0)),"") -> 0.01506807684
B42: EU | D42: EU/EEA | E42: =IFERROR(INDEX('Data Annex'!$K$1:$AU$7000,MATCH(Assets!E$1&"|"&Assets!$B42,'Data Annex'!$K$1:$K$7000,0),MATCH(Assets!E$2,'Data Annex'!$K$1:$AU$1,0)),"") -> 0.1253901429 | F42: =IFERROR(INDEX('Data Annex'!$K$1:$AU$7000,MATCH(Assets!F$1&"|"&Assets!$B42,'Data Annex'!$K$1:$K$7000,0),MATCH(Assets!F$2,'Data Annex'!$K$1:$AU$1,0)),"") -> 0.1469574582 | G42: =IFERROR(INDEX('Data Annex'!$K$1:$AU$7000,MATCH(Assets!G$1&"|"&Assets!$B42,'Data Annex'!$K$1:$K$7000,0),MATCH(Assets!G$2,'Data Annex'!$K$1:$AU$1,0)),"") -> 0.1535643545 | H42: =IFERROR(INDEX('Data Annex'!$K$1:$AU$7000,MATCH(Assets!H$1&"|"&Assets!$B42,'Data Annex'!$K$1:$K$7000,0),MATCH(Assets!H$2,'Data Annex'!$K$1:$AU$1,0)),"") -> 0.160804468 | I42: =IFERROR(INDEX('Data Annex'!$K$1:$AU$7000,MATCH(Assets!I$1&"|"&Assets!$B42,'Data Annex'!$K$1:$K$7000,0),MATCH(Assets!I$2,'Data Annex'!$K$1:$AU$1,0)),"") -> 0.01395476302 | J42: =IFERROR(INDEX('Data Annex'!$K$1:$AU$7000,MATCH(Assets!J$1&"|"&Assets!$B42,'Data Annex'!$K$1:$K$7000,0),MATCH(Assets!J$2,'Data Annex'!$K$1:$AU$1,0)),"") -> 0.01713949726 | K42: =IFERROR(INDEX('Data Annex'!$K$1:$AU$7000,MATCH(Assets!K$1&"|"&Assets!$B42,'Data Annex'!$K$1:$K$7000,0),MATCH(Assets!K$2,'Data Annex'!$K$1:$AU$1,0)),"") -> 0.01874758241 | L42: =IFERROR(INDEX('Data Annex'!$K$1:$AU$7000,MATCH(Assets!L$1&"|"&Assets!$B42,'Data Annex'!$K$1:$K$7000,0),MATCH(Assets!L$2,'Data Annex'!$K$1:$AU$1,0)),"") -> 0.01884232988 | M42: =IFERROR(INDEX('Data Annex'!$K$1:$AU$7000,MATCH(Assets!M$1&"|"&Assets!$B42,'Data Annex'!$K$1:$K$7000,0),MATCH(Assets!M$2,'Data Annex'!$K$1:$AU$1,0)),"") -> 0.1253530012 | N42: =IFERROR(INDEX('Data Annex'!$K$1:$AU$7000,MATCH(Assets!N$1&"|"&Assets!$B42,'Data Annex'!$K$1:$K$7000,0),MATCH(Assets!N$2,'Data Annex'!$K$1:$AU$1,0)),"") -> 0.1277498809 | O42: =IFERROR(INDEX('Data Annex'!$K$1:$AU$7000,MATCH(Assets!O$1&"|"&Assets!$B42,'Data Annex'!$K$1:$K$7000,0),MATCH(Assets!O$2,'Data Annex'!$K$1:$AU$1,0)),"") -> 0.1268230984 | P42: =IFERROR(INDEX('Data Annex'!$K$1:$AU$7000,MATCH(Assets!P$1&"|"&Assets!$B42,'Data Annex'!$K$1:$K$7000,0),MATCH(Assets!P$2,'Data Annex'!$K$1:$AU$1,0)),"") -> 0.1231961663 | Q42: =IFERROR(INDEX('Data Annex'!$K$1:$AU$7000,MATCH(Assets!Q$1&"|"&Assets!$B42,'Data Annex'!$K$1:$K$7000,0),MATCH(Assets!Q$2,'Data Annex'!$K$1:$AU$1,0)),"") -> 0.6047538998 | R42: =IFERROR(INDEX('Data Annex'!$K$1:$AU$7000,MATCH(Assets!R$1&"|"&Assets!$B42,'Data Annex'!$K$1:$K$7000,0),MATCH(Assets!R$2,'Data Annex'!$K$1:$AU$1,0)),"") -> 0.5994439879 | S42: =IFERROR(INDEX('Data Annex'!$K$1:$AU$7000,MATCH(Assets!S$1&"|"&Assets!$B42,'Data Annex'!$K$1:$K$7000,0),MATCH(Assets!S$2,'Data Annex'!$K$1:$AU$1,0)),"") -> 0.5987835647 | T42: =IFERROR(INDEX('Data Annex'!$K$1:$AU$7000,MATCH(Assets!T$1&"|"&Assets!$B42,'Data Annex'!$K$1:$K$7000,0),MATCH(Assets!T$2,'Data Annex'!$K$1:$AU$1,0)),"") -> 0.595170379 | U42: =IFERROR(INDEX('Data Annex'!$K$1:$AU$7000,MATCH(Assets!U$1&"|"&Assets!$B42,'Data Annex'!$K$1:$K$7000,0),MATCH(Assets!U$2,'Data Annex'!$K$1:$AU$1,0)),"") -> 0.06870227931 | V42: =IFERROR(INDEX('Data Annex'!$K$1:$AU$7000,MATCH(Assets!V$1&"|"&Assets!$B42,'Data Annex'!$K$1:$K$7000,0),MATCH(Assets!V$2,'Data Annex'!$K$1:$AU$1,0)),"") -> 0.05778450128 | W42: =IFERROR(INDEX('Data Annex'!$K$1:$AU$7000,MATCH(Assets!W$1&"|"&Assets!$B42,'Data Annex'!$K$1:$K$7000,0),MATCH(Assets!W$2,'Data Annex'!$K$1:$AU$1,0)),"") -> 0.05383071364 | X42: =IFERROR(INDEX('Data Annex'!$K$1:$AU$7000,MATCH(Assets!X$1&"|"&Assets!$B42,'Data Annex'!$K$1:$K$7000,0),MATCH(Assets!X$2,'Data Annex'!$K$1:$AU$1,0)),"") -> 0.05318328612 | Y42: =IFERROR(INDEX('Data Annex'!$K$1:$AU$7000,MATCH(Assets!Y$1&"|"&Assets!$B42,'Data Annex'!$K$1:$K$7000,0),MATCH(Assets!Y$2,'Data Annex'!$K$1:$AU$1,0)),"") -> 0.06184591368 | Z42: =IFERROR(INDEX('Data Annex'!$K$1:$AU$7000,MATCH(Assets!Z$1&"|"&Assets!$B42,'Data Annex'!$K$1:$K$7000,0),MATCH(Assets!Z$2,'Data Annex'!$K$1:$AU$1,0)),"") -> 0.05092467452 | AA42: =IFERROR(INDEX('Data Annex'!$K$1:$AU$7000,MATCH(Assets!AA$1&"|"&Assets!$B42,'Data Annex'!$K$1:$K$7000,0),MATCH(Assets!AA$2,'Data Annex'!$K$1:$AU$1,0)),"") -> 0.0482506863 | AB42: =IFERROR(INDEX('Data Annex'!$K$1:$AU$7000,MATCH(Assets!AB$1&"|"&Assets!$B42,'Data Annex'!$K$1:$K$7000,0),MATCH(Assets!AB$2,'Data Annex'!$K$1:$AU$1,0)),"") -> 0.04880337073
F45: T02_1 | G45: T02_1 | H45: T02_1 | I45: T02_1 | J45: T02_2 | K45: T02_2 | L45: T02_2 | M45: T02_2 | P45: T03_1 | Q45: T03_1 | R45: T03_1 | S45: T03_1 | T45: T03_1 | U45: T03_2 | V45: T03_2 | W45: T03_2 | X45: T03_2 | Y45: T03_3 | Z45: T03_3 | AA45: T03_3 | AB45: T03_3
F46: =TEXT(F51,"YYYYMM")+0 -> 202012 | G46: 202103 | H46: 202106 | I46: 202109 | J46: 202012 | K46: 202103 | L46: 202106 | M46: 202109 | Q46: =TEXT(Q51,"YYYYMM")+0 -> 202012 | R46: =TEXT(R51,"YYYYMM")+0 -> 202103 | S46: =TEXT(S51,"YYYYMM")+0 -> 202106 | T46: =TEXT(T51,"YYYYMM")+0 -> 202109 | U46: =TEXT(U51,"YYYYMM")+0 -> 202012 | V46: 202103 | W46: 202106 | X46: 202109 | Y46: 202012 | Z46: 202103 | AA46: 202106 | AB46: 202109
D47: Assets | O47: Financial Assets
D49: Volumes bn EUR | O49: % of total financial assets
F50: Total Assets | J50: Total Financial Assets | Q50: Share of financial assets valued at (amortised) cost | U50: Share of financial assets at fair value through OCI | Y50: Share of financial assets at fair value through profit&loss
F51: =EOMONTH($A$3,-9) -> 2020-12-31 | G51: =EOMONTH($A$3,-6) -> 2021-03-31 | H51: =EOMONTH($A$3,-3) -> 2021-06-30 | I51: =$A$3 -> 2021-09-01 | J51: =EOMONTH($A$3,-9) -> 2020-12-31 | K51: =EOMONTH($A$3,-6) -> 2021-03-31 | L51: =EOMONTH($A$3,-3) -> 2021-06-30 | M51: =$A$3 -> 2021-09-01 | Q51: =EOMONTH($A$3,-9) -> 2020-12-31 | R51: =EOMONTH($A$3,-6) -> 2021-03-31 | S51: =EOMONTH($A$3,-3) -> 2021-06-30 | T51: =$A$3 -> 2021-09-01 | U51: =EOMONTH($A$3,-9) -> 2020-12-31 | V51: =EOMONTH($A$3,-6) -> 2021-03-31 | W51: =EOMONTH($A$3,-3) -> 2021-06-30 | X51: =$A$3 -> 2021-09-01 | Y51: =EOMONTH($A$3,-9) -> 2020-12-31 | Z51: =EOMONTH($A$3,-6) -> 2021-03-31 | AA51: =EOMONTH($A$3,-3) -> 2021-06-30 | AB51: =$A$3 -> 2021-09-01
B52: AT | D52: =IF(OR(F52="n.a.",G52="n.a.",H52="n.a.",I52="n.a.",J52="n.a.",K52="n.a.",L52="n.a.",M52="n.a."),$B52&"*",$B52) -> AT | F52: =IFERROR(INDEX('Data Annex'!$K$1:$AU$7000,MATCH(Assets!F$45&"|"&Assets!$B52,'Data Annex'!$K$1:$K$7000,0),MATCH(Assets!F$46,'Data Annex'!$K$1:$AU$1,0)),"") -> 705.0104197 | G52: =IFERROR(INDEX('Data Annex'!$K$1:$AU$7000,MATCH(Assets!G$45&"|"&Assets!$B52,'Data Annex'!$K$1:$K$7000,0),MATCH(Assets!G$46,'Data Annex'!$K$1:$AU$1,0)),"") -> 743.7521543 | H52: =IFERROR(INDEX('Data Annex'!$K$1:$AU$7000,MATCH(Assets!H$45&"|"&Assets!$B52,'Data Annex'!$K$1:$K$7000,0),MATCH(Assets!H$46,'Data Annex'!$K$1:$AU$1,0)),"") -> 750.6946386 | I52: =IFERROR(INDEX('Data Annex'!$K$1:$AU$7000,MATCH(Assets!I$45&"|"&Assets!$B52,'Data Annex'!$K$1:$K$7000,0),MATCH(Assets!I$46,'Data Annex'!$K$1:$AU$1,0)),"") -> 766.209071 | J52: =IFERROR(INDEX('Data Annex'!$K$1:$AU$7000,MATCH(Assets!J$45&"|"&Assets!$B52,'Data Annex'!$K$1:$K$7000,0),MATCH(Assets!J$46,'Data Annex'!$K$1:$AU$1,0)),"") -> 682.3362521 | K52: =IFERROR(INDEX('Data Annex'!$K$1:$AU$7000,MATCH(Assets!K$45&"|"&Assets!$B52,'Data Annex'!$K$1:$K$7000,0),MATCH(Assets!K$46,'Data Annex'!$K$1:$AU$1,0)),"") -> 721.688041 | L52: =IFERROR(INDEX('Data Annex'!$K$1:$AU$7000,MATCH(Assets!L$45&"|"&Assets!$B52,'Data Annex'!$K$1:$K$7000,0),MATCH(Assets!L$46,'Data Annex'!$K$1:$AU$1,0)),"") -> 728.4251735 | M52: =IFERROR(INDEX('Data Annex'!$K$1:$AU$7000,MATCH(Assets!M$45&"|"&Assets!$B52,'Data Annex'!$K$1:$K$7000,0),MATCH(Assets!M$46,'Data Annex'!$K$1:$AU$1,0)),"") -> 744.1657053 | N52: =M52/I52 -> 0.9712306125 | O52: =+D52 -> AT | Q52: =IFERROR(INDEX('Data Annex'!$K$1:$AU$7000,MATCH(Assets!Q$45&"|"&Assets!$B52,'Data Annex'!$K$1:$K$7000,0),MATCH(Assets!Q$46,'Data Annex'!$K$1:$AU$1,0)),"") -> 0.9078192656 | R52: =IFERROR(INDEX('Data Annex'!$K$1:$AU$7000,MATCH(Assets!R$45&"|"&Assets!$B52,'Data Annex'!$K$1:$K$7000,0),MATCH(Assets!R$46,'Data Annex'!$K$1:$AU$1,0)),"") -> 0.9148442906 | S52: =IFERROR(INDEX('Data Annex'!$K$1:$AU$7000,MATCH(Assets!S$45&"|"&Assets!$B52,'Data Annex'!$K$1:$K$7000,0),MATCH(Assets!S$46,'Data Annex'!$K$1:$AU$1,0)),"") -> 0.9166571815 | T52: =IFERROR(INDEX('Data Annex'!$K$1:$AU$7000,MATCH(Assets!T$45&"|"&Assets!$B52,'Data Annex'!$K$1:$K$7000,0),MATCH(Assets!T$46,'Data Annex'!$K$1:$AU$1,0)),"") -> 0.9210712556 | U52: =IFERROR(INDEX('Data Annex'!$K$1:$AU$7000,MATCH(Assets!U$45&"|"&Assets!$B52,'Data Annex'!$K$1:$K$7000,0),MATCH(Assets!U$46,'Data Annex'!$K$1:$AU$1,0)),"") -> 0.05397347065 | V52: =IFERROR(INDEX('Data Annex'!$K$1:$AU$7000,MATCH(Assets!V$45&"|"&Assets!$B52,'Data Annex'!$K$1:$K$7000,0),MATCH(Assets!V$46,'Data Annex'!$K$1:$AU$1,0)),"") -> 0.05087288138 | W52: =IFERROR(INDEX('Data Annex'!$K$1:$AU$7000,MATCH(Assets!W$45&"|"&Assets!$B52,'Data Annex'!$K$1:$K$7000,0),MATCH(Assets!W$46,'Data Annex'!$K$1:$AU$1,0)),"") -> 0.05149473811 | X52: =IFERROR(INDEX('Data Annex'!$K$1:$AU$7000,MATCH(Assets!X$45&"|"&Assets!$B52,'Data Annex'!$K$1:$K$7000,0),MATCH(Assets!X$46,'Data Annex'!$K$1:$AU$1,0)),"") -> 0.0477753408 | Y52: =IFERROR(INDEX('Data Annex'!$K$1:$AU$7000,MATCH(Assets!Y$45&"|"&Assets!$B52,'Data Annex'!$K$1:$K$7000,0),MATCH(Assets!Y$46,'Data Annex'!$K$1:$AU$1,0)),"") -> 0.03820726377 | Z52: =IFERROR(INDEX('Data Annex'!$K$1:$AU$7000,MATCH(Assets!Z$45&"|"&Assets!$B52,'Data Annex'!$K$1:$K$7000,0),MATCH(Assets!Z$46,'Data Annex'!$K$1:$AU$1,0)),"") -> 0.03428282807 | AA52: =IFERROR(INDEX('Data Annex'!$K$1:$AU$7000,MATCH(Assets!AA$45&"|"&Assets!$B52,'Data Annex'!$K$1:$K$7000,0),MATCH(Assets!AA$46,'Data Annex'!$K$1:$AU$1,0)),"") -> 0.03184808038 | AB52: =IFERROR(INDEX('Data Annex'!$K$1:$AU$7000,MATCH(Assets!AB$45&"|"&Assets!$B52,'Data Annex'!$K$1:$K$7000,0),MATCH(Assets!AB$46,'Data Annex'!$K$1:$AU$1,0)),"") -> 0.03115340358
B53: BE | D53: =IF(OR(F53="n.a.",G53="n.a.",H53="n.a.",I53="n.a.",J53="n.a.",K53="n.a.",L53="n.a.",M53="n.a."),$B53&"*",$B53) -> BE | F53: =IFERROR(INDEX('Data Annex'!$K$1:$AU$7000,MATCH(Assets!F$45&"|"&Assets!$B53,'Data Annex'!$K$1:$K$7000,0),MATCH(Assets!F$46,'Data Annex'!$K$1:$AU$1,0)),"") -> 1193.725979 | G53: =IFERROR(INDEX('Data Annex'!$K$1:$AU$7000,MATCH(Assets!G$45&"|"&Assets!$B53,'Data Annex'!$K$1:$K$7000,0),MATCH(Assets!G$46,'Data Annex'!$K$1:$AU$1,0)),"") -> 1243.491396 | H53: =IFERROR(INDEX('Data Annex'!$K$1:$AU$7000,MATCH(Assets!H$45&"|"&Assets!$B53,'Data Annex'!$K$1:$K$7000,0),MATCH(Assets!H$46,'Data Annex'!$K$1:$AU$1,0)),"") -> 1246.275246 | I53: =IFERROR(INDEX('Data Annex'!$K$1:$AU$7000,MATCH(Assets!I$45&"|"&Assets!$B53,'Data Annex'!$K$1:$K$7000,0),MATCH(Assets!I$46,'Data Annex'!$K$1:$AU$1,0)),"") -> 1234.51482 | J53: =IFERROR(INDEX('Data Annex'!$K$1:$AU$7000,MATCH(Assets!J$45&"|"&Assets!$B53,'Data Annex'!$K$1:$K$7000,0),MATCH(Assets!J$46,'Data Annex'!$K$1:$AU$1,0)),"") -> 1123.959252 | K53: =IFERROR(INDEX('Data Annex'!$K$1:$AU$7000,MATCH(Assets!K$45&"|"&Assets!$B53,'Data Annex'!$K$1:$K$7000,0),MATCH(Assets!K$46,'Data Annex'!$K$1:$AU$1,0)),"") -> 1174.925319 | L53: =IFERROR(INDEX('Data Annex'!$K$1:$AU$7000,MATCH(Assets!L$45&"|"&Assets!$B53,'Data Annex'!$K$1:$K$7000,0),MATCH(Assets!L$46,'Data Annex'!$K$1:$AU$1,0)),"") -> 1201.398125 | M53: =IFERROR(INDEX('Data Annex'!$K$1:$AU$7000,MATCH(Assets!M$45&"|"&Assets!$B53,'Data Annex'!$K$1:$K$7000,0),MATCH(Assets!M$46,'Data Annex'!$K$1:$AU$1,0)),"") -> 1180.999387 | N53: =M53/I53 -> 0.9566506355 | O53: BE | Q53: =IFERROR(INDEX('Data Annex'!$K$1:$AU$7000,MATCH(Assets!Q$45&"|"&Assets!$B53,'Data Annex'!$K$1:$K$7000,0),MATCH(Assets!Q$46,'Data Annex'!$K$1:$AU$1,0)),"") -> 0.9020368774 | R53: =IFERROR(INDEX('Data Annex'!$K$1:$AU$7000,MATCH(Assets!R$45&"|"&Assets!$B53,'Data Annex'!$K$1:$K$7000,0),MATCH(Assets!R$46,'Data Annex'!$K$1:$AU$1,0)),"") -> 0.9137032732 | S53: =IFERROR(INDEX('Data Annex'!$K$1:$AU$7000,MATCH(Assets!S$45&"|"&Assets!$B53,'Data Annex'!$K$1:$K$7000,0),MATCH(Assets!S$46,'Data Annex'!$K$1:$AU$1,0)),"") -> 0.918415891 | T53: =IFERROR(INDEX('Data Annex'!$K$1:$AU$7000,MATCH(Assets!T$45&"|"&Assets!$B53,'Data Annex'!$K$1:$K$7000,0),MATCH(Assets!T$46,'Data Annex'!$K$1:$AU$1,0)),"") -> 0.92154639 | U53: =IFERROR(INDEX('Data Annex'!$K$1:$AU$7000,MATCH(Assets!U$45&"|"&Assets!$B53,'Data Annex'!$K$1:$K$7000,0),MATCH(Assets!U$46,'Data Annex'!$K$1:$AU$1,0)),"") -> 0.03673579178 | V53: =IFERROR(INDEX('Data Annex'!$K$1:$AU$7000,MATCH(Assets!V$45&"|"&Assets!$B53,'Data Annex'!$K$1:$K$7000,0),MATCH(Assets!V$46,'Data Annex'!$K$1:$AU$1,0)),"") -> 0.03489098403 | W53: =IFERROR(INDEX('Data Annex'!$K$1:$AU$7000,MATCH(Assets!W$45&"|"&Assets!$B53,'Data Annex'!$K$1:$K$7000,0),MATCH(Assets!W$46,'Data Annex'!$K$1:$AU$1,0)),"") -> 0.03308679456 | X53: =IFERROR(INDEX('Data Annex'!$K$1:$AU$7000,MATCH(Assets!X$45&"|"&Assets!$B53,'Data Annex'!$K$1:$K$7000,0),MATCH(Assets!X$46,'Data Annex'!$K$1:$AU$1,0)),"") -> 0.03126360588 | Y53: =IFERROR(INDEX('Data Annex'!$K$1:$AU$7000,MATCH(Assets!Y$45&"|"&Assets!$B53,'Data Annex'!$K$1:$K$7000,0),MATCH(Assets!Y$46,'Data Annex'!$K$1:$AU$1,0)),"") -> 0.06122733085 | Z53: =IFERROR(INDEX('Data Annex'!$K$1:$AU$7000,MATCH(Assets!Z$45&"|"&Assets!$B53,'Data Annex'!$K$1:$K$7000,0),MATCH(Assets!Z$46,'Data Annex'!$K$1:$AU$1,0)),"") -> 0.05140574277 | AA53: =IFERROR(INDEX('Data Annex'!$K$1:$AU$7000,MATCH(Assets!AA$45&"|"&Assets!$B53,'Data Annex'!$K$1:$K$7000,0),MATCH(Assets!AA$46,'Data Annex'!$K$1:$AU$1,0)),"") -> 0.04849731441 | AB53: =IFERROR(INDEX('Data Annex'!$K$1:$AU$7000,MATCH(Assets!AB$45&"|"&Assets!$B53,'Data Annex'!$K$1:$K$7000,0),MATCH(Assets!AB$46,'Data Annex'!$K$1:$AU$1,0)),"") -> 0.04719000409
B54: BG | D54: BG | F54: =IFERROR(INDEX('Data Annex'!$K$1:$AU$7000,MATCH(Assets!F$45&"|"&Assets!$B54,'Data Annex'!$K$1:$K$7000,0),MATCH(Assets!F$46,'Data Annex'!$K$1:$AU$1,0)),"") -> 36.6209863 | G54: =IFERROR(INDEX('Data Annex'!$K$1:$AU$7000,MATCH(Assets!G$45&"|"&Assets!$B54,'Data Annex'!$K$1:$K$7000,0),MATCH(Assets!G$46,'Data Annex'!$K$1:$AU$1,0)),"") -> 37.49474793 | H54: =IFERROR(INDEX('Data Annex'!$K$1:$AU$7000,MATCH(Assets!H$45&"|"&Assets!$B54,'Data Annex'!$K$1:$K$7000,0),MATCH(Assets!H$46,'Data Annex'!$K$1:$AU$1,0)),"") -> 37.66262604 | I54: =IFERROR(INDEX('Data Annex'!$K$1:$AU$7000,MATCH(Assets!I$45&"|"&Assets!$B54,'Data Annex'!$K$1:$K$7000,0),MATCH(Assets!I$46,'Data Annex'!$K$1:$AU$1,0)),"") -> 38.67711985 | J54: =IFERROR(INDEX('Data Annex'!$K$1:$AU$7000,MATCH(Assets!J$45&"|"&Assets!$B54,'Data Annex'!$K$1:$K$7000,0),MATCH(Assets!J$46,'Data Annex'!$K$1:$AU$1,0)),"") -> 35.06254934 | K54: =IFERROR(INDEX('Data Annex'!$K$1:$AU$7000,MATCH(Assets!K$45&"|"&Assets!$B54,'Data Annex'!$K$1:$K$7000,0),MATCH(Assets!K$46,'Data Annex'!$K$1:$AU$1,0)),"") -> 35.9441676 | L54: =IFERROR(INDEX('Data Annex'!$K$1:$AU$7000,MATCH(Assets!L$45&"|"&Assets!$B54,'Data Annex'!$K$1:$K$7000,0),MATCH(Assets!L$46,'Data Annex'!$K$1:$AU$1,0)),"") -> 36.07134318 | M54: =IFERROR(INDEX('Data Annex'!$K$1:$AU$7000,MATCH(Assets!M$45&"|"&Assets!$B54,'Data Annex'!$K$1:$K$7000,0),MATCH(Assets!M$46,'Data Annex'!$K$1:$AU$1,0)),"") -> 37.09296247 | N54: 0.9590414854 | O54: BG | Q54: =IFERROR(INDEX('Data Annex'!$K$1:$AU$7000,MATCH(Assets!Q$45&"|"&Assets!$B54,'Data Annex'!$K$1:$K$7000,0),MATCH(Assets!Q$46,'Data Annex'!$K$1:$AU$1,0)),"") -> 0.8831137009 | R54: =IFERROR(INDEX('Data Annex'!$K$1:$AU$7000,MATCH(Assets!R$45&"|"&Assets!$B54,'Data Annex'!$K$1:$K$7000,0),MATCH(Assets!R$46,'Data Annex'!$K$1:$AU$1,0)),"") -> 0.8875811859 | S54: =IFERROR(INDEX('Data Annex'!$K$1:$AU$7000,MATCH(Assets!S$45&"|"&Assets!$B54,'Data Annex'!$K$1:$K$7000,0),MATCH(Assets!S$46,'Data Annex'!$K$1:$AU$1,0)),"") -> 0.8869496746 | T54: =IFERROR(INDEX('Data Annex'!$K$1:$AU$7000,MATCH(Assets!T$45&"|"&Assets!$B54,'Data Annex'!$K$1:$K$7000,0),MATCH(Assets!T$46,'Data Annex'!$K$1:$AU$1,0)),"") -> 0.8923464806 | U54: =IFERROR(INDEX('Data Annex'!$K$1:$AU$7000,MATCH(Assets!U$45&"|"&Assets!$B54,'Data Annex'!$K$1:$K$7000,0),MATCH(Assets!U$46,'Data Annex'!$K$1:$AU$1,0)),"") -> 0.1066255835 | V54: =IFERROR(INDEX('Data Annex'!$K$1:$AU$7000,MATCH(Assets!V$45&"|"&Assets!$B54,'Data Annex'!$K$1:$K$7000,0),MATCH(Assets!V$46,'Data Annex'!$K$1:$AU$1,0)),"") -> 0.1012179258 | W54: =IFERROR(INDEX('Data Annex'!$K$1:$AU$7000,MATCH(Assets!W$45&"|"&Assets!$B54,'Data Annex'!$K$1:$K$7000,0),MATCH(Assets!W$46,'Data Annex'!$K$1:$AU$1,0)),"") -> 0.1023027575 | X54: =IFERROR(INDEX('Data Annex'!$K$1:$AU$7000,MATCH(Assets!X$45&"|"&Assets!$B54,'Data Annex'!$K$1:$K$7000,0),MATCH(Assets!X$46,'Data Annex'!$K$1:$AU$1,0)),"") -> 0.09989414226 | Y54: =IFERROR(INDEX('Data Annex'!$K$1:$AU$7000,MATCH(Assets!Y$45&"|"&Assets!$B54,'Data Annex'!$K$1:$K$7000,0),MATCH(Assets!Y$46,'Data Annex'!$K$1:$AU$1,0)),"") -> 0.01026071561 | Z54: =IFERROR(INDEX('Data Annex'!$K$1:$AU$7000,MATCH(Assets!Z$45&"|"&Assets!$B54,'Data Annex'!$K$1:$K$7000,0),MATCH(Assets!Z$46,'Data Annex'!$K$1:$AU$1,0)),"") -> 0.01120088829 | AA54: =IFERROR(INDEX('Data Annex'!$K$1:$AU$7000,MATCH(Assets!AA$45&"|"&Assets!$B54,'Data Annex'!$K$1:$K$7000,0),MATCH(Assets!AA$46,'Data Annex'!$K$1:$AU$1,0)),"") -> 0.01074756791 | AB54: =IFERROR(INDEX('Data Annex'!$K$1:$AU$7000,MATCH(Assets!AB$45&"|"&Assets!$B54,'Data Annex'!$K$1:$K$7000,0),MATCH(Assets!AB$46,'Data Annex'!$K$1:$AU$1,0)),"") -> 0.007759377114
B55: CY | D55: CY | F55: =IFERROR(INDEX('Data Annex'!$K$1:$AU$7000,MATCH(Assets!F$45&"|"&Assets!$B55,'Data Annex'!$K$1:$K$7000,0),MATCH(Assets!F$46,'Data Annex'!$K$1:$AU$1,0)),"") -> 36.35490363 | G55: =IFERROR(INDEX('Data Annex'!$K$1:$AU$7000,MATCH(Assets!G$45&"|"&Assets!$B55,'Data Annex'!$K$1:$K$7000,0),MATCH(Assets!G$46,'Data Annex'!$K$1:$AU$1,0)),"") -> 37.99209693 | H55: =IFERROR(INDEX('Data Annex'!$K$1:$AU$7000,MATCH(Assets!H$45&"|"&Assets!$B55,'Data Annex'!$K$1:$K$7000,0),MATCH(Assets!H$46,'Data Annex'!$K$1:$AU$1,0)),"") -> 41.60654022 | I55: =IFERROR(INDEX('Data Annex'!$K$1:$AU$7000,MATCH(Assets!I$45&"|"&Assets!$B55,'Data Annex'!$K$1:$K$7000,0),MATCH(Assets!I$46,'Data Annex'!$K$1:$AU$1,0)),"") -> 42.15101472 | J55: =IFERROR(INDEX('Data Annex'!$K$1:$AU$7000,MATCH(Assets!J$45&"|"&Assets!$B55,'Data Annex'!$K$1:$K$7000,0),MATCH(Assets!J$46,'Data Annex'!$K$1:$AU$1,0)),"") -> 32.85162039 | K55: =IFERROR(INDEX('Data Annex'!$K$1:$AU$7000,MATCH(Assets!K$45&"|"&Assets!$B55,'Data Annex'!$K$1:$K$7000,0),MATCH(Assets!K$46,'Data Annex'!$K$1:$AU$1,0)),"") -> 34.54574629 | L55: =IFERROR(INDEX('Data Annex'!$K$1:$AU$7000,MATCH(Assets!L$45&"|"&Assets!$B55,'Data Annex'!$K$1:$K$7000,0),MATCH(Assets!L$46,'Data Annex'!$K$1:$AU$1,0)),"") -> 38.44494631 | M55: =IFERROR(INDEX('Data Annex'!$K$1:$AU$7000,MATCH(Assets!M$45&"|"&Assets!$B55,'Data Annex'!$K$1:$K$7000,0),MATCH(Assets!M$46,'Data Annex'!$K$1:$AU$1,0)),"") -> 38.81793015 | N55: 0.9209251642 | O55: CY | Q55: =IFERROR(INDEX('Data Annex'!$K$1:$AU$7000,MATCH(Assets!Q$45&"|"&Assets!$B55,'Data Annex'!$K$1:$K$7000,0),MATCH(Assets!Q$46,'Data Annex'!$K$1:$AU$1,0)),"") -> 0.9610736977 | R55: =IFERROR(INDEX('Data Annex'!$K$1:$AU$7000,MATCH(Assets!R$45&"|"&Assets!$B55,'Data Annex'!$K$1:$K$7000,0),MATCH(Assets!R$46,'Data Annex'!$K$1:$AU$1,0)),"") -> 0.9621355742 | S55: =IFERROR(INDEX('Data Annex'!$K$1:$AU$7000,MATCH(Assets!S$45&"|"&Assets!$B55,'Data Annex'!$K$1:$K$7000,0),MATCH(Assets!S$46,'Data Annex'!$K$1:$AU$1,0)),"") -> 0.9652381158 | T55: =IFERROR(INDEX('Data Annex'!$K$1:$AU$7000,MATCH(Assets!T$45&"|"&Assets!$B55,'Data Annex'!$K$1:$K$7000,0),MATCH(Assets!T$46,'Data Annex'!$K$1:$AU$1,0)),"") -> 0.9659880522 | U55: =IFERROR(INDEX('Data Annex'!$K$1:$AU$7000,MATCH(Assets!U$45&"|"&Assets!$B55,'Data Annex'!$K$1:$K$7000,0),MATCH(Assets!U$46,'Data Annex'!$K$1:$AU$1,0)),"") -> 0.02826695574 | V55: =IFERROR(INDEX('Data Annex'!$K$1:$AU$7000,MATCH(Assets!V$45&"|"&Assets!$B55,'Data Annex'!$K$1:$K$7000,0),MATCH(Assets!V$46,'Data Annex'!$K$1:$AU$1,0)),"") -> 0.02770353944 | W55: =IFERROR(INDEX('Data Annex'!$K$1:$AU$7000,MATCH(Assets!W$45&"|"&Assets!$B55,'Data Annex'!$K$1:$K$7000,0),MATCH(Assets!W$46,'Data Annex'!$K$1:$AU$1,0)),"") -> 0.02606130658 | X55: =IFERROR(INDEX('Data Annex'!$K$1:$AU$7000,MATCH(Assets!X$45&"|"&Assets!$B55,'Data Annex'!$K$1:$K$7000,0),MATCH(Assets!X$46,'Data Annex'!$K$1:$AU$1,0)),"") -> 0.02525398974 | Y55: =IFERROR(INDEX('Data Annex'!$K$1:$AU$7000,MATCH(Assets!Y$45&"|"&Assets!$B55,'Data Annex'!$K$1:$K$7000,0),MATCH(Assets!Y$46,'Data Annex'!$K$1:$AU$1,0)),"") -> 0.01065934657 | Z55: =IFERROR(INDEX('Data Annex'!$K$1:$AU$7000,MATCH(Assets!Z$45&"|"&Assets!$B55,'Data Annex'!$K$1:$K$7000,0),MATCH(Assets!Z$46,'Data Annex'!$K$1:$AU$1,0)),"") -> 0.01016088635 | AA55: =IFERROR(INDEX('Data Annex'!$K$1:$AU$7000,MATCH(Assets!AA$45&"|"&Assets!$B55,'Data Annex'!$K$1:$K$7000,0),MATCH(Assets!AA$46,'Data Annex'!$K$1:$AU$1,0)),"") -> 0.00870057766 | AB55: =IFERROR(INDEX('Data Annex'!$K$1:$AU$7000,MATCH(Assets!AB$45&"|"&Assets!$B55,'Data Annex'!$K$1:$K$7000,0),MATCH(Assets!AB$46,'Data Annex'!$K$1:$AU$1,0)),"") -> 0.008757958028
B56: CZ | D56: CZ | F56: =IFERROR(INDEX('Data Annex'!$K$1:$AU$7000,MATCH(Assets!F$45&"|"&Assets!$B56,'Data Annex'!$K$1:$K$7000,0),MATCH(Assets!F$46,'Data Annex'!$K$1:$AU$1,0)),"") -> 170.0010821 | G56: =IFERROR(INDEX('Data Annex'!$K$1:$AU$7000,MATCH(Assets!G$45&"|"&Assets!$B56,'Data Annex'!$K$1:$K$7000,0),MATCH(Assets!G$46,'Data Annex'!$K$1:$AU$1,0)),"") -> 184.4656267 | H56: =IFERROR(INDEX('Data Annex'!$K$1:$AU$7000,MATCH(Assets!H$45&"|"&Assets!$B56,'Data Annex'!$K$1:$K$7000,0),MATCH(Assets!H$46,'Data Annex'!$K$1:$AU$1,0)),"") -> 191.784936 | I56: =IFERROR(INDEX('Data Annex'!$K$1:$AU$7000,MATCH(Assets!I$45&"|"&Assets!$B56,'Data Annex'!$K$1:$K$7000,0),MATCH(Assets!I$46,'Data Annex'!$K$1:$AU$1,0)),"") -> 199.4459619 | J56: =IFERROR(INDEX('Data Annex'!$K$1:$AU$7000,MATCH(Assets!J$45&"|"&Assets!$B56,'Data Annex'!$K$1:$K$7000,0),MATCH(Assets!J$46,'Data Annex'!$K$1:$AU$1,0)),"") -> 166.6324875 | K56: =IFERROR(INDEX('Data Annex'!$K$1:$AU$7000,MATCH(Assets!K$45&"|"&Assets!$B56,'Data Annex'!$K$1:$K$7000,0),MATCH(Assets!K$46,'Data Annex'!$K$1:$AU$1,0)),"") -> 181.1070827 | L56: =IFERROR(INDEX('Data Annex'!$K$1:$AU$7000,MATCH(Assets!L$45&"|"&Assets!$B56,'Data Annex'!$K$1:$K$7000,0),MATCH(Assets!L$46,'Data Annex'!$K$1:$AU$1,0)),"") -> 188.5527761 | M56: =IFERROR(INDEX('Data Annex'!$K$1:$AU$7000,MATCH(Assets!M$45&"|"&Assets!$B56,'Data Annex'!$K$1:$K$7000,0),MATCH(Assets!M$46,'Data Annex'!$K$1:$AU$1,0)),"") -> 196.5264467 | N56: 0.9853618735 | O56: CZ | Q56: =IFERROR(INDEX('Data Annex'!$K$1:$AU$7000,MATCH(Assets!Q$45&"|"&Assets!$B56,'Data Annex'!$K$1:$K$7000,0),MATCH(Assets!Q$46,'Data Annex'!$K$1:$AU$1,0)),"") -> 0.9572400468 | R56: =IFERROR(INDEX('Data Annex'!$K$1:$AU$7000,MATCH(Assets!R$45&"|"&Assets!$B56,'Data Annex'!$K$1:$K$7000,0),MATCH(Assets!R$46,'Data Annex'!$K$1:$AU$1,0)),"") -> 0.9587553418 | S56: =IFERROR(INDEX('Data Annex'!$K$1:$AU$7000,MATCH(Assets!S$45&"|"&Assets!$B56,'Data Annex'!$K$1:$K$7000,0),MATCH(Assets!S$46,'Data Annex'!$K$1:$AU$1,0)),"") -> 0.9550983766 | T56: =IFERROR(INDEX('Data Annex'!$K$1:$AU$7000,MATCH(Assets!T$45&"|"&Assets!$B56,'Data Annex'!$K$1:$K$7000,0),MATCH(Assets!T$46,'Data Annex'!$K$1:$AU$1,0)),"") -> 0.9564263839 | U56: =IFERROR(INDEX('Data Annex'!$K$1:$AU$7000,MATCH(Assets!U$45&"|"&Assets!$B56,'Data Annex'!$K$1:$K$7000,0),MATCH(Assets!U$46,'Data Annex'!$K$1:$AU$1,0)),"") -> 0.01906804678 | V56: =IFERROR(INDEX('Data Annex'!$K$1:$AU$7000,MATCH(Assets!V$45&"|"&Assets!$B56,'Data Annex'!$K$1:$K$7000,0),MATCH(Assets!V$46,'Data Annex'!$K$1:$AU$1,0)),"") -> 0.01840337611 | W56: =IFERROR(INDEX('Data Annex'!$K$1:$AU$7000,MATCH(Assets!W$45&"|"&Assets!$B56,'Data Annex'!$K$1:$K$7000,0),MATCH(Assets!W$46,'Data Annex'!$K$1:$AU$1,0)),"") -> 0.01905938415 | X56: =IFERROR(INDEX('Data Annex'!$K$1:$AU$7000,MATCH(Assets!X$45&"|"&Assets!$B56,'Data Annex'!$K$1:$K$7000,0),MATCH(Assets!X$46,'Data Annex'!$K$1:$AU$1,0)),"") -> 0.01776497251 | Y56: =IFERROR(INDEX('Data Annex'!$K$1:$AU$7000,MATCH(Assets!Y$45&"|"&Assets!$B56,'Data Annex'!$K$1:$K$7000,0),MATCH(Assets!Y$46,'Data Annex'!$K$1:$AU$1,0)),"") -> 0.02369190641 | Z56: =IFERROR(INDEX('Data Annex'!$K$1:$AU$7000,MATCH(Assets!Z$45&"|"&Assets!$B56,'Data Annex'!$K$1:$K$7000,0),MATCH(Assets!Z$46,'Data Annex'!$K$1:$AU$1,0)),"") -> 0.02284128214 | AA56: =IFERROR(INDEX('Data Annex'!$K$1:$AU$7000,MATCH(Assets!AA$45&"|"&Assets!$B56,'Data Annex'!$K$1:$K$7000,0),MATCH(Assets!AA$46,'Data Annex'!$K$1:$AU$1,0)),"") -> 0.02584223928 | AB56: =IFERROR(INDEX('Data Annex'!$K$1:$AU$7000,MATCH(Assets!AB$45&"|"&Assets!$B56,'Data Annex'!$K$1:$K$7000,0),MATCH(Assets!AB$46,'Data Annex'!$K$1:$AU$1,0)),"") -> 0.02580864357
B57: DE | D57: DE | F57: =IFERROR(INDEX('Data Annex'!$K$1:$AU$7000,MATCH(Assets!F$45&"|"&Assets!$B57,'Data Annex'!$K$1:$K$7000,0),MATCH(Assets!F$46,'Data Annex'!$K$1:$AU$1,0)),"") -> 3742.681771 | G57: =IFERROR(INDEX('Data Annex'!$K$1:$AU$7000,MATCH(Assets!G$45&"|"&Assets!$B57,'Data Annex'!$K$1:$K$7000,0),MATCH(Assets!G$46,'Data Annex'!$K$1:$AU$1,0)),"") -> 3864.617627 | H57: =IFERROR(INDEX('Data Annex'!$K$1:$AU$7000,MATCH(Assets!H$45&"|"&Assets!$B57,'Data Annex'!$K$1:$K$7000,0),MATCH(Assets!H$46,'Data Annex'!$K$1:$AU$1,0)),"") -> 3875.015341 | I57: =IFERROR(INDEX('Data Annex'!$K$1:$AU$7000,MATCH(Assets!I$45&"|"&Assets!$B57,'Data Annex'!$K$1:$K$7000,0),MATCH(Assets!I$46,'Data Annex'!$K$1:$AU$1,0)),"") -> 3903.931238 | J57: =IFERROR(INDEX('Data Annex'!$K$1:$AU$7000,MATCH(Assets!J$45&"|"&Assets!$B57,'Data Annex'!$K$1:$K$7000,0),MATCH(Assets!J$46,'Data Annex'!$K$1:$AU$1,0)),"") -> 3642.947914 | K57: =IFERROR(INDEX('Data Annex'!$K$1:$AU$7000,MATCH(Assets!K$45&"|"&Assets!$B57,'Data Annex'!$K$1:$K$7000,0),MATCH(Assets!K$46,'Data Annex'!$K$1:$AU$1,0)),"") -> 3765.515293 | L57: =IFERROR(INDEX('Data Annex'!$K$1:$AU$7000,MATCH(Assets!L$45&"|"&Assets!$B57,'Data Annex'!$K$1:$K$7000,0),MATCH(Assets!L$46,'Data Annex'!$K$1:$AU$1,0)),"") -> 3775.000156 | M57: =IFERROR(INDEX('Data Annex'!$K$1:$AU$7000,MATCH(Assets!M$45&"|"&Assets!$B57,'Data Annex'!$K$1:$K$7000,0),MATCH(Assets!M$46,'Data Annex'!$K$1:$AU$1,0)),"") -> 3805.179443 | N57: 0.9747045248 | O57: DE | Q57: =IFERROR(INDEX('Data Annex'!$K$1:$AU$7000,MATCH(Assets!Q$45&"|"&Assets!$B57,'Data Annex'!$K$1:$K$7000,0),MATCH(Assets!Q$46,'Data Annex'!$K$1:$AU$1,0)),"") -> 0.7016594085 | R57: =IFERROR(INDEX('Data Annex'!$K$1:$AU$7000,MATCH(Assets!R$45&"|"&Assets!$B57,'Data Annex'!$K$1:$K$7000,0),MATCH(Assets!R$46,'Data Annex'!$K$1:$AU$1,0)),"") -> 0.729366308 | S57: =IFERROR(INDEX('Data Annex'!$K$1:$AU$7000,MATCH(Assets!S$45&"|"&Assets!$B57,'Data Annex'!$K$1:$K$7000,0),MATCH(Assets!S$46,'Data Annex'!$K$1:$AU$1,0)),"") -> 0.738323339 | T57: =IFERROR(INDEX('Data Annex'!$K$1:$AU$7000,MATCH(Assets!T$45&"|"&Assets!$B57,'Data Annex'!$K$1:$K$7000,0),MATCH(Assets!T$46,'Data Annex'!$K$1:$AU$1,0)),"") -> 0.7397864593 | U57: =IFERROR(INDEX('Data Annex'!$K$1:$AU$7000,MATCH(Assets!U$45&"|"&Assets!$B57,'Data Annex'!$K$1:$K$7000,0),MATCH(Assets!U$46,'Data Annex'!$K$1:$AU$1,0)),"") -> 0.06739428556 | V57: =IFERROR(INDEX('Data Annex'!$K$1:$AU$7000,MATCH(Assets!V$45&"|"&Assets!$B57,'Data Annex'!$K$1:$K$7000,0),MATCH(Assets!V$46,'Data Annex'!$K$1:$AU$1,0)),"") -> 0.05985517506 | W57: =IFERROR(INDEX('Data Annex'!$K$1:$AU$7000,MATCH(Assets!W$45&"|"&Assets!$B57,'Data Annex'!$K$1:$K$7000,0),MATCH(Assets!W$46,'Data Annex'!$K$1:$AU$1,0)),"") -> 0.05763789747 | X57: =IFERROR(INDEX('Data Annex'!$K$1:$AU$7000,MATCH(Assets!X$45&"|"&Assets!$B57,'Data Annex'!$K$1:$K$7000,0),MATCH(Assets!X$46,'Data Annex'!$K$1:$AU$1,0)),"") -> 0.05477499377 | Y57: =IFERROR(INDEX('Data Annex'!$K$1:$AU$7000,MATCH(Assets!Y$45&"|"&Assets!$B57,'Data Annex'!$K$1:$K$7000,0),MATCH(Assets!Y$46,'Data Annex'!$K$1:$AU$1,0)),"") -> 0.2309463059 | Z57: =IFERROR(INDEX('Data Annex'!$K$1:$AU$7000,MATCH(Assets!Z$45&"|"&Assets!$B57,'Data Annex'!$K$1:$K$7000,0),MATCH(Assets!Z$46,'Data Annex'!$K$1:$AU$1,0)),"") -> 0.2107785169 | AA57: =IFERROR(INDEX('Data Annex'!$K$1:$AU$7000,MATCH(Assets!AA$45&"|"&Assets!$B57,'Data Annex'!$K$1:$K$7000,0),MATCH(Assets!AA$46,'Data Annex'!$K$1:$AU$1,0)),"") -> 0.2040387635 | AB57: =IFERROR(INDEX('Data Annex'!$K$1:$AU$7000,MATCH(Assets!AB$45&"|"&Assets!$B57,'Data Annex'!$K$1:$K$7000,0),MATCH(Assets!AB$46,'Data Annex'!$K$1:$AU$1,0)),"") -> 0.205438547
B58: DK | D58: DK | F58: =IFERROR(INDEX('Data Annex'!$K$1:$AU$7000,MATCH(Assets!F$45&"|"&Assets!$B58,'Data Annex'!$K$1:$K$7000,0),MATCH(Assets!F$46,'Data Annex'!$K$1:$AU$1,0)),"") -> 813.6337069 | G58: =IFERROR(INDEX('Data Annex'!$K$1:$AU$7000,MATCH(Assets!G$45&"|"&Assets!$B58,'Data Annex'!$K$1:$K$7000,0),MATCH(Assets!G$46,'Data Annex'!$K$1:$AU$1,0)),"") -> 810.87059 | H58: =IFERROR(INDEX('Data Annex'!$K$1:$AU$7000,MATCH(Assets!H$45&"|"&Assets!$B58,'Data Annex'!$K$1:$K$7000,0),MATCH(Assets!H$46,'Data Annex'!$K$1:$AU$1,0)),"") -> 793.667809 | I58: =IFERROR(INDEX('Data Annex'!$K$1:$AU$7000,MATCH(Assets!I$45&"|"&Assets!$B58,'Data Annex'!$K$1:$K$7000,0),MATCH(Assets!I$46,'Data Annex'!$K$1:$AU$1,0)),"") -> 786.474959 | J58: =IFERROR(INDEX('Data Annex'!$K$1:$AU$7000,MATCH(Assets!J$45&"|"&Assets!$B58,'Data Annex'!$K$1:$K$7000,0),MATCH(Assets!J$46,'Data Annex'!$K$1:$AU$1,0)),"") -> 794.437018 | K58: =IFERROR(INDEX('Data Annex'!$K$1:$AU$7000,MATCH(Assets!K$45&"|"&Assets!$B58,'Data Annex'!$K$1:$K$7000,0),MATCH(Assets!K$46,'Data Annex'!$K$1:$AU$1,0)),"") -> 791.3220411 | L58: =IFERROR(INDEX('Data Annex'!$K$1:$AU$7000,MATCH(Assets!L$45&"|"&Assets!$B58,'Data Annex'!$K$1:$K$7000,0),MATCH(Assets!L$46,'Data Annex'!$K$1:$AU$1,0)),"") -> 774.3666108 | M58: =IFERROR(INDEX('Data Annex'!$K$1:$AU$7000,MATCH(Assets!M$45&"|"&Assets!$B58,'Data Annex'!$K$1:$K$7000,0),MATCH(Assets!M$46,'Data Annex'!$K$1:$AU$1,0)),"") -> 766.7421974 | N58: 0.9749098667 | O58: DK | Q58: =IFERROR(INDEX('Data Annex'!$K$1:$AU$7000,MATCH(Assets!Q$45&"|"&Assets!$B58,'Data Annex'!$K$1:$K$7000,0),MATCH(Assets!Q$46,'Data Annex'!$K$1:$AU$1,0)),"") -> 0.3332168889 | R58: =IFERROR(INDEX('Data Annex'!$K$1:$AU$7000,MATCH(Assets!R$45&"|"&Assets!$B58,'Data Annex'!$K$1:$K$7000,0),MATCH(Assets!R$46,'Data Annex'!$K$1:$AU$1,0)),"") -> 0.3362395139 | S58: =IFERROR(INDEX('Data Annex'!$K$1:$AU$7000,MATCH(Assets!S$45&"|"&Assets!$B58,'Data Annex'!$K$1:$K$7000,0),MATCH(Assets!S$46,'Data Annex'!$K$1:$AU$1,0)),"") -> 0.3400367512 | T58: =IFERROR(INDEX('Data Annex'!$K$1:$AU$7000,MATCH(Assets!T$45&"|"&Assets!$B58,'Data Annex'!$K$1:$K$7000,0),MATCH(Assets!T$46,'Data Annex'!$K$1:$AU$1,0)),"") -> 0.3382228082 | U58: =IFERROR(INDEX('Data Annex'!$K$1:$AU$7000,MATCH(Assets!U$45&"|"&Assets!$B58,'Data Annex'!$K$1:$K$7000,0),MATCH(Assets!U$46,'Data Annex'!$K$1:$AU$1,0)),"") -> 0.01978277523 | V58: =IFERROR(INDEX('Data Annex'!$K$1:$AU$7000,MATCH(Assets!V$45&"|"&Assets!$B58,'Data Annex'!$K$1:$K$7000,0),MATCH(Assets!V$46,'Data Annex'!$K$1:$AU$1,0)),"") -> 0.0209904969 | W58: =IFERROR(INDEX('Data Annex'!$K$1:$AU$7000,MATCH(Assets!W$45&"|"&Assets!$B58,'Data Annex'!$K$1:$K$7000,0),MATCH(Assets!W$46,'Data Annex'!$K$1:$AU$1,0)),"") -> 0.02146206719 | X58: =IFERROR(INDEX('Data Annex'!$K$1:$AU$7000,MATCH(Assets!X$45&"|"&Assets!$B58,'Data Annex'!$K$1:$K$7000,0),MATCH(Assets!X$46,'Data Annex'!$K$1:$AU$1,0)),"") -> 0.02140061145 | Y58: =IFERROR(INDEX('Data Annex'!$K$1:$AU$7000,MATCH(Assets!Y$45&"|"&Assets!$B58,'Data Annex'!$K$1:$K$7000,0),MATCH(Assets!Y$46,'Data Annex'!$K$1:$AU$1,0)),"") -> 0.6470003359 | Z58: =IFERROR(INDEX('Data Annex'!$K$1:$AU$7000,MATCH(Assets!Z$45&"|"&Assets!$B58,'Data Annex'!$K$1:$K$7000,0),MATCH(Assets!Z$46,'Data Annex'!$K$1:$AU$1,0)),"") -> 0.6427699892 | AA58: =IFERROR(INDEX('Data Annex'!$K$1:$AU$7000,MATCH(Assets!AA$45&"|"&Assets!$B58,'Data Annex'!$K$1:$K$7000,0),MATCH(Assets!AA$46,'Data Annex'!$K$1:$AU$1,0)),"") -> 0.6385011816 | AB58: =IFERROR(INDEX('Data Annex'!$K$1:$AU$7000,MATCH(Assets!AB$45&"|"&Assets!$B58,'Data Annex'!$K$1:$K$7000,0),MATCH(Assets!AB$46,'Data Annex'!$K$1:$AU$1,0)),"") -> 0.6403765803
B59: EE | D59: EE | F59: =IFERROR(INDEX('Data Annex'!$K$1:$AU$7000,MATCH(Assets!F$45&"|"&Assets!$B59,'Data Annex'!$K$1:$K$7000,0),MATCH(Assets!F$46,'Data Annex'!$K$1:$AU$1,0)),"") -> 41.52329134 | G59: =IFERROR(INDEX('Data Annex'!$K$1:$AU$7000,MATCH(Assets!G$45&"|"&Assets!$B59,'Data Annex'!$K$1:$K$7000,0),MATCH(Assets!G$46,'Data Annex'!$K$1:$AU$1,0)),"") -> 36.6677767 | H59: =IFERROR(INDEX('Data Annex'!$K$1:$AU$7000,MATCH(Assets!H$45&"|"&Assets!$B59,'Data Annex'!$K$1:$K$7000,0),MATCH(Assets!H$46,'Data Annex'!$K$1:$AU$1,0)),"") -> 35.56060859 | I59: =IFERROR(INDEX('Data Annex'!$K$1:$AU$7000,MATCH(Assets!I$45&"|"&Assets!$B59,'Data Annex'!$K$1:$K$7000,0),MATCH(Assets!I$46,'Data Annex'!$K$1:$AU$1,0)),"") -> 36.63970645 | J59: =IFERROR(INDEX('Data Annex'!$K$1:$AU$7000,MATCH(Assets!J$45&"|"&Assets!$B59,'Data Annex'!$K$1:$K$7000,0),MATCH(Assets!J$46,'Data Annex'!$K$1:$AU$1,0)),"") -> 41.03292145 | K59: =IFERROR(INDEX('Data Annex'!$K$1:$AU$7000,MATCH(Assets!K$45&"|"&Assets!$B59,'Data Annex'!$K$1:$K$7000,0),MATCH(Assets!K$46,'Data Annex'!$K$1:$AU$1,0)),"") -> 36.35593914 | L59: =IFERROR(INDEX('Data Annex'!$K$1:$AU$7000,MATCH(Assets!L$45&"|"&Assets!$B59,'Data Annex'!$K$1:$K$7000,0),MATCH(Assets!L$46,'Data Annex'!$K$1:$AU$1,0)),"") -> 35.23065618 | M59: =IFERROR(INDEX('Data Annex'!$K$1:$AU$7000,MATCH(Assets!M$45&"|"&Assets!$B59,'Data Annex'!$K$1:$K$7000,0),MATCH(Assets!M$46,'Data Annex'!$K$1:$AU$1,0)),"") -> 36.34581088 | N59: 0.9919787685 | O59: EE | Q59: =IFERROR(INDEX('Data Annex'!$K$1:$AU$7000,MATCH(Assets!Q$45&"|"&Assets!$B59,'Data Annex'!$K$1:$K$7000,0),MATCH(Assets!Q$46,'Data Annex'!$K$1:$AU$1,0)),"") -> 0.9277236787 | R59: =IFERROR(INDEX('Data Annex'!$K$1:$AU$7000,MATCH(Assets!R$45&"|"&Assets!$B59,'Data Annex'!$K$1:$K$7000,0),MATCH(Assets!R$46,'Data Annex'!$K$1:$AU$1,0)),"") -> 0.9211488789 | S59: =IFERROR(INDEX('Data Annex'!$K$1:$AU$7000,MATCH(Assets!S$45&"|"&Assets!$B59,'Data Annex'!$K$1:$K$7000,0),MATCH(Assets!S$46,'Data Annex'!$K$1:$AU$1,0)),"") -> 0.9205973231 | T59: =IFERROR(INDEX('Data Annex'!$K$1:$AU$7000,MATCH(Assets!T$45&"|"&Assets!$B59,'Data Annex'!$K$1:$K$7000,0),MATCH(Assets!T$46,'Data Annex'!$K$1:$AU$1,0)),"") -> 0.9220642155 | U59: =IFERROR(INDEX('Data Annex'!$K$1:$AU$7000,MATCH(Assets!U$45&"|"&Assets!$B59,'Data Annex'!$K$1:$K$7000,0),MATCH(Assets!U$46,'Data Annex'!$K$1:$AU$1,0)),"") -> 3.410676234e-06 | V59: =IFERROR(INDEX('Data Annex'!$K$1:$AU$7000,MATCH(Assets!V$45&"|"&Assets!$B59,'Data Annex'!$K$1:$K$7000,0),MATCH(Assets!V$46,'Data Annex'!$K$1:$AU$1,0)),"") -> 3.850815117e-06 | W59: =IFERROR(INDEX('Data Annex'!$K$1:$AU$7000,MATCH(Assets!W$45&"|"&Assets!$B59,'Data Annex'!$K$1:$K$7000,0),MATCH(Assets!W$46,'Data Annex'!$K$1:$AU$1,0)),"") -> 3.973811878e-06 | X59: =IFERROR(INDEX('Data Annex'!$K$1:$AU$7000,MATCH(Assets!X$45&"|"&Assets!$B59,'Data Annex'!$K$1:$K$7000,0),MATCH(Assets!X$46,'Data Annex'!$K$1:$AU$1,0)),"") -> 2.58626779e-05 | Y59: =IFERROR(INDEX('Data Annex'!$K$1:$AU$7000,MATCH(Assets!Y$45&"|"&Assets!$B59,'Data Annex'!$K$1:$K$7000,0),MATCH(Assets!Y$46,'Data Annex'!$K$1:$AU$1,0)),"") -> 0.0722729106 | Z59: =IFERROR(INDEX('Data Annex'!$K$1:$AU$7000,MATCH(Assets!Z$45&"|"&Assets!$B59,'Data Annex'!$K$1:$K$7000,0),MATCH(Assets!Z$46,'Data Annex'!$K$1:$AU$1,0)),"") -> 0.07884727033 | AA59: =IFERROR(INDEX('Data Annex'!$K$1:$AU$7000,MATCH(Assets!AA$45&"|"&Assets!$B59,'Data Annex'!$K$1:$K$7000,0),MATCH(Assets!AA$46,'Data Annex'!$K$1:$AU$1,0)),"") -> 0.07939870313 | AB59: =IFERROR(INDEX('Data Annex'!$K$1:$AU$7000,MATCH(Assets!AB$45&"|"&Assets!$B59,'Data Annex'!$K$1:$K$7000,0),MATCH(Assets!AB$46,'Data Annex'!$K$1:$AU$1,0)),"") -> 0.07790992178
B60: ES | D60: ES | F60: =IFERROR(INDEX('Data Annex'!$K$1:$AU$7000,MATCH(Assets!F$45&"|"&Assets!$B60,'Data Annex'!$K$1:$K$7000,0),MATCH(Assets!F$46,'Data Annex'!$K$1:$AU$1,0)),"") -> 3476.098049 | G60: =IFERROR(INDEX('Data Annex'!$K$1:$AU$7000,MATCH(Assets!G$45&"|"&Assets!$B60,'Data Annex'!$K$1:$K$7000,0),MATCH(Assets!G$46,'Data Annex'!$K$1:$AU$1,0)),"") -> 3539.48908 | H60: =IFERROR(INDEX('Data Annex'!$K$1:$AU$7000,MATCH(Assets!H$45&"|"&Assets!$B60,'Data Annex'!$K$1:$K$7000,0),MATCH(Assets!H$46,'Data Annex'!$K$1:$AU$1,0)),"") -> 3498.053743 | I60: =IFERROR(INDEX('Data Annex'!$K$1:$AU$7000,MATCH(Assets!I$45&"|"&Assets!$B60,'Data Annex'!$K$1:$K$7000,0),MATCH(Assets!I$46,'Data Annex'!$K$1:$AU$1,0)),"") -> 3520.750114 | J60: =IFERROR(INDEX('Data Annex'!$K$1:$AU$7000,MATCH(Assets!J$45&"|"&Assets!$B60,'Data Annex'!$K$1:$K$7000,0),MATCH(Assets!J$46,'Data Annex'!$K$1:$AU$1,0)),"") -> 2976.158671 | K60: =IFERROR(INDEX('Data Annex'!$K$1:$AU$7000,MATCH(Assets!K$45&"|"&Assets!$B60,'Data Annex'!$K$1:$K$7000,0),MATCH(Assets!K$46,'Data Annex'!$K$1:$AU$1,0)),"") -> 3229.675091 | L60: =IFERROR(INDEX('Data Annex'!$K$1:$AU$7000,MATCH(Assets!L$45&"|"&Assets!$B60,'Data Annex'!$K$1:$K$7000,0),MATCH(Assets!L$46,'Data Annex'!$K$1:$AU$1,0)),"") -> 3272.822822 | M60: =IFERROR(INDEX('Data Annex'!$K$1:$AU$7000,MATCH(Assets!M$45&"|"&Assets!$B60,'Data Annex'!$K$1:$K$7000,0),MATCH(Assets!M$46,'Data Annex'!$K$1:$AU$1,0)),"") -> 3298.29653 | N60: 0.9368164235 | O60: ES | Q60: =IFERROR(INDEX('Data Annex'!$K$1:$AU$7000,MATCH(Assets!Q$45&"|"&Assets!$B60,'Data Annex'!$K$1:$K$7000,0),MATCH(Assets!Q$46,'Data Annex'!$K$1:$AU$1,0)),"") -> 0.8277100165 | R60: =IFERROR(INDEX('Data Annex'!$K$1:$AU$7000,MATCH(Assets!R$45&"|"&Assets!$B60,'Data Annex'!$K$1:$K$7000,0),MATCH(Assets!R$46,'Data Annex'!$K$1:$AU$1,0)),"") -> 0.840458558 | S60: =IFERROR(INDEX('Data Annex'!$K$1:$AU$7000,MATCH(Assets!S$45&"|"&Assets!$B60,'Data Annex'!$K$1:$K$7000,0),MATCH(Assets!S$46,'Data Annex'!$K$1:$AU$1,0)),"") -> 0.8459494069 | T60: =IFERROR(INDEX('Data Annex'!$K$1:$AU$7000,MATCH(Assets!T$45&"|"&Assets!$B60,'Data Annex'!$K$1:$K$7000,0),MATCH(Assets!T$46,'Data Annex'!$K$1:$AU$1,0)),"") -> 0.8488587542 | U60: =IFERROR(INDEX('Data Annex'!$K$1:$AU$7000,MATCH(Assets!U$45&"|"&Assets!$B60,'Data Annex'!$K$1:$K$7000,0),MATCH(Assets!U$46,'Data Annex'!$K$1:$AU$1,0)),"") -> 0.06891986835 | V60: =IFERROR(INDEX('Data Annex'!$K$1:$AU$7000,MATCH(Assets!V$45&"|"&Assets!$B60,'Data Annex'!$K$1:$K$7000,0),MATCH(Assets!V$46,'Data Annex'!$K$1:$AU$1,0)),"") -> 0.06355823022 | W60: =IFERROR(INDEX('Data Annex'!$K$1:$AU$7000,MATCH(Assets!W$45&"|"&Assets!$B60,'Data Annex'!$K$1:$K$7000,0),MATCH(Assets!W$46,'Data Annex'!$K$1:$AU$1,0)),"") -> 0.06104044415 | X60: =IFERROR(INDEX('Data Annex'!$K$1:$AU$7000,MATCH(Assets!X$45&"|"&Assets!$B60,'Data Annex'!$K$1:$K$7000,0),MATCH(Assets!X$46,'Data Annex'!$K$1:$AU$1,0)),"") -> 0.0576103618 | Y60: =IFERROR(INDEX('Data Annex'!$K$1:$AU$7000,MATCH(Assets!Y$45&"|"&Assets!$B60,'Data Annex'!$K$1:$K$7000,0),MATCH(Assets!Y$46,'Data Annex'!$K$1:$AU$1,0)),"") -> 0.1033701152 | Z60: =IFERROR(INDEX('Data Annex'!$K$1:$AU$7000,MATCH(Assets!Z$45&"|"&Assets!$B60,'Data Annex'!$K$1:$K$7000,0),MATCH(Assets!Z$46,'Data Annex'!$K$1:$AU$1,0)),"") -> 0.09598321175 | AA60: =IFERROR(INDEX('Data Annex'!$K$1:$AU$7000,MATCH(Assets!AA$45&"|"&Assets!$B60,'Data Annex'!$K$1:$K$7000,0),MATCH(Assets!AA$46,'Data Annex'!$K$1:$AU$1,0)),"") -> 0.09301014897 | AB60: =IFERROR(INDEX('Data Annex'!$K$1:$AU$7000,MATCH(Assets!AB$45&"|"&Assets!$B60,'Data Annex'!$K$1:$K$7000,0),MATCH(Assets!AB$46,'Data Annex'!$K$1:$AU$1,0)),"") -> 0.09353088397
B61: FI | D61: FI | F61: =IFERROR(INDEX('Data Annex'!$K$1:$AU$7000,MATCH(Assets!F$45&"|"&Assets!$B61,'Data Annex'!$K$1:$K$7000,0),MATCH(Assets!F$46,'Data Annex'!$K$1:$AU$1,0)),"") -> 698.2122515 | G61: =IFERROR(INDEX('Data Annex'!$K$1:$AU$7000,MATCH(Assets!G$45&"|"&Assets!$B61,'Data Annex'!$K$1:$K$7000,0),MATCH(Assets!G$46,'Data Annex'!$K$1:$AU$1,0)),"") -> 728.2054096 | H61: =IFERROR(INDEX('Data Annex'!$K$1:$AU$7000,MATCH(Assets!H$45&"|"&Assets!$B61,'Data Annex'!$K$1:$K$7000,0),MATCH(Assets!H$46,'Data Annex'!$K$1:$AU$1,0)),"") -> 724.599852 | I61: =IFERROR(INDEX('Data Annex'!$K$1:$AU$7000,MATCH(Assets!I$45&"|"&Assets!$B61,'Data Annex'!$K$1:$K$7000,0),MATCH(Assets!I$46,'Data Annex'!$K$1:$AU$1,0)),"") -> 752.9252782 | J61: =IFERROR(INDEX('Data Annex'!$K$1:$AU$7000,MATCH(Assets!J$45&"|"&Assets!$B61,'Data Annex'!$K$1:$K$7000,0),MATCH(Assets!J$46,'Data Annex'!$K$1:$AU$1,0)),"") -> 681.2749212 | K61: =IFERROR(INDEX('Data Annex'!$K$1:$AU$7000,MATCH(Assets!K$45&"|"&Assets!$B61,'Data Annex'!$K$1:$K$7000,0),MATCH(Assets!K$46,'Data Annex'!$K$1:$AU$1,0)),"") -> 709.7159042 | L61: =IFERROR(INDEX('Data Annex'!$K$1:$AU$7000,MATCH(Assets!L$45&"|"&Assets!$B61,'Data Annex'!$K$1:$K$7000,0),MATCH(Assets!L$46,'Data Annex'!$K$1:$AU$1,0)),"") -> 706.8709999 | M61: =IFERROR(INDEX('Data Annex'!$K$1:$AU$7000,MATCH(Assets!M$45&"|"&Assets!$B61,'Data Annex'!$K$1:$K$7000,0),MATCH(Assets!M$46,'Data Annex'!$K$1:$AU$1,0)),"") -> 734.563593 | N61: 0.9756128719 | O61: FI | Q61: =IFERROR(INDEX('Data Annex'!$K$1:$AU$7000,MATCH(Assets!Q$45&"|"&Assets!$B61,'Data Annex'!$K$1:$K$7000,0),MATCH(Assets!Q$46,'Data Annex'!$K$1:$AU$1,0)),"") -> 0.6728621866 | R61: =IFERROR(INDEX('Data Annex'!$K$1:$AU$7000,MATCH(Assets!R$45&"|"&Assets!$B61,'Data Annex'!$K$1:$K$7000,0),MATCH(Assets!R$46,'Data Annex'!$K$1:$AU$1,0)),"") -> 0.6745207338 | S61: =IFERROR(INDEX('Data Annex'!$K$1:$AU$7000,MATCH(Assets!S$45&"|"&Assets!$B61,'Data Annex'!$K$1:$K$7000,0),MATCH(Assets!S$46,'Data Annex'!$K$1:$AU$1,0)),"") -> 0.6824886904 | T61: =IFERROR(INDEX('Data Annex'!$K$1:$AU$7000,MATCH(Assets!T$45&"|"&Assets!$B61,'Data Annex'!$K$1:$K$7000,0),MATCH(Assets!T$46,'Data Annex'!$K$1:$AU$1,0)),"") -> 0.6948494356 | U61: =IFERROR(INDEX('Data Annex'!$K$1:$AU$7000,MATCH(Assets!U$45&"|"&Assets!$B61,'Data Annex'!$K$1:$K$7000,0),MATCH(Assets!U$46,'Data Annex'!$K$1:$AU$1,0)),"") -> 0.07124821115 | V61: =IFERROR(INDEX('Data Annex'!$K$1:$AU$7000,MATCH(Assets!V$45&"|"&Assets!$B61,'Data Annex'!$K$1:$K$7000,0),MATCH(Assets!V$46,'Data Annex'!$K$1:$AU$1,0)),"") -> 0.0685359989 | W61: =IFERROR(INDEX('Data Annex'!$K$1:$AU$7000,MATCH(Assets!W$45&"|"&Assets!$B61,'Data Annex'!$K$1:$K$7000,0),MATCH(Assets!W$46,'Data Annex'!$K$1:$AU$1,0)),"") -> 0.06658231689 | X61: =IFERROR(INDEX('Data Annex'!$K$1:$AU$7000,MATCH(Assets!X$45&"|"&Assets!$B61,'Data Annex'!$K$1:$K$7000,0),MATCH(Assets!X$46,'Data Annex'!$K$1:$AU$1,0)),"") -> 0.06293504108 | Y61: =IFERROR(INDEX('Data Annex'!$K$1:$AU$7000,MATCH(Assets!Y$45&"|"&Assets!$B61,'Data Annex'!$K$1:$K$7000,0),MATCH(Assets!Y$46,'Data Annex'!$K$1:$AU$1,0)),"") -> 0.2558896022 | Z61: =IFERROR(INDEX('Data Annex'!$K$1:$AU$7000,MATCH(Assets!Z$45&"|"&Assets!$B61,'Data Annex'!$K$1:$K$7000,0),MATCH(Assets!Z$46,'Data Annex'!$K$1:$AU$1,0)),"") -> 0.2569432673 | AA61: =IFERROR(INDEX('Data Annex'!$K$1:$AU$7000,MATCH(Assets!AA$45&"|"&Assets!$B61,'Data Annex'!$K$1:$K$7000,0),MATCH(Assets!AA$46,'Data Annex'!$K$1:$AU$1,0)),"") -> 0.2509289927 | AB61: =IFERROR(INDEX('Data Annex'!$K$1:$AU$7000,MATCH(Assets!AB$45&"|"&Assets!$B61,'Data Annex'!$K$1:$K$7000,0),MATCH(Assets!AB$46,'Data Annex'!$K$1:$AU$1,0)),"") -> 0.2422155233
B62: FR | D62: FR | F62: =IFERROR(INDEX('Data Annex'!$K$1:$AU$7000,MATCH(Assets!F$45&"|"&Assets!$B62,'Data Annex'!$K$1:$K$7000,0),MATCH(Assets!F$46,'Data Annex'!$K$1:$AU$1,0)),"") -> 8308.165326 | G62: =IFERROR(INDEX('Data Annex'!$K$1:$AU$7000,MATCH(Assets!G$45&"|"&Assets!$B62,'Data Annex'!$K$1:$K$7000,0),MATCH(Assets!G$46,'Data Annex'!$K$1:$AU$1,0)),"") -> 8617.837987 | H62: =IFERROR(INDEX('Data Annex'!$K$1:$AU$7000,MATCH(Assets!H$45&"|"&Assets!$B62,'Data Annex'!$K$1:$K$7000,0),MATCH(Assets!H$46,'Data Annex'!$K$1:$AU$1,0)),"") -> 8631.297836 | I62: =IFERROR(INDEX('Data Annex'!$K$1:$AU$7000,MATCH(Assets!I$45&"|"&Assets!$B62,'Data Annex'!$K$1:$K$7000,0),MATCH(Assets!I$46,'Data Annex'!$K$1:$AU$1,0)),"") -> 8800.384357 | J62: =IFERROR(INDEX('Data Annex'!$K$1:$AU$7000,MATCH(Assets!J$45&"|"&Assets!$B62,'Data Annex'!$K$1:$K$7000,0),MATCH(Assets!J$46,'Data Annex'!$K$1:$AU$1,0)),"") -> 7755.475881 | K62: =IFERROR(INDEX('Data Annex'!$K$1:$AU$7000,MATCH(Assets!K$45&"|"&Assets!$B62,'Data Annex'!$K$1:$K$7000,0),MATCH(Assets!K$46,'Data Annex'!$K$1:$AU$1,0)),"") -> 8098.877138 | L62: =IFERROR(INDEX('Data Annex'!$K$1:$AU$7000,MATCH(Assets!L$45&"|"&Assets!$B62,'Data Annex'!$K$1:$K$7000,0),MATCH(Assets!L$46,'Data Annex'!$K$1:$AU$1,0)),"") -> 8110.710354 | M62: =IFERROR(INDEX('Data Annex'!$K$1:$AU$7000,MATCH(Assets!M$45&"|"&Assets!$B62,'Data Annex'!$K$1:$K$7000,0),MATCH(Assets!M$46,'Data Annex'!$K$1:$AU$1,0)),"") -> 8252.233771 | N62: 0.9377128812 | O62: FR | Q62: =IFERROR(INDEX('Data Annex'!$K$1:$AU$7000,MATCH(Assets!Q$45&"|"&Assets!$B62,'Data Annex'!$K$1:$K$7000,0),MATCH(Assets!Q$46,'Data Annex'!$K$1:$AU$1,0)),"") -> 0.7285288098 | R62: =IFERROR(INDEX('Data Annex'!$K$1:$AU$7000,MATCH(Assets!R$45&"|"&Assets!$B62,'Data Annex'!$K$1:$K$7000,0),MATCH(Assets!R$46,'Data Annex'!$K$1:$AU$1,0)),"") -> 0.7225050585 | S62: =IFERROR(INDEX('Data Annex'!$K$1:$AU$7000,MATCH(Assets!S$45&"|"&Assets!$B62,'Data Annex'!$K$1:$K$7000,0),MATCH(Assets!S$46,'Data Annex'!$K$1:$AU$1,0)),"") -> 0.7342426174 | T62: =IFERROR(INDEX('Data Annex'!$K$1:$AU$7000,MATCH(Assets!T$45&"|"&Assets!$B62,'Data Annex'!$K$1:$K$7000,0),MATCH(Assets!T$46,'Data Annex'!$K$1:$AU$1,0)),"") -> 0.7378819448 | U62: =IFERROR(INDEX('Data Annex'!$K$1:$AU$7000,MATCH(Assets!U$45&"|"&Assets!$B62,'Data Annex'!$K$1:$K$7000,0),MATCH(Assets!U$46,'Data Annex'!$K$1:$AU$1,0)),"") -> 0.03833906629 | V62: =IFERROR(INDEX('Data Annex'!$K$1:$AU$7000,MATCH(Assets!V$45&"|"&Assets!$B62,'Data Annex'!$K$1:$K$7000,0),MATCH(Assets!V$46,'Data Annex'!$K$1:$AU$1,0)),"") -> 0.03597337152 | W62: =IFERROR(INDEX('Data Annex'!$K$1:$AU$7000,MATCH(Assets!W$45&"|"&Assets!$B62,'Data Annex'!$K$1:$K$7000,0),MATCH(Assets!W$46,'Data Annex'!$K$1:$AU$1,0)),"") -> 0.03505120259 | X62: =IFERROR(INDEX('Data Annex'!$K$1:$AU$7000,MATCH(Assets!X$45&"|"&Assets!$B62,'Data Annex'!$K$1:$K$7000,0),MATCH(Assets!X$46,'Data Annex'!$K$1:$AU$1,0)),"") -> 0.03303087458 | Y62: =IFERROR(INDEX('Data Annex'!$K$1:$AU$7000,MATCH(Assets!Y$45&"|"&Assets!$B62,'Data Annex'!$K$1:$K$7000,0),MATCH(Assets!Y$46,'Data Annex'!$K$1:$AU$1,0)),"") -> 0.2331321239 | Z62: =IFERROR(INDEX('Data Annex'!$K$1:$AU$7000,MATCH(Assets!Z$45&"|"&Assets!$B62,'Data Annex'!$K$1:$K$7000,0),MATCH(Assets!Z$46,'Data Annex'!$K$1:$AU$1,0)),"") -> 0.24152157 | AA62: =IFERROR(INDEX('Data Annex'!$K$1:$AU$7000,MATCH(Assets!AA$45&"|"&Assets!$B62,'Data Annex'!$K$1:$K$7000,0),MATCH(Assets!AA$46,'Data Annex'!$K$1:$AU$1,0)),"") -> 0.23070618 | AB62: =IFERROR(INDEX('Data Annex'!$K$1:$AU$7000,MATCH(Assets!AB$45&"|"&Assets!$B62,'Data Annex'!$K$1:$K$7000,0),MATCH(Assets!AB$46,'Data Annex'!$K$1:$AU$1,0)),"") -> 0.2290871806
B63: GR | D63: GR | F63: =IFERROR(INDEX('Data Annex'!$K$1:$AU$7000,MATCH(Assets!F$45&"|"&Assets!$B63,'Data Annex'!$K$1:$K$7000,0),MATCH(Assets!F$46,'Data Annex'!$K$1:$AU$1,0)),"") -> 282.9519209 | G63: =IFERROR(INDEX('Data Annex'!$K$1:$AU$7000,MATCH(Assets!G$45&"|"&Assets!$B63,'Data Annex'!$K$1:$K$7000,0),MATCH(Assets!G$46,'Data Annex'!$K$1:$AU$1,0)),"") -> 286.2680122 | H63: =IFERROR(INDEX('Data Annex'!$K$1:$AU$7000,MATCH(Assets!H$45&"|"&Assets!$B63,'Data Annex'!$K$1:$K$7000,0),MATCH(Assets!H$46,'Data Annex'!$K$1:$AU$1,0)),"") -> 293.5418174 | I63: =IFERROR(INDEX('Data Annex'!$K$1:$AU$7000,MATCH(Assets!I$45&"|"&Assets!$B63,'Data Annex'!$K$1:$K$7000,0),MATCH(Assets!I$46,'Data Annex'!$K$1:$AU$1,0)),"") -> 299.5644038 | J63: =IFERROR(INDEX('Data Annex'!$K$1:$AU$7000,MATCH(Assets!J$45&"|"&Assets!$B63,'Data Annex'!$K$1:$K$7000,0),MATCH(Assets!J$46,'Data Annex'!$K$1:$AU$1,0)),"") -> 238.0776777 | K63: =IFERROR(INDEX('Data Annex'!$K$1:$AU$7000,MATCH(Assets!K$45&"|"&Assets!$B63,'Data Annex'!$K$1:$K$7000,0),MATCH(Assets!K$46,'Data Annex'!$K$1:$AU$1,0)),"") -> 242.0165434 | L63: =IFERROR(INDEX('Data Annex'!$K$1:$AU$7000,MATCH(Assets!L$45&"|"&Assets!$B63,'Data Annex'!$K$1:$K$7000,0),MATCH(Assets!L$46,'Data Annex'!$K$1:$AU$1,0)),"") -> 246.6193164 | M63: =IFERROR(INDEX('Data Annex'!$K$1:$AU$7000,MATCH(Assets!M$45&"|"&Assets!$B63,'Data Annex'!$K$1:$K$7000,0),MATCH(Assets!M$46,'Data Annex'!$K$1:$AU$1,0)),"") -> 250.4033398 | N63: 0.8358915035 | O63: GR | Q63: =IFERROR(INDEX('Data Annex'!$K$1:$AU$7000,MATCH(Assets!Q$45&"|"&Assets!$B63,'Data Annex'!$K$1:$K$7000,0),MATCH(Assets!Q$46,'Data Annex'!$K$1:$AU$1,0)),"") -> 0.8782452469 | R63: =IFERROR(INDEX('Data Annex'!$K$1:$AU$7000,MATCH(Assets!R$45&"|"&Assets!$B63,'Data Annex'!$K$1:$K$7000,0),MATCH(Assets!R$46,'Data Annex'!$K$1:$AU$1,0)),"") -> 0.8786298802 | S63: =IFERROR(INDEX('Data Annex'!$K$1:$AU$7000,MATCH(Assets!S$45&"|"&Assets!$B63,'Data Annex'!$K$1:$K$7000,0),MATCH(Assets!S$46,'Data Annex'!$K$1:$AU$1,0)),"") -> 0.8820878258 | T63: =IFERROR(INDEX('Data Annex'!$K$1:$AU$7000,MATCH(Assets!T$45&"|"&Assets!$B63,'Data Annex'!$K$1:$K$7000,0),MATCH(Assets!T$46,'Data Annex'!$K$1:$AU$1,0)),"") -> 0.8817075112 | U63: =IFERROR(INDEX('Data Annex'!$K$1:$AU$7000,MATCH(Assets!U$45&"|"&Assets!$B63,'Data Annex'!$K$1:$K$7000,0),MATCH(Assets!U$46,'Data Annex'!$K$1:$AU$1,0)),"") -> 0.07245960629 | V63: =IFERROR(INDEX('Data Annex'!$K$1:$AU$7000,MATCH(Assets!V$45&"|"&Assets!$B63,'Data Annex'!$K$1:$K$7000,0),MATCH(Assets!V$46,'Data Annex'!$K$1:$AU$1,0)),"") -> 0.07676258436 | W63: =IFERROR(INDEX('Data Annex'!$K$1:$AU$7000,MATCH(Assets!W$45&"|"&Assets!$B63,'Data Annex'!$K$1:$K$7000,0),MATCH(Assets!W$46,'Data Annex'!$K$1:$AU$1,0)),"") -> 0.07363645891 | X63: =IFERROR(INDEX('Data Annex'!$K$1:$AU$7000,MATCH(Assets!X$45&"|"&Assets!$B63,'Data Annex'!$K$1:$K$7000,0),MATCH(Assets!X$46,'Data Annex'!$K$1:$AU$1,0)),"") -> 0.07448639394 | Y63: =IFERROR(INDEX('Data Annex'!$K$1:$AU$7000,MATCH(Assets!Y$45&"|"&Assets!$B63,'Data Annex'!$K$1:$K$7000,0),MATCH(Assets!Y$46,'Data Annex'!$K$1:$AU$1,0)),"") -> 0.04929514677 | Z63: =IFERROR(INDEX('Data Annex'!$K$1:$AU$7000,MATCH(Assets!Z$45&"|"&Assets!$B63,'Data Annex'!$K$1:$K$7000,0),MATCH(Assets!Z$46,'Data Annex'!$K$1:$AU$1,0)),"") -> 0.04460753547 | AA63: =IFERROR(INDEX('Data Annex'!$K$1:$AU$7000,MATCH(Assets!AA$45&"|"&Assets!$B63,'Data Annex'!$K$1:$K$7000,0),MATCH(Assets!AA$46,'Data Annex'!$K$1:$AU$1,0)),"") -> 0.0442757153 | AB63: =IFERROR(INDEX('Data Annex'!$K$1:$AU$7000,MATCH(Assets!AB$45&"|"&Assets!$B63,'Data Annex'!$K$1:$K$7000,0),MATCH(Assets!AB$46,'Data Annex'!$K$1:$AU$1,0)),"") -> 0.04380609491
B64: HR | D64: HR | F64: =IFERROR(INDEX('Data Annex'!$K$1:$AU$7000,MATCH(Assets!F$45&"|"&Assets!$B64,'Data Annex'!$K$1:$K$7000,0),MATCH(Assets!F$46,'Data Annex'!$K$1:$AU$1,0)),"") -> 47.76764184 | G64: =IFERROR(INDEX('Data Annex'!$K$1:$AU$7000,MATCH(Assets!G$45&"|"&Assets!$B64,'Data Annex'!$K$1:$K$7000,0),MATCH(Assets!G$46,'Data Annex'!$K$1:$AU$1,0)),"") -> 48.47061402 | H64: =IFERROR(INDEX('Data Annex'!$K$1:$AU$7000,MATCH(Assets!H$45&"|"&Assets!$B64,'Data Annex'!$K$1:$K$7000,0),MATCH(Assets!H$46,'Data Annex'!$K$1:$AU$1,0)),"") -> 50.02444723 | I64: =IFERROR(INDEX('Data Annex'!$K$1:$AU$7000,MATCH(Assets!I$45&"|"&Assets!$B64,'Data Annex'!$K$1:$K$7000,0),MATCH(Assets!I$46,'Data Annex'!$K$1:$AU$1,0)),"") -> 51.42286194 | J64: =IFERROR(INDEX('Data Annex'!$K$1:$AU$7000,MATCH(Assets!J$45&"|"&Assets!$B64,'Data Annex'!$K$1:$K$7000,0),MATCH(Assets!J$46,'Data Annex'!$K$1:$AU$1,0)),"") -> 46.58846444 | K64: =IFERROR(INDEX('Data Annex'!$K$1:$AU$7000,MATCH(Assets!K$45&"|"&Assets!$B64,'Data Annex'!$K$1:$K$7000,0),MATCH(Assets!K$46,'Data Annex'!$K$1:$AU$1,0)),"") -> 47.27844926 | L64: =IFERROR(INDEX('Data Annex'!$K$1:$AU$7000,MATCH(Assets!L$45&"|"&Assets!$B64,'Data Annex'!$K$1:$K$7000,0),MATCH(Assets!L$46,'Data Annex'!$K$1:$AU$1,0)),"") -> 48.86191133 | M64: =IFERROR(INDEX('Data Annex'!$K$1:$AU$7000,MATCH(Assets!M$45&"|"&Assets!$B64,'Data Annex'!$K$1:$K$7000,0),MATCH(Assets!M$46,'Data Annex'!$K$1:$AU$1,0)),"") -> 50.2961885 | N64: 0.9780900286 | O64: HR | Q64: =IFERROR(INDEX('Data Annex'!$K$1:$AU$7000,MATCH(Assets!Q$45&"|"&Assets!$B64,'Data Annex'!$K$1:$K$7000,0),MATCH(Assets!Q$46,'Data Annex'!$K$1:$AU$1,0)),"") -> 0.892736367 | R64: =IFERROR(INDEX('Data Annex'!$K$1:$AU$7000,MATCH(Assets!R$45&"|"&Assets!$B64,'Data Annex'!$K$1:$K$7000,0),MATCH(Assets!R$46,'Data Annex'!$K$1:$AU$1,0)),"") -> 0.8971105392 | S64: =IFERROR(INDEX('Data Annex'!$K$1:$AU$7000,MATCH(Assets!S$45&"|"&Assets!$B64,'Data Annex'!$K$1:$K$7000,0),MATCH(Assets!S$46,'Data Annex'!$K$1:$AU$1,0)),"") -> 0.8970456519 | T64: =IFERROR(INDEX('Data Annex'!$K$1:$AU$7000,MATCH(Assets!T$45&"|"&Assets!$B64,'Data Annex'!$K$1:$K$7000,0),MATCH(Assets!T$46,'Data Annex'!$K$1:$AU$1,0)),"") -> 0.9027040551 | U64: =IFERROR(INDEX('Data Annex'!$K$1:$AU$7000,MATCH(Assets!U$45&"|"&Assets!$B64,'Data Annex'!$K$1:$K$7000,0),MATCH(Assets!U$46,'Data Annex'!$K$1:$AU$1,0)),"") -> 0.09952830324 | V64: =IFERROR(INDEX('Data Annex'!$K$1:$AU$7000,MATCH(Assets!V$45&"|"&Assets!$B64,'Data Annex'!$K$1:$K$7000,0),MATCH(Assets!V$46,'Data Annex'!$K$1:$AU$1,0)),"") -> 0.09492519303 | W64: =IFERROR(INDEX('Data Annex'!$K$1:$AU$7000,MATCH(Assets!W$45&"|"&Assets!$B64,'Data Annex'!$K$1:$K$7000,0),MATCH(Assets!W$46,'Data Annex'!$K$1:$AU$1,0)),"") -> 0.09564124526 | X64: =IFERROR(INDEX('Data Annex'!$K$1:$AU$7000,MATCH(Assets!X$45&"|"&Assets!$B64,'Data Annex'!$K$1:$K$7000,0),MATCH(Assets!X$46,'Data Annex'!$K$1:$AU$1,0)),"") -> 0.09026246609 | Y64: =IFERROR(INDEX('Data Annex'!$K$1:$AU$7000,MATCH(Assets!Y$45&"|"&Assets!$B64,'Data Annex'!$K$1:$K$7000,0),MATCH(Assets!Y$46,'Data Annex'!$K$1:$AU$1,0)),"") -> 0.00773532974 | Z64: =IFERROR(INDEX('Data Annex'!$K$1:$AU$7000,MATCH(Assets!Z$45&"|"&Assets!$B64,'Data Annex'!$K$1:$K$7000,0),MATCH(Assets!Z$46,'Data Annex'!$K$1:$AU$1,0)),"") -> 0.00796426772 | AA64: =IFERROR(INDEX('Data Annex'!$K$1:$AU$7000,MATCH(Assets!AA$45&"|"&Assets!$B64,'Data Annex'!$K$1:$K$7000,0),MATCH(Assets!AA$46,'Data Annex'!$K$1:$AU$1,0)),"") -> 0.007313102873 | AB64: =IFERROR(INDEX('Data Annex'!$K$1:$AU$7000,MATCH(Assets!AB$45&"|"&Assets!$B64,'Data Annex'!$K$1:$K$7000,0),MATCH(Assets!AB$46,'Data Annex'!$K$1:$AU$1,0)),"") -> 0.007033478849
B65: HU | D65: HU | F65: =IFERROR(INDEX('Data Annex'!$K$1:$AU$7000,MATCH(Assets!F$45&"|"&Assets!$B65,'Data Annex'!$K$1:$K$7000,0),MATCH(Assets!F$46,'Data Annex'!$K$1:$AU$1,0)),"") -> 87.58803326 | G65: =IFERROR(INDEX('Data Annex'!$K$1:$AU$7000,MATCH(Assets!G$45&"|"&Assets!$B65,'Data Annex'!$K$1:$K$7000,0),MATCH(Assets!G$46,'Data Annex'!$K$1:$AU$1,0)),"") -> 114.2942288 | H65: =IFERROR(INDEX('Data Annex'!$K$1:$AU$7000,MATCH(Assets!H$45&"|"&Assets!$B65,'Data Annex'!$K$1:$K$7000,0),MATCH(Assets!H$46,'Data Annex'!$K$1:$AU$1,0)),"") -> 120.7322181 | I65: =IFERROR(INDEX('Data Annex'!$K$1:$AU$7000,MATCH(Assets!I$45&"|"&Assets!$B65,'Data Annex'!$K$1:$K$7000,0),MATCH(Assets!I$46,'Data Annex'!$K$1:$AU$1,0)),"") -> 124.3139515 | J65: =IFERROR(INDEX('Data Annex'!$K$1:$AU$7000,MATCH(Assets!J$45&"|"&Assets!$B65,'Data Annex'!$K$1:$K$7000,0),MATCH(Assets!J$46,'Data Annex'!$K$1:$AU$1,0)),"") -> 83.98259554 | K65: =IFERROR(INDEX('Data Annex'!$K$1:$AU$7000,MATCH(Assets!K$45&"|"&Assets!$B65,'Data Annex'!$K$1:$K$7000,0),MATCH(Assets!K$46,'Data Annex'!$K$1:$AU$1,0)),"") -> 109.6529373 | L65: =IFERROR(INDEX('Data Annex'!$K$1:$AU$7000,MATCH(Assets!L$45&"|"&Assets!$B65,'Data Annex'!$K$1:$K$7000,0),MATCH(Assets!L$46,'Data Annex'!$K$1:$AU$1,0)),"") -> 115.8489782 | M65: =IFERROR(INDEX('Data Annex'!$K$1:$AU$7000,MATCH(Assets!M$45&"|"&Assets!$B65,'Data Annex'!$K$1:$K$7000,0),MATCH(Assets!M$46,'Data Annex'!$K$1:$AU$1,0)),"") -> 119.897049 | N65: 0.964469777 | O65: HU | Q65: =IFERROR(INDEX('Data Annex'!$K$1:$AU$7000,MATCH(Assets!Q$45&"|"&Assets!$B65,'Data Annex'!$K$1:$K$7000,0),MATCH(Assets!Q$46,'Data Annex'!$K$1:$AU$1,0)),"") -> 0.8657912237 | R65: =IFERROR(INDEX('Data Annex'!$K$1:$AU$7000,MATCH(Assets!R$45&"|"&Assets!$B65,'Data Annex'!$K$1:$K$7000,0),MATCH(Assets!R$46,'Data Annex'!$K$1:$AU$1,0)),"") -> 0.8651864986 | S65: =IFERROR(INDEX('Data Annex'!$K$1:$AU$7000,MATCH(Assets!S$45&"|"&Assets!$B65,'Data Annex'!$K$1:$K$7000,0),MATCH(Assets!S$46,'Data Annex'!$K$1:$AU$1,0)),"") -> 0.8724107918 | T65: =IFERROR(INDEX('Data Annex'!$K$1:$AU$7000,MATCH(Assets!T$45&"|"&Assets!$B65,'Data Annex'!$K$1:$K$7000,0),MATCH(Assets!T$46,'Data Annex'!$K$1:$AU$1,0)),"") -> 0.871404017 | U65: =IFERROR(INDEX('Data Annex'!$K$1:$AU$7000,MATCH(Assets!U$45&"|"&Assets!$B65,'Data Annex'!$K$1:$K$7000,0),MATCH(Assets!U$46,'Data Annex'!$K$1:$AU$1,0)),"") -> 0.08751053148 | V65: =IFERROR(INDEX('Data Annex'!$K$1:$AU$7000,MATCH(Assets!V$45&"|"&Assets!$B65,'Data Annex'!$K$1:$K$7000,0),MATCH(Assets!V$46,'Data Annex'!$K$1:$AU$1,0)),"") -> 0.09247852348 | W65: =IFERROR(INDEX('Data Annex'!$K$1:$AU$7000,MATCH(Assets!W$45&"|"&Assets!$B65,'Data Annex'!$K$1:$K$7000,0),MATCH(Assets!W$46,'Data Annex'!$K$1:$AU$1,0)),"") -> 0.08303428203 | X65: =IFERROR(INDEX('Data Annex'!$K$1:$AU$7000,MATCH(Assets!X$45&"|"&Assets!$B65,'Data Annex'!$K$1:$K$7000,0),MATCH(Assets!X$46,'Data Annex'!$K$1:$AU$1,0)),"") -> 0.07845694413 | Y65: =IFERROR(INDEX('Data Annex'!$K$1:$AU$7000,MATCH(Assets!Y$45&"|"&Assets!$B65,'Data Annex'!$K$1:$K$7000,0),MATCH(Assets!Y$46,'Data Annex'!$K$1:$AU$1,0)),"") -> 0.04669824483 | Z65: =IFERROR(INDEX('Data Annex'!$K$1:$AU$7000,MATCH(Assets!Z$45&"|"&Assets!$B65,'Data Annex'!$K$1:$K$7000,0),MATCH(Assets!Z$46,'Data Annex'!$K$1:$AU$1,0)),"") -> 0.04233497793 | AA65: =IFERROR(INDEX('Data Annex'!$K$1:$AU$7000,MATCH(Assets!AA$45&"|"&Assets!$B65,'Data Annex'!$K$1:$K$7000,0),MATCH(Assets!AA$46,'Data Annex'!$K$1:$AU$1,0)),"") -> 0.04455492621 | AB65: =IFERROR(INDEX('Data Annex'!$K$1:$AU$7000,MATCH(Assets!AB$45&"|"&Assets!$B65,'Data Annex'!$K$1:$K$7000,0),MATCH(Assets!AB$46,'Data Annex'!$K$1:$AU$1,0)),"") -> 0.05013903886
B66: IE | D66: IE | F66: =IFERROR(INDEX('Data Annex'!$K$1:$AU$7000,MATCH(Assets!F$45&"|"&Assets!$B66,'Data Annex'!$K$1:$K$7000,0),MATCH(Assets!F$46,'Data Annex'!$K$1:$AU$1,0)),"") -> 285.5603146 | G66: =IFERROR(INDEX('Data Annex'!$K$1:$AU$7000,MATCH(Assets!G$45&"|"&Assets!$B66,'Data Annex'!$K$1:$K$7000,0),MATCH(Assets!G$46,'Data Annex'!$K$1:$AU$1,0)),"") -> 307.359542 | H66: =IFERROR(INDEX('Data Annex'!$K$1:$AU$7000,MATCH(Assets!H$45&"|"&Assets!$B66,'Data Annex'!$K$1:$K$7000,0),MATCH(Assets!H$46,'Data Annex'!$K$1:$AU$1,0)),"") -> 321.4508841 | I66: =IFERROR(INDEX('Data Annex'!$K$1:$AU$7000,MATCH(Assets!I$45&"|"&Assets!$B66,'Data Annex'!$K$1:$K$7000,0),MATCH(Assets!I$46,'Data Annex'!$K$1:$AU$1,0)),"") -> 330.289514 | J66: =IFERROR(INDEX('Data Annex'!$K$1:$AU$7000,MATCH(Assets!J$45&"|"&Assets!$B66,'Data Annex'!$K$1:$K$7000,0),MATCH(Assets!J$46,'Data Annex'!$K$1:$AU$1,0)),"") -> 272.4465003 | K66: =IFERROR(INDEX('Data Annex'!$K$1:$AU$7000,MATCH(Assets!K$45&"|"&Assets!$B66,'Data Annex'!$K$1:$K$7000,0),MATCH(Assets!K$46,'Data Annex'!$K$1:$AU$1,0)),"") -> 292.7558132 | L66: =IFERROR(INDEX('Data Annex'!$K$1:$AU$7000,MATCH(Assets!L$45&"|"&Assets!$B66,'Data Annex'!$K$1:$K$7000,0),MATCH(Assets!L$46,'Data Annex'!$K$1:$AU$1,0)),"") -> 305.6764153 | M66: =IFERROR(INDEX('Data Annex'!$K$1:$AU$7000,MATCH(Assets!M$45&"|"&Assets!$B66,'Data Annex'!$K$1:$K$7000,0),MATCH(Assets!M$46,'Data Annex'!$K$1:$AU$1,0)),"") -> 313.8748445 | N66: 0.9503021778 | O66: IE | Q66: =IFERROR(INDEX('Data Annex'!$K$1:$AU$7000,MATCH(Assets!Q$45&"|"&Assets!$B66,'Data Annex'!$K$1:$K$7000,0),MATCH(Assets!Q$46,'Data Annex'!$K$1:$AU$1,0)),"") -> 0.8367224414 | R66: =IFERROR(INDEX('Data Annex'!$K$1:$AU$7000,MATCH(Assets!R$45&"|"&Assets!$B66,'Data Annex'!$K$1:$K$7000,0),MATCH(Assets!R$46,'Data Annex'!$K$1:$AU$1,0)),"") -> 0.8406367956 | S66: =IFERROR(INDEX('Data Annex'!$K$1:$AU$7000,MATCH(Assets!S$45&"|"&Assets!$B66,'Data Annex'!$K$1:$K$7000,0),MATCH(Assets!S$46,'Data Annex'!$K$1:$AU$1,0)),"") -> 0.855583892 | T66: =IFERROR(INDEX('Data Annex'!$K$1:$AU$7000,MATCH(Assets!T$45&"|"&Assets!$B66,'Data Annex'!$K$1:$K$7000,0),MATCH(Assets!T$46,'Data Annex'!$K$1:$AU$1,0)),"") -> 0.852696366 | U66: =IFERROR(INDEX('Data Annex'!$K$1:$AU$7000,MATCH(Assets!U$45&"|"&Assets!$B66,'Data Annex'!$K$1:$K$7000,0),MATCH(Assets!U$46,'Data Annex'!$K$1:$AU$1,0)),"") -> 0.1095492314 | V66: =IFERROR(INDEX('Data Annex'!$K$1:$AU$7000,MATCH(Assets!V$45&"|"&Assets!$B66,'Data Annex'!$K$1:$K$7000,0),MATCH(Assets!V$46,'Data Annex'!$K$1:$AU$1,0)),"") -> 0.1040317285 | W66: =IFERROR(INDEX('Data Annex'!$K$1:$AU$7000,MATCH(Assets!W$45&"|"&Assets!$B66,'Data Annex'!$K$1:$K$7000,0),MATCH(Assets!W$46,'Data Annex'!$K$1:$AU$1,0)),"") -> 0.0956292682 | X66: =IFERROR(INDEX('Data Annex'!$K$1:$AU$7000,MATCH(Assets!X$45&"|"&Assets!$B66,'Data Annex'!$K$1:$K$7000,0),MATCH(Assets!X$46,'Data Annex'!$K$1:$AU$1,0)),"") -> 0.09152888132 | Y66: =IFERROR(INDEX('Data Annex'!$K$1:$AU$7000,MATCH(Assets!Y$45&"|"&Assets!$B66,'Data Annex'!$K$1:$K$7000,0),MATCH(Assets!Y$46,'Data Annex'!$K$1:$AU$1,0)),"") -> 0.05372832723 | Z66: =IFERROR(INDEX('Data Annex'!$K$1:$AU$7000,MATCH(Assets!Z$45&"|"&Assets!$B66,'Data Annex'!$K$1:$K$7000,0),MATCH(Assets!Z$46,'Data Annex'!$K$1:$AU$1,0)),"") -> 0.05533147595 | AA66: =IFERROR(INDEX('Data Annex'!$K$1:$AU$7000,MATCH(Assets!AA$45&"|"&Assets!$B66,'Data Annex'!$K$1:$K$7000,0),MATCH(Assets!AA$46,'Data Annex'!$K$1:$AU$1,0)),"") -> 0.04878683983 | AB66: =IFERROR(INDEX('Data Annex'!$K$1:$AU$7000,MATCH(Assets!AB$45&"|"&Assets!$B66,'Data Annex'!$K$1:$K$7000,0),MATCH(Assets!AB$46,'Data Annex'!$K$1:$AU$1,0)),"") -> 0.05577475272
B67: IS | D67: IS | F67: =IFERROR(INDEX('Data Annex'!$K$1:$AU$7000,MATCH(Assets!F$45&"|"&Assets!$B67,'Data Annex'!$K$1:$K$7000,0),MATCH(Assets!F$46,'Data Annex'!$K$1:$AU$1,0)),"") -> 26.14448641 | G67: =IFERROR(INDEX('Data Annex'!$K$1:$AU$7000,MATCH(Assets!G$45&"|"&Assets!$B67,'Data Annex'!$K$1:$K$7000,0),MATCH(Assets!G$46,'Data Annex'!$K$1:$AU$1,0)),"") -> 28.13828426 | H67: =IFERROR(INDEX('Data Annex'!$K$1:$AU$7000,MATCH(Assets!H$45&"|"&Assets!$B67,'Data Annex'!$K$1:$K$7000,0),MATCH(Assets!H$46,'Data Annex'!$K$1:$AU$1,0)),"") -> 29.63875789 | I67: =IFERROR(INDEX('Data Annex'!$K$1:$AU$7000,MATCH(Assets!I$45&"|"&Assets!$B67,'Data Annex'!$K$1:$K$7000,0),MATCH(Assets!I$46,'Data Annex'!$K$1:$AU$1,0)),"") -> 29.95906331 | J67: =IFERROR(INDEX('Data Annex'!$K$1:$AU$7000,MATCH(Assets!J$45&"|"&Assets!$B67,'Data Annex'!$K$1:$K$7000,0),MATCH(Assets!J$46,'Data Annex'!$K$1:$AU$1,0)),"") -> 25.52521814 | K67: =IFERROR(INDEX('Data Annex'!$K$1:$AU$7000,MATCH(Assets!K$45&"|"&Assets!$B67,'Data Annex'!$K$1:$K$7000,0),MATCH(Assets!K$46,'Data Annex'!$K$1:$AU$1,0)),"") -> 27.3306696 | L67: =IFERROR(INDEX('Data Annex'!$K$1:$AU$7000,MATCH(Assets!L$45&"|"&Assets!$B67,'Data Annex'!$K$1:$K$7000,0),MATCH(Assets!L$46,'Data Annex'!$K$1:$AU$1,0)),"") -> 28.89271751 | M67: =IFERROR(INDEX('Data Annex'!$K$1:$AU$7000,MATCH(Assets!M$45&"|"&Assets!$B67,'Data Annex'!$K$1:$K$7000,0),MATCH(Assets!M$46,'Data Annex'!$K$1:$AU$1,0)),"") -> 28.93448259 | N67: 0.9658006423 | O67: IS | Q67: =IFERROR(INDEX('Data Annex'!$K$1:$AU$7000,MATCH(Assets!Q$45&"|"&Assets!$B67,'Data Annex'!$K$1:$K$7000,0),MATCH(Assets!Q$46,'Data Annex'!$K$1:$AU$1,0)),"") -> 0.8648231305 | R67: =IFERROR(INDEX('Data Annex'!$K$1:$AU$7000,MATCH(Assets!R$45&"|"&Assets!$B67,'Data Annex'!$K$1:$K$7000,0),MATCH(Assets!R$46,'Data Annex'!$K$1:$AU$1,0)),"") -> 0.8719698783 | S67: =IFERROR(INDEX('Data Annex'!$K$1:$AU$7000,MATCH(Assets!S$45&"|"&Assets!$B67,'Data Annex'!$K$1:$K$7000,0),MATCH(Assets!S$46,'Data Annex'!$K$1:$AU$1,0)),"") -> 0.8711779136 | T67: =IFERROR(INDEX('Data Annex'!$K$1:$AU$7000,MATCH(Assets!T$45&"|"&Assets!$B67,'Data Annex'!$K$1:$K$7000,0),MATCH(Assets!T$46,'Data Annex'!$K$1:$AU$1,0)),"") -> 0.8639578639 | U67: =IFERROR(INDEX('Data Annex'!$K$1:$AU$7000,MATCH(Assets!U$45&"|"&Assets!$B67,'Data Annex'!$K$1:$K$7000,0),MATCH(Assets!U$46,'Data Annex'!$K$1:$AU$1,0)),"") -> 0.03454778628 | V67: =IFERROR(INDEX('Data Annex'!$K$1:$AU$7000,MATCH(Assets!V$45&"|"&Assets!$B67,'Data Annex'!$K$1:$K$7000,0),MATCH(Assets!V$46,'Data Annex'!$K$1:$AU$1,0)),"") -> 0.02577436031 | W67: =IFERROR(INDEX('Data Annex'!$K$1:$AU$7000,MATCH(Assets!W$45&"|"&Assets!$B67,'Data Annex'!$K$1:$K$7000,0),MATCH(Assets!W$46,'Data Annex'!$K$1:$AU$1,0)),"") -> 0.02773937654 | X67: =IFERROR(INDEX('Data Annex'!$K$1:$AU$7000,MATCH(Assets!X$45&"|"&Assets!$B67,'Data Annex'!$K$1:$K$7000,0),MATCH(Assets!X$46,'Data Annex'!$K$1:$AU$1,0)),"") -> 0.03290903683 | Y67: =IFERROR(INDEX('Data Annex'!$K$1:$AU$7000,MATCH(Assets!Y$45&"|"&Assets!$B67,'Data Annex'!$K$1:$K$7000,0),MATCH(Assets!Y$46,'Data Annex'!$K$1:$AU$1,0)),"") -> 0.1006290832 | Z67: =IFERROR(INDEX('Data Annex'!$K$1:$AU$7000,MATCH(Assets!Z$45&"|"&Assets!$B67,'Data Annex'!$K$1:$K$7000,0),MATCH(Assets!Z$46,'Data Annex'!$K$1:$AU$1,0)),"") -> 0.1022557614 | AA67: =IFERROR(INDEX('Data Annex'!$K$1:$AU$7000,MATCH(Assets!AA$45&"|"&Assets!$B67,'Data Annex'!$K$1:$K$7000,0),MATCH(Assets!AA$46,'Data Annex'!$K$1:$AU$1,0)),"") -> 0.1010827098 | AB67: =IFERROR(INDEX('Data Annex'!$K$1:$AU$7000,MATCH(Assets!AB$45&"|"&Assets!$B67,'Data Annex'!$K$1:$K$7000,0),MATCH(Assets!AB$46,'Data Annex'!$K$1:$AU$1,0)),"") -> 0.1031330993
B68: IT | D68: IT | F68: =IFERROR(INDEX('Data Annex'!$K$1:$AU$7000,MATCH(Assets!F$45&"|"&Assets!$B68,'Data Annex'!$K$1:$K$7000,0),MATCH(Assets!F$46,'Data Annex'!$K$1:$AU$1,0)),"") -> 2623.56943 | G68: =IFERROR(INDEX('Data Annex'!$K$1:$AU$7000,MATCH(Assets!G$45&"|"&Assets!$B68,'Data Annex'!$K$1:$K$7000,0),MATCH(Assets!G$46,'Data Annex'!$K$1:$AU$1,0)),"") -> 2752.291618 | H68: =IFERROR(INDEX('Data Annex'!$K$1:$AU$7000,MATCH(Assets!H$45&"|"&Assets!$B68,'Data Annex'!$K$1:$K$7000,0),MATCH(Assets!H$46,'Data Annex'!$K$1:$AU$1,0)),"") -> 2805.619621 | I68: =IFERROR(INDEX('Data Annex'!$K$1:$AU$7000,MATCH(Assets!I$45&"|"&Assets!$B68,'Data Annex'!$K$1:$K$7000,0),MATCH(Assets!I$46,'Data Annex'!$K$1:$AU$1,0)),"") -> 2820.691359 | J68: =IFERROR(INDEX('Data Annex'!$K$1:$AU$7000,MATCH(Assets!J$45&"|"&Assets!$B68,'Data Annex'!$K$1:$K$7000,0),MATCH(Assets!J$46,'Data Annex'!$K$1:$AU$1,0)),"") -> 2452.02841 | K68: =IFERROR(INDEX('Data Annex'!$K$1:$AU$7000,MATCH(Assets!K$45&"|"&Assets!$B68,'Data Annex'!$K$1:$K$7000,0),MATCH(Assets!K$46,'Data Annex'!$K$1:$AU$1,0)),"") -> 2606.825263 | L68: =IFERROR(INDEX('Data Annex'!$K$1:$AU$7000,MATCH(Assets!L$45&"|"&Assets!$B68,'Data Annex'!$K$1:$K$7000,0),MATCH(Assets!L$46,'Data Annex'!$K$1:$AU$1,0)),"") -> 2659.114186 | M68: =IFERROR(INDEX('Data Annex'!$K$1:$AU$7000,MATCH(Assets!M$45&"|"&Assets!$B68,'Data Annex'!$K$1:$K$7000,0),MATCH(Assets!M$46,'Data Annex'!$K$1:$AU$1,0)),"") -> 2674.553631 | N68: 0.9481908121 | O68: IT | Q68: =IFERROR(INDEX('Data Annex'!$K$1:$AU$7000,MATCH(Assets!Q$45&"|"&Assets!$B68,'Data Annex'!$K$1:$K$7000,0),MATCH(Assets!Q$46,'Data Annex'!$K$1:$AU$1,0)),"") -> 0.8491566092 | R68: =IFERROR(INDEX('Data Annex'!$K$1:$AU$7000,MATCH(Assets!R$45&"|"&Assets!$B68,'Data Annex'!$K$1:$K$7000,0),MATCH(Assets!R$46,'Data Annex'!$K$1:$AU$1,0)),"") -> 0.85552029 | S68: =IFERROR(INDEX('Data Annex'!$K$1:$AU$7000,MATCH(Assets!S$45&"|"&Assets!$B68,'Data Annex'!$K$1:$K$7000,0),MATCH(Assets!S$46,'Data Annex'!$K$1:$AU$1,0)),"") -> 0.8517529275 | T68: =IFERROR(INDEX('Data Annex'!$K$1:$AU$7000,MATCH(Assets!T$45&"|"&Assets!$B68,'Data Annex'!$K$1:$K$7000,0),MATCH(Assets!T$46,'Data Annex'!$K$1:$AU$1,0)),"") -> 0.8539853748 | U68: =IFERROR(INDEX('Data Annex'!$K$1:$AU$7000,MATCH(Assets!U$45&"|"&Assets!$B68,'Data Annex'!$K$1:$K$7000,0),MATCH(Assets!U$46,'Data Annex'!$K$1:$AU$1,0)),"") -> 0.07381892085 | V68: =IFERROR(INDEX('Data Annex'!$K$1:$AU$7000,MATCH(Assets!V$45&"|"&Assets!$B68,'Data Annex'!$K$1:$K$7000,0),MATCH(Assets!V$46,'Data Annex'!$K$1:$AU$1,0)),"") -> 0.07130439457 | W68: =IFERROR(INDEX('Data Annex'!$K$1:$AU$7000,MATCH(Assets!W$45&"|"&Assets!$B68,'Data Annex'!$K$1:$K$7000,0),MATCH(Assets!W$46,'Data Annex'!$K$1:$AU$1,0)),"") -> 0.07377090228 | X68: =IFERROR(INDEX('Data Annex'!$K$1:$AU$7000,MATCH(Assets!X$45&"|"&Assets!$B68,'Data Annex'!$K$1:$K$7000,0),MATCH(Assets!X$46,'Data Annex'!$K$1:$AU$1,0)),"") -> 0.07074517025 | Y68: =IFERROR(INDEX('Data Annex'!$K$1:$AU$7000,MATCH(Assets!Y$45&"|"&Assets!$B68,'Data Annex'!$K$1:$K$7000,0),MATCH(Assets!Y$46,'Data Annex'!$K$1:$AU$1,0)),"") -> 0.07702446993 | Z68: =IFERROR(INDEX('Data Annex'!$K$1:$AU$7000,MATCH(Assets!Z$45&"|"&Assets!$B68,'Data Annex'!$K$1:$K$7000,0),MATCH(Assets!Z$46,'Data Annex'!$K$1:$AU$1,0)),"") -> 0.07317531546 | AA68: =IFERROR(INDEX('Data Annex'!$K$1:$AU$7000,MATCH(Assets!AA$45&"|"&Assets!$B68,'Data Annex'!$K$1:$K$7000,0),MATCH(Assets!AA$46,'Data Annex'!$K$1:$AU$1,0)),"") -> 0.0744761702 | AB68: =IFERROR(INDEX('Data Annex'!$K$1:$AU$7000,MATCH(Assets!AB$45&"|"&Assets!$B68,'Data Annex'!$K$1:$K$7000,0),MATCH(Assets!AB$46,'Data Annex'!$K$1:$AU$1,0)),"") -> 0.07526945491
B69: LT | D69: LT | F69: =IFERROR(INDEX('Data Annex'!$K$1:$AU$7000,MATCH(Assets!F$45&"|"&Assets!$B69,'Data Annex'!$K$1:$K$7000,0),MATCH(Assets!F$46,'Data Annex'!$K$1:$AU$1,0)),"") -> 27.242588 | G69: =IFERROR(INDEX('Data Annex'!$K$1:$AU$7000,MATCH(Assets!G$45&"|"&Assets!$B69,'Data Annex'!$K$1:$K$7000,0),MATCH(Assets!G$46,'Data Annex'!$K$1:$AU$1,0)),"") -> 27.897228 | H69: =IFERROR(INDEX('Data Annex'!$K$1:$AU$7000,MATCH(Assets!H$45&"|"&Assets!$B69,'Data Annex'!$K$1:$K$7000,0),MATCH(Assets!H$46,'Data Annex'!$K$1:$AU$1,0)),"") -> 29.16947 | I69: =IFERROR(INDEX('Data Annex'!$K$1:$AU$7000,MATCH(Assets!I$45&"|"&Assets!$B69,'Data Annex'!$K$1:$K$7000,0),MATCH(Assets!I$46,'Data Annex'!$K$1:$AU$1,0)),"") -> 29.877033 | J69: =IFERROR(INDEX('Data Annex'!$K$1:$AU$7000,MATCH(Assets!J$45&"|"&Assets!$B69,'Data Annex'!$K$1:$K$7000,0),MATCH(Assets!J$46,'Data Annex'!$K$1:$AU$1,0)),"") -> 27.028702 | K69: =IFERROR(INDEX('Data Annex'!$K$1:$AU$7000,MATCH(Assets!K$45&"|"&Assets!$B69,'Data Annex'!$K$1:$K$7000,0),MATCH(Assets!K$46,'Data Annex'!$K$1:$AU$1,0)),"") -> 27.676261 | L69: =IFERROR(INDEX('Data Annex'!$K$1:$AU$7000,MATCH(Assets!L$45&"|"&Assets!$B69,'Data Annex'!$K$1:$K$7000,0),MATCH(Assets!L$46,'Data Annex'!$K$1:$AU$1,0)),"") -> 28.950139 | M69: =IFERROR(INDEX('Data Annex'!$K$1:$AU$7000,MATCH(Assets!M$45&"|"&Assets!$B69,'Data Annex'!$K$1:$K$7000,0),MATCH(Assets!M$46,'Data Annex'!$K$1:$AU$1,0)),"") -> 29.666679 | N69: 0.992959341 | O69: LT | Q69: =IFERROR(INDEX('Data Annex'!$K$1:$AU$7000,MATCH(Assets!Q$45&"|"&Assets!$B69,'Data Annex'!$K$1:$K$7000,0),MATCH(Assets!Q$46,'Data Annex'!$K$1:$AU$1,0)),"") -> 0.96950353 | R69: =IFERROR(INDEX('Data Annex'!$K$1:$AU$7000,MATCH(Assets!R$45&"|"&Assets!$B69,'Data Annex'!$K$1:$K$7000,0),MATCH(Assets!R$46,'Data Annex'!$K$1:$AU$1,0)),"") -> 0.9690810475 | S69: =IFERROR(INDEX('Data Annex'!$K$1:$AU$7000,MATCH(Assets!S$45&"|"&Assets!$B69,'Data Annex'!$K$1:$K$7000,0),MATCH(Assets!S$46,'Data Annex'!$K$1:$AU$1,0)),"") -> 0.935949703 | T69: =IFERROR(INDEX('Data Annex'!$K$1:$AU$7000,MATCH(Assets!T$45&"|"&Assets!$B69,'Data Annex'!$K$1:$K$7000,0),MATCH(Assets!T$46,'Data Annex'!$K$1:$AU$1,0)),"") -> 0.9378122843 | U69: =IFERROR(INDEX('Data Annex'!$K$1:$AU$7000,MATCH(Assets!U$45&"|"&Assets!$B69,'Data Annex'!$K$1:$K$7000,0),MATCH(Assets!U$46,'Data Annex'!$K$1:$AU$1,0)),"") -> 0.001125803229 | V69: =IFERROR(INDEX('Data Annex'!$K$1:$AU$7000,MATCH(Assets!V$45&"|"&Assets!$B69,'Data Annex'!$K$1:$K$7000,0),MATCH(Assets!V$46,'Data Annex'!$K$1:$AU$1,0)),"") -> 0.001775781779 | W69: =IFERROR(INDEX('Data Annex'!$K$1:$AU$7000,MATCH(Assets!W$45&"|"&Assets!$B69,'Data Annex'!$K$1:$K$7000,0),MATCH(Assets!W$46,'Data Annex'!$K$1:$AU$1,0)),"") -> 0.001728696363 | X69: =IFERROR(INDEX('Data Annex'!$K$1:$AU$7000,MATCH(Assets!X$45&"|"&Assets!$B69,'Data Annex'!$K$1:$K$7000,0),MATCH(Assets!X$46,'Data Annex'!$K$1:$AU$1,0)),"") -> 0.001766999265 | Y69: =IFERROR(INDEX('Data Annex'!$K$1:$AU$7000,MATCH(Assets!Y$45&"|"&Assets!$B69,'Data Annex'!$K$1:$K$7000,0),MATCH(Assets!Y$46,'Data Annex'!$K$1:$AU$1,0)),"") -> 0.02937066678 | Z69: =IFERROR(INDEX('Data Annex'!$K$1:$AU$7000,MATCH(Assets!Z$45&"|"&Assets!$B69,'Data Annex'!$K$1:$K$7000,0),MATCH(Assets!Z$46,'Data Annex'!$K$1:$AU$1,0)),"") -> 0.02914317075 | AA69: =IFERROR(INDEX('Data Annex'!$K$1:$AU$7000,MATCH(Assets!AA$45&"|"&Assets!$B69,'Data Annex'!$K$1:$K$7000,0),MATCH(Assets!AA$46,'Data Annex'!$K$1:$AU$1,0)),"") -> 0.0623216006 | AB69: =IFERROR(INDEX('Data Annex'!$K$1:$AU$7000,MATCH(Assets!AB$45&"|"&Assets!$B69,'Data Annex'!$K$1:$K$7000,0),MATCH(Assets!AB$46,'Data Annex'!$K$1:$AU$1,0)),"") -> 0.06042071645
B70: LU | D70: LU | F70: =IFERROR(INDEX('Data Annex'!$K$1:$AU$7000,MATCH(Assets!F$45&"|"&Assets!$B70,'Data Annex'!$K$1:$K$7000,0),MATCH(Assets!F$46,'Data Annex'!$K$1:$AU$1,0)),"") -> 177.3063168 | G70: =IFERROR(INDEX('Data Annex'!$K$1:$AU$7000,MATCH(Assets!G$45&"|"&Assets!$B70,'Data Annex'!$K$1:$K$7000,0),MATCH(Assets!G$46,'Data Annex'!$K$1:$AU$1,0)),"") -> 183.5338135 | H70: =IFERROR(INDEX('Data Annex'!$K$1:$AU$7000,MATCH(Assets!H$45&"|"&Assets!$B70,'Data Annex'!$K$1:$K$7000,0),MATCH(Assets!H$46,'Data Annex'!$K$1:$AU$1,0)),"") -> 186.7684199 | I70: =IFERROR(INDEX('Data Annex'!$K$1:$AU$7000,MATCH(Assets!I$45&"|"&Assets!$B70,'Data Annex'!$K$1:$K$7000,0),MATCH(Assets!I$46,'Data Annex'!$K$1:$AU$1,0)),"") -> 190.0379667 | J70: =IFERROR(INDEX('Data Annex'!$K$1:$AU$7000,MATCH(Assets!J$45&"|"&Assets!$B70,'Data Annex'!$K$1:$K$7000,0),MATCH(Assets!J$46,'Data Annex'!$K$1:$AU$1,0)),"") -> 172.2702093 | K70: =IFERROR(INDEX('Data Annex'!$K$1:$AU$7000,MATCH(Assets!K$45&"|"&Assets!$B70,'Data Annex'!$K$1:$K$7000,0),MATCH(Assets!K$46,'Data Annex'!$K$1:$AU$1,0)),"") -> 178.3683153 | L70: =IFERROR(INDEX('Data Annex'!$K$1:$AU$7000,MATCH(Assets!L$45&"|"&Assets!$B70,'Data Annex'!$K$1:$K$7000,0),MATCH(Assets!L$46,'Data Annex'!$K$1:$AU$1,0)),"") -> 181.5526849 | M70: =IFERROR(INDEX('Data Annex'!$K$1:$AU$7000,MATCH(Assets!M$45&"|"&Assets!$B70,'Data Annex'!$K$1:$K$7000,0),MATCH(Assets!M$46,'Data Annex'!$K$1:$AU$1,0)),"") -> 185.0831728 | N70: 0.9739273472 | O70: LU | Q70: =IFERROR(INDEX('Data Annex'!$K$1:$AU$7000,MATCH(Assets!Q$45&"|"&Assets!$B70,'Data Annex'!$K$1:$K$7000,0),MATCH(Assets!Q$46,'Data Annex'!$K$1:$AU$1,0)),"") -> 0.9184533125 | R70: =IFERROR(INDEX('Data Annex'!$K$1:$AU$7000,MATCH(Assets!R$45&"|"&Assets!$B70,'Data Annex'!$K$1:$K$7000,0),MATCH(Assets!R$46,'Data Annex'!$K$1:$AU$1,0)),"") -> 0.9232739657 | S70: =IFERROR(INDEX('Data Annex'!$K$1:$AU$7000,MATCH(Assets!S$45&"|"&Assets!$B70,'Data Annex'!$K$1:$K$7000,0),MATCH(Assets!S$46,'Data Annex'!$K$1:$AU$1,0)),"") -> 0.9290595627 | T70: =IFERROR(INDEX('Data Annex'!$K$1:$AU$7000,MATCH(Assets!T$45&"|"&Assets!$B70,'Data Annex'!$K$1:$K$7000,0),MATCH(Assets!T$46,'Data Annex'!$K$1:$AU$1,0)),"") -> 0.9318752966 | U70: =IFERROR(INDEX('Data Annex'!$K$1:$AU$7000,MATCH(Assets!U$45&"|"&Assets!$B70,'Data Annex'!$K$1:$K$7000,0),MATCH(Assets!U$46,'Data Annex'!$K$1:$AU$1,0)),"") -> 0.06365927344 | V70: =IFERROR(INDEX('Data Annex'!$K$1:$AU$7000,MATCH(Assets!V$45&"|"&Assets!$B70,'Data Annex'!$K$1:$K$7000,0),MATCH(Assets!V$46,'Data Annex'!$K$1:$AU$1,0)),"") -> 0.05971906075 | W70: =IFERROR(INDEX('Data Annex'!$K$1:$AU$7000,MATCH(Assets!W$45&"|"&Assets!$B70,'Data Annex'!$K$1:$K$7000,0),MATCH(Assets!W$46,'Data Annex'!$K$1:$AU$1,0)),"") -> 0.05329427445 | X70: =IFERROR(INDEX('Data Annex'!$K$1:$AU$7000,MATCH(Assets!X$45&"|"&Assets!$B70,'Data Annex'!$K$1:$K$7000,0),MATCH(Assets!X$46,'Data Annex'!$K$1:$AU$1,0)),"") -> 0.04918269017 | Y70: =IFERROR(INDEX('Data Annex'!$K$1:$AU$7000,MATCH(Assets!Y$45&"|"&Assets!$B70,'Data Annex'!$K$1:$K$7000,0),MATCH(Assets!Y$46,'Data Annex'!$K$1:$AU$1,0)),"") -> 0.01788741407 | Z70: =IFERROR(INDEX('Data Annex'!$K$1:$AU$7000,MATCH(Assets!Z$45&"|"&Assets!$B70,'Data Annex'!$K$1:$K$7000,0),MATCH(Assets!Z$46,'Data Annex'!$K$1:$AU$1,0)),"") -> 0.01700697356 | AA70: =IFERROR(INDEX('Data Annex'!$K$1:$AU$7000,MATCH(Assets!AA$45&"|"&Assets!$B70,'Data Annex'!$K$1:$K$7000,0),MATCH(Assets!AA$46,'Data Annex'!$K$1:$AU$1,0)),"") -> 0.01764616283 | AB70: =IFERROR(INDEX('Data Annex'!$K$1:$AU$7000,MATCH(Assets!AB$45&"|"&Assets!$B70,'Data Annex'!$K$1:$K$7000,0),MATCH(Assets!AB$46,'Data Annex'!$K$1:$AU$1,0)),"") -> 0.01894201319
B71: LV | D71: LV | F71: =IFERROR(INDEX('Data Annex'!$K$1:$AU$7000,MATCH(Assets!F$45&"|"&Assets!$B71,'Data Annex'!$K$1:$K$7000,0),MATCH(Assets!F$46,'Data Annex'!$K$1:$AU$1,0)),"") -> 16.49323827 | G71: =IFERROR(INDEX('Data Annex'!$K$1:$AU$7000,MATCH(Assets!G$45&"|"&Assets!$B71,'Data Annex'!$K$1:$K$7000,0),MATCH(Assets!G$46,'Data Annex'!$K$1:$AU$1,0)),"") -> 17.34828751 | H71: =IFERROR(INDEX('Data Annex'!$K$1:$AU$7000,MATCH(Assets!H$45&"|"&Assets!$B71,'Data Annex'!$K$1:$K$7000,0),MATCH(Assets!H$46,'Data Annex'!$K$1:$AU$1,0)),"") -> 17.29483615 | I71: =IFERROR(INDEX('Data Annex'!$K$1:$AU$7000,MATCH(Assets!I$45&"|"&Assets!$B71,'Data Annex'!$K$1:$K$7000,0),MATCH(Assets!I$46,'Data Annex'!$K$1:$AU$1,0)),"") -> 17.20865601 | J71: =IFERROR(INDEX('Data Annex'!$K$1:$AU$7000,MATCH(Assets!J$45&"|"&Assets!$B71,'Data Annex'!$K$1:$K$7000,0),MATCH(Assets!J$46,'Data Annex'!$K$1:$AU$1,0)),"") -> 16.36191685 | K71: =IFERROR(INDEX('Data Annex'!$K$1:$AU$7000,MATCH(Assets!K$45&"|"&Assets!$B71,'Data Annex'!$K$1:$K$7000,0),MATCH(Assets!K$46,'Data Annex'!$K$1:$AU$1,0)),"") -> 17.18298963 | L71: =IFERROR(INDEX('Data Annex'!$K$1:$AU$7000,MATCH(Assets!L$45&"|"&Assets!$B71,'Data Annex'!$K$1:$K$7000,0),MATCH(Assets!L$46,'Data Annex'!$K$1:$AU$1,0)),"") -> 17.1366688 | M71: =IFERROR(INDEX('Data Annex'!$K$1:$AU$7000,MATCH(Assets!M$45&"|"&Assets!$B71,'Data Annex'!$K$1:$K$7000,0),MATCH(Assets!M$46,'Data Annex'!$K$1:$AU$1,0)),"") -> 17.0431866 | N71: 0.9903845246 | O71: LV | Q71: =IFERROR(INDEX('Data Annex'!$K$1:$AU$7000,MATCH(Assets!Q$45&"|"&Assets!$B71,'Data Annex'!$K$1:$K$7000,0),MATCH(Assets!Q$46,'Data Annex'!$K$1:$AU$1,0)),"") -> 0.9005810141 | R71: =IFERROR(INDEX('Data Annex'!$K$1:$AU$7000,MATCH(Assets!R$45&"|"&Assets!$B71,'Data Annex'!$K$1:$K$7000,0),MATCH(Assets!R$46,'Data Annex'!$K$1:$AU$1,0)),"") -> 0.8998540691 | S71: =IFERROR(INDEX('Data Annex'!$K$1:$AU$7000,MATCH(Assets!S$45&"|"&Assets!$B71,'Data Annex'!$K$1:$K$7000,0),MATCH(Assets!S$46,'Data Annex'!$K$1:$AU$1,0)),"") -> 0.9047913609 | T71: =IFERROR(INDEX('Data Annex'!$K$1:$AU$7000,MATCH(Assets!T$45&"|"&Assets!$B71,'Data Annex'!$K$1:$K$7000,0),MATCH(Assets!T$46,'Data Annex'!$K$1:$AU$1,0)),"") -> 0.9035051354 | U71: =IFERROR(INDEX('Data Annex'!$K$1:$AU$7000,MATCH(Assets!U$45&"|"&Assets!$B71,'Data Annex'!$K$1:$K$7000,0),MATCH(Assets!U$46,'Data Annex'!$K$1:$AU$1,0)),"") -> 0.02068672503 | V71: =IFERROR(INDEX('Data Annex'!$K$1:$AU$7000,MATCH(Assets!V$45&"|"&Assets!$B71,'Data Annex'!$K$1:$K$7000,0),MATCH(Assets!V$46,'Data Annex'!$K$1:$AU$1,0)),"") -> 0.01901064221 | W71: =IFERROR(INDEX('Data Annex'!$K$1:$AU$7000,MATCH(Assets!W$45&"|"&Assets!$B71,'Data Annex'!$K$1:$K$7000,0),MATCH(Assets!W$46,'Data Annex'!$K$1:$AU$1,0)),"") -> 0.01618121966 | X71: =IFERROR(INDEX('Data Annex'!$K$1:$AU$7000,MATCH(Assets!X$45&"|"&Assets!$B71,'Data Annex'!$K$1:$K$7000,0),MATCH(Assets!X$46,'Data Annex'!$K$1:$AU$1,0)),"") -> 0.01679305981 | Y71: =IFERROR(INDEX('Data Annex'!$K$1:$AU$7000,MATCH(Assets!Y$45&"|"&Assets!$B71,'Data Annex'!$K$1:$K$7000,0),MATCH(Assets!Y$46,'Data Annex'!$K$1:$AU$1,0)),"") -> 0.0787322609 | Z71: =IFERROR(INDEX('Data Annex'!$K$1:$AU$7000,MATCH(Assets!Z$45&"|"&Assets!$B71,'Data Annex'!$K$1:$K$7000,0),MATCH(Assets!Z$46,'Data Annex'!$K$1:$AU$1,0)),"") -> 0.08113528873 | AA71: =IFERROR(INDEX('Data Annex'!$K$1:$AU$7000,MATCH(Assets!AA$45&"|"&Assets!$B71,'Data Annex'!$K$1:$K$7000,0),MATCH(Assets!AA$46,'Data Annex'!$K$1:$AU$1,0)),"") -> 0.07902741945 | AB71: =IFERROR(INDEX('Data Annex'!$K$1:$AU$7000,MATCH(Assets!AB$45&"|"&Assets!$B71,'Data Annex'!$K$1:$K$7000,0),MATCH(Assets!AB$46,'Data Annex'!$K$1:$AU$1,0)),"") -> 0.07970180475
B72: MT | D72: MT | F72: =IFERROR(INDEX('Data Annex'!$K$1:$AU$7000,MATCH(Assets!F$45&"|"&Assets!$B72,'Data Annex'!$K$1:$K$7000,0),MATCH(Assets!F$46,'Data Annex'!$K$1:$AU$1,0)),"") -> 22.84453198 | G72: =IFERROR(INDEX('Data Annex'!$K$1:$AU$7000,MATCH(Assets!G$45&"|"&Assets!$B72,'Data Annex'!$K$1:$K$7000,0),MATCH(Assets!G$46,'Data Annex'!$K$1:$AU$1,0)),"") -> 23.81170423 | H72: =IFERROR(INDEX('Data Annex'!$K$1:$AU$7000,MATCH(Assets!H$45&"|"&Assets!$B72,'Data Annex'!$K$1:$K$7000,0),MATCH(Assets!H$46,'Data Annex'!$K$1:$AU$1,0)),"") -> 23.79443541 | I72: =IFERROR(INDEX('Data Annex'!$K$1:$AU$7000,MATCH(Assets!I$45&"|"&Assets!$B72,'Data Annex'!$K$1:$K$7000,0),MATCH(Assets!I$46,'Data Annex'!$K$1:$AU$1,0)),"") -> 24.20159298 | J72: =IFERROR(INDEX('Data Annex'!$K$1:$AU$7000,MATCH(Assets!J$45&"|"&Assets!$B72,'Data Annex'!$K$1:$K$7000,0),MATCH(Assets!J$46,'Data Annex'!$K$1:$AU$1,0)),"") -> 22.13203145 | K72: =IFERROR(INDEX('Data Annex'!$K$1:$AU$7000,MATCH(Assets!K$45&"|"&Assets!$B72,'Data Annex'!$K$1:$K$7000,0),MATCH(Assets!K$46,'Data Annex'!$K$1:$AU$1,0)),"") -> 23.12428087 | L72: =IFERROR(INDEX('Data Annex'!$K$1:$AU$7000,MATCH(Assets!L$45&"|"&Assets!$B72,'Data Annex'!$K$1:$K$7000,0),MATCH(Assets!L$46,'Data Annex'!$K$1:$AU$1,0)),"") -> 23.12473831 | M72: =IFERROR(INDEX('Data Annex'!$K$1:$AU$7000,MATCH(Assets!M$45&"|"&Assets!$B72,'Data Annex'!$K$1:$K$7000,0),MATCH(Assets!M$46,'Data Annex'!$K$1:$AU$1,0)),"") -> 23.53362037 | N72: 0.9723996425 | O72: MT | Q72: =IFERROR(INDEX('Data Annex'!$K$1:$AU$7000,MATCH(Assets!Q$45&"|"&Assets!$B72,'Data Annex'!$K$1:$K$7000,0),MATCH(Assets!Q$46,'Data Annex'!$K$1:$AU$1,0)),"") -> 0.8970539531 | R72: =IFERROR(INDEX('Data Annex'!$K$1:$AU$7000,MATCH(Assets!R$45&"|"&Assets!$B72,'Data Annex'!$K$1:$K$7000,0),MATCH(Assets!R$46,'Data Annex'!$K$1:$AU$1,0)),"") -> 0.8985097135 | S72: =IFERROR(INDEX('Data Annex'!$K$1:$AU$7000,MATCH(Assets!S$45&"|"&Assets!$B72,'Data Annex'!$K$1:$K$7000,0),MATCH(Assets!S$46,'Data Annex'!$K$1:$AU$1,0)),"") -> 0.8903813841 | T72: =IFERROR(INDEX('Data Annex'!$K$1:$AU$7000,MATCH(Assets!T$45&"|"&Assets!$B72,'Data Annex'!$K$1:$K$7000,0),MATCH(Assets!T$46,'Data Annex'!$K$1:$AU$1,0)),"") -> 0.8944367837 | U72: =IFERROR(INDEX('Data Annex'!$K$1:$AU$7000,MATCH(Assets!U$45&"|"&Assets!$B72,'Data Annex'!$K$1:$K$7000,0),MATCH(Assets!U$46,'Data Annex'!$K$1:$AU$1,0)),"") -> 0.09489830165 | V72: =IFERROR(INDEX('Data Annex'!$K$1:$AU$7000,MATCH(Assets!V$45&"|"&Assets!$B72,'Data Annex'!$K$1:$K$7000,0),MATCH(Assets!V$46,'Data Annex'!$K$1:$AU$1,0)),"") -> 0.09334164892 | W72: =IFERROR(INDEX('Data Annex'!$K$1:$AU$7000,MATCH(Assets!W$45&"|"&Assets!$B72,'Data Annex'!$K$1:$K$7000,0),MATCH(Assets!W$46,'Data Annex'!$K$1:$AU$1,0)),"") -> 0.1014731841 | X72: =IFERROR(INDEX('Data Annex'!$K$1:$AU$7000,MATCH(Assets!X$45&"|"&Assets!$B72,'Data Annex'!$K$1:$K$7000,0),MATCH(Assets!X$46,'Data Annex'!$K$1:$AU$1,0)),"") -> 0.09796416267 | Y72: =IFERROR(INDEX('Data Annex'!$K$1:$AU$7000,MATCH(Assets!Y$45&"|"&Assets!$B72,'Data Annex'!$K$1:$K$7000,0),MATCH(Assets!Y$46,'Data Annex'!$K$1:$AU$1,0)),"") -> 0.008047745262 | Z72: =IFERROR(INDEX('Data Annex'!$K$1:$AU$7000,MATCH(Assets!Z$45&"|"&Assets!$B72,'Data Annex'!$K$1:$K$7000,0),MATCH(Assets!Z$46,'Data Annex'!$K$1:$AU$1,0)),"") -> 0.008148637574 | AA72: =IFERROR(INDEX('Data Annex'!$K$1:$AU$7000,MATCH(Assets!AA$45&"|"&Assets!$B72,'Data Annex'!$K$1:$K$7000,0),MATCH(Assets!AA$46,'Data Annex'!$K$1:$AU$1,0)),"") -> 0.008145431888 | AB72: =IFERROR(INDEX('Data Annex'!$K$1:$AU$7000,MATCH(Assets!AB$45&"|"&Assets!$B72,'Data Annex'!$K$1:$K$7000,0),MATCH(Assets!AB$46,'Data Annex'!$K$1:$AU$1,0)),"") -> 0.007599053676
B73: NL | D73: NL | F73: =IFERROR(INDEX('Data Annex'!$K$1:$AU$7000,MATCH(Assets!F$45&"|"&Assets!$B73,'Data Annex'!$K$1:$K$7000,0),MATCH(Assets!F$46,'Data Annex'!$K$1:$AU$1,0)),"") -> 2193.284832 | G73: =IFERROR(INDEX('Data Annex'!$K$1:$AU$7000,MATCH(Assets!G$45&"|"&Assets!$B73,'Data Annex'!$K$1:$K$7000,0),MATCH(Assets!G$46,'Data Annex'!$K$1:$AU$1,0)),"") -> 2338.070814 | H73: =IFERROR(INDEX('Data Annex'!$K$1:$AU$7000,MATCH(Assets!H$45&"|"&Assets!$B73,'Data Annex'!$K$1:$K$7000,0),MATCH(Assets!H$46,'Data Annex'!$K$1:$AU$1,0)),"") -> 2303.127394 | I73: =IFERROR(INDEX('Data Annex'!$K$1:$AU$7000,MATCH(Assets!I$45&"|"&Assets!$B73,'Data Annex'!$K$1:$K$7000,0),MATCH(Assets!I$46,'Data Annex'!$K$1:$AU$1,0)),"") -> 2354.585731 | J73: =IFERROR(INDEX('Data Annex'!$K$1:$AU$7000,MATCH(Assets!J$45&"|"&Assets!$B73,'Data Annex'!$K$1:$K$7000,0),MATCH(Assets!J$46,'Data Annex'!$K$1:$AU$1,0)),"") -> 2121.969838 | K73: =IFERROR(INDEX('Data Annex'!$K$1:$AU$7000,MATCH(Assets!K$45&"|"&Assets!$B73,'Data Annex'!$K$1:$K$7000,0),MATCH(Assets!K$46,'Data Annex'!$K$1:$AU$1,0)),"") -> 2246.585813 | L73: =IFERROR(INDEX('Data Annex'!$K$1:$AU$7000,MATCH(Assets!L$45&"|"&Assets!$B73,'Data Annex'!$K$1:$K$7000,0),MATCH(Assets!L$46,'Data Annex'!$K$1:$AU$1,0)),"") -> 2211.861205 | M73: =IFERROR(INDEX('Data Annex'!$K$1:$AU$7000,MATCH(Assets!M$45&"|"&Assets!$B73,'Data Annex'!$K$1:$K$7000,0),MATCH(Assets!M$46,'Data Annex'!$K$1:$AU$1,0)),"") -> 2266.307413 | N73: 0.9625079194 | O73: NL | Q73: =IFERROR(INDEX('Data Annex'!$K$1:$AU$7000,MATCH(Assets!Q$45&"|"&Assets!$B73,'Data Annex'!$K$1:$K$7000,0),MATCH(Assets!Q$46,'Data Annex'!$K$1:$AU$1,0)),"") -> 0.8740992185 | R73: =IFERROR(INDEX('Data Annex'!$K$1:$AU$7000,MATCH(Assets!R$45&"|"&Assets!$B73,'Data Annex'!$K$1:$K$7000,0),MATCH(Assets!R$46,'Data Annex'!$K$1:$AU$1,0)),"") -> 0.8780083791 | S73: =IFERROR(INDEX('Data Annex'!$K$1:$AU$7000,MATCH(Assets!S$45&"|"&Assets!$B73,'Data Annex'!$K$1:$K$7000,0),MATCH(Assets!S$46,'Data Annex'!$K$1:$AU$1,0)),"") -> 0.8786616071 | T73: =IFERROR(INDEX('Data Annex'!$K$1:$AU$7000,MATCH(Assets!T$45&"|"&Assets!$B73,'Data Annex'!$K$1:$K$7000,0),MATCH(Assets!T$46,'Data Annex'!$K$1:$AU$1,0)),"") -> 0.8813092742 | U73: =IFERROR(INDEX('Data Annex'!$K$1:$AU$7000,MATCH(Assets!U$45&"|"&Assets!$B73,'Data Annex'!$K$1:$K$7000,0),MATCH(Assets!U$46,'Data Annex'!$K$1:$AU$1,0)),"") -> 0.0517055198 | V73: =IFERROR(INDEX('Data Annex'!$K$1:$AU$7000,MATCH(Assets!V$45&"|"&Assets!$B73,'Data Annex'!$K$1:$K$7000,0),MATCH(Assets!V$46,'Data Annex'!$K$1:$AU$1,0)),"") -> 0.0461114359 | W73: =IFERROR(INDEX('Data Annex'!$K$1:$AU$7000,MATCH(Assets!W$45&"|"&Assets!$B73,'Data Annex'!$K$1:$K$7000,0),MATCH(Assets!W$46,'Data Annex'!$K$1:$AU$1,0)),"") -> 0.04602134386 | X73: =IFERROR(INDEX('Data Annex'!$K$1:$AU$7000,MATCH(Assets!X$45&"|"&Assets!$B73,'Data Annex'!$K$1:$K$7000,0),MATCH(Assets!X$46,'Data Annex'!$K$1:$AU$1,0)),"") -> 0.04335875195 | Y73: =IFERROR(INDEX('Data Annex'!$K$1:$AU$7000,MATCH(Assets!Y$45&"|"&Assets!$B73,'Data Annex'!$K$1:$K$7000,0),MATCH(Assets!Y$46,'Data Annex'!$K$1:$AU$1,0)),"") -> 0.07419526172 | Z73: =IFERROR(INDEX('Data Annex'!$K$1:$AU$7000,MATCH(Assets!Z$45&"|"&Assets!$B73,'Data Annex'!$K$1:$K$7000,0),MATCH(Assets!Z$46,'Data Annex'!$K$1:$AU$1,0)),"") -> 0.07588018498 | AA73: =IFERROR(INDEX('Data Annex'!$K$1:$AU$7000,MATCH(Assets!AA$45&"|"&Assets!$B73,'Data Annex'!$K$1:$K$7000,0),MATCH(Assets!AA$46,'Data Annex'!$K$1:$AU$1,0)),"") -> 0.07531704904 | AB73: =IFERROR(INDEX('Data Annex'!$K$1:$AU$7000,MATCH(Assets!AB$45&"|"&Assets!$B73,'Data Annex'!$K$1:$K$7000,0),MATCH(Assets!AB$46,'Data Annex'!$K$1:$AU$1,0)),"") -> 0.07533197382
B74: NO | D74: NO* | F74: =IFERROR(INDEX('Data Annex'!$K$1:$AU$7000,MATCH(Assets!F$45&"|"&Assets!$B74,'Data Annex'!$K$1:$K$7000,0),MATCH(Assets!F$46,'Data Annex'!$K$1:$AU$1,0)),"") -> 302.9686131 | G74: =IFERROR(INDEX('Data Annex'!$K$1:$AU$7000,MATCH(Assets!G$45&"|"&Assets!$B74,'Data Annex'!$K$1:$K$7000,0),MATCH(Assets!G$46,'Data Annex'!$K$1:$AU$1,0)),"") -> 324.0029166 | H74: =IFERROR(INDEX('Data Annex'!$K$1:$AU$7000,MATCH(Assets!H$45&"|"&Assets!$B74,'Data Annex'!$K$1:$K$7000,0),MATCH(Assets!H$46,'Data Annex'!$K$1:$AU$1,0)),"") -> 0 | I74: =IFERROR(INDEX('Data Annex'!$K$1:$AU$7000,MATCH(Assets!I$45&"|"&Assets!$B74,'Data Annex'!$K$1:$K$7000,0),MATCH(Assets!I$46,'Data Annex'!$K$1:$AU$1,0)),"") -> 0 | J74: =IFERROR(INDEX('Data Annex'!$K$1:$AU$7000,MATCH(Assets!J$45&"|"&Assets!$B74,'Data Annex'!$K$1:$K$7000,0),MATCH(Assets!J$46,'Data Annex'!$K$1:$AU$1,0)),"") -> 298.4313948 | K74: =IFERROR(INDEX('Data Annex'!$K$1:$AU$7000,MATCH(Assets!K$45&"|"&Assets!$B74,'Data Annex'!$K$1:$K$7000,0),MATCH(Assets!K$46,'Data Annex'!$K$1:$AU$1,0)),"") -> 318.0998665 | L74: =IFERROR(INDEX('Data Annex'!$K$1:$AU$7000,MATCH(Assets!L$45&"|"&Assets!$B74,'Data Annex'!$K$1:$K$7000,0),MATCH(Assets!L$46,'Data Annex'!$K$1:$AU$1,0)),"") -> 0 | M74: =IFERROR(INDEX('Data Annex'!$K$1:$AU$7000,MATCH(Assets!M$45&"|"&Assets!$B74,'Data Annex'!$K$1:$K$7000,0),MATCH(Assets!M$46,'Data Annex'!$K$1:$AU$1,0)),"") -> 0 | O74: NO* | Q74: =IFERROR(INDEX('Data Annex'!$K$1:$AU$7000,MATCH(Assets!Q$45&"|"&Assets!$B74,'Data Annex'!$K$1:$K$7000,0),MATCH(Assets!Q$46,'Data Annex'!$K$1:$AU$1,0)),"") -> 0.769211687 | R74: =IFERROR(INDEX('Data Annex'!$K$1:$AU$7000,MATCH(Assets!R$45&"|"&Assets!$B74,'Data Annex'!$K$1:$K$7000,0),MATCH(Assets!R$46,'Data Annex'!$K$1:$AU$1,0)),"") -> 0.791324086 | S74: =IFERROR(INDEX('Data Annex'!$K$1:$AU$7000,MATCH(Assets!S$45&"|"&Assets!$B74,'Data Annex'!$K$1:$K$7000,0),MATCH(Assets!S$46,'Data Annex'!$K$1:$AU$1,0)),"") -> 0 | T74: =IFERROR(INDEX('Data Annex'!$K$1:$AU$7000,MATCH(Assets!T$45&"|"&Assets!$B74,'Data Annex'!$K$1:$K$7000,0),MATCH(Assets!T$46,'Data Annex'!$K$1:$AU$1,0)),"") -> 0 | U74: =IFERROR(INDEX('Data Annex'!$K$1:$AU$7000,MATCH(Assets!U$45&"|"&Assets!$B74,'Data Annex'!$K$1:$K$7000,0),MATCH(Assets!U$46,'Data Annex'!$K$1:$AU$1,0)),"") -> 0.05686572814 | V74: =IFERROR(INDEX('Data Annex'!$K$1:$AU$7000,MATCH(Assets!V$45&"|"&Assets!$B74,'Data Annex'!$K$1:$K$7000,0),MATCH(Assets!V$46,'Data Annex'!$K$1:$AU$1,0)),"") -> 0.05844571831 | W74: =IFERROR(INDEX('Data Annex'!$K$1:$AU$7000,MATCH(Assets!W$45&"|"&Assets!$B74,'Data Annex'!$K$1:$K$7000,0),MATCH(Assets!W$46,'Data Annex'!$K$1:$AU$1,0)),"") -> 0 | X74: =IFERROR(INDEX('Data Annex'!$K$1:$AU$7000,MATCH(Assets!X$45&"|"&Assets!$B74,'Data Annex'!$K$1:$K$7000,0),MATCH(Assets!X$46,'Data Annex'!$K$1:$AU$1,0)),"") -> 0 | Y74: =IFERROR(INDEX('Data Annex'!$K$1:$AU$7000,MATCH(Assets!Y$45&"|"&Assets!$B74,'Data Annex'!$K$1:$K$7000,0),MATCH(Assets!Y$46,'Data Annex'!$K$1:$AU$1,0)),"") -> 0.1739225848 | Z74: =IFERROR(INDEX('Data Annex'!$K$1:$AU$7000,MATCH(Assets!Z$45&"|"&Assets!$B74,'Data Annex'!$K$1:$K$7000,0),MATCH(Assets!Z$46,'Data Annex'!$K$1:$AU$1,0)),"") -> 0.1502301957 | AA74: =IFERROR(INDEX('Data Annex'!$K$1:$AU$7000,MATCH(Assets!AA$45&"|"&Assets!$B74,'Data Annex'!$K$1:$K$7000,0),MATCH(Assets!AA$46,'Data Annex'!$K$1:$AU$1,0)),"") -> 0 | AB74: =IFERROR(INDEX('Data Annex'!$K$1:$AU$7000,MATCH(Assets!AB$45&"|"&Assets!$B74,'Data Annex'!$K$1:$K$7000,0),MATCH(Assets!AB$46,'Data Annex'!$K$1:$AU$1,0)),"") -> 0
B75: PL | D75: PL | F75: =IFERROR(INDEX('Data Annex'!$K$1:$AU$7000,MATCH(Assets!F$45&"|"&Assets!$B75,'Data Annex'!$K$1:$K$7000,0),MATCH(Assets!F$46,'Data Annex'!$K$1:$AU$1,0)),"") -> 183.6233976 | G75: =IFERROR(INDEX('Data Annex'!$K$1:$AU$7000,MATCH(Assets!G$45&"|"&Assets!$B75,'Data Annex'!$K$1:$K$7000,0),MATCH(Assets!G$46,'Data Annex'!$K$1:$AU$1,0)),"") -> 186.5292734 | H75: =IFERROR(INDEX('Data Annex'!$K$1:$AU$7000,MATCH(Assets!H$45&"|"&Assets!$B75,'Data Annex'!$K$1:$K$7000,0),MATCH(Assets!H$46,'Data Annex'!$K$1:$AU$1,0)),"") -> 191.3301169 | I75: =IFERROR(INDEX('Data Annex'!$K$1:$AU$7000,MATCH(Assets!I$45&"|"&Assets!$B75,'Data Annex'!$K$1:$K$7000,0),MATCH(Assets!I$46,'Data Annex'!$K$1:$AU$1,0)),"") -> 190.9719102 | J75: =IFERROR(INDEX('Data Annex'!$K$1:$AU$7000,MATCH(Assets!J$45&"|"&Assets!$B75,'Data Annex'!$K$1:$K$7000,0),MATCH(Assets!J$46,'Data Annex'!$K$1:$AU$1,0)),"") -> 177.3951636 | K75: =IFERROR(INDEX('Data Annex'!$K$1:$AU$7000,MATCH(Assets!K$45&"|"&Assets!$B75,'Data Annex'!$K$1:$K$7000,0),MATCH(Assets!K$46,'Data Annex'!$K$1:$AU$1,0)),"") -> 180.2795495 | L75: =IFERROR(INDEX('Data Annex'!$K$1:$AU$7000,MATCH(Assets!L$45&"|"&Assets!$B75,'Data Annex'!$K$1:$K$7000,0),MATCH(Assets!L$46,'Data Annex'!$K$1:$AU$1,0)),"") -> 184.7889914 | M75: =IFERROR(INDEX('Data Annex'!$K$1:$AU$7000,MATCH(Assets!M$45&"|"&Assets!$B75,'Data Annex'!$K$1:$K$7000,0),MATCH(Assets!M$46,'Data Annex'!$K$1:$AU$1,0)),"") -> 184.5630475 | N75: 0.9664408098 | O75: PL | Q75: =IFERROR(INDEX('Data Annex'!$K$1:$AU$7000,MATCH(Assets!Q$45&"|"&Assets!$B75,'Data Annex'!$K$1:$K$7000,0),MATCH(Assets!Q$46,'Data Annex'!$K$1:$AU$1,0)),"") -> 0.7375765616 | R75: =IFERROR(INDEX('Data Annex'!$K$1:$AU$7000,MATCH(Assets!R$45&"|"&Assets!$B75,'Data Annex'!$K$1:$K$7000,0),MATCH(Assets!R$46,'Data Annex'!$K$1:$AU$1,0)),"") -> 0.7516732689 | S75: =IFERROR(INDEX('Data Annex'!$K$1:$AU$7000,MATCH(Assets!S$45&"|"&Assets!$B75,'Data Annex'!$K$1:$K$7000,0),MATCH(Assets!S$46,'Data Annex'!$K$1:$AU$1,0)),"") -> 0.7664123507 | T75: =IFERROR(INDEX('Data Annex'!$K$1:$AU$7000,MATCH(Assets!T$45&"|"&Assets!$B75,'Data Annex'!$K$1:$K$7000,0),MATCH(Assets!T$46,'Data Annex'!$K$1:$AU$1,0)),"") -> 0.7724586356 | U75: =IFERROR(INDEX('Data Annex'!$K$1:$AU$7000,MATCH(Assets!U$45&"|"&Assets!$B75,'Data Annex'!$K$1:$K$7000,0),MATCH(Assets!U$46,'Data Annex'!$K$1:$AU$1,0)),"") -> 0.2298369881 | V75: =IFERROR(INDEX('Data Annex'!$K$1:$AU$7000,MATCH(Assets!V$45&"|"&Assets!$B75,'Data Annex'!$K$1:$K$7000,0),MATCH(Assets!V$46,'Data Annex'!$K$1:$AU$1,0)),"") -> 0.2201355054 | W75: =IFERROR(INDEX('Data Annex'!$K$1:$AU$7000,MATCH(Assets!W$45&"|"&Assets!$B75,'Data Annex'!$K$1:$K$7000,0),MATCH(Assets!W$46,'Data Annex'!$K$1:$AU$1,0)),"") -> 0.2063715425 | X75: =IFERROR(INDEX('Data Annex'!$K$1:$AU$7000,MATCH(Assets!X$45&"|"&Assets!$B75,'Data Annex'!$K$1:$K$7000,0),MATCH(Assets!X$46,'Data Annex'!$K$1:$AU$1,0)),"") -> 0.1955041785 | Y75: =IFERROR(INDEX('Data Annex'!$K$1:$AU$7000,MATCH(Assets!Y$45&"|"&Assets!$B75,'Data Annex'!$K$1:$K$7000,0),MATCH(Assets!Y$46,'Data Annex'!$K$1:$AU$1,0)),"") -> 0.0325864503 | Z75: =IFERROR(INDEX('Data Annex'!$K$1:$AU$7000,MATCH(Assets!Z$45&"|"&Assets!$B75,'Data Annex'!$K$1:$K$7000,0),MATCH(Assets!Z$46,'Data Annex'!$K$1:$AU$1,0)),"") -> 0.02819122569 | AA75: =IFERROR(INDEX('Data Annex'!$K$1:$AU$7000,MATCH(Assets!AA$45&"|"&Assets!$B75,'Data Annex'!$K$1:$K$7000,0),MATCH(Assets!AA$46,'Data Annex'!$K$1:$AU$1,0)),"") -> 0.02721610683 | AB75: =IFERROR(INDEX('Data Annex'!$K$1:$AU$7000,MATCH(Assets!AB$45&"|"&Assets!$B75,'Data Annex'!$K$1:$K$7000,0),MATCH(Assets!AB$46,'Data Annex'!$K$1:$AU$1,0)),"") -> 0.03203718587
B76: PT | D76: PT | F76: =IFERROR(INDEX('Data Annex'!$K$1:$AU$7000,MATCH(Assets!F$45&"|"&Assets!$B76,'Data Annex'!$K$1:$K$7000,0),MATCH(Assets!F$46,'Data Annex'!$K$1:$AU$1,0)),"") -> 355.0090286 | G76: =IFERROR(INDEX('Data Annex'!$K$1:$AU$7000,MATCH(Assets!G$45&"|"&Assets!$B76,'Data Annex'!$K$1:$K$7000,0),MATCH(Assets!G$46,'Data Annex'!$K$1:$AU$1,0)),"") -> 284.4880607 | H76: =IFERROR(INDEX('Data Annex'!$K$1:$AU$7000,MATCH(Assets!H$45&"|"&Assets!$B76,'Data Annex'!$K$1:$K$7000,0),MATCH(Assets!H$46,'Data Annex'!$K$1:$AU$1,0)),"") -> 294.2831581 | I76: =IFERROR(INDEX('Data Annex'!$K$1:$AU$7000,MATCH(Assets!I$45&"|"&Assets!$B76,'Data Annex'!$K$1:$K$7000,0),MATCH(Assets!I$46,'Data Annex'!$K$1:$AU$1,0)),"") -> 296.8635306 | J76: =IFERROR(INDEX('Data Annex'!$K$1:$AU$7000,MATCH(Assets!J$45&"|"&Assets!$B76,'Data Annex'!$K$1:$K$7000,0),MATCH(Assets!J$46,'Data Annex'!$K$1:$AU$1,0)),"") -> 332.9939146 | K76: =IFERROR(INDEX('Data Annex'!$K$1:$AU$7000,MATCH(Assets!K$45&"|"&Assets!$B76,'Data Annex'!$K$1:$K$7000,0),MATCH(Assets!K$46,'Data Annex'!$K$1:$AU$1,0)),"") -> 266.152428 | L76: =IFERROR(INDEX('Data Annex'!$K$1:$AU$7000,MATCH(Assets!L$45&"|"&Assets!$B76,'Data Annex'!$K$1:$K$7000,0),MATCH(Assets!L$46,'Data Annex'!$K$1:$AU$1,0)),"") -> 276.0291895 | M76: =IFERROR(INDEX('Data Annex'!$K$1:$AU$7000,MATCH(Assets!M$45&"|"&Assets!$B76,'Data Annex'!$K$1:$K$7000,0),MATCH(Assets!M$46,'Data Annex'!$K$1:$AU$1,0)),"") -> 278.941543 | N76: 0.9396288675 | O76: PT | Q76: =IFERROR(INDEX('Data Annex'!$K$1:$AU$7000,MATCH(Assets!Q$45&"|"&Assets!$B76,'Data Annex'!$K$1:$K$7000,0),MATCH(Assets!Q$46,'Data Annex'!$K$1:$AU$1,0)),"") -> 0.8495353772 | R76: =IFERROR(INDEX('Data Annex'!$K$1:$AU$7000,MATCH(Assets!R$45&"|"&Assets!$B76,'Data Annex'!$K$1:$K$7000,0),MATCH(Assets!R$46,'Data Annex'!$K$1:$AU$1,0)),"") -> 0.8354799429 | S76: =IFERROR(INDEX('Data Annex'!$K$1:$AU$7000,MATCH(Assets!S$45&"|"&Assets!$B76,'Data Annex'!$K$1:$K$7000,0),MATCH(Assets!S$46,'Data Annex'!$K$1:$AU$1,0)),"") -> 0.8406450617 | T76: =IFERROR(INDEX('Data Annex'!$K$1:$AU$7000,MATCH(Assets!T$45&"|"&Assets!$B76,'Data Annex'!$K$1:$K$7000,0),MATCH(Assets!T$46,'Data Annex'!$K$1:$AU$1,0)),"") -> 0.8548657437 | U76: =IFERROR(INDEX('Data Annex'!$K$1:$AU$7000,MATCH(Assets!U$45&"|"&Assets!$B76,'Data Annex'!$K$1:$K$7000,0),MATCH(Assets!U$46,'Data Annex'!$K$1:$AU$1,0)),"") -> 0.1119838176 | V76: =IFERROR(INDEX('Data Annex'!$K$1:$AU$7000,MATCH(Assets!V$45&"|"&Assets!$B76,'Data Annex'!$K$1:$K$7000,0),MATCH(Assets!V$46,'Data Annex'!$K$1:$AU$1,0)),"") -> 0.1266647223 | W76: =IFERROR(INDEX('Data Annex'!$K$1:$AU$7000,MATCH(Assets!W$45&"|"&Assets!$B76,'Data Annex'!$K$1:$K$7000,0),MATCH(Assets!W$46,'Data Annex'!$K$1:$AU$1,0)),"") -> 0.1242617198 | X76: =IFERROR(INDEX('Data Annex'!$K$1:$AU$7000,MATCH(Assets!X$45&"|"&Assets!$B76,'Data Annex'!$K$1:$K$7000,0),MATCH(Assets!X$46,'Data Annex'!$K$1:$AU$1,0)),"") -> 0.1161177406 | Y76: =IFERROR(INDEX('Data Annex'!$K$1:$AU$7000,MATCH(Assets!Y$45&"|"&Assets!$B76,'Data Annex'!$K$1:$K$7000,0),MATCH(Assets!Y$46,'Data Annex'!$K$1:$AU$1,0)),"") -> 0.03848080519 | Z76: =IFERROR(INDEX('Data Annex'!$K$1:$AU$7000,MATCH(Assets!Z$45&"|"&Assets!$B76,'Data Annex'!$K$1:$K$7000,0),MATCH(Assets!Z$46,'Data Annex'!$K$1:$AU$1,0)),"") -> 0.03785533481 | AA76: =IFERROR(INDEX('Data Annex'!$K$1:$AU$7000,MATCH(Assets!AA$45&"|"&Assets!$B76,'Data Annex'!$K$1:$K$7000,0),MATCH(Assets!AA$46,'Data Annex'!$K$1:$AU$1,0)),"") -> 0.03509321849 | AB76: =IFERROR(INDEX('Data Annex'!$K$1:$AU$7000,MATCH(Assets!AB$45&"|"&Assets!$B76,'Data Annex'!$K$1:$K$7000,0),MATCH(Assets!AB$46,'Data Annex'!$K$1:$AU$1,0)),"") -> 0.02901651569
B77: RO | D77: RO | F77: =IFERROR(INDEX('Data Annex'!$K$1:$AU$7000,MATCH(Assets!F$45&"|"&Assets!$B77,'Data Annex'!$K$1:$K$7000,0),MATCH(Assets!F$46,'Data Annex'!$K$1:$AU$1,0)),"") -> 51.95130691 | G77: =IFERROR(INDEX('Data Annex'!$K$1:$AU$7000,MATCH(Assets!G$45&"|"&Assets!$B77,'Data Annex'!$K$1:$K$7000,0),MATCH(Assets!G$46,'Data Annex'!$K$1:$AU$1,0)),"") -> 52.67667784 | H77: =IFERROR(INDEX('Data Annex'!$K$1:$AU$7000,MATCH(Assets!H$45&"|"&Assets!$B77,'Data Annex'!$K$1:$K$7000,0),MATCH(Assets!H$46,'Data Annex'!$K$1:$AU$1,0)),"") -> 53.82774976 | I77: =IFERROR(INDEX('Data Annex'!$K$1:$AU$7000,MATCH(Assets!I$45&"|"&Assets!$B77,'Data Annex'!$K$1:$K$7000,0),MATCH(Assets!I$46,'Data Annex'!$K$1:$AU$1,0)),"") -> 54.72444998 | J77: =IFERROR(INDEX('Data Annex'!$K$1:$AU$7000,MATCH(Assets!J$45&"|"&Assets!$B77,'Data Annex'!$K$1:$K$7000,0),MATCH(Assets!J$46,'Data Annex'!$K$1:$AU$1,0)),"") -> 50.75226083 | K77: =IFERROR(INDEX('Data Annex'!$K$1:$AU$7000,MATCH(Assets!K$45&"|"&Assets!$B77,'Data Annex'!$K$1:$K$7000,0),MATCH(Assets!K$46,'Data Annex'!$K$1:$AU$1,0)),"") -> 51.53215821 | L77: =IFERROR(INDEX('Data Annex'!$K$1:$AU$7000,MATCH(Assets!L$45&"|"&Assets!$B77,'Data Annex'!$K$1:$K$7000,0),MATCH(Assets!L$46,'Data Annex'!$K$1:$AU$1,0)),"") -> 52.67879639 | M77: =IFERROR(INDEX('Data Annex'!$K$1:$AU$7000,MATCH(Assets!M$45&"|"&Assets!$B77,'Data Annex'!$K$1:$K$7000,0),MATCH(Assets!M$46,'Data Annex'!$K$1:$AU$1,0)),"") -> 53.55290599 | N77: 0.9785919459 | O77: RO | Q77: =IFERROR(INDEX('Data Annex'!$K$1:$AU$7000,MATCH(Assets!Q$45&"|"&Assets!$B77,'Data Annex'!$K$1:$K$7000,0),MATCH(Assets!Q$46,'Data Annex'!$K$1:$AU$1,0)),"") -> 0.7587139855 | R77: =IFERROR(INDEX('Data Annex'!$K$1:$AU$7000,MATCH(Assets!R$45&"|"&Assets!$B77,'Data Annex'!$K$1:$K$7000,0),MATCH(Assets!R$46,'Data Annex'!$K$1:$AU$1,0)),"") -> 0.7291249105 | S77: =IFERROR(INDEX('Data Annex'!$K$1:$AU$7000,MATCH(Assets!S$45&"|"&Assets!$B77,'Data Annex'!$K$1:$K$7000,0),MATCH(Assets!S$46,'Data Annex'!$K$1:$AU$1,0)),"") -> 0.7264695613 | T77: =IFERROR(INDEX('Data Annex'!$K$1:$AU$7000,MATCH(Assets!T$45&"|"&Assets!$B77,'Data Annex'!$K$1:$K$7000,0),MATCH(Assets!T$46,'Data Annex'!$K$1:$AU$1,0)),"") -> 0.7259130969 | U77: =IFERROR(INDEX('Data Annex'!$K$1:$AU$7000,MATCH(Assets!U$45&"|"&Assets!$B77,'Data Annex'!$K$1:$K$7000,0),MATCH(Assets!U$46,'Data Annex'!$K$1:$AU$1,0)),"") -> 0.2199991194 | V77: =IFERROR(INDEX('Data Annex'!$K$1:$AU$7000,MATCH(Assets!V$45&"|"&Assets!$B77,'Data Annex'!$K$1:$K$7000,0),MATCH(Assets!V$46,'Data Annex'!$K$1:$AU$1,0)),"") -> 0.2487595451 | W77: =IFERROR(INDEX('Data Annex'!$K$1:$AU$7000,MATCH(Assets!W$45&"|"&Assets!$B77,'Data Annex'!$K$1:$K$7000,0),MATCH(Assets!W$46,'Data Annex'!$K$1:$AU$1,0)),"") -> 0.2524193209 | X77: =IFERROR(INDEX('Data Annex'!$K$1:$AU$7000,MATCH(Assets!X$45&"|"&Assets!$B77,'Data Annex'!$K$1:$K$7000,0),MATCH(Assets!X$46,'Data Annex'!$K$1:$AU$1,0)),"") -> 0.2542033423 | Y77: =IFERROR(INDEX('Data Annex'!$K$1:$AU$7000,MATCH(Assets!Y$45&"|"&Assets!$B77,'Data Annex'!$K$1:$K$7000,0),MATCH(Assets!Y$46,'Data Annex'!$K$1:$AU$1,0)),"") -> 0.02128689504 | Z77: =IFERROR(INDEX('Data Annex'!$K$1:$AU$7000,MATCH(Assets!Z$45&"|"&Assets!$B77,'Data Annex'!$K$1:$K$7000,0),MATCH(Assets!Z$46,'Data Annex'!$K$1:$AU$1,0)),"") -> 0.02211554433 | AA77: =IFERROR(INDEX('Data Annex'!$K$1:$AU$7000,MATCH(Assets!AA$45&"|"&Assets!$B77,'Data Annex'!$K$1:$K$7000,0),MATCH(Assets!AA$46,'Data Annex'!$K$1:$AU$1,0)),"") -> 0.02111111771 | AB77: =IFERROR(INDEX('Data Annex'!$K$1:$AU$7000,MATCH(Assets!AB$45&"|"&Assets!$B77,'Data Annex'!$K$1:$K$7000,0),MATCH(Assets!AB$46,'Data Annex'!$K$1:$AU$1,0)),"") -> 0.01988356088
B78: SE | D78: SE | F78: =IFERROR(INDEX('Data Annex'!$K$1:$AU$7000,MATCH(Assets!F$45&"|"&Assets!$B78,'Data Annex'!$K$1:$K$7000,0),MATCH(Assets!F$46,'Data Annex'!$K$1:$AU$1,0)),"") -> 939.9334633 | G78: =IFERROR(INDEX('Data Annex'!$K$1:$AU$7000,MATCH(Assets!G$45&"|"&Assets!$B78,'Data Annex'!$K$1:$K$7000,0),MATCH(Assets!G$46,'Data Annex'!$K$1:$AU$1,0)),"") -> 1013.993495 | H78: =IFERROR(INDEX('Data Annex'!$K$1:$AU$7000,MATCH(Assets!H$45&"|"&Assets!$B78,'Data Annex'!$K$1:$K$7000,0),MATCH(Assets!H$46,'Data Annex'!$K$1:$AU$1,0)),"") -> 1030.044566 | I78: =IFERROR(INDEX('Data Annex'!$K$1:$AU$7000,MATCH(Assets!I$45&"|"&Assets!$B78,'Data Annex'!$K$1:$K$7000,0),MATCH(Assets!I$46,'Data Annex'!$K$1:$AU$1,0)),"") -> 1047.55173 | J78: =IFERROR(INDEX('Data Annex'!$K$1:$AU$7000,MATCH(Assets!J$45&"|"&Assets!$B78,'Data Annex'!$K$1:$K$7000,0),MATCH(Assets!J$46,'Data Annex'!$K$1:$AU$1,0)),"") -> 925.3715487 | K78: =IFERROR(INDEX('Data Annex'!$K$1:$AU$7000,MATCH(Assets!K$45&"|"&Assets!$B78,'Data Annex'!$K$1:$K$7000,0),MATCH(Assets!K$46,'Data Annex'!$K$1:$AU$1,0)),"") -> 998.5095436 | L78: =IFERROR(INDEX('Data Annex'!$K$1:$AU$7000,MATCH(Assets!L$45&"|"&Assets!$B78,'Data Annex'!$K$1:$K$7000,0),MATCH(Assets!L$46,'Data Annex'!$K$1:$AU$1,0)),"") -> 1015.400906 | M78: =IFERROR(INDEX('Data Annex'!$K$1:$AU$7000,MATCH(Assets!M$45&"|"&Assets!$B78,'Data Annex'!$K$1:$K$7000,0),MATCH(Assets!M$46,'Data Annex'!$K$1:$AU$1,0)),"") -> 1033.477886 | N78: 0.9865650124 | O78: SE | Q78: =IFERROR(INDEX('Data Annex'!$K$1:$AU$7000,MATCH(Assets!Q$45&"|"&Assets!$B78,'Data Annex'!$K$1:$K$7000,0),MATCH(Assets!Q$46,'Data Annex'!$K$1:$AU$1,0)),"") -> 0.8700521538 | R78: =IFERROR(INDEX('Data Annex'!$K$1:$AU$7000,MATCH(Assets!R$45&"|"&Assets!$B78,'Data Annex'!$K$1:$K$7000,0),MATCH(Assets!R$46,'Data Annex'!$K$1:$AU$1,0)),"") -> 0.8645760907 | S78: =IFERROR(INDEX('Data Annex'!$K$1:$AU$7000,MATCH(Assets!S$45&"|"&Assets!$B78,'Data Annex'!$K$1:$K$7000,0),MATCH(Assets!S$46,'Data Annex'!$K$1:$AU$1,0)),"") -> 0.8695356191 | T78: =IFERROR(INDEX('Data Annex'!$K$1:$AU$7000,MATCH(Assets!T$45&"|"&Assets!$B78,'Data Annex'!$K$1:$K$7000,0),MATCH(Assets!T$46,'Data Annex'!$K$1:$AU$1,0)),"") -> 0.8737877849 | U78: =IFERROR(INDEX('Data Annex'!$K$1:$AU$7000,MATCH(Assets!U$45&"|"&Assets!$B78,'Data Annex'!$K$1:$K$7000,0),MATCH(Assets!U$46,'Data Annex'!$K$1:$AU$1,0)),"") -> 0.01107274523 | V78: =IFERROR(INDEX('Data Annex'!$K$1:$AU$7000,MATCH(Assets!V$45&"|"&Assets!$B78,'Data Annex'!$K$1:$K$7000,0),MATCH(Assets!V$46,'Data Annex'!$K$1:$AU$1,0)),"") -> 0.01043826499 | W78: =IFERROR(INDEX('Data Annex'!$K$1:$AU$7000,MATCH(Assets!W$45&"|"&Assets!$B78,'Data Annex'!$K$1:$K$7000,0),MATCH(Assets!W$46,'Data Annex'!$K$1:$AU$1,0)),"") -> 0.01069191484 | X78: =IFERROR(INDEX('Data Annex'!$K$1:$AU$7000,MATCH(Assets!X$45&"|"&Assets!$B78,'Data Annex'!$K$1:$K$7000,0),MATCH(Assets!X$46,'Data Annex'!$K$1:$AU$1,0)),"") -> 0.01148562332 | Y78: =IFERROR(INDEX('Data Annex'!$K$1:$AU$7000,MATCH(Assets!Y$45&"|"&Assets!$B78,'Data Annex'!$K$1:$K$7000,0),MATCH(Assets!Y$46,'Data Annex'!$K$1:$AU$1,0)),"") -> 0.1188751009 | Z78: =IFERROR(INDEX('Data Annex'!$K$1:$AU$7000,MATCH(Assets!Z$45&"|"&Assets!$B78,'Data Annex'!$K$1:$K$7000,0),MATCH(Assets!Z$46,'Data Annex'!$K$1:$AU$1,0)),"") -> 0.1249856443 | AA78: =IFERROR(INDEX('Data Annex'!$K$1:$AU$7000,MATCH(Assets!AA$45&"|"&Assets!$B78,'Data Annex'!$K$1:$K$7000,0),MATCH(Assets!AA$46,'Data Annex'!$K$1:$AU$1,0)),"") -> 0.1197724661 | AB78: =IFERROR(INDEX('Data Annex'!$K$1:$AU$7000,MATCH(Assets!AB$45&"|"&Assets!$B78,'Data Annex'!$K$1:$K$7000,0),MATCH(Assets!AB$46,'Data Annex'!$K$1:$AU$1,0)),"") -> 0.1147265918
B79: SI | D79: SI | F79: =IFERROR(INDEX('Data Annex'!$K$1:$AU$7000,MATCH(Assets!F$45&"|"&Assets!$B79,'Data Annex'!$K$1:$K$7000,0),MATCH(Assets!F$46,'Data Annex'!$K$1:$AU$1,0)),"") -> 32.39711546 | G79: =IFERROR(INDEX('Data Annex'!$K$1:$AU$7000,MATCH(Assets!G$45&"|"&Assets!$B79,'Data Annex'!$K$1:$K$7000,0),MATCH(Assets!G$46,'Data Annex'!$K$1:$AU$1,0)),"") -> 33.22855623 | H79: =IFERROR(INDEX('Data Annex'!$K$1:$AU$7000,MATCH(Assets!H$45&"|"&Assets!$B79,'Data Annex'!$K$1:$K$7000,0),MATCH(Assets!H$46,'Data Annex'!$K$1:$AU$1,0)),"") -> 34.69658769 | I79: =IFERROR(INDEX('Data Annex'!$K$1:$AU$7000,MATCH(Assets!I$45&"|"&Assets!$B79,'Data Annex'!$K$1:$K$7000,0),MATCH(Assets!I$46,'Data Annex'!$K$1:$AU$1,0)),"") -> 34.85103648 | J79: =IFERROR(INDEX('Data Annex'!$K$1:$AU$7000,MATCH(Assets!J$45&"|"&Assets!$B79,'Data Annex'!$K$1:$K$7000,0),MATCH(Assets!J$46,'Data Annex'!$K$1:$AU$1,0)),"") -> 31.61270542 | K79: =IFERROR(INDEX('Data Annex'!$K$1:$AU$7000,MATCH(Assets!K$45&"|"&Assets!$B79,'Data Annex'!$K$1:$K$7000,0),MATCH(Assets!K$46,'Data Annex'!$K$1:$AU$1,0)),"") -> 32.44288374 | L79: =IFERROR(INDEX('Data Annex'!$K$1:$AU$7000,MATCH(Assets!L$45&"|"&Assets!$B79,'Data Annex'!$K$1:$K$7000,0),MATCH(Assets!L$46,'Data Annex'!$K$1:$AU$1,0)),"") -> 33.92074396 | M79: =IFERROR(INDEX('Data Annex'!$K$1:$AU$7000,MATCH(Assets!M$45&"|"&Assets!$B79,'Data Annex'!$K$1:$K$7000,0),MATCH(Assets!M$46,'Data Annex'!$K$1:$AU$1,0)),"") -> 34.10508772 | N79: 0.9785960812 | O79: SI | Q79: =IFERROR(INDEX('Data Annex'!$K$1:$AU$7000,MATCH(Assets!Q$45&"|"&Assets!$B79,'Data Annex'!$K$1:$K$7000,0),MATCH(Assets!Q$46,'Data Annex'!$K$1:$AU$1,0)),"") -> 0.8114558947 | R79: =IFERROR(INDEX('Data Annex'!$K$1:$AU$7000,MATCH(Assets!R$45&"|"&Assets!$B79,'Data Annex'!$K$1:$K$7000,0),MATCH(Assets!R$46,'Data Annex'!$K$1:$AU$1,0)),"") -> 0.8256126494 | S79: =IFERROR(INDEX('Data Annex'!$K$1:$AU$7000,MATCH(Assets!S$45&"|"&Assets!$B79,'Data Annex'!$K$1:$K$7000,0),MATCH(Assets!S$46,'Data Annex'!$K$1:$AU$1,0)),"") -> 0.8371594522 | T79: =IFERROR(INDEX('Data Annex'!$K$1:$AU$7000,MATCH(Assets!T$45&"|"&Assets!$B79,'Data Annex'!$K$1:$K$7000,0),MATCH(Assets!T$46,'Data Annex'!$K$1:$AU$1,0)),"") -> 0.8406294251 | U79: =IFERROR(INDEX('Data Annex'!$K$1:$AU$7000,MATCH(Assets!U$45&"|"&Assets!$B79,'Data Annex'!$K$1:$K$7000,0),MATCH(Assets!U$46,'Data Annex'!$K$1:$AU$1,0)),"") -> 0.1809458826 | V79: =IFERROR(INDEX('Data Annex'!$K$1:$AU$7000,MATCH(Assets!V$45&"|"&Assets!$B79,'Data Annex'!$K$1:$K$7000,0),MATCH(Assets!V$46,'Data Annex'!$K$1:$AU$1,0)),"") -> 0.1673931093 | W79: =IFERROR(INDEX('Data Annex'!$K$1:$AU$7000,MATCH(Assets!W$45&"|"&Assets!$B79,'Data Annex'!$K$1:$K$7000,0),MATCH(Assets!W$46,'Data Annex'!$K$1:$AU$1,0)),"") -> 0.1601646975 | X79: =IFERROR(INDEX('Data Annex'!$K$1:$AU$7000,MATCH(Assets!X$45&"|"&Assets!$B79,'Data Annex'!$K$1:$K$7000,0),MATCH(Assets!X$46,'Data Annex'!$K$1:$AU$1,0)),"") -> 0.1568010357 | Y79: =IFERROR(INDEX('Data Annex'!$K$1:$AU$7000,MATCH(Assets!Y$45&"|"&Assets!$B79,'Data Annex'!$K$1:$K$7000,0),MATCH(Assets!Y$46,'Data Annex'!$K$1:$AU$1,0)),"") -> 0.007598222638 | Z79: =IFERROR(INDEX('Data Annex'!$K$1:$AU$7000,MATCH(Assets!Z$45&"|"&Assets!$B79,'Data Annex'!$K$1:$K$7000,0),MATCH(Assets!Z$46,'Data Annex'!$K$1:$AU$1,0)),"") -> 0.006994241332 | AA79: =IFERROR(INDEX('Data Annex'!$K$1:$AU$7000,MATCH(Assets!AA$45&"|"&Assets!$B79,'Data Annex'!$K$1:$K$7000,0),MATCH(Assets!AA$46,'Data Annex'!$K$1:$AU$1,0)),"") -> 0.002675850372 | AB79: =IFERROR(INDEX('Data Annex'!$K$1:$AU$7000,MATCH(Assets!AB$45&"|"&Assets!$B79,'Data Annex'!$K$1:$K$7000,0),MATCH(Assets!AB$46,'Data Annex'!$K$1:$AU$1,0)),"") -> 0.002569539223
B80: SK | D80: SK | F80: =IFERROR(INDEX('Data Annex'!$K$1:$AU$7000,MATCH(Assets!F$45&"|"&Assets!$B80,'Data Annex'!$K$1:$K$7000,0),MATCH(Assets!F$46,'Data Annex'!$K$1:$AU$1,0)),"") -> 55.6011076 | G80: =IFERROR(INDEX('Data Annex'!$K$1:$AU$7000,MATCH(Assets!G$45&"|"&Assets!$B80,'Data Annex'!$K$1:$K$7000,0),MATCH(Assets!G$46,'Data Annex'!$K$1:$AU$1,0)),"") -> 60.30193779 | H80: =IFERROR(INDEX('Data Annex'!$K$1:$AU$7000,MATCH(Assets!H$45&"|"&Assets!$B80,'Data Annex'!$K$1:$K$7000,0),MATCH(Assets!H$46,'Data Annex'!$K$1:$AU$1,0)),"") -> 62.17394911 | I80: =IFERROR(INDEX('Data Annex'!$K$1:$AU$7000,MATCH(Assets!I$45&"|"&Assets!$B80,'Data Annex'!$K$1:$K$7000,0),MATCH(Assets!I$46,'Data Annex'!$K$1:$AU$1,0)),"") -> 64.11054545 | J80: =IFERROR(INDEX('Data Annex'!$K$1:$AU$7000,MATCH(Assets!J$45&"|"&Assets!$B80,'Data Annex'!$K$1:$K$7000,0),MATCH(Assets!J$46,'Data Annex'!$K$1:$AU$1,0)),"") -> 54.58424617 | K80: =IFERROR(INDEX('Data Annex'!$K$1:$AU$7000,MATCH(Assets!K$45&"|"&Assets!$B80,'Data Annex'!$K$1:$K$7000,0),MATCH(Assets!K$46,'Data Annex'!$K$1:$AU$1,0)),"") -> 59.27106361 | L80: =IFERROR(INDEX('Data Annex'!$K$1:$AU$7000,MATCH(Assets!L$45&"|"&Assets!$B80,'Data Annex'!$K$1:$K$7000,0),MATCH(Assets!L$46,'Data Annex'!$K$1:$AU$1,0)),"") -> 61.18257868 | M80: =IFERROR(INDEX('Data Annex'!$K$1:$AU$7000,MATCH(Assets!M$45&"|"&Assets!$B80,'Data Annex'!$K$1:$K$7000,0),MATCH(Assets!M$46,'Data Annex'!$K$1:$AU$1,0)),"") -> 63.14452283 | N80: 0.9849319232 | O80: SK | Q80: =IFERROR(INDEX('Data Annex'!$K$1:$AU$7000,MATCH(Assets!Q$45&"|"&Assets!$B80,'Data Annex'!$K$1:$K$7000,0),MATCH(Assets!Q$46,'Data Annex'!$K$1:$AU$1,0)),"") -> 0.9595329835 | R80: =IFERROR(INDEX('Data Annex'!$K$1:$AU$7000,MATCH(Assets!R$45&"|"&Assets!$B80,'Data Annex'!$K$1:$K$7000,0),MATCH(Assets!R$46,'Data Annex'!$K$1:$AU$1,0)),"") -> 0.9673195727 | S80: =IFERROR(INDEX('Data Annex'!$K$1:$AU$7000,MATCH(Assets!S$45&"|"&Assets!$B80,'Data Annex'!$K$1:$K$7000,0),MATCH(Assets!S$46,'Data Annex'!$K$1:$AU$1,0)),"") -> 0.9676577551 | T80: =IFERROR(INDEX('Data Annex'!$K$1:$AU$7000,MATCH(Assets!T$45&"|"&Assets!$B80,'Data Annex'!$K$1:$K$7000,0),MATCH(Assets!T$46,'Data Annex'!$K$1:$AU$1,0)),"") -> 0.9691623942 | U80: =IFERROR(INDEX('Data Annex'!$K$1:$AU$7000,MATCH(Assets!U$45&"|"&Assets!$B80,'Data Annex'!$K$1:$K$7000,0),MATCH(Assets!U$46,'Data Annex'!$K$1:$AU$1,0)),"") -> 0.03369613385 | V80: =IFERROR(INDEX('Data Annex'!$K$1:$AU$7000,MATCH(Assets!V$45&"|"&Assets!$B80,'Data Annex'!$K$1:$K$7000,0),MATCH(Assets!V$46,'Data Annex'!$K$1:$AU$1,0)),"") -> 0.02677497369 | W80: =IFERROR(INDEX('Data Annex'!$K$1:$AU$7000,MATCH(Assets!W$45&"|"&Assets!$B80,'Data Annex'!$K$1:$K$7000,0),MATCH(Assets!W$46,'Data Annex'!$K$1:$AU$1,0)),"") -> 0.02504751165 | X80: =IFERROR(INDEX('Data Annex'!$K$1:$AU$7000,MATCH(Assets!X$45&"|"&Assets!$B80,'Data Annex'!$K$1:$K$7000,0),MATCH(Assets!X$46,'Data Annex'!$K$1:$AU$1,0)),"") -> 0.02524781873 | Y80: =IFERROR(INDEX('Data Annex'!$K$1:$AU$7000,MATCH(Assets!Y$45&"|"&Assets!$B80,'Data Annex'!$K$1:$K$7000,0),MATCH(Assets!Y$46,'Data Annex'!$K$1:$AU$1,0)),"") -> 0.00677088263 | Z80: =IFERROR(INDEX('Data Annex'!$K$1:$AU$7000,MATCH(Assets!Z$45&"|"&Assets!$B80,'Data Annex'!$K$1:$K$7000,0),MATCH(Assets!Z$46,'Data Annex'!$K$1:$AU$1,0)),"") -> 0.005905453589 | AA80: =IFERROR(INDEX('Data Annex'!$K$1:$AU$7000,MATCH(Assets!AA$45&"|"&Assets!$B80,'Data Annex'!$K$1:$K$7000,0),MATCH(Assets!AA$46,'Data Annex'!$K$1:$AU$1,0)),"") -> 0.007294733292 | AB80: =IFERROR(INDEX('Data Annex'!$K$1:$AU$7000,MATCH(Assets!AB$45&"|"&Assets!$B80,'Data Annex'!$K$1:$K$7000,0),MATCH(Assets!AB$46,'Data Annex'!$K$1:$AU$1,0)),"") -> 0.005589787094
B81: EU | D81: =+D42 -> EU/EEA | F81: =IFERROR(INDEX('Data Annex'!$K$1:$AU$7000,MATCH(Assets!F$45&"|"&Assets!$B81,'Data Annex'!$K$1:$K$7000,0),MATCH(Assets!F$46,'Data Annex'!$K$1:$AU$1,0)),"") -> 25638.25496 | G81: =IFERROR(INDEX('Data Annex'!$K$1:$AU$7000,MATCH(Assets!G$45&"|"&Assets!$B81,'Data Annex'!$K$1:$K$7000,0),MATCH(Assets!G$46,'Data Annex'!$K$1:$AU$1,0)),"") -> 26706.37286 | H81: =IFERROR(INDEX('Data Annex'!$K$1:$AU$7000,MATCH(Assets!H$45&"|"&Assets!$B81,'Data Annex'!$K$1:$K$7000,0),MATCH(Assets!H$46,'Data Annex'!$K$1:$AU$1,0)),"") -> 26365.09855 | I81: =IFERROR(INDEX('Data Annex'!$K$1:$AU$7000,MATCH(Assets!I$45&"|"&Assets!$B81,'Data Annex'!$K$1:$K$7000,0),MATCH(Assets!I$46,'Data Annex'!$K$1:$AU$1,0)),"") -> 26716.8526 | J81: =IFERROR(INDEX('Data Annex'!$K$1:$AU$7000,MATCH(Assets!J$45&"|"&Assets!$B81,'Data Annex'!$K$1:$K$7000,0),MATCH(Assets!J$46,'Data Annex'!$K$1:$AU$1,0)),"") -> 24052.63366 | K81: =IFERROR(INDEX('Data Annex'!$K$1:$AU$7000,MATCH(Assets!K$45&"|"&Assets!$B81,'Data Annex'!$K$1:$K$7000,0),MATCH(Assets!K$46,'Data Annex'!$K$1:$AU$1,0)),"") -> 25346.35952 | L81: =IFERROR(INDEX('Data Annex'!$K$1:$AU$7000,MATCH(Assets!L$45&"|"&Assets!$B81,'Data Annex'!$K$1:$K$7000,0),MATCH(Assets!L$46,'Data Annex'!$K$1:$AU$1,0)),"") -> 25092.96445 | M81: =IFERROR(INDEX('Data Annex'!$K$1:$AU$7000,MATCH(Assets!M$45&"|"&Assets!$B81,'Data Annex'!$K$1:$K$7000,0),MATCH(Assets!M$46,'Data Annex'!$K$1:$AU$1,0)),"") -> 25412.98014 | N81: 0.9511966292 | O81: =D81 -> EU/EEA | Q81: =IFERROR(INDEX('Data Annex'!$K$1:$AU$7000,MATCH(Assets!Q$45&"|"&Assets!$B81,'Data Annex'!$K$1:$K$7000,0),MATCH(Assets!Q$46,'Data Annex'!$K$1:$AU$1,0)),"") -> 0.7682386637 | R81: =IFERROR(INDEX('Data Annex'!$K$1:$AU$7000,MATCH(Assets!R$45&"|"&Assets!$B81,'Data Annex'!$K$1:$K$7000,0),MATCH(Assets!R$46,'Data Annex'!$K$1:$AU$1,0)),"") -> 0.7752027349 | S81: =IFERROR(INDEX('Data Annex'!$K$1:$AU$7000,MATCH(Assets!S$45&"|"&Assets!$B81,'Data Annex'!$K$1:$K$7000,0),MATCH(Assets!S$46,'Data Annex'!$K$1:$AU$1,0)),"") -> 0.7824431998 | T81: =IFERROR(INDEX('Data Annex'!$K$1:$AU$7000,MATCH(Assets!T$45&"|"&Assets!$B81,'Data Annex'!$K$1:$K$7000,0),MATCH(Assets!T$46,'Data Annex'!$K$1:$AU$1,0)),"") -> 0.7855724657 | U81: =IFERROR(INDEX('Data Annex'!$K$1:$AU$7000,MATCH(Assets!U$45&"|"&Assets!$B81,'Data Annex'!$K$1:$K$7000,0),MATCH(Assets!U$46,'Data Annex'!$K$1:$AU$1,0)),"") -> 0.05443559444 | V81: =IFERROR(INDEX('Data Annex'!$K$1:$AU$7000,MATCH(Assets!V$45&"|"&Assets!$B81,'Data Annex'!$K$1:$K$7000,0),MATCH(Assets!V$46,'Data Annex'!$K$1:$AU$1,0)),"") -> 0.05138180144 | W81: =IFERROR(INDEX('Data Annex'!$K$1:$AU$7000,MATCH(Assets!W$45&"|"&Assets!$B81,'Data Annex'!$K$1:$K$7000,0),MATCH(Assets!W$46,'Data Annex'!$K$1:$AU$1,0)),"") -> 0.04994381085 | X81: =IFERROR(INDEX('Data Annex'!$K$1:$AU$7000,MATCH(Assets!X$45&"|"&Assets!$B81,'Data Annex'!$K$1:$K$7000,0),MATCH(Assets!X$46,'Data Annex'!$K$1:$AU$1,0)),"") -> 0.04744769236 | Y81: =IFERROR(INDEX('Data Annex'!$K$1:$AU$7000,MATCH(Assets!Y$45&"|"&Assets!$B81,'Data Annex'!$K$1:$K$7000,0),MATCH(Assets!Y$46,'Data Annex'!$K$1:$AU$1,0)),"") -> 0.1773257418 | Z81: =IFERROR(INDEX('Data Annex'!$K$1:$AU$7000,MATCH(Assets!Z$45&"|"&Assets!$B81,'Data Annex'!$K$1:$K$7000,0),MATCH(Assets!Z$46,'Data Annex'!$K$1:$AU$1,0)),"") -> 0.1734154636 | AA81: =IFERROR(INDEX('Data Annex'!$K$1:$AU$7000,MATCH(Assets!AA$45&"|"&Assets!$B81,'Data Annex'!$K$1:$K$7000,0),MATCH(Assets!AA$46,'Data Annex'!$K$1:$AU$1,0)),"") -> 0.1676129893 | AB81: =IFERROR(INDEX('Data Annex'!$K$1:$AU$7000,MATCH(Assets!AB$45&"|"&Assets!$B81,'Data Annex'!$K$1:$K$7000,0),MATCH(Assets!AB$46,'Data Annex'!$K$1:$AU$1,0)),"") -> 0.166979842
N83: =H42+L42+P42+T42+X42 -> 0.9511966293
D84: Individual country data includes subsidiaries, which are excluded from EU aggregate. For example, at country level the subsidiary in country X of a bank domiciled in country Y is included both in data for countries X and Y (for the latter as part of the consolidated entity). In the EU aggregate, only the consolidated entity domiciled in country Y is considered. The sample of banks is unbalanced and reviewed annually. As of Q1 2020 onwards UK banks are removed from the EU/EEA aggregate and subsidiaries of UK banks in EU member states are used instead.
D85: * Norwegian banks have not implemented yet the reporting framework based on CRR2/CRD5. Therefore, Norwegian figures are included in the EBA Risk dashboard only until March 2021.

Sheet Loans Composition (hidden)
E1: T20_1 | F1: T20_1 | G1: T20_1 | H1: T20_1 | I1: T20_2 | J1: T20_2 | K1: T20_2 | L1: T20_2 | M1: T20_3 | N1: T20_3 | O1: T20_3 | P1: T20_3 | Q1: T20_4 | R1: T20_4 | S1: T20_4 | T1: T20_4 | U1: T20_5 | V1: T20_5 | W1: T20_5 | X1: T20_5 | Y1: T20_6 | Z1: T20_6 | AA1: T20_6 | AB1: T20_6
A2: ='Reference Dates'!$C$8 -> 202109 | E2: =TEXT(E49,"YYYYMM")+0 -> 202012 | F2: 202103 | G2: 202106 | H2: 202109 | I2: 202012 | J2: 202103 | K2: 202106 | L2: 202109 | M2: 202012 | N2: 202103 | O2: 202106 | P2: 202109 | Q2: 202012 | R2: 202103 | S2: 202106 | T2: 202109 | U2: 202012 | V2: 202103 | W2: 202106 | X2: 202109 | Y2: 202012 | Z2: 202103 | AA2: 202106 | AB2: 202109
A3: =DATE(LEFT(A2,4),RIGHT(A2,2),1) -> 2021-09-01 | D3: Statistical Annex
D4: Loans: composition and asset quality
I7: of which: loans and advances at amortised cost - by segment (volumes) (2)
D9: Volumes bn EUR
E10: Loans and advances (1) | I10: HHs | M10: …of which mortgages | Q10: NFCs | U10: …of which SMEs | Y10: …of which CRE
E11: =EOMONTH($A$3,-9) -> 2020-12-31 | F11: =EOMONTH($A$3,-6) -> 2021-03-31 | G11: =EOMONTH($A$3,-3) -> 2021-06-30 | H11: =EOMONTH($A$3,0) -> 2021-09-30 | I11: =EOMONTH($A$3,-9) -> 2020-12-31 | J11: =EOMONTH($A$3,-6) -> 2021-03-31 | K11: =EOMONTH($A$3,-3) -> 2021-06-30 | L11: =EOMONTH($A$3,0) -> 2021-09-30 | M11: =EOMONTH($A$3,-9) -> 2020-12-31 | N11: =EOMONTH($A$3,-6) -> 2021-03-31 | O11: =EOMONTH($A$3,-3) -> 2021-06-30 | P11: =EOMONTH($A$3,0) -> 2021-09-30 | Q11: =EOMONTH($A$3,-9) -> 2020-12-31 | R11: =EOMONTH($A$3,-6) -> 2021-03-31 | S11: =EOMONTH($A$3,-3) -> 2021-06-30 | T11: =EOMONTH($A$3,0) -> 2021-09-30 | U11: =EOMONTH($A$3,-9) -> 2020-12-31 | V11: =EOMONTH($A$3,-6) -> 2021-03-31 | W11: =EOMONTH($A$3,-3) -> 2021-06-30 | X11: =EOMONTH($A$3,0) -> 2021-09-30 | Y11: =EOMONTH($A$3,-9) -> 2020-12-31 | Z11: =EOMONTH($A$3,-6) -> 2021-03-31 | AA11: =EOMONTH($A$3,-3) -> 2021-06-30 | AB11: =EOMONTH($A$3,0) -> 2021-09-30
